Workbook

Sheet NOTES
A2: The model has actual and test data to illustrate the workings of the model. | D2: ='Model update'!C5 -> 2020
A4: Issue | B4: Location | C4: Item | D4: Comment
A6: 1 | B6: 'Model update'!C25 | C6: CPI | D6: ="Updated June "&D2-1&" CPI for "&D2 -> Updated June 2019 CPI for 2020 | E6: NOTE: This worksheet is programmed to update for each year - use as checklist and note any placeholders or changes
E7: NOTE: Worksheet names in this file are programmed to update each year once each worksheet is accessed and a cell is selected
A8: =A6+1 -> 2 | B8: 'Model update'!G37:G41 | C8: Real Vanilla WACC (rvw) | D8: ="Updated "&$D$2&" values" -> Updated 2020 values
A10: =A8+1 -> 3 | B10: 'Model update'!G54:G58 | C10: ="DuoS Xt for "&D2 -> DuoS Xt for 2020 | D10: ="Updated "&$D$2&" values " -> Updated 2020 values
A12: =A10+1 -> 4 | B12: 'Model update'!G66:G70 | C12: ="Metering Xt for "&D2 -> Metering Xt for 2020 | D12: ="Updated "&$D$2&" values " -> Updated 2020 values
A14: =A12+1 -> 5 | B14: 'Model update'!H79:H83 | C14: Real Pre-tax WACC (rptw) | D14: ="Updated "&$D$2&" values " -> Updated 2020 values
A16: =A14+1 -> 6 | B16: 'Model update'!G94:G98 | C16: ="f factor (t) "&D2 -> f factor (t) 2020 | D16: Updated 2020 values
A18: =A16+1 -> 7 | B18: 'Model update'!G105:G109 | C18: ="S factor (t) "&D2 -> S factor (t) 2020 | D18: Updated 2020 values
A20: =A18+1 -> 8 | B20: 'Model update'!G116:G120 | C20: ="Pass through amounts (t) "&D2 -> Pass through amounts (t) 2020 | D20: ="NIL for "&D2 -> NIL for 2020
A22: =A20+1 -> 9 | B22: 'Model update'!G127:G131 | C22: ="Licence Fee (t-1) "&$D$2-2&"-"&$D$2-1 -> Licence Fee (t-1) 2018-2019 | D22: ="Placeholders used, "&D2-1&" figures escalated" -> Placeholders used, 2019 figures escalated
A24: =A22+1 -> 10 | B24: Metering!E8:E11 | C24: ="Metering - "&D2-1&" tariffs" -> Metering - 2019 tariffs | D24: ="Updated from "&D2-1&" model" -> Updated from 2019 model
B25: Metering!E32 | C25: Metering - Table 2 - B factor t-1
B26: Metering!D36 | C26: Metering - Table 3 - t-1 AAR
B27: Metering!D53:D54 | C27: Metering - Table 4 - T factor and AAR t-2
B28: Metering!D68 | C28: Metering - Table 5 - U/O balance b/f
B29: ="'"&$D$2&" Unmetered supply'!C7:E7" -> '2020 Unmetered supply'!C7:E7 | C29: ="Unmetered Supply - "&D2-1&" tariffs" -> Unmetered Supply - 2019 tariffs
A31: =A24+1 -> 11 | B31: Metering!D49 | C31: Metering - Table 4 - t-2 revenue | D31: ="Updated from "&$D$2-2&" Annual RIN" -> Updated from 2018 Annual RIN
B32: ="'"&$D$2&" Unmetered supply'!M7" -> '2020 Unmetered supply'!M7 | C32: Unmetered Supply - public lights t-2
A34: =A31+1 -> 12 | B34: ="'"&$D$2&"DistRevCapForm'!H21" -> '2020DistRevCapForm'!H21 | C34: Dist - Table 3 - t-2 AAR | D34: ="Updated from "&$D$2-1&" model" -> Updated from 2019 model
B35: ="'"&$D$2&"DistRevCapForm'!H28" -> '2020DistRevCapForm'!H28 | C35: Dist - Table 4 - t-1 approved under/over recovery
B36: ="'"&$D$2&"DistRevCapForm'!C55" -> '2020DistRevCapForm'!C55 | C36: Dist - Table 6 - Licence fee t-2
B37: ="'"&$D$2&"DistRevCapForm'!C57" -> '2020DistRevCapForm'!C57 | C37: Dist - Table 6 - Pass through (2014/15)
B38: ="'"&$D$2&"DistRevCapForm'!C71" -> '2020DistRevCapForm'!C71 | C38: Dist - Table 7 - U/O balance b/f
B39: ="Est"&$D$2-1&"DistRev!D6:P35" -> Est2019DistRev!D6:P35 | C39: ="Dist - "&D2-1&" tariffs" -> Dist - 2019 tariffs
B40: ="Est"&$D$2-1&"DistRev!R6:AD35" -> Est2019DistRev!R6:AD35 | C40: ="Dist - Estimated "&D2-1&" quantities" -> Dist - Estimated 2019 quantities
A42: =A34+1 -> 13 | B42: ="'"&$D$2&"DistRevCapForm'!C47" -> '2020DistRevCapForm'!C47 | C42: Dist - Table 6 - t-2 revenue | D42: ="Updated from "&$D$2-2&" Annual RIN" -> Updated from 2018 Annual RIN
A44: =A42+1 -> 14 | B44: ="'"&$D$2&"TransRevCont'!C20:C23" -> '2020TransRevCont'!C20:C23 | C44: Trans - Table 3 - Trans charges forecasts t | D44: ="Updated from "&$D$2-1&" model" -> Updated from 2019 model
B45: ="'"&$D$2&"TransRevCont'!D42:D45" -> '2020TransRevCont'!D42:D45 | C45: Trans - Table 4 - Trans charges estimates t-1
B46: ="'"&$D$2&"TransRevCont'!C60" -> '2020TransRevCont'!C60 | C46: Trans - Table 5 - U/O balance b/f
B47: ="Est"&$D$2-1&"TransRev!D6:P35" -> Est2019TransRev!D6:P35 | C47: ="Trans - "&D2-1&" tariffs" -> Trans - 2019 tariffs
B48: ="Est"&$D$2-1&"TransRev!R6:AD35" -> Est2019TransRev!R6:AD35 | C48: ="Trans - Estimated "&D2-1&" quantities" -> Trans - Estimated 2019 quantities
A50: =A44+1 -> 15 | B50: ="'"&$D$2&"TransRevCont'!C34" -> '2020TransRevCont'!C34 | C50: Trans - Table 4 - t-2 revenue | D50: ="Updated from "&$D$2-2&" Annual RIN" -> Updated from 2018 Annual RIN
B51: TUoS cost audit template'!F4 | C51: Trans - t-2 AEMO charges
B52: TUoS cost audit template'!F11:F12 | C52: Trans - t-2 connection charges
B53: TUoS cost audit template'!C20:E22 | C53: Trans - t-2 internetwork charges
B54: TUoS cost audit template'!F29 | C54: Trans - t-2 embedded generators
A56: =A50+1 -> 16 | B56: ="'"&$D$2&"JSRevCont'!C20:C21" -> '2020JSRevCont'!C20:C21 | C56: JUoS - Table 3 - FiT charges forecasts t | D56: ="Updated from "&$D$2-1&" model" -> Updated from 2019 model
B57: ="'"&$D$2&"JSRevCont'!D40:D41" -> '2020JSRevCont'!D40:D41 | C57: JUoS - Table 4 - FiT charges estiamtes t-1
B58: ="'"&$D$2&"JSRevCont'!C56" -> '2020JSRevCont'!C56 | C58: JUoS - Table 5 - U/O blance b/f
B59: ="Est"&$D$2-1&"JSRev!D6:P54" -> Est2019JSRev!D6:P54 | C59: ="JUoS - "&D2-1&" tariffs" -> JUoS - 2019 tariffs
B60: ="Est"&$D$2-1&"JSRev!R6:AD54" -> Est2019JSRev!R6:AD54 | C60: ="JUoS - Estimated "&D2-1&" quantities" -> JUoS - Estimated 2019 quantities
A62: =A56+1 -> 17 | B62: ="'"&$D$2&"JSRevCont'!C32" -> '2020JSRevCont'!C32 | C62: JUoS - Table 4 - t-2 revenue | D62: ="Updated from "&$D$2-2&" Annual RIN" -> Updated from 2018 Annual RIN
B63: JS cost audit template'!F4:F5 | C63: JUoS - t-2 FiT charges
A65: =A62+1 -> 18 | B65: ="Prop"&D2&"TSSComp!R6:AD54" -> Prop2020TSSComp!R6:AD54 | C65: ="Indicative "&D2&" tariffs" -> Indicative 2020 tariffs | D65: ="Updated from "&$D$2-1&" model" -> Updated from 2019 model
A67: DNSP required to populate/update with relevant data:
A69: =A65+1 -> 19 | B69: ="'Indicative prices for "&D2+1&"'!A1:O65" -> 'Indicative prices for 2021'!A1:O65 | C69: ="TSS indicative prices for "&D2+1 -> TSS indicative prices for 2021 | D69: DNSP required to populate with relevant data
A71: =A69+1 -> 20 | B71: The following is test data to illustrate the workings of the model. | D71: Input data required from DNSPs
B72: Metering!D8:D11 | C72: ="Proposed Metering Tariffs P(t) for "&D2 -> Proposed Metering Tariffs P(t) for 2020
B73: Metering!F8:F11 | C73: ="Forecast Quantities (Qt) for "&D2 -> Forecast Quantities (Qt) for 2020
B74: Metering!D80:D83 | C74: ="Estimated Quantities (Qt-1) for "&D2-1 -> Estimated Quantities (Qt-1) for 2019
B76: ="'Prop"&$D$2&"DistTar!D6:P54" -> 'Prop2020DistTar!D6:P54 | C76: ="Proposed Distribution Tariffs (Pt) for "&D2 -> Proposed Distribution Tariffs (Pt) for 2020
B77: ="'Prop"&$D$2&"DistTar!AF6:AR54" -> 'Prop2020DistTar!AF6:AR54 | C77: ="Forecast Quantities (Qt) for "&D2 -> Forecast Quantities (Qt) for 2020
B78: ="Est"&$D$2-1&"DistRev!R6:AD54" -> Est2019DistRev!R6:AD54 | C78: ="Estimated Distribution Quantities (Qt-1) for "&D2-1 -> Estimated Distribution Quantities (Qt-1) for 2019
B80: ="'Prop"&D2&"TransTar!D6:P54" -> 'Prop2020TransTar!D6:P54 | C80: ="Proposed Transmission Tariffs (Pt) for "&D2 -> Proposed Transmission Tariffs (Pt) for 2020
B81: ="'"&$D$2&"TransRevCont'!C20:C23" -> '2020TransRevCont'!C20:C23 | C81: Table 3 - Transmission charges for year t
B82: ="'"&$D$2&"TransRevCont'!D42:D45" -> '2020TransRevCont'!D42:D45 | C82: Transmission charges for year t-1
B84: ="'Prop"&D2&"JSTar!D6:P54" -> 'Prop2020JSTar!D6:P54 | C84: ="Proposed Jurisdictional scheme Tariffs (Pt) for "&D2 -> Proposed Jurisdictional scheme Tariffs (Pt) for 2020
B85: ="'"&$D$2&"JSRevCont'!C20:C21" -> '2020JSRevCont'!C20:C21 | C85: Table 3 - PFIT & TFIT charges for year t
B86: ="'"&$D$2&"JSRevCont'!D40:D41" -> '2020JSRevCont'!D40:D41 | C86: PFIT & TFIT charges for year t-1

Sheet Formulae
B2: DUoS
B3: Figure 14.1 Revenue cap formulae
B4: (1) | H4: i=1,..,n and j=1,..,m and t=1,..,5
B5: (2) | H5: t = 1,2,…,5
B6: (3) | H6: t = 1
B7: (4) | H7: t = 2,…,5
B9: where;
C10: is the total annual revenue in year t.
D11: is the price of component 'j' of tariff 'i' in year t.
D12: is the forecast quantity of component 'j' of tariff 'i' in year t.
C13: is the adjusted annual smoothed revenue requirement for year t.
D14: is the annual adjustment f–factor scheme amount in year t. This amount will be calculated as per the method set out in the relevant f–factor scheme.
D15: is the sum of:
B16: · the final carryover amount from the application of the DMIS from the 2011–15 regulatory control period. This amount will be calculated using the method set out in the DMIS and will be deducted from/added to allowed revenue in the 2017 pricing proposal.
D17: is the sum of:
B18: · the recovery of license fee charges by the Victorian Essential Services Commission indexed by one and a half years of interest, calculated using the following method:
B20: where:
C21: are the licence fees paid by DNSP to the Victorian Essential Services Commission in the financial year ending in June of regulatory year t–1,
C22: is the approved nominal weighted average cost of capital (WACC) for the relevant regulatory year using the following method:
B25: · any under or over recovery of actual revenue collected through DUoS charges in regulatory year t–2 as calculated using the method in appendix A,
B26: · the AER approved pass through amounts (positive or negative) with respect to regulatory year t.
C27: is the annual smoothed revenue requirement as stated in the Post Tax Revenue Model (PTRM) for year t (when year t is the first year of the 2016–20 regulatory control period).[43]
C28: is the s‑factor determined in accordance with the service target performance incentive scheme (STPIS) for regulatory year t.[44]
C29: is the annual percentage change in the ABS CPI All Groups, Weighted Average of Eight Capital Cities[45] from the June quarter in year t–2 to the June quarter in year t–1, calculated using the following method :
B30: The ABS CPI All Groups, Weighted Average of Eight Capital Cities for the June quarter in regulatory year t–1
B31: divided by
B32: The ABS CPI All Groups, Weighted Average of Eight Capital Cities for the June quarter in regulatory year t–2
B33: minus one.
B34: For example, for the 2017 regulatory year, t–2 is June quarter 2015 and t–1 is June quarter 2016 and for the 2018 regulatory year, t–2 is June quarter 2016 and t–1 is June quarter 2017 and so on.
C35: is the X factor for each year of the 2016–20 regulatory control period as determined in the PTRM, and annually revised for the return on debt update in accordance with the formula specified in attachment 3—rate of return—calculated for the relevant year.
B38: [43] | C38: Our final F&A stated that if necessary an adjustment for inflation may be required to the annual smoothed revenue requirement for year t. However, as the annual smoothed revenue requirement for year t as stated in our preliminary decision PTRM is in nominal dollars there is no need to adjust it for inflation. This approach is consistent with past regulatory practice.
B39: [44] | C39: For the first two regulatory years of the 2016–20 regulatory control period, the value of St is to be adjusted to account for the change in revenue requirements between the regulatory control periods, as explained in attachment 11. In the formulas in the STPIS, the AR(t+1) is equivalent to ARt in this formula. Calculations of the S factor adjustment are to be made accordingly.
B40: [45] | C40: If the ABS does not or ceases to publish the index, then CPI will mean an index which the AER considers is the best available alternative index
B44: Figure 14.2 Side constraints [46]
C50: where each tariff class has "n" tariffs, with each up to "m" components, and where:
D51: is the proposed price for component ‘j’ of tariff 'i' for year t.
C52: is the price charged for component ‘j’ of tariff 'i' in year t–1.
D53: is the forecast quantity of component ‘j’ of tariff 'i' in year t.
C54: is the annual percentage change in the ABS CPI All Groups, Weighted Average of Eight Capital Cities[4] from the June quarter in year t–2 to the June quarter in year t–1, calculated using the following method :
C55: The ABS CPI All Groups, Weighted Average of Eight Capital Cities[47] for the June quarter in regulatory year t–1
C56: divided by
C57: The ABS CPI All Groups, Weighted Average of Eight Capital Cities for the June quarter in regulatory year t–2
C58: minus one.
B59: For example, for the 2017 regulatory year, t–2 is June quarter 2015 and t–1 is June quarter 2016 and for the 2018 regulatory year, t–2 is June quarter 2016 and t–1 is June quarter 2017 and so on.
D60: is the X factor for each year of the 2016–20 regulatory control period as determined in the PTRM, and annually revised for the return on debt update in accordance with the formula specified in attachment 3—rate of return—calculated for the relevant year. If X>0, then X will be set equal to zero for the purposes of the side constraint formula.
C61: is the s‑factor determined in accordance with the STPIS for regulatory year t.[5]
D62: is the annual percentage change from the f–factor scheme amount in year t. This amount will be calculated as per the method set out in attachment 19—f–factor scheme.
D63: is the annual percentage change from the final carryover amount from the application of the DMIS from the 2011–15 regulatory control period. This amount will be calculated using the method set out in the DMIS and will be deducted from/added to allowed revenue in the 2017 pricing proposal.
D64: is annual percentage change from the sum of:
B65: · the recovery of license fee charges by the Victorian Essential Services Commission indexed by one and a half years of interest, calculated using the following method:
B67: where:
B68: are the licence fees paid byDNSP to the Victorian Essential Services Commission in the financial year ending in June of regulatory year t–1,
C69: is the approved nominal weighted average cost of capital (WACC) for the relevant regulatory year using the following method:
B72: where the
B73: is as set out in our final decision PTRM and updated annually
B74: · the AER approved pass through amounts (positive or negative) with respect to regulatory year t.
B75: With the exception of the CPI, X factor and S factor, the percentage for each of the other factors above can be calculated by dividing the incremental revenues (as used in the total annual revenue formula) for each factor by the expected revenues for regulatory year t–1 (based on the prices in year t–1 multiplied by the forecast quantities for year t).
B77: [46] | C77: All parameters are in nominal terms unless otherwise specified.
B78: [47] | C78: If the ABS does not or ceases to publish the index, then CPI will mean an index which the AER considers is the best available alternative index.
H83: Table 14.1 | I83: Example calculation of DUoS unders and overs account ($'000, nominal)
I84: Year t–2 | J84: Year t–1 | K84: Year t
I85: (actual) | J85: (estimate) | K85: (forecast)
H86: (A) Revenue from DUoS charges | I86: 46 779 | J86: 40 269 | K86: 39 510
H87: (B) Less TAR for regulatory year = | I87: 43 039 | J87: 41 427 | K87: 44 429
H88: + Adjusted annual smoothed revenues (AARt) | I88: 40 189 | J88: 41 393 | K88: 44 393
H89: + f–factor scheme amount (It) | I89: –12 | J89: 10 | K89: 14
H90: + DMIS carryover amount (Tt) | I90: 1013 | J90: 0 | K90: 0
H91: + Annual adjustments (Bt)a = | I91: 1849 | J91: 24 | K91: 22
H92: + License fee recovery | I92: 25 | J92: 24 | K92: 22
H93: + Approved pass through amounts | I93: 1824 | J93: 0 | K93: 0
H95: (A minus B) Under/over recovery of revenue for regulatory year | I95: 3740 | J95: –1158 | K95: –4919b
H97: DUoS unders and overs account
H98: Nominal WACC (per cent) | I98: 0.05 | J98: 0.055 | K98: 0.06
H99: Opening balance | I99: 1737 | J99: 5656c | K99: 4778
H100: Interest on opening balance | I100: 87 | J100: 311 | K100: 287
H101: Under/over recovery of revenue for regulatory year | I101: 3740 | J101: –1158 | K101: –4919b
H102: Interest on under/over recovery for regulatory year | I102: 92 | J102: –31 | K102: –145
H103: Closing balance | I103: 5656 | J103: 4778 | K103: 0d
G104: Notes: | H104: (a) Bt parameter calculations in the DUoS unders and overs account exclude approved DUoS revenue under/over recovery for regulatory year.
H105: (b) Approved DUoS revenue under/over recovery for regulatory year t.
H106: (c) Opening balance is the previous year's closing balance.
H107: (d) The DNSP is expected to achieve a closing balance as close to zero as practicable in its DUoS unders and overs account in each forecast year in its annual pricing proposals in the 2016–20 regulatory control period.
H113: Table 14.2 | I113: Example calculation of designated pricing proposal charges unders and overs account ($'000, nominal)
I114: Year t–2 | J114: Year t–1 | K114: Year t
I115: (actual) | J115: (estimate) | K115: (forecast)
H116: (A) Revenue from designated pricing proposal charges (DPPC) | I116: 40 077 | J116: 34 944 | K116: 36 609
H117: (B) Less DPPC related payments for regulatory year = | I117: 34 365 | J117: 38 734 | K117: 39 200
H118: + DPPC charges to be paid to TNSP | I118: 33 672 | J118: 37 933 | K118: 38 000
H119: + Avoided TUoS/DPPC payments | I119: 572 | J119: 734 | K119: 800
H120: + Inter–distributor payments | I120: 121 | J120: 67 | K120: 400
H122: (A minus B) Under/over recovery of revenue for regulatory year | I122: 5712 | J122: –3790 | K122: –2540a
H124: DPPC unders and overs account
H125: Nominal WACC (per cent) | I125: 0.05 | J125: 0.055 | K125: 0.06
H126: Opening balance | I126: 167 | J126: 6028b | K126: 2467
H127: Interest on opening balance | I127: 8 | J127: 332 | K127: 148
H128: Under/over recovery of revenue for regulatory year | I128: 5712 | J128: –3790 | K128: –2540a
H129: Interest on under/over recovery for regulatory year | I129: 141 | J129: –103 | K129: –75
H130: Closing balance | I130: 6028 | J130: 2467 | K130: 0c
G131: Notes: | H131: (a) Approved DPPC revenue under/over recovery for regulatory year t.
H132: (b) Opening balance is the previous year's closing balance.
H133: (c)The DNSP is expected to achieve a closing balance as close to zero as practicable in its DPPC unders and overs account in each forecast year in its annual pricing proposals in the 2016–20 regulatory control period.
H139: Table 14.3 Example calculation of jurisdictional scheme amounts unders and overs account ($'000, nominal)
I140: Year t–2 | J140: Year t–1 | K140: Year t
I141: (actual) | J141: (estimate) | K141: (forecast)
H142: (A) Revenue from jurisdictional schemes | I142: 19 777 | J142: 23 121 | K142: 26 965
H143: (B) Less jurisdictional scheme payments for regulatory year = | I143: 20 272 | J143: 20 959 | K143: 28 641
H144: + Jurisdictional scheme 1 payments | I144: 14 159 | J144: 13 954 | K144: 13 961
H145: + Jurisdictional scheme 2 payments | I145: 6113 | J145: 7005 | K145: 14 680
H147: (A minus B) Under/over recovery of revenue for regulatory year | I147: –495 | J147: 2162 | K147: –1676a
H149: Jurisdictional scheme amount unders and overs account
H150: Nominal WACC (per cent) | I150: 0.05 | J150: 0.055 | K150: 0.06
H151: Opening balance | I151: –52 | J151: –562b | K151: 1628
H152: Interest on opening balance | I152: –3 | J152: –31 | K152: 98
H153: Under/over recovery of revenue for regulatory year | I153: –495 | J153: 2162 | K153: –1676a
H154: Interest on under/over recovery for regulatory year | I154: –12 | J154: 59 | K154: –50
H155: Closing balance | I155: –562 | J155: 1628 | K155: 0c
G156: Notes: | H156: (a) Approved jurisdictional scheme amounts revenue under/over recovery for regulatory year t.
H157: (b) Opening balance is the previous year's closing balance.
H158: (c) The DNSP is expected to achieve a closing balance as close to zero as practicable in its jurisdictional scheme amount unders and overs account in each forecast year in its annual pricing proposals in the 2016–20 regulatory control period.
B166: Metering
B167: Figure 16.3 | C167: Annual metering charges revenue cap formula
A168: (1) | H168: i=1,..,n and j=1,..,m and t=1,..,5
A170: (2) | H170: t = 1,2,…,5
A172: (3) | H172: t = 1,2,…,5
B175: where;
C176: is the total annual revenue for annual metering charges in year t.
E177: is the price of component 'j' of metering service 'i' in year t.
E178: is the forecast quantity of component 'j' of metering service 'i' in year t.
D179: is the annual revenue requirement for year t. When year t is the first year of the 2016–20 regulatory control period,
D180: is the annual revenue requirement in the annual metering charges Post Tax Revenue Model (PTRM) for year t.
E181: is equal to zero for all years except 2017 and is a once off adjustment to 2017 charges for the unders and overs recoveries relating to Advanced Metering Infrastructure actual revenues and actual costs incurred in 2014 and 2015.
E182: is the sum of annual adjustment factors in year t as calculated in the unders and overs account in appendix C.
D184: is the annual revenue requirement for year t–1.
C185: is the annual percentage change in the ABS CPI All Groups, Weighted Average of Eight Capital Cities[39] from the June quarter in year t–2 to the June quarter in year t–1, calculated using the following method:
B186: The ABS CPI All Groups, Weighted Average of Eight Capital Cities for the June quarter in regulatory year t–1
B187: divided by
B188: The ABS CPI All Groups, Weighted Average of Eight Capital Cities for the June quarter in regulatory year t–2
B189: minus one.
B190: For example, for the 2017 regulatory year, t–2 is June quarter 2015 and t–1 is June quarter 2016 and for the 2018 regulatory year, t–2 is June quarter 2016 and t–1 is June quarter 2017 and so on.
D191: is the X factor for each year of the 2016–20 regulatory control period as determined in the annual metering charges PTRM.
B194: [39] | C194: If the ABS does not or ceases to publish the index, then CPI will mean an index which the AER considers is the best available alternative index
B199: Figure 16.4 Side constraints
B201: where:
E202: is the price of annual metering charges service 'i' in year t.
D203: is the price of annual metering charges service 'i' in year t–1.
C204: is the annual percentage change in the ABS CPI All Groups, Weighted Average of Eight Capital Cities from the June quarter in year t–2 to the June quarter in year t–1, calculated using the following method:
B205: The ABS CPI All Groups, Weighted Average of Eight Capital Cities[40] for the June quarter in regulatory year t–1
B206: divided by
B207: The ABS CPI All Groups, Weighted Average of Eight Capital Cities for the June quarter in regulatory year t–2
B208: minus one.
B209: For example, for the 2017 regulatory year, t–2 is June quarter 2015 and t–1 is June quarter 2016 and for the 2018 regulatory year, t–2 is June quarter 2016 and t–1 is June quarter 2017 and so on.
D210: is the X factor for each year of the 2016–20 regulatory control period as determined in the annual metering charges PTRM.
E211: is the annual percentage change for the unders and overs recoveries relating to Advanced Metering Infrastructure actual revenues and actual costs incurred in 2014 and 2015. It is equal to zero for all years except 2017 and is a once off adjustment to 2017 charges.
E212: is the annual percentage change from the sum of annual adjustment factors in year t as calculated in the unders and overs account in appendix C.
B213: With the exception of the CPI and the X factor, the percentage for each of the other factors above can be calculated by dividing the incremental revenues (as used in the total annual revenue formula) for each factor by the expected revenues for regulatory year t–1 (based on the prices in year t–1 multiplied by the forecast quantities for year t).
B215: [40] | C215: If the ABS does not or ceases to publish the index, then CPI will mean an index which the AER considers is the best available alternative index.
H220: Table 16.xx | I220: Example calculation of annual metering charges unders and overs account ($'000, nominal)
I221: Year t–2 | J221: Year t–1 | K221: Year t
I222: (actual) | J222: (estimate) | K222: (forecast)
H223: (A) Revenue from annual metering charges | I223: 8 449 | J223: 7 389 | K223: 6 460
H224: (B) Less TARM for regulatory year = | I224: 7 366 | J224: 7 422 | K224: 7 573
H225: + Annual revenue requirement (ARt) | I225: 7 349 | J225: 7 412 | K225: 7 559
H226: + T factor (Tt) – true‑ups relating to the AMI–Order in Council | I226: 17 | J226: 10 | K226: 14
H228: (A minus B) Under/over recovery of revenue for regulatory year | I228: 1 083 | J228: –33 | K228: –1 113a
H230: Annual metering charges unders and overs account
H231: Nominal WACC (per cent) | I231: 0.05 | J231: 0.055 | K231: 0.06
H232: Opening balance | I232: –50 | J232: 1 057b | K232: 1 081
H233: Interest on opening balance | I233: –3 | J233: 58 | K233: 65
H234: Under/over recovery of revenue for regulatory year | I234: 1 083 | J234: –33 | K234: –1 113b
H235: Interest on under/over recovery for regulatory year | I235: 27 | J235: –1 | K235: –33
H236: Closing balance | I236: 1 057 | J236: 1 081 | K236: 0c
G237: Notes: | H237: (a) Approved annual metering charges revenue under/over recovery for regulatory year t. This is the Bt parameter in the annual metering charges revenue cap formula.
H238: (b) Opening balance is the previous year's closing balance.
H239: (c) The DNSP is expected to achieve a closing balance as close to zero as practicable in its annual metering charges unders and overs account in each forecast year in its annual pricing proposals in the 2016–20 regulatory control period.

Sheet Model update
A3: Tariff Approval Template for | C3: =A38 -> CitiPower
A5: calendar year commencing | C5: 2020
A7: t | B7: = | C7: =C5 -> 2020
A8: t-1 | B8: = | C8: =C7-1 -> 2019
A9: t-2 | B9: = | C9: 2018
A10: t-3 | B10: = | C10: 2017
A11: t-4 | B11: = | C11: 2016
A13: Please fill in yellow highlighted cells where appropriate
A15: CPI | B15: The ABS changed the index reference base in September 2012 from 1989-90 to 2011-12.
A16: CPI Index Sept 2011 | C16: 99.8
A17: CPI Index Sept 2012 | C17: 101.8 | E17: CPI 2013 | F17: =C17/C16-1 -> 0.02004008016
A18: CPI Index Sept 2013 | C18: 104 | E18: CPI 2014 | F18: =C18/C17-1 -> 0.02161100196
A19: CPI Index Sept 2014 | C19: 106.4 | E19: CPI 2015 | F19: =C19/C18-1 -> 0.02307692308
A20: CPI Index Sept 2015 | C20: 108 | E20: CPI 2016 | F20: =C20/C19-1 -> 0.01503759398
A21: CPI Index June 2015 | C21: 107.5
A22: CPI Index June 2016 | C22: 108.6 | E22: CPI 2017 | F22: =IF(OR(C21="",C22=""),0,C22/C21-1) -> 0.01023255814
A23: CPI Index June 2017 | C23: 110.7 | E23: CPI 2018 | F23: =IF(OR(C22="",C23=""),0,C23/C22-1) -> 0.01933701657
A24: CPI Index June 2018 | C24: 113 | E24: CPI 2019 | F24: 0.02077687444
A25: CPI Index June 2019 | C25: 114.8 | E25: CPI 2020 | F25: 0.01592920354
A28: ="CPI " &$C$9 -> CPI 2018 | C28: =VLOOKUP(A28,E$17:F$25,2,FALSE) -> 0.01933701657 | D28: (t-2)
A29: ="CPI " &$C$8 -> CPI 2019 | C29: =VLOOKUP(A29,E$17:F$25,2,FALSE) -> 0.02077687444 | D29: (t-1)
A30: ="CPI " &$C$5 -> CPI 2020 | C30: 0.01592920354 | D30: (t)
A35: Real Vanilla WACC (rvw)
A36: ="rvw for "&C$5 -> rvw for 2020 | D36: rvw for 2016 | E36: rvw for 2017 | F36: rvw for 2018 | G36: rvw for 2019 | H36: rvw for 2020
A37: =$A$54 -> Jemena | B37: =HLOOKUP($A$36,$D$36:$H$41,2,FALSE) -> 0.03656195102 | D37: 0.03932862871 | E37: 0.03873057145 | F37: 0.03821466541 | G37: 0.03766911607 | H37: 0.03656195102
A38: =$A$55 -> CitiPower | B38: =HLOOKUP($A$36,$D$36:$H$41,3,FALSE) -> 0.03362104414 | D38: 0.0367000241 | E38: 0.03612756881 | F38: 0.03563047885 | G38: 0.03508047475 | H38: 0.03362104414
A39: =$A$56 -> Powercor | B39: =HLOOKUP($A$36,$D$36:$H$41,4,FALSE) -> 0.03362104414 | D39: 0.0367000241 | E39: 0.03612756881 | F39: 0.03563047885 | G39: 0.03508047475 | H39: 0.03362104414
A40: =$A$57 -> AusNet Services | B40: =HLOOKUP($A$36,$D$36:$H$41,5,FALSE) -> 0.03625857578 | D40: 0.03871679489 | E40: 0.03826233619 | F40: 0.03801328469 | G40: 0.03742733406 | H40: 0.03625857578
A41: =$A$58 -> United Energy | B41: =HLOOKUP($A$36,$D$36:$H$41,6,FALSE) -> 0.03600205381 | D41: 0.0393301904 | E41: 0.03869503169 | F41: 0.03812382202 | G41: 0.03751614965 | H41: 0.03600205381
A43: ="rvw (t) "&C$5 -> rvw (t) 2020 | B43: =VLOOKUP(C$3,A37:B41,2,FALSE) -> 0.03362104414 | C43: (t) | D43: =VLOOKUP($C$3,$A$37:$H$41,4,FALSE) -> 0.0367000241 | E43: =VLOOKUP($C$3,$A37:$H$41,5,FALSE) -> 0.03612756881 | F43: =VLOOKUP($C$3,$A$37:$H$41,6,FALSE) -> 0.03563047885 | G43: =VLOOKUP($C$3,$A$37:$H$41,7,FALSE) -> 0.03508047475 | H43: =VLOOKUP($C$3,$A$37:$H$41,8,FALSE) -> 0.03362104414
A45: ="rvw for "&C$5-1 -> rvw for 2019 | B45: =IF(C$5=2016,F$184,HLOOKUP($A45,D$36:H$43,8,FALSE)) -> 0.03508047475 | C45: (t-1)
A47: ="rvw for "&C$5-2 -> rvw for 2018 | B47: =IF(OR(C$5=2016,C$5=2017),F$183,HLOOKUP($A47,D$36:H$43,8,FALSE)) -> 0.03563047885 | C47: (t-2)
A52: DuoS
A53: ="Xt for "&C$5 -> Xt for 2020 | D53: AR for 2016 | E53: Xt for 2017 | F53: Xt for 2018 | G53: Xt for 2019 | H53: Xt for 2020
A54: Jemena | B54: =IF(C$5=2016,"n/a",HLOOKUP($A$53,$E$53:$H$58,2,FALSE)) -> -0.01712086467 | D54: 238498758 | E54: -0.0325 | F54: 0.0027 | G54: -0.01194800863 | H54: -0.01712086467
A55: CitiPower | B55: =IF(C$5=2016,"n/a",HLOOKUP($A$53,$E$53:$H$58,3,FALSE)) -> -0.01878550313 | D55: 282881283 | E55: 0.004 | F55: -0.0005 | G55: -0.001232459035 | H55: -0.01878550313
A56: Powercor | B56: =IF(C$5=2016,"n/a",HLOOKUP($A$53,$E$53:$H$58,4,FALSE)) -> -0.02401925855 | D56: 621773294 | E56: 0.0468 | F56: -0.0081 | G56: -0.03021164125 | H56: -0.02401925855
A57: AusNet Services | B57: =IF(C$5=2016,"n/a",HLOOKUP($A$53,$E$53:$H$58,5,FALSE)) -> -0.0216670272 | D57: 586045137 | E57: 0.003 | F57: -0.0184 | G57: -0.03013217637 | H57: -0.0216670272
A58: United Energy | B58: =IF(C$5=2016,"n/a",HLOOKUP($A$53,$E$53:$H$58,6,FALSE)) -> 0.00492058777 | D58: 375069867 | E58: -0.0383 | F58: -0.0316 | G58: -0.02611202001 | H58: 0.00492058777
A60: ="Xt for"&C$5 -> Xt for2020 | B60: =VLOOKUP(C$3,A54:B58,2,FALSE) -> -0.01878550313 | D60: =VLOOKUP($C$3,$A$54:$H$58,4,FALSE) -> 282881283 | E60: =VLOOKUP($C$3,$A$54:$H$58,5,FALSE) -> 0.004 | F60: =VLOOKUP($C$3,$A$54:$H$58,6,FALSE) -> -0.0005 | G60: =VLOOKUP($C$3,$A$54:$H$58,7,FALSE) -> -0.001232459035 | H60: =VLOOKUP($C$3,$A$54:$H$58,8,FALSE) -> -0.01878550313
A64: Metering
A65: ="Xt for "&C$5 -> Xt for 2020 | D65: AR for 2016 | E65: Xt for 2017 | F65: Xt for 2018 | G65: Xt for 2019 | H65: Xt for 2020
A66: Jemena | B66: =IF(C$5=2016,"n/a",HLOOKUP($A$65,$E$65:$H$70,2,FALSE)) -> -0.01247641622 | D66: 44212949.02 | E66: 0.3473 | F66: -0.0136 | G66: -0.01181844246 | H66: -0.01247641622
A67: CitiPower | B67: =IF(C$5=2016,"n/a",HLOOKUP($A$65,$E$65:$H$70,3,FALSE)) -> 0.07970194511 | D67: 32973195.04 | E67: 0.1402 | F67: 0.0767 | G67: 0.07936799905 | H67: 0.07970194511
A68: Powercor | B68: =IF(C$5=2016,"n/a",HLOOKUP($A$65,$E$65:$H$70,4,FALSE)) -> 0.08534951837 | D68: 79145313.2 | E68: 0.1096 | F68: 0.0819 | G68: 0.08490086085 | H68: 0.08534951837
A69: AusNet Services | B69: =IF(C$5=2016,"n/a",HLOOKUP($A$65,$E$65:$H$70,5,FALSE)) -> 0.1693082632 | D69: 92754610.44 | E69: 0.0231 | F69: 0.1658 | G69: 0.1693485927 | H69: 0.1693082632
A70: United Energy | B70: =IF(C$5=2016,"n/a",HLOOKUP($A$65,$E$65:$H$70,6,FALSE)) -> 0.05978110253 | D70: 62733316.95 | E70: 0.3081 | F70: 0.057 | G70: 0.05954200889 | H70: 0.05978110253
A72: ="Xt for"&C$5 -> Xt for2020 | B72: =VLOOKUP(C$3,A66:B70,2,FALSE) -> 0.07970194511 | D72: =VLOOKUP($C$3,$A$66:$H$70,4,FALSE) -> 32973195.04 | E72: =VLOOKUP($C$3,$A$66:$H$70,5,FALSE) -> 0.1402 | F72: =VLOOKUP($C$3,$A$66:$H$70,6,FALSE) -> 0.0767 | G72: =VLOOKUP($C$3,$A$66:$H$70,7,FALSE) -> 0.07936799905 | H72: =VLOOKUP($C$3,$A$66:$H$70,8,FALSE) -> 0.07970194511
A76: DuoS
A77: Real Pre-tax WACC (rptw)
A78: ="rptw for "&C$5 -> rptw for 2020 | D78: rptw for 2016 | E78: rptw for 2017 | F78: rptw for 2018 | G78: rptw for 2019 | H78: rptw for 2020
A79: =$A$54 -> Jemena | B79: =HLOOKUP($A$78,$D$78:$H$83,2,FALSE) -> 0.04419676788 | D79: 0.04723374708 | E79: 0.04663553542 | F79: 0.04611949618 | G79: 0.04530393293 | H79: 0.04419676788
A80: =$A$55 -> CitiPower | B80: =HLOOKUP($A$78,$D$78:$H$83,3,FALSE) -> 0.04111999903 | D80: 0.04696344556 | E80: 0.04636538831 | F80: 0.04584948227 | G80: 0.04257942963 | H80: 0.04111999903
A81: =$A$56 -> Powercor | B81: =HLOOKUP($A$78,$D$78:$H$83,4,FALSE) -> 0.04012257803 | D81: 0.04347088828 | E81: 0.0428982852 | F81: 0.0424010669 | G81: 0.04158200864 | H81: 0.04012257803
A82: =$A$57 -> AusNet Services | B82: =HLOOKUP($A$78,$D$78:$H$83,5,FALSE) -> 0.04261073895 | D82: 0.04533877046 | E82: 0.04488419444 | F82: 0.04463507863 | G82: 0.04377949723 | H82: 0.04261073895
A83: =$A$58 -> United Energy | B83: =HLOOKUP($A$78,$D$78:$H$83,6,FALSE) -> 0.04459313232 | D83: 0.04819181771 | E83: 0.04755649502 | F83: 0.04698513788 | G83: 0.04610722815 | H83: 0.04459313232
A85: ="rptw (t) "&C$5 -> rptw (t) 2020 | B85: =VLOOKUP(C$3,A79:B83,2,FALSE) -> 0.04111999903 | C85: (t) | D85: =VLOOKUP($C$3,$A$79:$H$83,4,FALSE) -> 0.04696344556 | E85: =VLOOKUP($C$3,$A79:$H$83,5,FALSE) -> 0.04636538831 | F85: =VLOOKUP($C$3,$A$79:$H$83,6,FALSE) -> 0.04584948227 | G85: =VLOOKUP($C$3,$A$79:$H$83,7,FALSE) -> 0.04257942963 | H85: =VLOOKUP($C$3,$A$79:$H$83,8,FALSE) -> 0.04111999903
A87: ="rptw for "&C$5-1 -> rptw for 2019 | B87: =IF(C$5=2016,B$184,HLOOKUP($A87,D$78:H$85,8,FALSE)) -> 0.04257942963 | C87: (t-1)
A89: ="rptw for "&C$5-2 -> rptw for 2018 | B89: =IF(OR(C$5=2016,C$5=2017),B$183,HLOOKUP($A89,D$78:H$85,8,FALSE)) -> 0.04584948227 | C89: (t-2)
A93: F factor Scheme | B93: =$C$5 -> 2020 | D93: 2016 | E93: =+D93+1 -> 2017 | F93: =+E93+1 -> 2018 | G93: 2019 | H93: 2020
A94: =$A$54 -> Jemena | B94: =HLOOKUP($B$93,$D$93:$H$98,2,FALSE) -> 112800 | D94: -680000 | E94: 70000 | F94: 655000 | G94: 117300 | H94: 112800
A95: =$A$55 -> CitiPower | B95: =HLOOKUP($B$93,$D$93:$H$98,3,FALSE) -> 36300 | D95: -15000 | E95: 410000 | F95: 140000 | G95: 43200 | H95: 36300
A96: =$A$56 -> Powercor | B96: =HLOOKUP($B$93,$D$93:$H$98,4,FALSE) -> 995100 | D96: -1530000 | E96: 1420000 | F96: 1755000 | G96: 4639200 | H96: 995100
A97: =$A$57 -> AusNet Services | B97: =HLOOKUP($B$93,$D$93:$H$98,5,FALSE) -> 316200 | D97: 1870000 | E97: 3420000 | F97: 750000 | G97: 1485000 | H97: 316200
A98: =$A$58 -> United Energy | B98: =HLOOKUP($B$93,$D$93:$H$98,6,FALSE) -> 5100 | D98: -2245000 | E98: 555000 | F98: 1000000 | G98: 224400 | H98: 5100
A100: ="Ifactor (t) "&C$5 -> Ifactor (t) 2020 | B100: =VLOOKUP(C$3,A94:B98,2,FALSE) -> 36300 | D100: =VLOOKUP($C$3,$A$94:$H$98,4,FALSE) -> -15000 | E100: =VLOOKUP($C$3,$A$94:$H$98,5,FALSE) -> 410000 | F100: =VLOOKUP($C$3,$A$94:$H$98,6,FALSE) -> 140000 | G100: =VLOOKUP($C$3,$A$94:$H$98,7,FALSE) -> 43200 | H100: =VLOOKUP($C$3,$A$94:$H$98,8,FALSE) -> 36300
A104: S factor Scheme | B104: =$C$5 -> 2020 | D104: 2016 | E104: =+D104+1 -> 2017 | F104: =+E104+1 -> 2018 | G104: 2019 | H104: 2020
A105: =$A$54 -> Jemena | B105: =HLOOKUP($B$104,$D$104:$H$109,2,FALSE) -> 0.00307537808 | D105: 0.03997406406 | E105: 0.01488310469 | F105: -0.03971153723 | G105: 0.006950679651 | H105: 0.00307537808
A106: =$A$55 -> CitiPower | B106: =HLOOKUP($B$104,$D$104:$H$109,3,FALSE) -> 0.01356911181 | D106: -0.01268789003 | E106: 0.004032145684 | F106: 0.01857052664 | G106: -0.009608708052 | H106: 0.01356911181
A107: =$A$56 -> Powercor | B107: =HLOOKUP($B$104,$D$104:$H$109,4,FALSE) -> 0.003551089156 | D107: -0.01184910821 | E107: 0.05100648542 | F107: -0.01384168227 | G107: -0.0009709084886 | H107: 0.003551089156
A108: =$A$57 -> AusNet Services | B108: =HLOOKUP($B$104,$D$104:$H$109,5,FALSE) -> -0.007004839182 | D108: 0.03357397489 | E108: 0.03217876587 | F108: -0.06343364122 | G108: 0.01506523806 | H108: -0.007004839182
A109: =$A$58 -> United Energy | B109: =HLOOKUP($B$104,$D$104:$H$109,6,FALSE) -> 0.005050561939 | D109: -0.02947870448 | E109: 0.02836672327 | F109: 0.02276703882 | G109: 0.01682414399 | H109: 0.005050561939
A111: ="S factor (t) "&C$5 -> S factor (t) 2020 | B111: =VLOOKUP(C$3,A105:B109,2,FALSE) -> 0.01356911181 | D111: =VLOOKUP($C$3,$A$105:$H$109,4,FALSE) -> -0.01268789003 | E111: =VLOOKUP($C$3,$A$105:$H$109,5,FALSE) -> 0.004032145684 | F111: =VLOOKUP($C$3,$A$105:$H$109,6,FALSE) -> 0.01857052664 | G111: =VLOOKUP($C$3,$A$105:$H$109,7,FALSE) -> -0.009608708052 | H111: =VLOOKUP($C$3,$A$105:$H$109,8,FALSE) -> 0.01356911181
A115: Pass through Amounts | B115: =$C$5 -> 2020 | D115: 2016 | E115: =+D115+1 -> 2017 | F115: =+E115+1 -> 2018 | G115: 2019 | H115: 2020
A116: =$A$54 -> Jemena | B116: =HLOOKUP($B$115,$D$115:$H$120,2,FALSE) -> 0 | D116: 0 | E116: 0 | F116: 0 | G116: 0 | H116: 0
A117: =$A$55 -> CitiPower | B117: =HLOOKUP($B$115,$D$115:$H$120,3,FALSE) -> 0 | D117: 0 | E117: 0 | F117: 0 | G117: 0 | H117: 0
A118: =$A$56 -> Powercor | B118: =HLOOKUP($B$115,$D$115:$H$120,4,FALSE) -> 0 | D118: 0 | E118: 0 | F118: 0 | G118: 0 | H118: 0
A119: =$A$57 -> AusNet Services | B119: =HLOOKUP($B$115,$D$115:$H$120,5,FALSE) -> 0 | D119: =-(5723000*(1+0.0975)) -> -6280992.5 | E119: 0 | F119: 0 | G119: 0 | H119: 0
A120: =$A$58 -> United Energy | B120: =HLOOKUP($B$115,$D$115:$H$120,6,FALSE) -> 0 | D120: 0 | E120: 0 | F120: 0 | G120: 0 | H120: 0
A122: ="Pass through amounts (t) "&C$5 -> Pass through amounts (t) 2020 | B122: =VLOOKUP(C$3,A116:B120,2,FALSE) -> 0 | D122: =VLOOKUP($C$3,$A$116:$H$120,4,FALSE) -> 0 | E122: =VLOOKUP($C$3,$A$116:$H$120,5,FALSE) -> 0 | F122: =VLOOKUP($C$3,$A$116:$H$120,6,FALSE) -> 0 | G122: =VLOOKUP($C$3,$A$116:$H$120,7,FALSE) -> 0 | H122: =VLOOKUP($C$3,$A$116:$H$120,8,FALSE) -> 0
A126: License Fees | B126: =$C$5 -> 2020 | D126: 2016 | E126: =+D126+1 -> 2017 | F126: =+E126+1 -> 2018 | G126: 2019 | H126: 2020
A127: =$A$54 -> Jemena | B127: =HLOOKUP($B$126,$D$126:$H$131,2,FALSE) -> 130256 | D127: 36033 | E127: 39516 | F127: 76545 | G127: 77350 | H127: 130256
A128: =$A$55 -> CitiPower | B128: =HLOOKUP($B$126,$D$126:$H$131,3,FALSE) -> 132030 | D128: 36475 | E128: 40445 | F128: 78091 | G128: 78912 | H128: 132030
A129: =$A$56 -> Powercor | B129: =HLOOKUP($B$126,$D$126:$H$131,4,FALSE) -> 317568 | D129: 85205 | E129: 94964 | F129: 185081 | G129: 187026 | H129: 317568
A130: =$A$57 -> AusNet Services | B130: =HLOOKUP($B$126,$D$126:$H$131,5,FALSE) -> 285784 | D130: 74811 | E130: 85031 | F130: 168235 | G130: 170003 | H130: 285784
A131: =$A$58 -> United Energy | B131: =HLOOKUP($B$126,$D$126:$H$131,6,FALSE) -> 263285 | D131: 74197 | E131: 81712 | F131: 158262 | G131: 159925 | H131: 263285
A133: ="Licence Fee (t-1) "&TEXT(C$5-2,"####")&"-"&RIGHT(TEXT(C$5-1,"##"),2) -> Licence Fee (t-1) 2018-19 | B133: =VLOOKUP(C$3,A127:B131,2,FALSE) -> 132030 | D133: =VLOOKUP($C$3,$A$127:$H$131,4,FALSE) -> 36475 | E133: =VLOOKUP($C$3,$A$127:$H$131,5,FALSE) -> 40445 | F133: =VLOOKUP($C$3,$A$127:$H$131,6,FALSE) -> 78091 | G133: =VLOOKUP($C$3,$A$127:$H$131,7,FALSE) -> 78912 | H133: =VLOOKUP($C$3,$A$127:$H$131,8,FALSE) -> 132030
A137: DMIA Carryover adjustment | B137: =$C$5 -> 2020 | D137: 2016 | E137: =+D137+1 -> 2017 | F137: =+E137+1 -> 2018 | G137: 2019 | H137: 2020
A138: =$A$54 -> Jemena | B138: =HLOOKUP($B$137,$D$137:$H$142,2,FALSE) -> 0 | E138: =H154 -> -91239.84446
A139: =$A$55 -> CitiPower | B139: =HLOOKUP($B$137,$D$137:$H$142,3,FALSE) -> 0
A140: =$A$56 -> Powercor | B140: =HLOOKUP($B$137,$D$137:$H$142,4,FALSE) -> 0
A141: =$A$57 -> AusNet Services | B141: =HLOOKUP($B$137,$D$137:$H$142,5,FALSE) -> 0
A142: =$A$58 -> United Energy | B142: =HLOOKUP($B$137,$D$137:$H$142,6,FALSE) -> 0 | E142: =H163 -> -479660.6938
A144: ="T factor (t) "&C$5 -> T factor (t) 2020 | B144: =VLOOKUP(C$3,A138:B142,2,FALSE) -> 0 | D144: =VLOOKUP($C$3,$A$138:$H$142,4,FALSE) -> 0 | E144: =VLOOKUP($C$3,$A$138:$H$142,5,FALSE) -> 0 | F144: =VLOOKUP($C$3,$A$138:$H$142,6,FALSE) -> 0 | G144: =VLOOKUP($C$3,$A$138:$H$142,7,FALSE) -> 0 | H144: =VLOOKUP($C$3,$A$138:$H$142,8,FALSE) -> 0
A147: DMIA Carryover adjustment
A148: Jemena | C148: 2011-15 | D148: 2016 | E148: 2017
A149: CPI - PTRM | D149: 0.02323079821 | E149: 0.02323079821
A150: Nominal Vanilla WACC - PTRM | C150: 0.1033058648 | D150: =(1+D149)*(1+D37)-1 -> 0.06347306235 | E150: =(1+E149)*(1+E37)-1 -> 0.06286111175
C152: 2011 | D152: 2012 | E152: 2013 | F152: 2014 | G152: 2015 | H152: Total
A153: Ex-ante revenue minus ex post expenditure ($nominal) | C153: -263938 | D153: -16375.4 | E153: 163676.6714 | F153: 153066.6261 | G153: 125690.5855 | H153: =SUM(C153:G153) -> 162120.4829
A154: DMIA Carryover adjustment | C154: =0-(C153/(1+$C150))*(1+$C150)^5*(1+$D150)*(1+$E150) -> 442067.5528 | D154: =C154-(D153/(1+$C150))*(1+$C150)^4*(1+$D150)*(1+$E150) -> 466926.4987 | E154: =D154-(E153/(1+$C150))*(1+$C150)^3*(1+$D150)*(1+$E150) -> 241719.6213 | F154: =E154-(F153/(1+$C150))*(1+$C150)^2*(1+$D150)*(1+$E150) -> 50831.26114 | G154: =F154-(G153/(1+$C150))*(1+$C150)^1*(1+$D150)*(1+$E150) -> -91239.84446 | H154: =G154 -> -91239.84446
A157: UED | C157: 2011-15 | D157: 2016 | E157: 2017
A158: CPI - PTRM | D158: 0.02323079821 | E158: 0.02323079821
A159: Nominal Vanilla WACC - PTRM | C159: 0.09489772882 | D159: =(1+D158)*(1+D41)-1 -> 0.06347466033 | E159: =(1+E158)*(1+E41)-1 -> 0.06282474637
C161: 2011 | D161: 2012 | E161: 2013 | F161: 2014 | G161: 2015 | H161: Total
A162: Ex-ante revenue minus ex post expenditure ($nominal) | C162: 406960 | D162: 327739.2 | E162: 91075.34272 | F162: -227853.7479 | G162: -450364.8291 | H162: =SUM(C162:G162) -> 147555.9658
A163: DMIA Carryover adjustment | C163: =0-(C162/(1+$C159))*(1+$C159)^5*(1+$D159)*(1+$E159) -> -661050.6678 | D163: =C163-(D162/(1+$C159))*(1+$C159)^4*(1+$D159)*(1+$E159) -> -1147276.309 | E163: =D163-(E162/(1+$C159))*(1+$C159)^3*(1+$D159)*(1+$E159) -> -1270682.438 | F163: =E163-(F162/(1+$C159))*(1+$C159)^2*(1+$D159)*(1+$E159) -> -988702.2892 | G163: =F163-(G162/(1+$C159))*(1+$C159)^1*(1+$D159)*(1+$E159) -> -479660.6938 | H163: =G163 -> -479660.6938
A172: Regulatory Period 2011-15
A174: DuoS
A175: Real Pre-tax WACC for distribution tariffs | D175: Real Vanilla WACC for distribution tariffs
A177: =$A$54 -> Jemena | B177: 0.087 | D177: =$A$54 -> Jemena | F177: 0.0756
A178: =$A$55 -> CitiPower | B178: 0.0786 | D178: =$A$55 -> CitiPower | F178: 0.0674
A179: =$A$56 -> Powercor | B179: 0.0776 | D179: =$A$56 -> Powercor | F179: 0.0674
A180: =$A$57 -> AusNet Services | B180: 0.078 | D180: =$A$57 -> AusNet Services | F180: 0.0699
A181: =$A$58 -> United Energy | B181: 0.0791 | D181: =$A$58 -> United Energy | F181: 0.0674
A183: pretax WACCD | B183: =VLOOKUP($C$3,A177:B181,2,FALSE) -> 0.0786 | D183: Real Vanilla WACCD | F183: =VLOOKUP($C$3,D177:F181,3,FALSE) -> 0.0674
A188: Pass Through Costs | E188: 2014 | F188: 2015
A190: =A204 -> F Factor pass through | E190: 10000 | F190: -65000
A191: VBRC | E191: 0 | F191: 0
A192: Powerline Replacement program | E192: 0 | F192: 0
A193: TOTAL PASS THROUGH AMOUNTS | E193: =SUM(E190:E192) -> 10000 | F193: =SUM(F190:F192) -> -65000
A197: F factor Scheme | B197: 2014 | C197: 2015
A198: =$A$54 -> Jemena | B198: 370000 | C198: -855000
A199: =$A$55 -> CitiPower | B199: 10000 | C199: -65000
A200: =$A$56 -> Powercor | B200: 2470000 | C200: -2405000
A201: =$A$57 -> AusNet Services | B201: 1970000 | C201: 2020000
A202: =$A$58 -> United Energy | B202: 980000 | C202: -70000
A204: F Factor pass through | B204: =VLOOKUP($C$3,$A$198:$C$202,2,FALSE) -> 10000 | C204: =VLOOKUP($C$3,$A$198:$C$202,3,FALSE) -> -65000
A208: VBRC | B208: 2014 | C208: 2015
A209: =$A$54 -> Jemena | B209: 0 | C209: 0
A210: =$A$55 -> CitiPower | B210: 0 | C210: 0
A211: =$A$56 -> Powercor | B211: =H245 -> 7193170.454 | C211: =I245 -> 8768550.378
A212: =$A$57 -> AusNet Services | B212: =H262 -> 6039778.158 | C212: =I262 -> 8341755.212
A213: =$A$58 -> United Energy | B213: 0 | C213: 0
A215: VBRC pass through | B215: =VLOOKUP($C$3,$A$209:$C$213,2,FALSE) -> 0 | C215: =VLOOKUP($C$3,$A$209:$C$213,3,FALSE) -> 0
A219: Powerline Replacement program | B219: 2014 | C219: 2015
A220: =$A$54 -> Jemena | B220: 0 | C220: 0
A221: =$A$55 -> CitiPower | B221: 0 | C221: 0
A222: =$A$56 -> Powercor | B222: =H249 -> 0 | C222: 8777690.455
A223: =$A$57 -> AusNet Services | B223: 0 | C223: 5723419.31
A224: =$A$58 -> United Energy | B224: 0 | C224: 0
A226: Powerline Replacement program | B226: =VLOOKUP($C$3,$A$219:$C$224,2,FALSE) -> 0 | C226: =VLOOKUP($C$3,$A$219:$C$224,3,FALSE) -> 0
A231: VBRC
A233: Powercor | E233: 2011 | F233: 2012 | G233: 2013 | H233: 2014 | I233: 2015
A234: Pass through amounts approved (Nominal $) - Forecast CPI | G234: 10270612 | H234: 7181525 | I234: 8777217
A235: (As per AER's Final Decision on Powercor's VBRC pass through, table 7.2, 7 March 2012)
A236: Forecast CPI in PTRM | E236: 0.0257487534 | F236: 0.0257487534 | G236: 0.0257487534 | H236: 0.0257487534 | I236: 0.0257487534
E237: =1+E236 -> 1.025748753 | F237: =E237*(1+F236) -> 1.052160505 | G237: =F237*(1+G236) -> 1.079252326 | H237: =G237*(1+H236) -> 1.107041729 | I237: =H237*(1+I236) -> 1.135546673
A239: Pass through amounts approved (Real $2010) | G239: =G234/G237 -> 9516414.047 | H239: =H234/H237 -> 6487131.257 | I239: =I234/I237 -> 7729507.918
A242: Actual CPI | E242: =173.3/168.6-1 -> 0.02787663108 | F242: =179.4/173.3-1 -> 0.03519907675 | G242: =C17/C16-1 -> 0.02004008016 | H242: =C18/C17-1 -> 0.02161100196 | I242: =C19/C18-1 -> 0.02307692308
E243: =1+E242 -> 1.027876631 | F243: =E243*(1+F242) -> 1.06405694 | G243: =F243*(1+G242) -> 1.085380726 | H243: =G243*(1+H242) -> 1.108836891 | I243: 1.134425434
A245: Pass through amounts approved (Nominal $) - Actual CPI | G245: =G239*G243 -> 10328932.39 | H245: =H239*H243 -> 7193170.454 | I245: =I239*I243 -> 8768550.378
A250: AusNet Services | E250: 2011 | F250: 2012 | G250: 2013 | H250: 2014 | I250: 2015
A251: Pass through amounts approved (Nominal $) - Forecast CPI | G251: 5790000 | H251: 6030000 | I251: 8350000
A252: As per AER's Final Decision on AusNet Services's VBRC pass through, table 1.3, 19 October 2012
A253: Forecast CPI in PTRM | E253: 0.0257487534 | F253: 0.0257487534 | G253: 0.0257487534 | H253: 0.0257487534 | I253: 0.0257487534
E254: =1+E253 -> 1.025748753 | F254: =E254*(1+F253) -> 1.052160505 | G254: =F254*(1+G253) -> 1.079252326 | H254: =G254*(1+H253) -> 1.107041729 | I254: =H254*(1+I253) -> 1.135546673
A256: Pass through amounts approved (Real $2010) | G256: =G251/G254 -> 5364825.127 | H256: =H251/H254 -> 5446949.148 | I256: =I251/I254 -> 7353286.482
A259: Actual CPI | E259: =173.3/168.6-1 -> 0.02787663108 | F259: =179.4/173.3-1 -> 0.03519907675 | G259: =C17/C16-1 -> 0.02004008016 | H259: =C18/C17-1 -> 0.02161100196 | I259: =C19/C18-1 -> 0.02307692308
E260: =1+E259 -> 1.027876631 | F260: =E260*(1+F259) -> 1.06405694 | G260: =F260*(1+G259) -> 1.085380726 | H260: =G260*(1+H259) -> 1.108836891 | I260: 1.134425434
A262: Pass through amounts approved (Nominal $) - Actual CPI | G262: =G256*G260 -> 5822877.791 | H262: =H256*H260 -> 6039778.158 | I262: =I256*I260 -> 8341755.212
A270: AMI Transitional Adjustment in 2018 prices ($)
A271: =C3 -> CitiPower
C272: 2009 | D272: 2010 | E272: 2011 | F272: 2012 | G272: 2013 | H272: 2014 | I272: 2015 | J272: 2016 | K272: 2017 | L272: 2018 | M272: 2019 | N272: 2020
A273: CPI | C273: 0.04981084489 | D273: 0.01261261261 | E273: 0.02787663108 | F273: 0.03519907675 | G273: =$F17 -> 0.02004008016 | H273: =$F18 -> 0.02161100196 | I273: =$F19 -> 0.02307692308 | J273: =$F20 -> 0.01503759398 | K273: =$F22 -> 0.01023255814 | L273: =$F23 -> 0.01933701657 | M273: =$F24 -> 0.02077687444 | N273: =$F25 -> 0.01592920354
A275: Vanilla' WACC (Real) | C275: 0.06771645866 | D275: =$C275 -> 0.06771645866 | E275: =$C275 -> 0.06771645866 | F275: 0.06771645866 | G275: 0.06771645866 | H275: 0.05023909437 | I275: =H275 -> 0.05023909437 | J275: =D43 -> 0.0367000241 | K275: =E43 -> 0.03612756881 | L275: =F43 -> 0.03563047885 | M275: =G43 -> 0.03508047475 | N275: =H43 -> 0.03362104414
A276: Vanilla' WACC (nominal) | C276: =(1+C275)*(1+C273)-1 -> 0.1209003176 | D276: 0.08118315273 | E276: 0.09748079647 | F276: 0.1052990922 | G276: 0.08911358208 | H276: 0.0729358135 | I276: 0.07447538116 | J276: 0.05228949815 | K276: 0.0467298044 | L276: 0.05565648259 | M276: 0.0565862118 | N276: 0.05008580414
A278: Future value index | C278: =(1+C276)^0.5 -> 1.058725799 | D278: =C278*(D276+1) -> 1.144676497 | E278: 1.256260474 | F278: 1.388543561 | G278: 1.512281652 | H278: 1.622581145 | I278: 1.743423494 | J278: 1.834586233 | K278: 1.920316089 | L278: 2.027194128 | M278: 2.141905365 | N278: 2.249184417
A280: AMI Transitional Adjustment - Revenue and Costs 2009-2015
A281: Over \ (under) recovery of revenue and costs (000's)
A282: NPV at 1 January 2009 | D282: 296.8349907
A284: AMI Transitional Adjustment in 2018 prices ($) | D284: =-D282*L278*10^3 -> -601742.1501
A286: AMI Transitional Adjustment - Revenue 2016-2020
A287: Increase \ (Reduction) in revenue 2016-2020 (000's)
A288: NPV at 1 January 2016 | D288: -1035.544676
A290: AMI Transitional Adjustment in 2018 prices ($) | D290: =D288*L278/I278*10^3 -> -1204096.477
A292: Total AMI Transitional Adjustment in 2018 prices ($) | D292: =SUM(D284,D290) -> -1805838.627

Sheet Metering
B1: ="Tariff Approval - "&'Model update'!C3 -> Tariff Approval - CitiPower
B3: ="PROPOSED "&'Model update'!$C$5&" METERING TARIFFS AND REVENUE" -> PROPOSED 2020 METERING TARIFFS AND REVENUE
D5: ="Proposed Metering Tariffs P(t) for " &'Model update'!$C$5 -> Proposed Metering Tariffs P(t) for 2020 | E5: ="Current Metering Tariffs P(t-1) for" &'Model update'!$C$8 -> Current Metering Tariffs P(t-1) for2019 | F5: ="Forecast Quantities (Qt) for "&'Model update'!$C$5 -> Forecast Quantities (Qt) for 2020 | H5: ="Forecast Revenue (Pt "&'Model update'!$C$5&")*(Qt " &'Model update'!$C$5&")" -> Forecast Revenue (Pt 2020)*(Qt 2020) | I5: ="Revenue (Pt-1 "&'Model update'!$C$8&")*(Qt " &'Model update'!$C$5&")" -> Revenue (Pt-1 2019)*(Qt 2020) | K5: Movement | L5: Side Constraint
B6: Proposed tariff | C6: Existing tariff | D6: PropTar $/Cust/year | E6: ExistTar $/Cust/year | F6: FcastVol Cust # | H6: PropRev Fixed | I6: ExistRev Fixed
B8: Single phase | C8: Single phase | D8: 71.3 | E8: 73 | F8: 258691.8423 | H8: =D8*F8 -> 18444728.35 | I8: =E8*F8 -> 18884504.49 | K8: =IFERROR(H8/I8,"") -> 0.9767123288 | L8: =IF(B8="","",IF(K8<$I$30,"COMPLIANT","BREACHED")) -> COMPLIANT
B9: Three phase direct connected meter | C9: Three phase direct connected meter | D9: 88.1 | E9: 91.25 | F9: 64117.55454 | H9: 5648756.555 | I9: 5850726.851 | K9: =IFERROR(H9/I9,"") -> 0.9654794521 | L9: COMPLIANT
B10: Three phase CT connected meter | C10: Three phase CT connected meter | D10: 110.8 | E10: 113.15 | F10: 3178.196669 | H10: 352144.1909 | I10: 359612.9531 | K10: 0.9792311091 | L10: COMPLIANT
H11: 0 | I11: 0
H12: 0 | I12: 0
H13: 0 | I13: 0
H14: 0 | I14: 0
H15: 0 | I15: 0
H16: 0 | I16: 0
H17: =SUM(H7:H16) -> 24445629.1 | I17: =SUM(I7:I16) -> 25094844.29
B22: Year (t) | D22: ='Model update'!C5 -> 2020 | E22: =D22-1 -> 2019
B24: Table 1- Compliance with AER Final Determination Total Metering Annual Revenue | H24: Metering tariff rebalancing control
B25: Revenue from Metering charges for year t | D25: =H17 -> 24445629.1 | H25: ="CPI "&'Model update'!$C$5 -> CPI 2020 | I25: =D37 -> 0.01592920354
B26: Total Annual Metering Revenue for year t | D26: =D33 -> 24448666.48 | H26: ="X "& 'Model update'!$C$5 -> X 2020 | I26: =MIN(D38,0) -> 0
D27: =IF(D25="","",IF(D26>=D25,"METERING REVENUE CAP FORMULA COMPLIANT","METERING REVENUE CAP FORMULA BREACHED")) -> METERING REVENUE CAP FORMULA COMPLIANT | H27: ="Tt "&'Model update'!$C$5 -> Tt 2020 | I27: =(D31-E31)/I$17 -> 0
H28: ="Bt "&'Model update'!$C$5 -> Bt 2020 | I28: =(D32-E32)/I$17 -> 0.02572814728
B29: Table 2 - Total Annual Revenue for year t (TARMt)
B30: Adjusted Annual Smoothed Metering Revenue for year t | D30: =D39 -> 23683686.44 | I30: =(1+I25)*(1-I26)*(1+0.02)+SUM(I27:I28) -> 1.061975935
B31: T factor for year t | D31: 0 | E31: 0
B32: B factor for year t | D32: =-F68*(1+F66)^0.5 -> 764980.0415 | E32: 119336.1917
B33: Total Annual Revenue for year t | D33: =SUM(D30:D32) -> 24448666.48
B35: Table 3 - Adjusted Annual Revenue for year t (ARt)
B36: Adjusted Annual Smoothed Revenue for year t-1 | D36: 25331292.74
B37: CPI for period t | D37: ='Model update'!C30 -> 0.01592920354
B38: X factor for period t | D38: ='Model update'!B72 -> 0.07970194511
B39: Adjusted Annual Smoothed Revenue for year t | D39: =IF(D22=2016,'Model update'!D72,(D36*(1+D37)*(1-D38))) -> 23683686.44
B44: Table 4 - Metering Services Recovery Arrangements
D45: Year t-2 | E45: Year t-1 | F45: Year t
D46: (actual) | E46: (estimate) | F46: (forecast)
D47: =E47-1 -> 2018 | E47: =F47-1 -> 2019 | F47: =D$22 -> 2020
B49: (A) Revenue from Metering proposal charges | D49: 25001850.21 | E49: =E89 -> 24799708.07 | F49: =D25 -> 24445629.1
B52: (B) Less TARM for regulatory year = | D52: =SUM(D53:D54) -> 25149231.4 | E52: =SUM(E53:E54) -> 25331292.74 | F52: =SUM(F53:F54) -> 23683686.44
B53: + Adjusted annual smoothed revenue | D53: 26955070.03 | E53: =D36 -> 25331292.74 | F53: =D30 -> 23683686.44
B54: + T factor | D54: -1805838.627 | E54: =E31 -> 0 | F54: =D31 -> 0
B57: (A minus B) Under/over recovery of revenue for regulatory year | D57: =D49-D52 -> -147381.1912 | E57: =E49-E52 -> -531584.6704 | F57: =F49-F52 -> 761942.6642
B61: Table 5 - Metering Services Unders and Overs Account
D62: Year t-2 | E62: Year t-1 | F62: Year t
D63: (actual) | E63: (estimate) | F63: (forecast)
B64: Calendar year | D64: =E64-1 -> 2018 | E64: =F64-1 -> 2019 | F64: =D$22 -> 2020
B66: Nominal WACC | D66: =(1+'Model update'!$B$47)*(1+'Model update'!$C$28)-1 -> 0.05565648259 | E66: =(1+'Model update'!$B$45)*(1+'Model update'!$C$29)-1 -> 0.0565862118 | F66: =(1+'Model update'!$B$43)*(1+'Model update'!$C$30)-1 -> 0.05008580414
B68: Opening balance | D68: -35951.46284 | E68: =D72 -> -189379.4134 | F68: =E72 -> -746513.5771
B69: Interest on Opening balance | D69: =D68*D66 -> -2000.931965 | E69: =E68*E66 -> -10716.2636 | F69: =F68*F66 -> -37389.73281
B70: Under/over recovery of revenue for regulatory year | D70: =D57 -> -147381.1912 | E70: =E57 -> -531584.6704 | F70: =F57 -> 761942.6642
B71: Interest on under/over recovery for regulatory year | D71: =D70*((1+D66)^0.5-1) -> -4045.827435 | E71: =E70*((1+E66)^0.5-1) -> -14833.22967 | F71: =F70*((1+F66)^0.5-1) -> 18848.13292
B72: Closing balance of Metering Services overs/ (unders) account | D72: =SUM(D68:D71) -> -189379.4134 | E72: =SUM(E68:E71) -> -746513.5771 | F72: -3112.512765
B74: The DNSP is expected to achieve a closing balance as close to zero as practicable in its annual metering charges unders and overs account in each forecast year in its annual pricing proposals in the 2016–20 regulatory control period.
C77: ="Current Metering Tariffs P(t-1) for " &'Model update'!$C$8 -> Current Metering Tariffs P(t-1) for 2019 | D77: ="Estimated Quantities (Qt-1) for "&'Model update'!$C$5-1 -> Estimated Quantities (Qt-1) for 2019 | E77: ="Revenue (Pt-1 "&'Model update'!$C$8&")*(Qt-1 " &'Model update'!$C$5-1&")" -> Revenue (Pt-1 2019)*(Qt-1 2019)
B78: Existing tariff | C78: ExistTar $/Cust/year | D78: FcastVol Cust # | E78: ExistRev Fixed
B80: Single phase | C80: =E8 -> 73 | D80: 256734.9346 | E80: =C80*D80 -> 18741650.23
B81: Three phase direct connected meter | C81: =E9 -> 91.25 | D81: 62596.59411 | E81: 5711939.212
B82: Three phase CT connected meter | C82: 113.15 | D82: 3058.936199 | E82: 346118.6309
E83: 0
E84: 0
E85: 0
E86: 0
E87: 0
E88: 0
E89: =SUM(E79:E88) -> 24799708.07

Sheet Prop2020DistTar
B1: ="Tariff Approval - "&'Model update'!$C$3 -> Tariff Approval - CitiPower | C1: ="Prop"&'Model update'!$C$5&"DistTar" -> Prop2020DistTar
B3: ="PROPOSED "&'Model update'!$C$5&" DISTRIBUTION TARIFFS" -> PROPOSED 2020 DISTRIBUTION TARIFFS
D4: ="Proposed Distribution Tariffs (Pt) for "&'Model update'!$C$5 -> Proposed Distribution Tariffs (Pt) for 2020 | R4: ="Current Distribution Tariffs (Pt-1) for "&'Model update'!$C$8 -> Current Distribution Tariffs (Pt-1) for 2019 | AF4: ="Forecast Quantities (Qt) for "&'Model update'!$C$5 -> Forecast Quantities (Qt) for 2020 | AT4: ="Forecast Revenue (Pt "&'Model update'!$C$5&")*(Qt " &'Model update'!$C$5&")" -> Forecast Revenue (Pt 2020)*(Qt 2020) | BI4: ="Revenue (Pt-1 "&'Model update'!$C$8&")*(Qt " &'Model update'!$C$5&")" -> Revenue (Pt-1 2019)*(Qt 2020)
B5: Proposed tariff | C5: Existing tariff | D5: PropTar Fixed | E5: PropTar Anytime | F5: PropTar PkBlk | G5: PropTar OPkBlk1 | H5: PropTar Dem kVA | I5: PropTar Dem kW Sum | J5: PropTar Dem kW Win | K5: PropTar SumBlk1 | L5: PropTar SumBlk2 | M5: PropTar SumBlk3 | N5: PropTar WtrBlk1 | O5: PropTar WtrBlk2 | P5: PropTar WtrBlk3 | R5: ExistTar Fixed | S5: ExistTar Anytime | T5: ExistTar Pk | U5: ExistTar OPkBlk | V5: ExistTar Dem kVA | W5: ExistTar Dem kW Sum | X5: ExistTar Dem kW Win | Y5: ExistTar SumBlk1 | Z5: ExistTar SumBlk2 | AA5: ExistTar SumBlk3 | AB5: ExistTar WtrBlk1 | AC5: ExistTar WtrBlk2 | AD5: ExistTar WtrBlk3 | AF5: FcastVol Fixed | AG5: FcastVol Anytime | AH5: FcastVol Pk | AI5: FcastVol Opk | AJ5: FcastVol Dem kVA | AK5: FcastVol Dem kW Sum | AL5: FcastVol Dem kW Win | AM5: FcastVol SumBlk1 | AN5: FcastVol SumBlk2 | AO5: FcastVol SumBlk3 | AP5: FcastVol WtrBlk1 | AQ5: FcastVol WtrBlk2 | AR5: FcastVol WtrBlk3 | AT5: PropRev Fixed | AU5: PropRev Anytime | AV5: PropRev Pk | AW5: PropRev Opk | AX5: PropRev Dem kVA | AY5: PropRev Dem kW Sum | AZ5: PropRev Dem kW Win | BA5: PropRev SumBlk1 | BB5: PropRev SumBlk2 | BC5: PropRev SumBlk3 | BD5: PropRev WtrBlk1 | BE5: PropRev WtrBlk2 | BF5: PropRev WtrBlk3 | BG5: PropRev Total | BI5: ExistRev Fixed | BJ5: ExistRev Anytime | BK5: ExistRev Pk | BL5: ExistRev Opk | BM5: ExistRev Dem kVA | BN5: ExistRev Dem kW Sum | BO5: ExistRev Dem kW Win | BP5: ExistRev SumBlk1 | BQ5: ExistRev SumBlk2 | BR5: ExistRev SumBlk3 | BS5: ExistRev WtrBlk1 | BT5: ExistRev WtrBlk2 | BU5: ExistRev WtrBlk3 | BV5: ExistRev Total
A6: =Est2019DistRev!A6 -> C1R | B6: =C6 -> Residential Single Rate | C6: =Est2019DistRev!B6 -> Residential Single Rate | D6: 95 | E6: 4.9 | F6: 0 | G6: 0 | H6: 0 | I6: 0 | J6: 0 | K6: 0 | L6: 0 | M6: 0 | N6: 0 | O6: 0 | P6: 0 | R6: =Est2019DistRev!D6 -> 90 | S6: =Est2019DistRev!E6 -> 4.72 | T6: =Est2019DistRev!F6 -> 0 | U6: =Est2019DistRev!G6 -> 0 | V6: =Est2019DistRev!H6 -> 0 | W6: =Est2019DistRev!I6 -> 0 | X6: =Est2019DistRev!J6 -> 0 | Y6: =Est2019DistRev!K6 -> 0 | Z6: =Est2019DistRev!L6 -> 0 | AA6: =Est2019DistRev!M6 -> 0 | AB6: =Est2019DistRev!N6 -> 0 | AC6: =Est2019DistRev!O6 -> 0 | AD6: =Est2019DistRev!P6 -> 0 | AF6: 206178.4408 | AG6: 848271452.5 | AH6: 0 | AI6: 0 | AJ6: 0 | AK6: 0 | AL6: 0 | AM6: 0 | AN6: 0 | AO6: 0 | AP6: 0 | AQ6: 0 | AR6: 0 | AT6: =D6*AF6 -> 19586951.87 | AU6: =E6/100*AG6 -> 41565301.17 | AV6: 0 | AW6: 0 | AX6: =H6*AJ6 -> 0 | AY6: =I6*AK6 -> 0 | AZ6: 0 | BA6: 0 | BB6: 0 | BC6: =M6/100*AO6 -> 0 | BD6: =N6/100*AP6 -> 0 | BE6: =O6/100*AQ6 -> 0 | BF6: =P6/100*AR6 -> 0 | BG6: =SUM(AT6:BF6) -> 61152253.05 | BI6: =R6*AF6 -> 18556059.67 | BJ6: =S6/100*AG6 -> 40038412.56 | BK6: 0 | BL6: 0 | BM6: =V6*AJ6 -> 0 | BN6: =W6*AK6 -> 0 | BO6: 0 | BP6: 0 | BQ6: 0 | BR6: =AA6/100*AO6 -> 0 | BS6: =AB6/100*AP6 -> 0 | BT6: =AC6/100*AQ6 -> 0 | BU6: =AD6/100*AR6 -> 0 | BV6: =SUM(BI6:BU6) -> 58594472.23
A7: =Est2019DistRev!A7 -> C1RB | B7: =C7 -> Residential Single Rate - Bulk | C7: =Est2019DistRev!B7 -> Residential Single Rate - Bulk | D7: 95 | E7: 4.2 | F7: 0 | G7: 0 | H7: 0 | I7: 0 | J7: 0 | K7: 0 | L7: 0 | M7: 0 | N7: 0 | O7: 0 | P7: 0 | R7: =Est2019DistRev!D7 -> 85 | S7: =Est2019DistRev!E7 -> 4.15 | T7: =Est2019DistRev!F7 -> 0 | U7: =Est2019DistRev!G7 -> 0 | V7: =Est2019DistRev!H7 -> 0 | W7: =Est2019DistRev!I7 -> 0 | X7: =Est2019DistRev!J7 -> 0 | Y7: =Est2019DistRev!K7 -> 0 | Z7: =Est2019DistRev!L7 -> 0 | AA7: =Est2019DistRev!M7 -> 0 | AB7: =Est2019DistRev!N7 -> 0 | AC7: =Est2019DistRev!O7 -> 0 | AD7: =Est2019DistRev!P7 -> 0 | AF7: 31089.94761 | AG7: 107478291.6 | AH7: 0 | AI7: 0 | AJ7: 0 | AK7: 0 | AL7: 0 | AM7: 0 | AN7: 0 | AO7: 0 | AP7: 0 | AQ7: 0 | AR7: 0 | AT7: =D7*AF7 -> 2953545.023 | AU7: =E7/100*AG7 -> 4514088.247 | AV7: 0 | AW7: 0 | AX7: =H7*AJ7 -> 0 | AY7: =I7*AK7 -> 0 | AZ7: =J7*AL7 -> 0 | BA7: 0 | BB7: 0 | BC7: 0 | BD7: 0 | BE7: 0 | BF7: 0 | BG7: =SUM(AT7:BF7) -> 7467633.27 | BI7: =R7*AF7 -> 2642645.547 | BJ7: =S7/100*AG7 -> 4460349.101 | BK7: =T7/100*AH7 -> 0 | BL7: =U7/100*AI7 -> 0 | BM7: =V7*AJ7 -> 0 | BN7: =W7*AK7 -> 0 | BO7: =X7*AL7 -> 0 | BP7: =Y7/100*AM7 -> 0 | BQ7: =Z7/100*AN7 -> 0 | BR7: 0 | BS7: 0 | BT7: 0 | BU7: 0 | BV7: =SUM(BI7:BU7) -> 7102994.648
A8: =Est2019DistRev!A8 -> C13R | B8: Residential - flexible pricing | C8: =Est2019DistRev!B8 -> Residential - flexible pricing | D8: 95 | E8: 0 | F8: 0 | G8: 0 | H8: 0 | I8: 0 | J8: 0 | K8: 10.42 | L8: 7.02 | M8: 2.75 | N8: 10.42 | O8: 7.02 | P8: 2.75 | R8: =Est2019DistRev!D8 -> 90 | S8: =Est2019DistRev!E8 -> 0 | T8: =Est2019DistRev!F8 -> 0 | U8: =Est2019DistRev!G8 -> 0 | V8: =Est2019DistRev!H8 -> 0 | W8: =Est2019DistRev!I8 -> 0 | X8: =Est2019DistRev!J8 -> 0 | Y8: =Est2019DistRev!K8 -> 10.79 | Z8: =Est2019DistRev!L8 -> 7.27 | AA8: =Est2019DistRev!M8 -> 2.86 | AB8: =Est2019DistRev!N8 -> 10.79 | AC8: =Est2019DistRev!O8 -> 7.27 | AD8: =Est2019DistRev!P8 -> 2.86 | AF8: 697.7837744 | AG8: 0 | AH8: 0 | AI8: 0 | AJ8: 0 | AK8: 0 | AL8: 0 | AM8: 182885.2841 | AN8: 388824.7097 | AO8: 289537.6096 | AP8: 700283.2533 | AQ8: 1488842.769 | AR8: 1108664.047 | AT8: 66289.45857 | AU8: 0 | AV8: 0 | AW8: 0 | AX8: 0 | AY8: 0 | AZ8: 0 | BA8: 19056.6466 | BB8: 27295.49462 | BC8: 7962.284263 | BD8: 72969.515 | BE8: 104516.7624 | BF8: 30488.26129 | BG8: 328578.4227 | BI8: 62800.53969 | BJ8: 0 | BK8: 0 | BL8: 0 | BM8: 0 | BN8: 0 | BO8: 0 | BP8: 19733.32215 | BQ8: 28267.5564 | BR8: 8280.775633 | BS8: 75560.56303 | BT8: 108238.8693 | BU8: 31707.79174 | BV8: 334589.4179
A9: =Est2019DistRev!A9 -> C13RB | B9: Residential - flexible pricing bulk | C9: =Est2019DistRev!B9 -> Residential - flexible pricing bulk | D9: 95 | E9: 0 | F9: 0 | G9: 0 | H9: 0 | I9: 0 | J9: 0 | K9: 9.69 | L9: 6.52 | M9: 2.56 | N9: 9.69 | O9: 6.52 | P9: 2.56 | R9: =Est2019DistRev!D9 -> 85 | S9: =Est2019DistRev!E9 -> 0 | T9: =Est2019DistRev!F9 -> 0 | U9: =Est2019DistRev!G9 -> 0 | V9: =Est2019DistRev!H9 -> 0 | W9: =Est2019DistRev!I9 -> 0 | X9: =Est2019DistRev!J9 -> 0 | Y9: =Est2019DistRev!K9 -> 9.05 | Z9: =Est2019DistRev!L9 -> 6.1 | AA9: =Est2019DistRev!M9 -> 2.39 | AB9: =Est2019DistRev!N9 -> 9.05 | AC9: =Est2019DistRev!O9 -> 6.1 | AD9: =Est2019DistRev!P9 -> 2.39 | AF9: 92.82952683 | AG9: 0 | AH9: 0 | AI9: 0 | AJ9: 0 | AK9: 0 | AL9: 0 | AM9: 15622.00683 | AN9: 33980.3137 | AO9: 24260.31259 | AP9: 58675.49698 | AQ9: 127628.4037 | AR9: 91120.55282 | AT9: 8818.805049 | AU9: 0 | AV9: 0 | AW9: 0 | AX9: 0 | AY9: 0 | AZ9: 0 | BA9: 1513.772461 | BB9: 2215.516453 | BC9: 621.0640024 | BD9: 5685.655657 | BE9: 8321.37192 | BF9: 2332.686152 | BG9: 29508.8717 | BI9: 7890.509781 | BJ9: 0 | BK9: 0 | BL9: 0 | BM9: 0 | BN9: 0 | BO9: 0 | BP9: 1413.791618 | BQ9: 2072.799136 | BR9: 579.8214709 | BS9: 5310.132476 | BT9: 7785.332625 | BU9: 2177.781212 | BV9: 27230.16832
A10: =Est2019DistRev!A10 -> C2R | B10: Residential Two Rate 5d | C10: =Est2019DistRev!B10 -> Residential Two Rate 5d | D10: 95 | E10: 0 | F10: 9.39 | G10: 2.47 | H10: 0 | I10: 0 | J10: 0 | K10: 0 | L10: 0 | M10: 0 | N10: 0 | O10: 0 | P10: 0 | R10: =Est2019DistRev!D10 -> 90 | S10: =Est2019DistRev!E10 -> 0 | T10: =Est2019DistRev!F10 -> 9.72 | U10: =Est2019DistRev!G10 -> 2.31 | V10: =Est2019DistRev!H10 -> 0 | W10: =Est2019DistRev!I10 -> 0 | X10: =Est2019DistRev!J10 -> 0 | Y10: =Est2019DistRev!K10 -> 0 | Z10: =Est2019DistRev!L10 -> 0 | AA10: =Est2019DistRev!M10 -> 0 | AB10: =Est2019DistRev!N10 -> 0 | AC10: =Est2019DistRev!O10 -> 0 | AD10: =Est2019DistRev!P10 -> 0 | AF10: 10806.12165 | AG10: 0 | AH10: 33449615.67 | AI10: 29269859.99 | AJ10: 0 | AK10: 0 | AL10: 0 | AM10: 0 | AN10: 0 | AO10: 0 | AP10: 0 | AQ10: 0 | AR10: 0 | AT10: 1026581.557 | AU10: 0 | AV10: 3140918.911 | AW10: 722965.5417 | AX10: 0 | AY10: 0 | AZ10: 0 | BA10: 0 | BB10: 0 | BC10: 0 | BD10: 0 | BE10: 0 | BF10: 0 | BG10: 4890466.01 | BI10: 972550.9485 | BJ10: 0 | BK10: 3251302.643 | BL10: 676133.7658 | BM10: 0 | BN10: 0 | BO10: 0 | BP10: 0 | BQ10: 0 | BR10: 0 | BS10: 0 | BT10: 0 | BU10: 0 | BV10: 4899987.357
A11: =Est2019DistRev!A11 -> C2RB | B11: Residential Two Rate 5d - Bulk | C11: =Est2019DistRev!B11 -> Residential Two Rate 5d - Bulk | D11: 95 | E11: 0 | F11: 8.45 | G11: 2.34 | H11: 0 | I11: 0 | J11: 0 | K11: 0 | L11: 0 | M11: 0 | N11: 0 | O11: 0 | P11: 0 | R11: =Est2019DistRev!D11 -> 85 | S11: =Est2019DistRev!E11 -> 0 | T11: =Est2019DistRev!F11 -> 8.56 | U11: =Est2019DistRev!G11 -> 2.16 | V11: =Est2019DistRev!H11 -> 0 | W11: =Est2019DistRev!I11 -> 0 | X11: =Est2019DistRev!J11 -> 0 | Y11: =Est2019DistRev!K11 -> 0 | Z11: =Est2019DistRev!L11 -> 0 | AA11: =Est2019DistRev!M11 -> 0 | AB11: =Est2019DistRev!N11 -> 0 | AC11: =Est2019DistRev!O11 -> 0 | AD11: =Est2019DistRev!P11 -> 0 | AF11: 4316.824207 | AG11: 0 | AH11: 12001250.2 | AI11: 10487452.7 | AJ11: 0 | AK11: 0 | AL11: 0 | AM11: 0 | AN11: 0 | AO11: 0 | AP11: 0 | AQ11: 0 | AR11: 0 | AT11: 410098.2996 | AU11: 0 | AV11: 1014105.642 | AW11: 245406.3932 | AX11: 0 | AY11: 0 | AZ11: 0 | BA11: 0 | BB11: 0 | BC11: 0 | BD11: 0 | BE11: 0 | BF11: 0 | BG11: 1669610.335 | BI11: 366930.0576 | BJ11: 0 | BK11: 1027307.017 | BL11: 226528.9784 | BM11: 0 | BN11: 0 | BO11: 0 | BP11: 0 | BQ11: 0 | BR11: 0 | BS11: 0 | BT11: 0 | BU11: 0 | BV11: 1620766.053
A12: =Est2019DistRev!A12 -> C3R | B12: Residential Interval | C12: =Est2019DistRev!B12 -> Residential Interval | D12: 95 | E12: 0 | F12: 9.39 | G12: 2.47 | H12: 0 | I12: 0 | J12: 0 | K12: 0 | L12: 0 | M12: 0 | N12: 0 | O12: 0 | P12: 0 | R12: =Est2019DistRev!D12 -> 90 | S12: =Est2019DistRev!E12 -> 0 | T12: =Est2019DistRev!F12 -> 9.72 | U12: =Est2019DistRev!G12 -> 2.31 | V12: =Est2019DistRev!H12 -> 0 | W12: =Est2019DistRev!I12 -> 0 | X12: =Est2019DistRev!J12 -> 0 | Y12: =Est2019DistRev!K12 -> 0 | Z12: =Est2019DistRev!L12 -> 0 | AA12: =Est2019DistRev!M12 -> 0 | AB12: =Est2019DistRev!N12 -> 0 | AC12: =Est2019DistRev!O12 -> 0 | AD12: =Est2019DistRev!P12 -> 0 | AF12: 17021.34205 | AG12: 0 | AH12: 51729844.46 | AI12: 45571765.37 | AJ12: 0 | AK12: 0 | AL12: 0 | AM12: 0 | AN12: 0 | AO12: 0 | AP12: 0 | AQ12: 0 | AR12: 0 | AT12: 1617027.494 | AU12: 0 | AV12: 4857432.395 | AW12: 1125622.605 | AX12: 0 | AY12: 0 | AZ12: 0 | BA12: 0 | BB12: 0 | BC12: 0 | BD12: 0 | BE12: 0 | BF12: 0 | BG12: 7600082.494 | BI12: 1531920.784 | BJ12: 0 | BK12: 5028140.882 | BL12: 1052707.78 | BM12: 0 | BN12: 0 | BO12: 0 | BP12: 0 | BQ12: 0 | BR12: 0 | BS12: 0 | BT12: 0 | BU12: 0 | BV12: 7612769.446
A13: =Est2019DistRev!A13 -> C3RB | B13: Residential Interval - Bulk | C13: =Est2019DistRev!B13 -> Residential Interval - Bulk | D13: 95 | E13: 0 | F13: 8.45 | G13: 2.34 | H13: 0 | I13: 0 | J13: 0 | K13: 0 | L13: 0 | M13: 0 | N13: 0 | O13: 0 | P13: 0 | R13: =Est2019DistRev!D13 -> 85 | S13: =Est2019DistRev!E13 -> 0 | T13: =Est2019DistRev!F13 -> 8.56 | U13: =Est2019DistRev!G13 -> 2.16 | V13: =Est2019DistRev!H13 -> 0 | W13: =Est2019DistRev!I13 -> 0 | X13: =Est2019DistRev!J13 -> 0 | Y13: =Est2019DistRev!K13 -> 0 | Z13: =Est2019DistRev!L13 -> 0 | AA13: =Est2019DistRev!M13 -> 0 | AB13: =Est2019DistRev!N13 -> 0 | AC13: =Est2019DistRev!O13 -> 0 | AD13: =Est2019DistRev!P13 -> 0 | AF13: 8705.349809 | AG13: 0 | AH13: 15093462.87 | AI13: 14304461.08 | AJ13: 0 | AK13: 0 | AL13: 0 | AM13: 0 | AN13: 0 | AO13: 0 | AP13: 0 | AQ13: 0 | AR13: 0 | AT13: 827008.2319 | AU13: 0 | AV13: 1275397.612 | AW13: 334724.3893 | AX13: 0 | AY13: 0 | AZ13: 0 | BA13: 0 | BB13: 0 | BC13: 0 | BD13: 0 | BE13: 0 | BF13: 0 | BG13: 2437130.233 | BI13: 739954.7338 | BJ13: 0 | BK13: 1292000.421 | BL13: 308976.3593 | BM13: 0 | BN13: 0 | BO13: 0 | BP13: 0 | BQ13: 0 | BR13: 0 | BS13: 0 | BT13: 0 | BU13: 0 | BV13: 2340931.514
A14: =Est2019DistRev!A14 -> C2ROP | B14: Residential Two Rate 5d - Controlled Load | C14: =Est2019DistRev!B14 -> Residential Two Rate 5d - Controlled Load | D14: 0 | E14: 0 | F14: 0 | G14: 0 | H14: 0 | I14: 0 | J14: 0 | K14: 0 | L14: 0 | M14: 0 | N14: 0 | O14: 0 | P14: 0 | R14: =Est2019DistRev!D14 -> 0 | S14: =Est2019DistRev!E14 -> 0 | T14: =Est2019DistRev!F14 -> 0 | U14: =Est2019DistRev!G14 -> 1.76 | V14: =Est2019DistRev!H14 -> 0 | W14: =Est2019DistRev!I14 -> 0 | X14: =Est2019DistRev!J14 -> 0 | Y14: =Est2019DistRev!K14 -> 0 | Z14: =Est2019DistRev!L14 -> 0 | AA14: =Est2019DistRev!M14 -> 0 | AB14: =Est2019DistRev!N14 -> 0 | AC14: =Est2019DistRev!O14 -> 0 | AD14: =Est2019DistRev!P14 -> 0 | AF14: 0 | AG14: 0 | AH14: 0 | AI14: 0 | AJ14: 0 | AK14: 0 | AL14: 0 | AM14: 0 | AN14: 0 | AO14: 0 | AP14: 0 | AQ14: 0 | AR14: 0 | AT14: 0 | AU14: 0 | AV14: 0 | AW14: 0 | AX14: 0 | AY14: 0 | AZ14: 0 | BA14: 0 | BB14: 0 | BC14: 0 | BD14: 0 | BE14: 0 | BF14: 0 | BG14: 0 | BI14: 0 | BJ14: 0 | BK14: 0 | BL14: 0 | BM14: 0 | BN14: 0 | BO14: 0 | BP14: 0 | BQ14: 0 | BR14: 0 | BS14: 0 | BT14: 0 | BU14: 0 | BV14: 0
A15: =Est2019DistRev!A15 -> C2RBOP | B15: Residential Two Rate 5d - Bulk - Controlled Load | C15: =Est2019DistRev!B15 -> Residential Two Rate 5d - Bulk - Controlled Load | D15: 0 | E15: 0 | F15: 0 | G15: 0 | H15: 0 | I15: 0 | J15: 0 | K15: 0 | L15: 0 | M15: 0 | N15: 0 | O15: 0 | P15: 0 | R15: =Est2019DistRev!D15 -> 0 | S15: =Est2019DistRev!E15 -> 0 | T15: =Est2019DistRev!F15 -> 0 | U15: =Est2019DistRev!G15 -> 1.44 | V15: =Est2019DistRev!H15 -> 0 | W15: =Est2019DistRev!I15 -> 0 | X15: =Est2019DistRev!J15 -> 0 | Y15: =Est2019DistRev!K15 -> 0 | Z15: =Est2019DistRev!L15 -> 0 | AA15: =Est2019DistRev!M15 -> 0 | AB15: =Est2019DistRev!N15 -> 0 | AC15: =Est2019DistRev!O15 -> 0 | AD15: =Est2019DistRev!P15 -> 0 | AF15: 0 | AG15: 0 | AH15: 0 | AI15: 0 | AJ15: 0 | AK15: 0 | AL15: 0 | AM15: 0 | AN15: 0 | AO15: 0 | AP15: 0 | AQ15: 0 | AR15: 0 | AT15: 0 | AU15: 0 | AV15: 0 | AW15: 0 | AX15: 0 | AY15: 0 | AZ15: 0 | BA15: 0 | BB15: 0 | BC15: 0 | BD15: 0 | BE15: 0 | BF15: 0 | BG15: 0 | BI15: 0 | BJ15: 0 | BK15: 0 | BL15: 0 | BM15: 0 | BN15: 0 | BO15: 0 | BP15: 0 | BQ15: 0 | BR15: 0 | BS15: 0 | BT15: 0 | BU15: 0 | BV15: 0
A16: =Est2019DistRev!A16 -> CDS | B16: Dedicated Circuit | C16: =Est2019DistRev!B16 -> Dedicated Circuit | D16: 0 | E16: 0 | F16: 0 | G16: 1.7 | H16: 0 | I16: 0 | J16: 0 | K16: 0 | L16: 0 | M16: 0 | N16: 0 | O16: 0 | P16: 0 | R16: =Est2019DistRev!D16 -> 0 | S16: =Est2019DistRev!E16 -> 0 | T16: =Est2019DistRev!F16 -> 0 | U16: =Est2019DistRev!G16 -> 1.76 | V16: =Est2019DistRev!H16 -> 0 | W16: =Est2019DistRev!I16 -> 0 | X16: =Est2019DistRev!J16 -> 0 | Y16: =Est2019DistRev!K16 -> 0 | Z16: =Est2019DistRev!L16 -> 0 | AA16: =Est2019DistRev!M16 -> 0 | AB16: =Est2019DistRev!N16 -> 0 | AC16: =Est2019DistRev!O16 -> 0 | AD16: =Est2019DistRev!P16 -> 0 | AF16: 32498.74505 | AG16: 0 | AH16: 0 | AI16: 50045800.12 | AJ16: 0 | AK16: 0 | AL16: 0 | AM16: 0 | AN16: 0 | AO16: 0 | AP16: 0 | AQ16: 0 | AR16: 0 | AT16: 0 | AU16: 0 | AV16: 0 | AW16: 850778.602 | AX16: 0 | AY16: 0 | AZ16: 0 | BA16: 0 | BB16: 0 | BC16: 0 | BD16: 0 | BE16: 0 | BF16: 0 | BG16: 850778.602 | BI16: 0 | BJ16: 0 | BK16: 0 | BL16: 880806.0821 | BM16: 0 | BN16: 0 | BO16: 0 | BP16: 0 | BQ16: 0 | BR16: 0 | BS16: 0 | BT16: 0 | BU16: 0 | BV16: 880806.0821
A17: =Est2019DistRev!A17 -> CDSB | B17: Dedicated Circuit - Bulk | C17: =Est2019DistRev!B17 -> Dedicated Circuit - Bulk | D17: 0 | E17: 0 | F17: 0 | G17: 1.38 | H17: 0 | I17: 0 | J17: 0 | K17: 0 | L17: 0 | M17: 0 | N17: 0 | O17: 0 | P17: 0 | R17: =Est2019DistRev!D17 -> 0 | S17: =Est2019DistRev!E17 -> 0 | T17: =Est2019DistRev!F17 -> 0 | U17: =Est2019DistRev!G17 -> 1.44 | V17: =Est2019DistRev!H17 -> 0 | W17: =Est2019DistRev!I17 -> 0 | X17: =Est2019DistRev!J17 -> 0 | Y17: =Est2019DistRev!K17 -> 0 | Z17: =Est2019DistRev!L17 -> 0 | AA17: =Est2019DistRev!M17 -> 0 | AB17: =Est2019DistRev!N17 -> 0 | AC17: =Est2019DistRev!O17 -> 0 | AD17: =Est2019DistRev!P17 -> 0 | AF17: 5581.41933 | AG17: 0 | AH17: 0 | AI17: 9263135.829 | AJ17: 0 | AK17: 0 | AL17: 0 | AM17: 0 | AN17: 0 | AO17: 0 | AP17: 0 | AQ17: 0 | AR17: 0 | AT17: 0 | AU17: 0 | AV17: 0 | AW17: 127831.2744 | AX17: 0 | AY17: 0 | AZ17: 0 | BA17: 0 | BB17: 0 | BC17: 0 | BD17: 0 | BE17: 0 | BF17: 0 | BG17: 127831.2744 | BI17: 0 | BJ17: 0 | BK17: 0 | BL17: 133389.1559 | BM17: 0 | BN17: 0 | BO17: 0 | BP17: 0 | BQ17: 0 | BR17: 0 | BS17: 0 | BT17: 0 | BU17: 0 | BV17: 133389.1559
A18: =Est2019DistRev!A18 -> CR | B18: Residential Demand | C18: =Est2019DistRev!B18 -> Residential Demand | D18: 95 | E18: 2.79 | F18: 0 | G18: 0 | H18: 0 | I18: 6.81 | J18: 2.34 | K18: 0 | L18: 0 | M18: 0 | N18: 0 | O18: 0 | P18: 0 | R18: =Est2019DistRev!D18 -> 90 | S18: =Est2019DistRev!E18 -> 2.89 | T18: =Est2019DistRev!F18 -> 0 | U18: =Est2019DistRev!G18 -> 0 | V18: =Est2019DistRev!H18 -> 0 | W18: =Est2019DistRev!I18 -> 7.04 | X18: =Est2019DistRev!J18 -> 2.41 | Y18: =Est2019DistRev!K18 -> 0 | Z18: =Est2019DistRev!L18 -> 0 | AA18: =Est2019DistRev!M18 -> 0 | AB18: =Est2019DistRev!N18 -> 0 | AC18: =Est2019DistRev!O18 -> 0 | AD18: =Est2019DistRev!P18 -> 0 | AF18: 8.422561488 | AG18: 49160.92188 | AH18: 0 | AI18: 0 | AJ18: 0 | AK18: 91.99320375 | AL18: 214.7200986 | AM18: 0 | AN18: 0 | AO18: 0 | AP18: 0 | AQ18: 0 | AR18: 0 | AT18: 800.1433413 | AU18: 1371.589721 | AV18: 0 | AW18: 0 | AX18: 0 | AY18: 626.4737175 | AZ18: 502.4450307 | BA18: 0 | BB18: 0 | BC18: 0 | BD18: 0 | BE18: 0 | BF18: 0 | BG18: 3300.65181 | BI18: 758.0305339 | BJ18: 1420.750642 | BK18: 0 | BL18: 0 | BM18: 0 | BN18: 647.6321544 | BO18: 517.4754376 | BP18: 0 | BQ18: 0 | BR18: 0 | BS18: 0 | BT18: 0 | BU18: 0 | BV18: 3343.888768
A19: =Est2019DistRev!A19 -> CRB | B19: Residential Bulk Demand | C19: =Est2019DistRev!B19 -> Residential Bulk Demand | D19: 95 | E19: 2.22 | F19: 0 | G19: 0 | H19: 0 | I19: 5.54 | J19: 1.87 | K19: 0 | L19: 0 | M19: 0 | N19: 0 | O19: 0 | P19: 0 | R19: =Est2019DistRev!D19 -> 85 | S19: =Est2019DistRev!E19 -> 2.03 | T19: =Est2019DistRev!F19 -> 0 | U19: =Est2019DistRev!G19 -> 0 | V19: =Est2019DistRev!H19 -> 0 | W19: =Est2019DistRev!I19 -> 5.54 | X19: =Est2019DistRev!J19 -> 1.86 | Y19: =Est2019DistRev!K19 -> 0 | Z19: =Est2019DistRev!L19 -> 0 | AA19: =Est2019DistRev!M19 -> 0 | AB19: =Est2019DistRev!N19 -> 0 | AC19: =Est2019DistRev!O19 -> 0 | AD19: =Est2019DistRev!P19 -> 0 | AF19: 1.956906318 | AG19: 11446.58721 | AH19: 0 | AI19: 0 | AJ19: 0 | AK19: 18.99501176 | AL19: 47.50351373 | AM19: 0 | AN19: 0 | AO19: 0 | AP19: 0 | AQ19: 0 | AR19: 0 | AT19: 185.9061002 | AU19: 254.114236 | AV19: 0 | AW19: 0 | AX19: 0 | AY19: 105.2323652 | AZ19: 88.83157067 | BA19: 0 | BB19: 0 | BC19: 0 | BD19: 0 | BE19: 0 | BF19: 0 | BG19: 634.0842721 | BI19: 166.337037 | BJ19: 232.3657203 | BK19: 0 | BL19: 0 | BM19: 0 | BN19: 105.2323652 | BO19: 88.35653553 | BP19: 0 | BQ19: 0 | BR19: 0 | BS19: 0 | BT19: 0 | BU19: 0 | BV19: 592.2916581
A20: =Est2019DistRev!A20 -> C1G | B20: Non-Residential Single Rate | C20: =Est2019DistRev!B20 -> Non-Residential Single Rate | D20: 160 | E20: 6.36 | F20: 0 | G20: 0 | H20: 0 | I20: 0 | J20: 0 | K20: 0 | L20: 0 | M20: 0 | N20: 0 | O20: 0 | P20: 0 | R20: =Est2019DistRev!D20 -> 150 | S20: =Est2019DistRev!E20 -> 5.96 | T20: =Est2019DistRev!F20 -> 0 | U20: =Est2019DistRev!G20 -> 0 | V20: =Est2019DistRev!H20 -> 0 | W20: =Est2019DistRev!I20 -> 0 | X20: =Est2019DistRev!J20 -> 0 | Y20: =Est2019DistRev!K20 -> 0 | Z20: =Est2019DistRev!L20 -> 0 | AA20: =Est2019DistRev!M20 -> 0 | AB20: =Est2019DistRev!N20 -> 0 | AC20: =Est2019DistRev!O20 -> 0 | AD20: =Est2019DistRev!P20 -> 0 | AF20: 19278.92846 | AG20: 234414508.1 | AH20: 0 | AI20: 0 | AJ20: 0 | AK20: 0 | AL20: 0 | AM20: 0 | AN20: 0 | AO20: 0 | AP20: 0 | AQ20: 0 | AR20: 0 | AT20: 3084628.554 | AU20: 14908762.72 | AV20: 0 | AW20: 0 | AX20: 0 | AY20: 0 | AZ20: 0 | BA20: 0 | BB20: 0 | BC20: 0 | BD20: 0 | BE20: 0 | BF20: 0 | BG20: 17993391.27 | BI20: 2891839.269 | BJ20: 13971104.68 | BK20: 0 | BL20: 0 | BM20: 0 | BN20: 0 | BO20: 0 | BP20: 0 | BQ20: 0 | BR20: 0 | BS20: 0 | BT20: 0 | BU20: 0 | BV20: 16862943.95
A21: =Est2019DistRev!A21 -> C1GB | B21: Non-Residential Single Rate - Bulk | C21: =Est2019DistRev!B21 -> Non-Residential Single Rate - Bulk | D21: 160 | E21: 5.78 | F21: 0 | G21: 0 | H21: 0 | I21: 0 | J21: 0 | K21: 0 | L21: 0 | M21: 0 | N21: 0 | O21: 0 | P21: 0 | R21: =Est2019DistRev!D21 -> 140 | S21: =Est2019DistRev!E21 -> 4.84 | T21: =Est2019DistRev!F21 -> 0 | U21: =Est2019DistRev!G21 -> 0 | V21: =Est2019DistRev!H21 -> 0 | W21: =Est2019DistRev!I21 -> 0 | X21: =Est2019DistRev!J21 -> 0 | Y21: =Est2019DistRev!K21 -> 0 | Z21: =Est2019DistRev!L21 -> 0 | AA21: =Est2019DistRev!M21 -> 0 | AB21: =Est2019DistRev!N21 -> 0 | AC21: =Est2019DistRev!O21 -> 0 | AD21: =Est2019DistRev!P21 -> 0 | AF21: 5769.609032 | AG21: 81668548.05 | AH21: 0 | AI21: 0 | AJ21: 0 | AK21: 0 | AL21: 0 | AM21: 0 | AN21: 0 | AO21: 0 | AP21: 0 | AQ21: 0 | AR21: 0 | AT21: 923137.4452 | AU21: 4720442.077 | AV21: 0 | AW21: 0 | AX21: 0 | AY21: 0 | AZ21: 0 | BA21: 0 | BB21: 0 | BC21: 0 | BD21: 0 | BE21: 0 | BF21: 0 | BG21: 5643579.523 | BI21: 807745.2645 | BJ21: 3952757.726 | BK21: 0 | BL21: 0 | BM21: 0 | BN21: 0 | BO21: 0 | BP21: 0 | BQ21: 0 | BR21: 0 | BS21: 0 | BT21: 0 | BU21: 0 | BV21: 4760502.99
A22: =Est2019DistRev!A22 -> C2G5 | B22: Non-Residential Two Rate 5d | C22: =Est2019DistRev!B22 -> Non-Residential Two Rate 5d | D22: 160 | E22: 0 | F22: 9.88 | G22: 3.09 | H22: 0 | I22: 0 | J22: 0 | K22: 0 | L22: 0 | M22: 0 | N22: 0 | O22: 0 | P22: 0 | R22: =Est2019DistRev!D22 -> 150 | S22: =Est2019DistRev!E22 -> 0 | T22: =Est2019DistRev!F22 -> 8.96 | U22: =Est2019DistRev!G22 -> 2.58 | V22: =Est2019DistRev!H22 -> 0 | W22: =Est2019DistRev!I22 -> 0 | X22: =Est2019DistRev!J22 -> 0 | Y22: =Est2019DistRev!K22 -> 0 | Z22: =Est2019DistRev!L22 -> 0 | AA22: =Est2019DistRev!M22 -> 0 | AB22: =Est2019DistRev!N22 -> 0 | AC22: =Est2019DistRev!O22 -> 0 | AD22: =Est2019DistRev!P22 -> 0 | AF22: 6175.655125 | AG22: 0 | AH22: 70438600.52 | AI22: 44830727.12 | AJ22: 0 | AK22: 0 | AL22: 0 | AM22: 0 | AN22: 0 | AO22: 0 | AP22: 0 | AQ22: 0 | AR22: 0 | AT22: 988104.8199 | AU22: 0 | AV22: 6959333.731 | AW22: 1385269.468 | AX22: 0 | AY22: 0 | AZ22: 0 | BA22: 0 | BB22: 0 | BC22: 0 | BD22: 0 | BE22: 0 | BF22: 0 | BG22: 9332708.019 | BI22: 926348.2687 | BJ22: 0 | BK22: 6311298.606 | BL22: 1156632.76 | BM22: 0 | BN22: 0 | BO22: 0 | BP22: 0 | BQ22: 0 | BR22: 0 | BS22: 0 | BT22: 0 | BU22: 0 | BV22: 8394279.635
A23: =Est2019DistRev!A23 -> C2G5B | B23: Non-Residential Two Rate 5d - Bulk | C23: =Est2019DistRev!B23 -> Non-Residential Two Rate 5d - Bulk | D23: 160 | E23: 0 | F23: 8.19 | G23: 2.65 | H23: 0 | I23: 0 | J23: 0 | K23: 0 | L23: 0 | M23: 0 | N23: 0 | O23: 0 | P23: 0 | R23: =Est2019DistRev!D23 -> 140 | S23: =Est2019DistRev!E23 -> 0 | T23: =Est2019DistRev!F23 -> 6.99 | U23: =Est2019DistRev!G23 -> 2.11 | V23: =Est2019DistRev!H23 -> 0 | W23: =Est2019DistRev!I23 -> 0 | X23: =Est2019DistRev!J23 -> 0 | Y23: =Est2019DistRev!K23 -> 0 | Z23: =Est2019DistRev!L23 -> 0 | AA23: =Est2019DistRev!M23 -> 0 | AB23: =Est2019DistRev!N23 -> 0 | AC23: =Est2019DistRev!O23 -> 0 | AD23: =Est2019DistRev!P23 -> 0 | AF23: 999.4319126 | AG23: 0 | AH23: 16508026.38 | AI23: 10058974.84 | AJ23: 0 | AK23: 0 | AL23: 0 | AM23: 0 | AN23: 0 | AO23: 0 | AP23: 0 | AQ23: 0 | AR23: 0 | AT23: 159909.106 | AU23: 0 | AV23: 1352007.36 | AW23: 266562.8332 | AX23: 0 | AY23: 0 | AZ23: 0 | BA23: 0 | BB23: 0 | BC23: 0 | BD23: 0 | BE23: 0 | BF23: 0 | BG23: 1778479.3 | BI23: 139920.4678 | BJ23: 0 | BK23: 1153911.044 | BL23: 212244.369 | BM23: 0 | BN23: 0 | BO23: 0 | BP23: 0 | BQ23: 0 | BR23: 0 | BS23: 0 | BT23: 0 | BU23: 0 | BV23: 1506075.881
A24: =Est2019DistRev!A24 -> C3G | B24: Non-Residential Interval | C24: =Est2019DistRev!B24 -> Non-Residential Interval | D24: 160 | E24: 0 | F24: 9.88 | G24: 2.86 | H24: 0 | I24: 0 | J24: 0 | K24: 0 | L24: 0 | M24: 0 | N24: 0 | O24: 0 | P24: 0 | R24: =Est2019DistRev!D24 -> 150 | S24: =Est2019DistRev!E24 -> 0 | T24: =Est2019DistRev!F24 -> 8.96 | U24: =Est2019DistRev!G24 -> 2.37 | V24: =Est2019DistRev!H24 -> 0 | W24: =Est2019DistRev!I24 -> 0 | X24: =Est2019DistRev!J24 -> 0 | Y24: =Est2019DistRev!K24 -> 0 | Z24: =Est2019DistRev!L24 -> 0 | AA24: =Est2019DistRev!M24 -> 0 | AB24: =Est2019DistRev!N24 -> 0 | AC24: =Est2019DistRev!O24 -> 0 | AD24: =Est2019DistRev!P24 -> 0 | AF24: 3789.629203 | AG24: 0 | AH24: 44801539.36 | AI24: 25848587 | AJ24: 0 | AK24: 0 | AL24: 0 | AM24: 0 | AN24: 0 | AO24: 0 | AP24: 0 | AQ24: 0 | AR24: 0 | AT24: 606340.6725 | AU24: 0 | AV24: 4426392.088 | AW24: 739269.5881 | AX24: 0 | AY24: 0 | AZ24: 0 | BA24: 0 | BB24: 0 | BC24: 0 | BD24: 0 | BE24: 0 | BF24: 0 | BG24: 5772002.349 | BI24: 568444.3804 | BJ24: 0 | BK24: 4014217.926 | BL24: 612611.5118 | BM24: 0 | BN24: 0 | BO24: 0 | BP24: 0 | BQ24: 0 | BR24: 0 | BS24: 0 | BT24: 0 | BU24: 0 | BV24: 5195273.819
A25: =Est2019DistRev!A25 -> C3GB | B25: Non-Residential Interval - Bulk | C25: =Est2019DistRev!B25 -> Non-Residential Interval - Bulk | D25: 160 | E25: 0 | F25: 8.19 | G25: 2.65 | H25: 0 | I25: 0 | J25: 0 | K25: 0 | L25: 0 | M25: 0 | N25: 0 | O25: 0 | P25: 0 | R25: =Est2019DistRev!D25 -> 140 | S25: =Est2019DistRev!E25 -> 0 | T25: =Est2019DistRev!F25 -> 6.99 | U25: =Est2019DistRev!G25 -> 2.11 | V25: =Est2019DistRev!H25 -> 0 | W25: =Est2019DistRev!I25 -> 0 | X25: =Est2019DistRev!J25 -> 0 | Y25: =Est2019DistRev!K25 -> 0 | Z25: =Est2019DistRev!L25 -> 0 | AA25: =Est2019DistRev!M25 -> 0 | AB25: =Est2019DistRev!N25 -> 0 | AC25: =Est2019DistRev!O25 -> 0 | AD25: =Est2019DistRev!P25 -> 0 | AF25: 1768.977272 | AG25: 0 | AH25: 27824537.94 | AI25: 14553393.12 | AJ25: 0 | AK25: 0 | AL25: 0 | AM25: 0 | AN25: 0 | AO25: 0 | AP25: 0 | AQ25: 0 | AR25: 0 | AT25: 283036.3635 | AU25: 0 | AV25: 2278829.658 | AW25: 385664.9176 | AX25: 0 | AY25: 0 | AZ25: 0 | BA25: 0 | BB25: 0 | BC25: 0 | BD25: 0 | BE25: 0 | BF25: 0 | BG25: 2947530.939 | BI25: 247656.818 | BJ25: 0 | BK25: 1944935.202 | BL25: 307076.5948 | BM25: 0 | BN25: 0 | BO25: 0 | BP25: 0 | BQ25: 0 | BR25: 0 | BS25: 0 | BT25: 0 | BU25: 0 | BV25: 2499668.615
A26: =Est2019DistRev!A26 -> C14G | B26: Non-Residential Flexible Pricing | C26: =Est2019DistRev!B26 -> Non-Residential Flexible Pricing | D26: 160 | E26: 0 | F26: 0 | G26: 0 | H26: 0 | I26: 0 | J26: 0 | K26: 12.04 | L26: 8.41 | M26: 3.31 | N26: 12.04 | O26: 8.41 | P26: 3.31 | R26: =Est2019DistRev!D26 -> 150 | S26: =Est2019DistRev!E26 -> 0 | T26: =Est2019DistRev!F26 -> 0 | U26: =Est2019DistRev!G26 -> 0 | V26: =Est2019DistRev!H26 -> 0 | W26: =Est2019DistRev!I26 -> 0 | X26: =Est2019DistRev!J26 -> 0 | Y26: =Est2019DistRev!K26 -> 10.92 | Z26: =Est2019DistRev!L26 -> 7.63 | AA26: =Est2019DistRev!M26 -> 3 | AB26: =Est2019DistRev!N26 -> 10.92 | AC26: =Est2019DistRev!O26 -> 7.63 | AD26: =Est2019DistRev!P26 -> 3 | AF26: 20.7350502 | AG26: 0 | AH26: 0 | AI26: 0 | AJ26: 0 | AK26: 0 | AL26: 0 | AM26: 54335.80956 | AN26: 14519.63982 | AO26: 41864.17979 | AP26: 174859.3812 | AQ26: 46726.00362 | AR26: 134724.1282 | AT26: 3317.608032 | AU26: 0 | AV26: 0 | AW26: 0 | AX26: 0 | AY26: 0 | AZ26: 0 | BA26: 6542.031472 | BB26: 1221.101709 | BC26: 1385.704351 | BD26: 21053.0695 | BE26: 3929.656905 | BF26: 4459.368644 | BG26: 41908.54061 | BI26: 3110.25753 | BJ26: 0 | BK26: 0 | BL26: 0 | BM26: 0 | BN26: 0 | BO26: 0 | BP26: 5933.470404 | BQ26: 1107.848518 | BR26: 1255.925394 | BS26: 19094.64443 | BT26: 3565.194077 | BU26: 4041.723847 | BV26: 38109.0642
A27: =Est2019DistRev!A27 -> C14GB | B27: Non-Residential - Flexible Pricing Bulk | C27: =Est2019DistRev!B27 -> Non-Residential - Flexible Pricing Bulk | D27: 160 | E27: 0 | F27: 0 | G27: 0 | H27: 0 | I27: 0 | J27: 0 | K27: 10.83 | L27: 7.57 | M27: 2.97 | N27: 10.83 | O27: 7.57 | P27: 2.97 | R27: =Est2019DistRev!D27 -> 140 | S27: =Est2019DistRev!E27 -> 0 | T27: =Est2019DistRev!F27 -> 0 | U27: =Est2019DistRev!G27 -> 0 | V27: =Est2019DistRev!H27 -> 0 | W27: =Est2019DistRev!I27 -> 0 | X27: =Est2019DistRev!J27 -> 0 | Y27: =Est2019DistRev!K27 -> 9.6 | Z27: =Est2019DistRev!L27 -> 6.71 | AA27: =Est2019DistRev!M27 -> 2.64 | AB27: =Est2019DistRev!N27 -> 9.6 | AC27: =Est2019DistRev!O27 -> 6.71 | AD27: =Est2019DistRev!P27 -> 2.64 | AF27: 0.9183310064 | AG27: 0 | AH27: 0 | AI27: 0 | AJ27: 0 | AK27: 0 | AL27: 0 | AM27: 22949.4972 | AN27: 5681.954902 | AO27: 20258.1029 | AP27: 41846.92854 | AQ27: 10360.67844 | AR27: 36939.34456 | AT27: 146.932961 | AU27: 0 | AV27: 0 | AW27: 0 | AX27: 0 | AY27: 0 | AZ27: 0 | BA27: 2485.430547 | BB27: 430.1239861 | BC27: 601.6656562 | BD27: 4532.022361 | BE27: 784.3033578 | BF27: 1097.098533 | BG27: 10077.5774 | BI27: 128.5663409 | BJ27: 0 | BK27: 0 | BL27: 0 | BM27: 0 | BN27: 0 | BO27: 0 | BP27: 2203.151731 | BQ27: 381.2591739 | BR27: 534.8139166 | BS27: 4017.30514 | BT27: 695.2015232 | BU27: 975.1986964 | BV27: 8935.496522
A28: =Est2019DistRev!A28 -> C2G7 | B28: Non-Residential Two Rate 7d | C28: =Est2019DistRev!B28 -> Non-Residential Two Rate 7d | D28: 160 | E28: 0 | F28: 7.77 | G28: 2.86 | H28: 0 | I28: 0 | J28: 0 | K28: 0 | L28: 0 | M28: 0 | N28: 0 | O28: 0 | P28: 0 | R28: =Est2019DistRev!D28 -> 150 | S28: =Est2019DistRev!E28 -> 0 | T28: =Est2019DistRev!F28 -> 7.05 | U28: =Est2019DistRev!G28 -> 2.37 | V28: =Est2019DistRev!H28 -> 0 | W28: =Est2019DistRev!I28 -> 0 | X28: =Est2019DistRev!J28 -> 0 | Y28: =Est2019DistRev!K28 -> 0 | Z28: =Est2019DistRev!L28 -> 0 | AA28: =Est2019DistRev!M28 -> 0 | AB28: =Est2019DistRev!N28 -> 0 | AC28: =Est2019DistRev!O28 -> 0 | AD28: =Est2019DistRev!P28 -> 0 | AF28: 2306.948385 | AG28: 0 | AH28: 38369324.72 | AI28: 9290402.212 | AJ28: 0 | AK28: 0 | AL28: 0 | AM28: 0 | AN28: 0 | AO28: 0 | AP28: 0 | AQ28: 0 | AR28: 0 | AT28: 369111.7416 | AU28: 0 | AV28: 2981296.531 | AW28: 265705.5033 | AX28: 0 | AY28: 0 | AZ28: 0 | BA28: 0 | BB28: 0 | BC28: 0 | BD28: 0 | BE28: 0 | BF28: 0 | BG28: 3616113.775 | BI28: 346042.2577 | BJ28: 0 | BK28: 2705037.393 | BL28: 220182.5324 | BM28: 0 | BN28: 0 | BO28: 0 | BP28: 0 | BQ28: 0 | BR28: 0 | BS28: 0 | BT28: 0 | BU28: 0 | BV28: 3271262.183
A29: =Est2019DistRev!A29 -> C2G7B | B29: Non-Residential Two Rate 7d - Bulk | C29: =Est2019DistRev!B29 -> Non-Residential Two Rate 7d - Bulk | D29: 160 | E29: 0 | F29: 7.14 | G29: 2.65 | H29: 0 | I29: 0 | J29: 0 | K29: 0 | L29: 0 | M29: 0 | N29: 0 | O29: 0 | P29: 0 | R29: =Est2019DistRev!D29 -> 140 | S29: =Est2019DistRev!E29 -> 0 | T29: =Est2019DistRev!F29 -> 6.27 | U29: =Est2019DistRev!G29 -> 2.11 | V29: =Est2019DistRev!H29 -> 0 | W29: =Est2019DistRev!I29 -> 0 | X29: =Est2019DistRev!J29 -> 0 | Y29: =Est2019DistRev!K29 -> 0 | Z29: =Est2019DistRev!L29 -> 0 | AA29: =Est2019DistRev!M29 -> 0 | AB29: =Est2019DistRev!N29 -> 0 | AC29: =Est2019DistRev!O29 -> 0 | AD29: =Est2019DistRev!P29 -> 0 | AF29: 223.5415979 | AG29: 0 | AH29: 4879506.835 | AI29: 1213336.753 | AJ29: 0 | AK29: 0 | AL29: 0 | AM29: 0 | AN29: 0 | AO29: 0 | AP29: 0 | AQ29: 0 | AR29: 0 | AT29: 35766.65566 | AU29: 0 | AV29: 348396.7881 | AW29: 32153.42395 | AX29: 0 | AY29: 0 | AZ29: 0 | BA29: 0 | BB29: 0 | BC29: 0 | BD29: 0 | BE29: 0 | BF29: 0 | BG29: 416316.8677 | BI29: 31295.8237 | BJ29: 0 | BK29: 305945.0786 | BL29: 25601.40548 | BM29: 0 | BN29: 0 | BO29: 0 | BP29: 0 | BQ29: 0 | BR29: 0 | BS29: 0 | BT29: 0 | BU29: 0 | BV29: 362842.3078
A30: =Est2019DistRev!A30 -> C2L7 | B30: Large Two Rate 7d | C30: =Est2019DistRev!B30 -> Large Two Rate 7d | D30: 160 | E30: 0 | F30: 9.88 | G30: 3.09 | H30: 0 | I30: 0 | J30: 0 | K30: 0 | L30: 0 | M30: 0 | N30: 0 | O30: 0 | P30: 0 | R30: =Est2019DistRev!D30 -> 150 | S30: =Est2019DistRev!E30 -> 0 | T30: =Est2019DistRev!F30 -> 8.96 | U30: =Est2019DistRev!G30 -> 2.58 | V30: =Est2019DistRev!H30 -> 0 | W30: =Est2019DistRev!I30 -> 0 | X30: =Est2019DistRev!J30 -> 0 | Y30: =Est2019DistRev!K30 -> 0 | Z30: =Est2019DistRev!L30 -> 0 | AA30: =Est2019DistRev!M30 -> 0 | AB30: =Est2019DistRev!N30 -> 0 | AC30: =Est2019DistRev!O30 -> 0 | AD30: =Est2019DistRev!P30 -> 0 | AF30: 1 | AG30: 0 | AH30: 43593.81375 | AI30: 17808.8805 | AJ30: 0 | AK30: 0 | AL30: 0 | AM30: 0 | AN30: 0 | AO30: 0 | AP30: 0 | AQ30: 0 | AR30: 0 | AT30: 160 | AU30: 0 | AV30: 4307.068799 | AW30: 550.2944073 | AX30: 0 | AY30: 0 | AZ30: 0 | BA30: 0 | BB30: 0 | BC30: 0 | BD30: 0 | BE30: 0 | BF30: 0 | BG30: 5017.363206 | BI30: 150 | BJ30: 0 | BK30: 3906.005712 | BL30: 459.4691168 | BM30: 0 | BN30: 0 | BO30: 0 | BP30: 0 | BQ30: 0 | BR30: 0 | BS30: 0 | BT30: 0 | BU30: 0 | BV30: 4515.474829
A31: =Est2019DistRev!A31 -> CG | B31: Non-Residential Demand Tariff | C31: =Est2019DistRev!B31 -> Non-Residential Demand Tariff | D31: 160 | E31: 3.61 | F31: 0 | G31: 0 | H31: 0 | I31: 11.51 | J31: 3.84 | K31: 0 | L31: 0 | M31: 0 | N31: 0 | O31: 0 | P31: 0 | R31: =Est2019DistRev!D31 -> 150 | S31: =Est2019DistRev!E31 -> 3.27 | T31: =Est2019DistRev!F31 -> 0 | U31: =Est2019DistRev!G31 -> 0 | V31: =Est2019DistRev!H31 -> 0 | W31: =Est2019DistRev!I31 -> 10.43 | X31: =Est2019DistRev!J31 -> 3.48 | Y31: =Est2019DistRev!K31 -> 0 | Z31: =Est2019DistRev!L31 -> 0 | AA31: =Est2019DistRev!M31 -> 0 | AB31: =Est2019DistRev!N31 -> 0 | AC31: =Est2019DistRev!O31 -> 0 | AD31: =Est2019DistRev!P31 -> 0 | AF31: 66.714762 | AG31: 5507232.359 | AH31: 0 | AI31: 0 | AJ31: 0 | AK31: 1303.837556 | AL31: 2992.259117 | AM31: 0 | AN31: 0 | AO31: 0 | AP31: 0 | AQ31: 0 | AR31: 0 | AT31: 10674.36192 | AU31: 198811.0881 | AV31: 0 | AW31: 0 | AX31: 0 | AY31: 15007.17027 | AZ31: 11490.27501 | BA31: 0 | BB31: 0 | BC31: 0 | BD31: 0 | BE31: 0 | BF31: 0 | BG31: 235982.8953 | BI31: 10007.2143 | BJ31: 180086.4981 | BK31: 0 | BL31: 0 | BM31: 0 | BN31: 13599.02571 | BO31: 10413.06173 | BP31: 0 | BQ31: 0 | BR31: 0 | BS31: 0 | BT31: 0 | BU31: 0 | BV31: 214105.7999
A32: =Est2019DistRev!A32 -> CGB | B32: Non-Residential Bulk Demand Tariff | C32: =Est2019DistRev!B32 -> Non-Residential Bulk Demand Tariff | D32: 160 | E32: 3.35 | F32: 0 | G32: 0 | H32: 0 | I32: 9.78 | J32: 3.26 | K32: 0 | L32: 0 | M32: 0 | N32: 0 | O32: 0 | P32: 0 | R32: =Est2019DistRev!D32 -> 140 | S32: =Est2019DistRev!E32 -> 3 | T32: =Est2019DistRev!F32 -> 0 | U32: =Est2019DistRev!G32 -> 0 | V32: =Est2019DistRev!H32 -> 0 | W32: =Est2019DistRev!I32 -> 8.35 | X32: =Est2019DistRev!J32 -> 2.78 | Y32: =Est2019DistRev!K32 -> 0 | Z32: =Est2019DistRev!L32 -> 0 | AA32: =Est2019DistRev!M32 -> 0 | AB32: =Est2019DistRev!N32 -> 0 | AC32: =Est2019DistRev!O32 -> 0 | AD32: =Est2019DistRev!P32 -> 0 | AF32: 148.1115419 | AG32: 12837801.45 | AH32: 0 | AI32: 0 | AJ32: 0 | AK32: 2650.362511 | AL32: 6065.868594 | AM32: 0 | AN32: 0 | AO32: 0 | AP32: 0 | AQ32: 0 | AR32: 0 | AT32: 23697.8467 | AU32: 430066.3486 | AV32: 0 | AW32: 0 | AX32: 0 | AY32: 25920.54536 | AZ32: 19774.73162 | BA32: 0 | BB32: 0 | BC32: 0 | BD32: 0 | BE32: 0 | BF32: 0 | BG32: 499459.4723 | BI32: 20735.61586 | BJ32: 385134.0435 | BK32: 0 | BL32: 0 | BM32: 0 | BN32: 22130.52697 | BO32: 16863.11469 | BP32: 0 | BQ32: 0 | BR32: 0 | BS32: 0 | BT32: 0 | BU32: 0 | BV32: 444863.3011
A33: =Est2019DistRev!A33 -> CMG | B33: Medium Business Demand | C33: =Est2019DistRev!B33 -> Medium Business Demand | D33: 1200 | E33: 0 | F33: 3.03 | G33: 3.03 | H33: 0 | I33: 9.72 | J33: 3.24 | K33: 0 | L33: 0 | M33: 0 | N33: 0 | O33: 0 | P33: 0 | R33: =Est2019DistRev!D33 -> 1000 | S33: =Est2019DistRev!E33 -> 0 | T33: =Est2019DistRev!F33 -> 4.2 | U33: =Est2019DistRev!G33 -> 3.21 | V33: =Est2019DistRev!H33 -> 0 | W33: =Est2019DistRev!I33 -> 5.69 | X33: =Est2019DistRev!J33 -> 2.84 | Y33: =Est2019DistRev!K33 -> 0 | Z33: =Est2019DistRev!L33 -> 0 | AA33: =Est2019DistRev!M33 -> 0 | AB33: =Est2019DistRev!N33 -> 0 | AC33: =Est2019DistRev!O33 -> 0 | AD33: =Est2019DistRev!P33 -> 0 | AE33: =Est2019DistRev!Q33 -> 0 | AF33: 4403.401855 | AG33: 0 | AH33: 339952679.9 | AI33: 250709652.8 | AJ33: 0 | AK33: 724859.6545 | AL33: 1273831.032 | AM33: 0 | AN33: 0 | AO33: 0 | AP33: 0 | AQ33: 0 | AR33: 0 | AT33: 5284082.226 | AU33: 0 | AV33: 10300566.2 | AW33: 7596502.48 | AX33: 0 | AY33: 7045635.842 | AZ33: 4127212.543 | BA33: 0 | BB33: 0 | BC33: 0 | BD33: 0 | BE33: 0 | BF33: 0 | BG33: 34353999.29 | BI33: 4403401.855 | BJ33: 0 | BK33: 14278012.55 | BL33: 8047779.855 | BM33: 0 | BN33: 4124451.434 | BO33: 3617680.13 | BP33: 0 | BQ33: 0 | BR33: 0 | BS33: 0 | BT33: 0 | BU33: 0 | BV33: 34471325.83
A34: =Est2019DistRev!A34 -> CMGB | B34: Medium Business Bulk Demand | C34: =Est2019DistRev!B34 -> Medium Business Bulk Demand | D34: 1200 | E34: 0 | F34: 2.57 | G34: 2.57 | H34: 0 | I34: 8.03 | J34: 2.92 | K34: 0 | L34: 0 | M34: 0 | N34: 0 | O34: 0 | P34: 0 | R34: =Est2019DistRev!D34 -> 975 | S34: =Est2019DistRev!E34 -> 0 | T34: =Est2019DistRev!F34 -> 3.33 | U34: =Est2019DistRev!G34 -> 2.66 | V34: =Est2019DistRev!H34 -> 0 | W34: =Est2019DistRev!I34 -> 4.55 | X34: =Est2019DistRev!J34 -> 2.28 | Y34: =Est2019DistRev!K34 -> 0 | Z34: =Est2019DistRev!L34 -> 0 | AA34: =Est2019DistRev!M34 -> 0 | AB34: =Est2019DistRev!N34 -> 0 | AC34: =Est2019DistRev!O34 -> 0 | AD34: =Est2019DistRev!P34 -> 0 | AE34: =Est2019DistRev!Q34 -> 0 | AF34: 2080.740884 | AG34: 0 | AH34: 235523158.7 | AI34: 157971528.6 | AJ34: 0 | AK34: 491954.4922 | AL34: 811784.275 | AM34: 0 | AN34: 0 | AO34: 0 | AP34: 0 | AQ34: 0 | AR34: 0 | AT34: 2496889.06 | AU34: 0 | AV34: 6052945.18 | AW34: 4059868.286 | AX34: 0 | AY34: 3950394.573 | AZ34: 2370410.083 | BA34: 0 | BB34: 0 | BC34: 0 | BD34: 0 | BE34: 0 | BF34: 0 | BG34: 18930507.18 | BI34: 2028722.362 | BJ34: 0 | BK34: 7842921.186 | BL34: 4202042.661 | BM34: 0 | BN34: 2238392.94 | BO34: 1850868.147 | BP34: 0 | BQ34: 0 | BR34: 0 | BS34: 0 | BT34: 0 | BU34: 0 | BV34: 18162947.3
A35: =Est2019DistRev!A35 -> CMGO | B35: Medium Business Opt-out | C35: =Est2019DistRev!B35 -> Medium Business Opt-out | D35: 1200 | E35: 0 | F35: 7.95 | G35: 3.18 | H35: 0 | I35: 0 | J35: 0 | K35: 0 | L35: 0 | M35: 0 | N35: 0 | O35: 0 | P35: 0 | R35: =Est2019DistRev!D35 -> 1000 | S35: =Est2019DistRev!E35 -> 0 | T35: =Est2019DistRev!F35 -> 8.32 | U35: =Est2019DistRev!G35 -> 3.32 | V35: =Est2019DistRev!H35 -> 0 | W35: =Est2019DistRev!I35 -> 0 | X35: =Est2019DistRev!J35 -> 0 | Y35: =Est2019DistRev!K35 -> 0 | Z35: =Est2019DistRev!L35 -> 0 | AA35: =Est2019DistRev!M35 -> 0 | AB35: =Est2019DistRev!N35 -> 0 | AC35: =Est2019DistRev!O35 -> 0 | AD35: =Est2019DistRev!P35 -> 0 | AE35: =Est2019DistRev!Q35 -> 0 | AF35: 41.34154016 | AG35: 0 | AH35: 2405969.966 | AI35: 2106689.766 | AJ35: 0 | AK35: 0 | AL35: 0 | AM35: 0 | AN35: 0 | AO35: 0 | AP35: 0 | AQ35: 0 | AR35: 0 | AT35: =D35*AF35 -> 49609.8482 | AU35: =E35/100*AG35 -> 0 | AV35: 191274.6123 | AW35: 66992.73456 | AX35: 0 | AY35: 0 | AZ35: 0 | BA35: 0 | BB35: 0 | BC35: 0 | BD35: 0 | BE35: 0 | BF35: 0 | BG35: =SUM(AT35:BF35) -> 307877.1951 | BI35: =R35*AF35 -> 41341.54016 | BJ35: =S35/100*AG35 -> 0 | BK35: =T35/100*AH35 -> 200176.7012 | BL35: =U35/100*AI35 -> 69942.10023 | BM35: 0 | BN35: 0 | BO35: 0 | BP35: =Y35/100*AM35 -> 0 | BQ35: =Z35/100*AN35 -> 0 | BR35: 0 | BS35: 0 | BT35: 0 | BU35: 0 | BV35: =SUM(BI35:BU35) -> 311460.3416
A36: =Est2019DistRev!A36 -> CMGBO | B36: Medium Business Bulk Opt-out | C36: =Est2019DistRev!B36 -> Medium Business Bulk Opt-out | D36: 1200 | E36: 0 | F36: 6.35 | G36: 2.54 | H36: 0 | I36: 0 | J36: 0 | K36: 0 | L36: 0 | M36: 0 | N36: 0 | O36: 0 | P36: 0 | R36: =Est2019DistRev!D36 -> 975 | S36: =Est2019DistRev!E36 -> 0 | T36: =Est2019DistRev!F36 -> 6.54 | U36: =Est2019DistRev!G36 -> 2.75 | V36: =Est2019DistRev!H36 -> 0 | W36: =Est2019DistRev!I36 -> 0 | X36: =Est2019DistRev!J36 -> 0 | Y36: =Est2019DistRev!K36 -> 0 | Z36: =Est2019DistRev!L36 -> 0 | AA36: =Est2019DistRev!M36 -> 0 | AB36: =Est2019DistRev!N36 -> 0 | AC36: =Est2019DistRev!O36 -> 0 | AD36: =Est2019DistRev!P36 -> 0 | AF36: 81.75004725 | AG36: 0 | AH36: 5074192.302 | AI36: 4451924.715 | AJ36: 0 | AK36: 0 | AL36: 0 | AM36: 0 | AN36: 0 | AO36: 0 | AP36: 0 | AQ36: 0 | AR36: 0 | AT36: 98100.0567 | AU36: 0 | AV36: 322211.2112 | AW36: 113078.8877 | AX36: 0 | AY36: 0 | AZ36: 0 | BA36: 0 | BB36: 0 | BC36: 0 | BD36: 0 | BE36: 0 | BF36: 0 | BG36: 533390.1556 | BI36: 79706.29607 | BJ36: 0 | BK36: 331852.1765 | BL36: 122427.9296 | BM36: 0 | BN36: 0 | BO36: 0 | BP36: 0 | BQ36: 0 | BR36: 0 | BS36: 0 | BT36: 0 | BU36: 0 | BV36: 533986.4023
A37: =Est2019DistRev!A37 -> C2U | B37: Unmetered Supplies / Public Lighting | C37: =Est2019DistRev!B37 -> Unmetered Supplies / Public Lighting | D37: 0 | E37: 0 | F37: 11.72 | G37: 3.29 | H37: 0 | I37: 0 | J37: 0 | K37: 0 | L37: 0 | M37: 0 | N37: 0 | O37: 0 | P37: 0 | R37: =Est2019DistRev!D37 -> 0 | S37: =Est2019DistRev!E37 -> 0 | T37: =Est2019DistRev!F37 -> 11.24 | U37: =Est2019DistRev!G37 -> 3.15 | V37: =Est2019DistRev!H37 -> 0 | W37: =Est2019DistRev!I37 -> 0 | X37: =Est2019DistRev!J37 -> 0 | Y37: =Est2019DistRev!K37 -> 0 | Z37: =Est2019DistRev!L37 -> 0 | AA37: =Est2019DistRev!M37 -> 0 | AB37: =Est2019DistRev!N37 -> 0 | AC37: =Est2019DistRev!O37 -> 0 | AD37: =Est2019DistRev!P37 -> 0 | AF37: 4483.011669 | AG37: 0 | AH37: 7396578.491 | AI37: 10316991.68 | AJ37: 0 | AK37: 0 | AL37: 0 | AM37: 0 | AN37: 0 | AO37: 0 | AP37: 0 | AQ37: 0 | AR37: 0 | AT37: 0 | AU37: 0 | AV37: 866878.9991 | AW37: 339429.0263 | AX37: 0 | AY37: 0 | AZ37: 0 | BA37: 0 | BB37: 0 | BC37: 0 | BD37: 0 | BE37: 0 | BF37: 0 | BG37: 1206308.025 | BI37: 0 | BJ37: 0 | BK37: 831375.4224 | BL37: 324985.238 | BM37: 0 | BN37: 0 | BO37: 0 | BP37: 0 | BQ37: 0 | BR37: 0 | BS37: 0 | BT37: 0 | BU37: 0 | BV37: 1156360.66
A38: =Est2019DistRev!A38 -> CLLV | B38: Large low Voltage | C38: =Est2019DistRev!B38 -> Large low Voltage | D38: 6550 | E38: 0 | F38: 2.32 | G38: 1.42 | H38: 71.75 | I38: 0 | J38: 0 | K38: 0 | L38: 0 | M38: 0 | N38: 0 | O38: 0 | P38: 0 | R38: =Est2019DistRev!D38 -> 6200 | S38: =Est2019DistRev!E38 -> 0 | T38: =Est2019DistRev!F38 -> 2.33 | U38: =Est2019DistRev!G38 -> 1.41 | V38: =Est2019DistRev!H38 -> 71.9 | W38: =Est2019DistRev!I38 -> 0 | X38: =Est2019DistRev!J38 -> 0 | Y38: =Est2019DistRev!K38 -> 0 | Z38: =Est2019DistRev!L38 -> 0 | AA38: =Est2019DistRev!M38 -> 0 | AB38: =Est2019DistRev!N38 -> 0 | AC38: =Est2019DistRev!O38 -> 0 | AD38: =Est2019DistRev!P38 -> 0 | AF38: 400.1764683 | AG38: 0 | AH38: 126570892.6 | AI38: 97426022.68 | AJ38: 78034.41132 | AK38: 0 | AL38: 0 | AM38: 0 | AN38: 0 | AO38: 0 | AP38: 0 | AQ38: 0 | AR38: 0 | AT38: 2621155.868 | AU38: 0 | AV38: 2936444.709 | AW38: 1383449.522 | AX38: 5598969.013 | AY38: 0 | AZ38: 0 | BA38: 0 | BB38: =L38/100*AN38 -> 0 | BC38: 0 | BD38: 0 | BE38: 0 | BF38: 0 | BG38: 12540019.11 | BI38: 2481094.104 | BJ38: 0 | BK38: 2949101.798 | BL38: 1373706.92 | BM38: 5610674.174 | BN38: 0 | BO38: 0 | BP38: 0 | BQ38: 0 | BR38: 0 | BS38: 0 | BT38: 0 | BU38: 0 | BV38: 12414577
A39: =Est2019DistRev!A39 -> CLLVB | B39: Large low Voltage Bulk | C39: =Est2019DistRev!B39 -> Large low Voltage Bulk | D39: 6550 | E39: 0 | F39: 2.2 | G39: 1.35 | H39: 66.75 | I39: 0 | J39: 0 | K39: 0 | L39: 0 | M39: 0 | N39: 0 | O39: 0 | P39: 0 | R39: =Est2019DistRev!D39 -> 6000 | S39: =Est2019DistRev!E39 -> 0 | T39: =Est2019DistRev!F39 -> 2.11 | U39: =Est2019DistRev!G39 -> 1.31 | V39: =Est2019DistRev!H39 -> 66.14 | W39: =Est2019DistRev!I39 -> 0 | X39: =Est2019DistRev!J39 -> 0 | Y39: =Est2019DistRev!K39 -> 0 | Z39: =Est2019DistRev!L39 -> 0 | AA39: =Est2019DistRev!M39 -> 0 | AB39: =Est2019DistRev!N39 -> 0 | AC39: =Est2019DistRev!O39 -> 0 | AD39: =Est2019DistRev!P39 -> 0 | AF39: 1842.936711 | AG39: 0 | AH39: 1137722435 | AI39: 873988483.9 | AJ39: 686083.3679 | AK39: 0 | AL39: 0 | AM39: 0 | AN39: 0 | AO39: 0 | AP39: 0 | AQ39: 0 | AR39: 0 | AT39: 12071235.46 | AU39: 0 | AV39: 25029893.57 | AW39: 11798844.53 | AX39: 45796064.81 | AY39: 0 | AZ39: 0 | BA39: 0 | BB39: 0 | BC39: 0 | BD39: 0 | BE39: 0 | BF39: 0 | BG39: 94696038.36 | BI39: 11057620.27 | BJ39: 0 | BK39: 24005943.37 | BL39: 11449249.14 | BM39: 45377553.95 | BN39: 0 | BO39: 0 | BP39: 0 | BQ39: 0 | BR39: 0 | BS39: 0 | BT39: 0 | BU39: 0 | BV39: 91890366.73
A40: =Est2019DistRev!A40 -> CHV | B40: High Voltage | C40: =Est2019DistRev!B40 -> High Voltage | D40: 33700 | E40: 0 | F40: 1.24 | G40: 0.64 | H40: 35.12 | I40: 0 | J40: 0 | K40: 0 | L40: 0 | M40: 0 | N40: 0 | O40: 0 | P40: 0 | R40: =Est2019DistRev!D40 -> 31800 | S40: =Est2019DistRev!E40 -> 0 | T40: =Est2019DistRev!F40 -> 1.24 | U40: =Est2019DistRev!G40 -> 0.64 | V40: =Est2019DistRev!H40 -> 35.02 | W40: =Est2019DistRev!I40 -> 0 | X40: =Est2019DistRev!J40 -> 0 | Y40: =Est2019DistRev!K40 -> 0 | Z40: =Est2019DistRev!L40 -> 0 | AA40: =Est2019DistRev!M40 -> 0 | AB40: =Est2019DistRev!N40 -> 0 | AC40: =Est2019DistRev!O40 -> 0 | AD40: =Est2019DistRev!P40 -> 0 | AF40: 93.92746114 | AG40: 0 | AH40: 365684368.5 | AI40: 176784509.1 | AJ40: 202579.3153 | AK40: 0 | AL40: 0 | AM40: 0 | AN40: 0 | AO40: 0 | AP40: 0 | AQ40: 0 | AR40: 0 | AT40: 3165355.441 | AU40: 0 | AV40: 4534486.169 | AW40: 1131420.858 | AX40: 7114585.553 | AY40: 0 | AZ40: 0 | BA40: 0 | BB40: 0 | BC40: 0 | BD40: 0 | BE40: 0 | BF40: 0 | BG40: 15945848.02 | BI40: 2986893.264 | BJ40: 0 | BK40: 4534486.169 | BL40: 1131420.858 | BM40: 7094327.621 | BN40: 0 | BO40: 0 | BP40: 0 | BQ40: 0 | BR40: 0 | BS40: 0 | BT40: 0 | BU40: 0 | BV40: 15747127.91
A41: =Est2019DistRev!A41 -> CST | B41: Subtransmission | C41: =Est2019DistRev!B41 -> Subtransmission | D41: 148700 | E41: 0 | F41: 0.12 | G41: 0.05 | H41: 0.97 | I41: 0 | J41: 0 | K41: 0 | L41: 0 | M41: 0 | N41: 0 | O41: 0 | P41: 0 | R41: =Est2019DistRev!D41 -> 146800 | S41: =Est2019DistRev!E41 -> 0 | T41: =Est2019DistRev!F41 -> 0.11 | U41: =Est2019DistRev!G41 -> 0.04 | V41: =Est2019DistRev!H41 -> 0.86 | W41: =Est2019DistRev!I41 -> 0 | X41: =Est2019DistRev!J41 -> 0 | Y41: =Est2019DistRev!K41 -> 0 | Z41: =Est2019DistRev!L41 -> 0 | AA41: =Est2019DistRev!M41 -> 0 | AB41: =Est2019DistRev!N41 -> 0 | AC41: =Est2019DistRev!O41 -> 0 | AD41: =Est2019DistRev!P41 -> 0 | AF41: 5.999956857 | AG41: 0 | AH41: 65603250.46 | AI41: 24435184.1 | AJ41: 37985.58798 | AK41: 0 | AL41: 0 | AM41: 0 | AN41: 0 | AO41: 0 | AP41: 0 | AQ41: 0 | AR41: 0 | AT41: 892193.5847 | AU41: 0 | AV41: 78723.90056 | AW41: 12217.59205 | AX41: 36846.02034 | AY41: 0 | AZ41: 0 | BA41: 0 | BB41: 0 | BC41: 0 | BD41: 0 | BE41: 0 | BF41: 0 | BG41: 1019981.098 | BI41: 880793.6667 | BJ41: 0 | BK41: 72163.57551 | BL41: 9774.073638 | BM41: 32667.60566 | BN41: 0 | BO41: 0 | BP41: 0 | BQ41: 0 | BR41: 0 | BS41: 0 | BT41: 0 | BU41: 0 | BV41: 995398.9215
AT42: 0 | AU42: 0 | AV42: 0 | AW42: 0 | AX42: 0 | AY42: 0 | AZ42: 0 | BA42: 0 | BB42: 0 | BC42: 0 | BD42: 0 | BE42: 0 | BF42: 0 | BG42: 0 | BI42: 0 | BJ42: 0 | BK42: 0 | BL42: 0 | BM42: 0 | BN42: 0 | BO42: 0 | BP42: 0 | BQ42: 0 | BR42: 0 | BS42: 0 | BT42: 0 | BU42: 0 | BV42: 0
AT43: 0 | AU43: 0 | AV43: 0 | AW43: 0 | AX43: 0 | AY43: 0 | AZ43: 0 | BA43: 0 | BB43: 0 | BC43: 0 | BD43: 0 | BE43: 0 | BF43: 0 | BG43: 0 | BI43: 0 | BJ43: 0 | BK43: 0 | BL43: 0 | BM43: 0 | BN43: 0 | BO43: 0 | BP43: 0 | BQ43: 0 | BR43: 0 | BS43: 0 | BT43: 0 | BU43: 0 | BV43: 0
AT44: 0 | AU44: 0 | AV44: 0 | AW44: 0 | AX44: 0 | AY44: 0 | AZ44: 0 | BA44: 0 | BB44: 0 | BC44: 0 | BD44: 0 | BE44: 0 | BF44: 0 | BG44: 0 | BI44: 0 | BJ44: 0 | BK44: 0 | BL44: 0 | BM44: 0 | BN44: 0 | BO44: 0 | BP44: 0 | BQ44: 0 | BR44: 0 | BS44: 0 | BT44: 0 | BU44: 0 | BV44: 0
AT45: 0 | AU45: 0 | AV45: 0 | AW45: 0 | AX45: 0 | AY45: 0 | AZ45: 0 | BA45: 0 | BB45: 0 | BC45: 0 | BD45: 0 | BE45: 0 | BF45: 0 | BG45: 0 | BI45: 0 | BJ45: 0 | BK45: 0 | BL45: 0 | BM45: 0 | BN45: 0 | BO45: 0 | BP45: 0 | BQ45: 0 | BR45: 0 | BS45: 0 | BT45: 0 | BU45: 0 | BV45: 0
AT46: 0 | AU46: 0 | AV46: 0 | AW46: 0 | AX46: 0 | AY46: 0 | AZ46: 0 | BA46: 0 | BB46: 0 | BC46: 0 | BD46: 0 | BE46: 0 | BF46: 0 | BG46: 0 | BI46: 0 | BJ46: 0 | BK46: 0 | BL46: 0 | BM46: 0 | BN46: 0 | BO46: 0 | BP46: 0 | BQ46: 0 | BR46: 0 | BS46: 0 | BT46: 0 | BU46: 0 | BV46: 0
AT47: 0 | AU47: 0 | AV47: 0 | AW47: 0 | AX47: 0 | AY47: 0 | AZ47: 0 | BA47: 0 | BB47: 0 | BC47: 0 | BD47: 0 | BE47: 0 | BF47: 0 | BG47: 0 | BI47: 0 | BJ47: 0 | BK47: 0 | BL47: 0 | BM47: 0 | BN47: 0 | BO47: 0 | BP47: 0 | BQ47: 0 | BR47: 0 | BS47: 0 | BT47: 0 | BU47: 0 | BV47: 0
AT48: 0 | AU48: 0 | AV48: 0 | AW48: 0 | AX48: 0 | AY48: 0 | AZ48: 0 | BA48: 0 | BB48: 0 | BC48: 0 | BD48: 0 | BE48: 0 | BF48: 0 | BG48: 0 | BI48: 0 | BJ48: 0 | BK48: 0 | BL48: 0 | BM48: 0 | BN48: 0 | BO48: 0 | BP48: 0 | BQ48: 0 | BR48: 0 | BS48: 0 | BT48: 0 | BU48: 0 | BV48: 0
AT49: 0 | AU49: 0 | AV49: 0 | AW49: 0 | AX49: 0 | AY49: 0 | AZ49: 0 | BA49: 0 | BB49: 0 | BC49: 0 | BD49: 0 | BE49: 0 | BF49: 0 | BG49: 0 | BI49: 0 | BJ49: 0 | BK49: 0 | BL49: 0 | BM49: 0 | BN49: 0 | BO49: 0 | BP49: 0 | BQ49: 0 | BR49: 0 | BS49: 0 | BT49: 0 | BU49: 0 | BV49: 0
AT50: 0 | AU50: 0 | AV50: 0 | AW50: 0 | AX50: 0 | AY50: 0 | AZ50: 0 | BA50: 0 | BB50: 0 | BC50: 0 | BD50: 0 | BE50: 0 | BF50: 0 | BG50: 0 | BI50: 0 | BJ50: 0 | BK50: 0 | BL50: 0 | BM50: 0 | BN50: 0 | BO50: 0 | BP50: 0 | BQ50: 0 | BR50: 0 | BS50: 0 | BT50: 0 | BU50: 0 | BV50: 0
AT51: 0 | AU51: 0 | AV51: 0 | AW51: 0 | AX51: 0 | AY51: 0 | AZ51: 0 | BA51: 0 | BB51: 0 | BC51: 0 | BD51: 0 | BE51: 0 | BF51: 0 | BG51: 0 | BI51: 0 | BJ51: 0 | BK51: 0 | BL51: 0 | BM51: 0 | BN51: 0 | BO51: 0 | BP51: 0 | BQ51: 0 | BR51: 0 | BS51: 0 | BT51: 0 | BU51: 0 | BV51: 0
AT52: 0 | AU52: 0 | AV52: 0 | AW52: 0 | AX52: 0 | AY52: 0 | AZ52: 0 | BA52: 0 | BB52: 0 | BC52: 0 | BD52: 0 | BE52: 0 | BF52: 0 | BG52: 0 | BI52: 0 | BJ52: 0 | BK52: 0 | BL52: 0 | BM52: 0 | BN52: 0 | BO52: 0 | BP52: 0 | BQ52: 0 | BR52: 0 | BS52: 0 | BT52: 0 | BU52: 0 | BV52: 0
AT53: 0 | AU53: 0 | AV53: 0 | AW53: 0 | AX53: 0 | AY53: 0 | AZ53: 0 | BA53: 0 | BB53: 0 | BC53: 0 | BD53: 0 | BE53: 0 | BF53: 0 | BG53: 0 | BI53: 0 | BJ53: 0 | BK53: 0 | BL53: 0 | BM53: 0 | BN53: 0 | BO53: 0 | BP53: 0 | BQ53: 0 | BR53: 0 | BS53: 0 | BT53: 0 | BU53: 0 | BV53: 0
AT54: 0 | AU54: 0 | AV54: 0 | AW54: 0 | AX54: 0 | AY54: 0 | AZ54: 0 | BA54: 0 | BB54: 0 | BC54: 0 | BD54: 0 | BE54: 0 | BF54: 0 | BG54: 0 | BI54: 0 | BJ54: 0 | BK54: 0 | BL54: 0 | BM54: 0 | BN54: 0 | BO54: 0 | BP54: 0 | BQ54: 0 | BR54: 0 | BS54: 0 | BT54: 0 | BU54: 0 | BV54: 0
AT55: 0 | AU55: 0 | AV55: 0 | AW55: 0 | AX55: 0 | AY55: 0 | AZ55: 0 | BA55: 0 | BB55: 0 | BC55: 0 | BD55: 0 | BE55: 0 | BF55: 0 | BG55: 0 | BI55: 0 | BJ55: 0 | BK55: 0 | BL55: 0 | BM55: 0 | BN55: 0 | BO55: 0 | BP55: 0 | BQ55: 0 | BR55: 0 | BS55: 0 | BT55: 0 | BU55: 0 | BV55: 0
AT56: 0 | AU56: 0 | AV56: 0 | AW56: 0 | AX56: 0 | AY56: 0 | AZ56: 0 | BA56: 0 | BB56: 0 | BC56: 0 | BD56: 0 | BE56: 0 | BF56: 0 | BG56: 0 | BI56: 0 | BJ56: 0 | BK56: 0 | BL56: 0 | BM56: 0 | BN56: 0 | BO56: 0 | BP56: 0 | BQ56: 0 | BR56: 0 | BS56: 0 | BT56: 0 | BU56: 0 | BV56: 0
AT57: 0 | AU57: 0 | AV57: 0 | AW57: 0 | AX57: 0 | AY57: 0 | AZ57: 0 | BA57: 0 | BB57: 0 | BC57: 0 | BD57: 0 | BE57: 0 | BF57: 0 | BG57: 0 | BI57: 0 | BJ57: 0 | BK57: 0 | BL57: 0 | BM57: 0 | BN57: 0 | BO57: 0 | BP57: 0 | BQ57: 0 | BR57: 0 | BS57: 0 | BT57: 0 | BU57: 0 | BV57: 0
AT58: 0 | AU58: 0 | AV58: 0 | AW58: 0 | AX58: 0 | AY58: 0 | AZ58: 0 | BA58: 0 | BB58: 0 | BC58: 0 | BD58: 0 | BE58: 0 | BF58: 0 | BG58: 0 | BI58: 0 | BJ58: 0 | BK58: 0 | BL58: 0 | BM58: 0 | BN58: 0 | BO58: 0 | BP58: 0 | BQ58: 0 | BR58: 0 | BS58: 0 | BT58: 0 | BU58: 0 | BV58: 0
AT59: 0 | AU59: 0 | AV59: 0 | AW59: 0 | AX59: 0 | AY59: 0 | AZ59: 0 | BA59: 0 | BB59: 0 | BC59: 0 | BD59: 0 | BE59: 0 | BF59: 0 | BG59: 0 | BI59: 0 | BJ59: 0 | BK59: 0 | BL59: 0 | BM59: 0 | BN59: 0 | BO59: 0 | BP59: 0 | BQ59: 0 | BR59: 0 | BS59: 0 | BT59: 0 | BU59: 0 | BV59: 0
AT60: 0 | AU60: 0 | AV60: 0 | AW60: 0 | AX60: 0 | AY60: 0 | AZ60: 0 | BA60: 0 | BB60: 0 | BC60: 0 | BD60: 0 | BE60: 0 | BF60: 0 | BG60: 0 | BI60: 0 | BJ60: 0 | BK60: 0 | BL60: 0 | BM60: 0 | BN60: 0 | BO60: 0 | BP60: 0 | BQ60: 0 | BR60: 0 | BS60: 0 | BT60: 0 | BU60: 0 | BV60: 0
AT61: 0 | AU61: 0 | AV61: 0 | AW61: 0 | AX61: 0 | AY61: 0 | AZ61: 0 | BA61: 0 | BB61: 0 | BC61: 0 | BD61: 0 | BE61: 0 | BF61: 0 | BG61: 0 | BI61: 0 | BJ61: 0 | BK61: 0 | BL61: 0 | BM61: 0 | BN61: 0 | BO61: 0 | BP61: 0 | BQ61: 0 | BR61: 0 | BS61: 0 | BT61: 0 | BU61: 0 | BV61: 0
AT62: 0 | AU62: 0 | AV62: 0 | AW62: 0 | AX62: 0 | AY62: 0 | AZ62: 0 | BA62: 0 | BB62: 0 | BC62: 0 | BD62: 0 | BE62: 0 | BF62: 0 | BG62: 0 | BI62: 0 | BJ62: 0 | BK62: 0 | BL62: 0 | BM62: 0 | BN62: 0 | BO62: 0 | BP62: 0 | BQ62: 0 | BR62: 0 | BS62: 0 | BT62: 0 | BU62: 0 | BV62: 0
AT63: 0 | AU63: 0 | AV63: 0 | AW63: 0 | AX63: 0 | AY63: 0 | AZ63: 0 | BA63: 0 | BB63: 0 | BC63: 0 | BD63: 0 | BE63: 0 | BF63: 0 | BG63: 0 | BI63: 0 | BJ63: 0 | BK63: 0 | BL63: 0 | BM63: 0 | BN63: 0 | BO63: 0 | BP63: 0 | BQ63: 0 | BR63: 0 | BS63: 0 | BT63: 0 | BU63: 0 | BV63: 0
AT64: 0 | AU64: 0 | AV64: 0 | AW64: 0 | AX64: 0 | AY64: 0 | AZ64: 0 | BA64: 0 | BB64: 0 | BC64: 0 | BD64: 0 | BE64: 0 | BF64: 0 | BG64: 0 | BI64: 0 | BJ64: 0 | BK64: 0 | BL64: 0 | BM64: 0 | BN64: 0 | BO64: 0 | BP64: 0 | BQ64: 0 | BR64: 0 | BS64: 0 | BT64: 0 | BU64: 0 | BV64: 0
AT65: 0 | AU65: 0 | AV65: 0 | AW65: 0 | AX65: 0 | AY65: 0 | AZ65: 0 | BA65: 0 | BB65: 0 | BC65: 0 | BD65: 0 | BE65: 0 | BF65: 0 | BG65: 0 | BI65: 0 | BJ65: 0 | BK65: 0 | BL65: 0 | BM65: 0 | BN65: 0 | BO65: 0 | BP65: 0 | BQ65: 0 | BR65: 0 | BS65: 0 | BT65: 0 | BU65: 0 | BV65: 0
AF66: =SUM(AF6:AF65) -> 370982.6705 | AG66: 1290238442 | AH66: 2601072828 | AI66: 1862946692 | AJ66: 1004682.682 | AK66: 1220879.335 | AL66: 2094935.658 | AM66: 275792.5977 | AN66: 443006.6181 | AO66: 375920.2048 | AP66: 975665.0601 | AQ66: 1673557.854 | AR66: 1371448.072 | AT66: =SUM(AT6:AT65) -> 59663960.44 | AU66: 66339097.36 | AV66: 78951842.33 | AW66: 32984308.75 | AX66: 58546465.39 | AY66: 11037689.84 | AZ66: 6529478.909 | BA66: 29597.88108 | BB66: 31162.23677 | BC66: 10570.71827 | BD66: 104240.2625 | BE66: 117552.0945 | BF66: 38377.41462 | BG66: 314384343.6 | BI66: =SUM(BI6:BI65) -> 54834674.72 | BJ66: 62989497.73 | BK66: 82084035.18 | BL66: 32544679.54 | BM66: 58115223.35 | BN66: 6399326.791 | BO66: 5496430.285 | BP66: 29283.73591 | BQ66: 31829.46323 | BR66: 10651.33641 | BS66: 103982.6451 | BT66: 120284.5975 | BU66: 38902.4955 | BV66: 302798801.9

Sheet 2020DistRevCapForm
B2: ="Tariff Approval - "&'Model update'!$C$3 -> Tariff Approval - CitiPower | C2: ='Model update'!$C$5&"DistRevCapForm" -> 2020DistRevCapForm
B4: DUoS
B6: Year (t) | C6: ='Model update'!C5 -> 2020 | H6: =C6-1 -> 2019
B8: Table 1- Compliance with AER Final Determination Total Annual Revenue
B9: Revenue from DUoS charges for year t | C9: =Prop2020DistTar!BG66 -> 314384343.6
B10: Total Annual Revenue for year t | C10: =C18 -> 314525472.4
C11: =IF(C9="","",IF(C10>=C9,"DUoS REVENUE CAP FORMULA COMPLIANT","DUoS REVENUE CAP FORMULA BREACHED")) -> DUoS REVENUE CAP FORMULA COMPLIANT
B13: Table 2 - Total Annual Revenue for year t (TARt)
B14: Adjusted Annual Smoothed Revenue for year t | C14: =C25 -> 311232622.7 | H14: =H25 -> 296678137.8
B15: I factor for year t (F factor Scheme) | C15: ='Model update'!B$100 -> 36300 | H15: =INDEX('Model update'!$D$100:$H$100,1,MATCH($H$6,'Model update'!$D$93:$H$93,0)) -> 43200
B16: T factor for year t (DMIS carry over amount) | C16: ='Model update'!B144 -> 0 | H16: =INDEX('Model update'!$D$144:$H$144,1,MATCH($H$6,'Model update'!$D$137:$H$137,0)) -> 0
B17: B factor for year t | C17: =C32 -> 3256549.701 | H17: =H32 -> 4562308.778
B18: Total Annual Revenue for year t | C18: =C14+C15+C16+C17 -> 314525472.4 | H18: =H14+H15+H16+H17 -> 301283646.5
B20: Table 3 - Adjusted Annual Revenue for year t (AARt)
B21: Adjusted Annual Smoothed Revenue for year t-1 | C21: =H25 -> 296678137.8 | H21: 293098089.7
B22: CPI for period t | C22: ='Model update'!C30 -> 0.01592920354 | H22: ='Model update'!C29 -> 0.02077687444
B23: X factor for period t | C23: ='Model update'!B60 -> -0.01878550313 | H23: =INDEX('Model update'!$E$60:$H$60,1,MATCH("Xt for "&$H$6,'Model update'!$E$53:$H$53,0)) -> -0.001232459035
B24: S factor for period t | C24: ='Model update'!B111 -> 0.01356911181 | H24: =INDEX('Model update'!$D$111:$H$111,1,MATCH($H$6,'Model update'!$D$104:$H$104,0)) -> -0.009608708052
B25: Adjusted Annual Smoothed Revenue for year t | C25: =IF(C6=2016,'Model update'!D60*(1+C24),(C21*(1+C22)*(1-C23)*(1+C24))) -> 311232622.7 | H25: =IF(H6=2016,'Model update'!D60*(1+H24),(H21*(1+H22)*(1-H23)*(1+H24))) -> 296678137.8
B27: Table 4- B factor for year t
B28: DUoS revenue under/over recovery approved | C28: =-E71*(1+E69)^0.5 -> 3114038.211 | H28: 4476642.618
B29: License Fee Recovery Amount for year t | C29: =C38 -> 142511.4898 | H29: =H38 -> 85666.1598
B30: Approved Pass through Amount for year t | C30: ='Model update'!B122 -> 0 | H30: =INDEX('Model update'!$D$122:$H$122,1,MATCH($H$6,'Model update'!$D$115:$H$115,0)) -> 0
B31: Pass Through revenue under/over recovery for years 2014 and 2015
B32: B factor for year t | C32: =SUM(C28:C31) -> 3256549.701 | H32: =SUM(H28:H31) -> 4562308.778
B34: Table 5 - License Fee Recovery Amount for year t
B35: Lt-1 | C35: ='Model update'!B133 -> 132030 | H35: =INDEX('Model update'!$D$133:$H$133,1,MATCH($H$6,'Model update'!$D$126:$H$126,0)) -> 78912
B36: Nominal WACC t | C36: =(1+'Model update'!$B$43)*(1+'Model update'!$C$30)-1 -> 0.05008580414 | H36: =(1+'Model update'!$B$45)*(1+'Model update'!$C$29)-1 -> 0.0565862118
B37: Nominal WACC t-1 | C37: =(1+'Model update'!$B$45)*(1+'Model update'!$C$29)-1 -> 0.0565862118 | H37: =(1+'Model update'!$B$47)*(1+'Model update'!$C$28)-1 -> 0.05565648259
B38: License Fee Recovery Amount for year t | C38: =C35*(1+C36)*(1+C37)^0.5 -> 142511.4898 | H38: =H35*(1+H36)*(1+H37)^0.5 -> 85666.1598
B42: Table 6 - DUoS Recovery Arrangements
C43: Year t-2 | D43: Year t-1 | E43: Year t
C44: (actual) | D44: (estimate) | E44: (forecast)
C45: =D45-1 -> 2018 | D45: =E45-1 -> 2019 | E45: =C$6 -> 2020
B47: (A) Revenue from DUoS Charges | C47: 290594469.4 | D47: =Est2019DistRev!AS66 -> 301246306.6 | E47: =C9 -> 314384343.6
B50: (B) Less TAR for regulatory year = | C50: =SUM(C51:C54) -> 293322431.2 | D50: =SUM(D51:D54) -> 296807003.9 | E50: =SUM(E51:E54) -> 311411434.2
B51: + Adjusted annual smoothed revenue | C51: =H21 -> 293098089.7 | D51: =C21 -> 296678137.8 | E51: =C14 -> 311232622.7
B52: +It | C52: =INDEX('Model update'!$D$100:$H$100,1,MATCH($C$45,'Model update'!$D$93:$H$93,0)) -> 140000 | D52: =H15 -> 43200 | E52: =C15 -> 36300
B53: +Tt | C53: =INDEX('Model update'!$D$144:$H$144,1,MATCH($C$45,'Model update'!$D$137:$H$137,0)) -> 0 | D53: =H16 -> 0 | E53: =C16 -> 0
B54: +Bt = | C54: =SUM(C55:C57) -> 84341.41801 | D54: =SUM(D55:D57) -> 85666.1598 | E54: =SUM(E55:E57) -> 142511.4898
B55: +Licence fee recovery | C55: 84341.41801 | D55: =H29 -> 85666.1598 | E55: =C29 -> 142511.4898
B56: +Approved pass throughs | C56: 0 | D56: =H30 -> 0 | E56: =C30 -> 0
B57: +Pass Through revenue under/over recovery for years 2014 and 2015 | C57: 0 | D57: =H31 -> 0
B60: (A minus B) Under/over recovery of revenue for regulatory year | C60: =C47-C50 -> -2727961.741 | D60: =D47-D50 -> 4439302.698 | E60: =E47-E50 -> 2972909.435
B64: Table 7 - DUoS Unders and Overs Account
C65: Year t-2 | D65: Year t-1 | E65: Year t
C66: (actual) | D66: (estimate) | E66: (forecast)
B67: Calendar year | C67: =D67-1 -> 2018 | D67: =E67-1 -> 2019 | E67: =C$6 -> 2020
B69: Nominal WACC | C69: =(1+'Model update'!$B$47)*(1+'Model update'!$C$28)-1 -> 0.05565648259 | D69: =(1+'Model update'!$B$45)*(1+'Model update'!$C$29)-1 -> 0.0565862118 | E69: =(1+'Model update'!$B$43)*(1+'Model update'!$C$30)-1 -> 0.05008580414
B71: Opening balance | C71: -4160502.213 | D71: =C75 -> -7194909.378 | E71: =D75 -> -3038865.954
B72: Interest on Opening balance | C72: =C71*C69 -> -231558.9189 | D72: =D71*D69 -> -407132.666 | E72: =E71*E69 -> -152204.045
B73: Under/over recovery of revenue for regulatory year | C73: =C60 -> -2727961.741 | D73: =D60 -> 4439302.698 | E73: =E60 -> 2972909.435
B74: Interest on under/over recovery for regulatory year | C74: =C73*((1+C69)^0.5-1) -> -74886.50597 | D74: =D73*((1+D69)^0.5-1) -> 123873.3925 | E74: =E73*((1+E69)^0.5-1) -> 73540.69383
B75: Closing balance of DUoS overs/ (unders) account | C75: =SUM(C71:C74) -> -7194909.378 | D75: =SUM(D71:D74) -> -3038865.954 | E75: -144619.8705
B77: The DNSP is expected to achieve a closing balance as close to zero as practicable in its DUoS unders and overs account in each forecast year in its annual pricing proposals in the 2016–20 regulatory control period.

Sheet 2020DistTarRebalCont
B1: ="Tariff Approval - "&'Model update'!C3 -> Tariff Approval - CitiPower | C1: ='Model update'!$C$5&"DistTarRebalCont" -> 2020DistTarRebalCont
B3: ='Model update'!C5&" DISTRIBUTION TARIFF REBALANCING CONTROL" -> 2020 DISTRIBUTION TARIFF REBALANCING CONTROL
B6: Distribution tariff rebalancing control
B8: ="CPI "&'Model update'!$C$5 -> CPI 2020 | C8: ='2020DistRevCapForm'!C22 -> 0.01592920354
B9: ="X "& 'Model update'!$C$5 -> X 2020 | C9: =MIN('2020DistRevCapForm'!C23,0) -> -0.01878550313
B10: ="St "&'Model update'!$C$5 -> St 2020 | C10: ='2020DistRevCapForm'!C24 -> 0.01356911181
B11: ="It "&'Model update'!$C$5 -> It 2020 | C11: =('2020DistRevCapForm'!C15-'2020DistRevCapForm'!H15)/Prop2020DistTar!BV$66 -> -2.278740853e-05
B12: ="Tt "&'Model update'!$C$5 -> Tt 2020 | C12: =('2020DistRevCapForm'!C16-'2020DistRevCapForm'!H16)/Prop2020DistTar!BV$66 -> 0
B13: ="Bt "&'Model update'!$C$5 -> Bt 2020 | C13: =('2020DistRevCapForm'!C17-'2020DistRevCapForm'!H17)/Prop2020DistTar!BV$66 -> -0.004312299353
C16: =(1+C8)*(1-C9)*(1+0.02)*(1+C10)+SUM(C11:C13) -> 1.065704241
B20: Rebalancing control summary | C20: ="Pt-1*(Qt " &'Model update'!$C$5&")" -> Pt-1*(Qt 2020) | D20: ="Pt*(Qt " &'Model update'!$C$5&")" -> Pt*(Qt 2020)
B21: Tariff Class (Input Class Name) | C21: Existing ($) | D21: Proposed ($) | E21: Movement
B22: Residential | C22: =IF(B22="","",SUMIF($B$44:$B$103,$B22,$I$44:$I$103)) -> 83551872.25 | D22: =IF(B22="","",SUMIF($B$44:$B$103,$B22,$F$44:$F$103)) -> 86557807.3 | E22: =IF(B22="","",D22/C22) -> 1.035976872 | F22: =IF(B22="","",IF(E22<$C$16,"COMPLIANT","BREACHED")) -> COMPLIANT
B23: Small business | C23: =IF(B23="","",SUMIF($B$44:$B$103,$B23,$I$44:$I$103)) -> 98199459.05 | D23: =IF(B23="","",SUMIF($B$44:$B$103,$B23,$F$44:$F$103)) -> 103624649.7 | E23: 1.055246645 | F23: COMPLIANT
B24: LLV | C24: =IF(B24="","",SUMIF($B$44:$B$103,$B24,$I$44:$I$103)) -> 104304943.7 | D24: =IF(B24="","",SUMIF($B$44:$B$103,$B24,$F$44:$F$103)) -> 107236057.5 | E24: 1.028101388 | F24: COMPLIANT
B25: HV | C25: =IF(B25="","",SUMIF($B$44:$B$103,$B25,$I$44:$I$103)) -> 15747127.91 | D25: =IF(B25="","",SUMIF($B$44:$B$103,$B25,$F$44:$F$103)) -> 15945848.02 | E25: 1.012619451 | F25: COMPLIANT
B26: SubTrans | C26: =IF(B26="","",SUMIF($B$44:$B$103,$B26,$I$44:$I$103)) -> 995398.9215 | D26: =IF(B26="","",SUMIF($B$44:$B$103,$B26,$F$44:$F$103)) -> 1019981.098 | E26: 1.024695803 | F26: COMPLIANT
C27: =IF(B27="","",SUMIF($B$44:$B$103,$B27,$I$44:$I$103)) ->  | D27: =IF(B27="","",SUMIF($B$44:$B$103,$B27,$F$44:$F$103)) ->  | E27: =IF(B27="","",D27/C27) ->  | F27: =IF(B27="","",IF(E27<$C$16,"COMPLIANT","BREACHED")) -> 
C32: =IF(B32="","",SUMIF($B$44:$B$103,$B32,$I$44:$I$103)) ->  | D32: =IF(B32="","",SUMIF($B$44:$B$103,$B32,$F$44:$F$103)) -> 
B39: Check Total | C39: =IF(ABS(SUM(C22:C38)-I104)<0.01,"Ok","Error") -> Ok | D39: =IF(ABS(SUM(D22:D38)-F104)<0.01,"Ok","Error") -> Ok
C40: =IF(ABS(SUM(C22:C38)-Prop2020DistTar!BV66)<0.01,"Ok","Error") -> Ok | D40: =IF(ABS(SUM(D22:D38)-Prop2020DistTar!BG66)<0.01,"Ok","Error") -> Ok
F42: ="Revenue (Pt "&'Model update'!$C$5&")*(Qt " &'Model update'!$C$5&")" -> Revenue (Pt 2020)*(Qt 2020) | I42: ="Revenue (Pt-1 "&'Model update'!$C$8&")*(Qt " &'Model update'!$C$5&")" -> Revenue (Pt-1 2019)*(Qt 2020)
A43: New Tariff Test | B43: Destination tariff class | C43: Source tariff class | D43: Proposed tariff | E43: Existing tariff | F43: PropRev Total | I43: ExistRev Total
A44: =OR(EXACT(D44,Prop2020DistTar!C$6:C$65)) -> TRUE | B44: Residential | C44: Residential | D44: =IF(Prop2020DistTar!B6="","",Prop2020DistTar!B6) -> Residential Single Rate | E44: =IF(Prop2020DistTar!C6="","",Prop2020DistTar!C6) -> Residential Single Rate | F44: =Prop2020DistTar!BG6 -> 61152253.05 | I44: =Prop2020DistTar!BV6 -> 58594472.23
A45: =OR(EXACT(D45,Prop2020DistTar!C$6:C$65)) -> TRUE | B45: Residential | C45: Residential | D45: =IF(Prop2020DistTar!B7="","",Prop2020DistTar!B7) -> Residential Single Rate - Bulk | E45: =IF(Prop2020DistTar!C7="","",Prop2020DistTar!C7) -> Residential Single Rate - Bulk | F45: =Prop2020DistTar!BG7 -> 7467633.27 | I45: =Prop2020DistTar!BV7 -> 7102994.648
A46: =OR(EXACT(D46,Prop2020DistTar!C$6:C$65)) -> TRUE | B46: Residential | C46: Residential | D46: =IF(Prop2020DistTar!B8="","",Prop2020DistTar!B8) -> Residential - flexible pricing | E46: =IF(Prop2020DistTar!C8="","",Prop2020DistTar!C8) -> Residential - flexible pricing | F46: =Prop2020DistTar!BG8 -> 328578.4227 | I46: =Prop2020DistTar!BV8 -> 334589.4179
A47: =OR(EXACT(D47,Prop2020DistTar!C$6:C$65)) -> TRUE | B47: Residential | C47: Residential | D47: =IF(Prop2020DistTar!B9="","",Prop2020DistTar!B9) -> Residential - flexible pricing bulk | E47: =IF(Prop2020DistTar!C9="","",Prop2020DistTar!C9) -> Residential - flexible pricing bulk | F47: =Prop2020DistTar!BG9 -> 29508.8717 | I47: =Prop2020DistTar!BV9 -> 27230.16832
A48: =OR(EXACT(D48,Prop2020DistTar!C$6:C$65)) -> TRUE | B48: Residential | C48: Residential | D48: =IF(Prop2020DistTar!B10="","",Prop2020DistTar!B10) -> Residential Two Rate 5d | E48: =IF(Prop2020DistTar!C10="","",Prop2020DistTar!C10) -> Residential Two Rate 5d | F48: =Prop2020DistTar!BG10 -> 4890466.01 | I48: =Prop2020DistTar!BV10 -> 4899987.357
A49: =OR(EXACT(D49,Prop2020DistTar!C$6:C$65)) -> TRUE | B49: Residential | C49: Residential | D49: =IF(Prop2020DistTar!B11="","",Prop2020DistTar!B11) -> Residential Two Rate 5d - Bulk | E49: =IF(Prop2020DistTar!C11="","",Prop2020DistTar!C11) -> Residential Two Rate 5d - Bulk | F49: =Prop2020DistTar!BG11 -> 1669610.335 | I49: =Prop2020DistTar!BV11 -> 1620766.053
A50: =OR(EXACT(D50,Prop2020DistTar!C$6:C$65)) -> TRUE | B50: Residential | C50: Residential | D50: =IF(Prop2020DistTar!B12="","",Prop2020DistTar!B12) -> Residential Interval | E50: =IF(Prop2020DistTar!C12="","",Prop2020DistTar!C12) -> Residential Interval | F50: =Prop2020DistTar!BG12 -> 7600082.494 | I50: =Prop2020DistTar!BV12 -> 7612769.446
A51: =OR(EXACT(D51,Prop2020DistTar!C$6:C$65)) -> TRUE | B51: Residential | C51: Residential | D51: =IF(Prop2020DistTar!B13="","",Prop2020DistTar!B13) -> Residential Interval - Bulk | E51: =IF(Prop2020DistTar!C13="","",Prop2020DistTar!C13) -> Residential Interval - Bulk | F51: =Prop2020DistTar!BG13 -> 2437130.233 | I51: =Prop2020DistTar!BV13 -> 2340931.514
A52: =OR(EXACT(D52,Prop2020DistTar!C$6:C$65)) -> TRUE | B52: Residential | C52: Residential | D52: =IF(Prop2020DistTar!B14="","",Prop2020DistTar!B14) -> Residential Two Rate 5d - Controlled Load | E52: =IF(Prop2020DistTar!C14="","",Prop2020DistTar!C14) -> Residential Two Rate 5d - Controlled Load | F52: =Prop2020DistTar!BG14 -> 0 | I52: =Prop2020DistTar!BV14 -> 0
A53: =OR(EXACT(D53,Prop2020DistTar!C$6:C$65)) -> TRUE | B53: Residential | C53: Residential | D53: =IF(Prop2020DistTar!B15="","",Prop2020DistTar!B15) -> Residential Two Rate 5d - Bulk - Controlled Load | E53: =IF(Prop2020DistTar!C15="","",Prop2020DistTar!C15) -> Residential Two Rate 5d - Bulk - Controlled Load | F53: =Prop2020DistTar!BG15 -> 0 | I53: =Prop2020DistTar!BV15 -> 0
A54: =OR(EXACT(D54,Prop2020DistTar!C$6:C$65)) -> TRUE | B54: Residential | C54: Residential | D54: =IF(Prop2020DistTar!B16="","",Prop2020DistTar!B16) -> Dedicated Circuit | E54: =IF(Prop2020DistTar!C16="","",Prop2020DistTar!C16) -> Dedicated Circuit | F54: =Prop2020DistTar!BG16 -> 850778.602 | I54: =Prop2020DistTar!BV16 -> 880806.0821
A55: =OR(EXACT(D55,Prop2020DistTar!C$6:C$65)) -> TRUE | B55: Residential | C55: Residential | D55: =IF(Prop2020DistTar!B17="","",Prop2020DistTar!B17) -> Dedicated Circuit - Bulk | E55: =IF(Prop2020DistTar!C17="","",Prop2020DistTar!C17) -> Dedicated Circuit - Bulk | F55: =Prop2020DistTar!BG17 -> 127831.2744 | I55: =Prop2020DistTar!BV17 -> 133389.1559
A56: =OR(EXACT(D56,Prop2020DistTar!C$6:C$65)) -> TRUE | B56: Residential | C56: Residential | D56: =IF(Prop2020DistTar!B18="","",Prop2020DistTar!B18) -> Residential Demand | E56: =IF(Prop2020DistTar!C18="","",Prop2020DistTar!C18) -> Residential Demand | F56: =Prop2020DistTar!BG18 -> 3300.65181 | I56: =Prop2020DistTar!BV18 -> 3343.888768
A57: =OR(EXACT(D57,Prop2020DistTar!C$6:C$65)) -> TRUE | B57: Residential | C57: Residential | D57: =IF(Prop2020DistTar!B19="","",Prop2020DistTar!B19) -> Residential Bulk Demand | E57: =IF(Prop2020DistTar!C19="","",Prop2020DistTar!C19) -> Residential Bulk Demand | F57: =Prop2020DistTar!BG19 -> 634.0842721 | I57: =Prop2020DistTar!BV19 -> 592.2916581
A58: =OR(EXACT(D58,Prop2020DistTar!C$6:C$65)) -> TRUE | B58: Small business | C58: Small business | D58: =IF(Prop2020DistTar!B20="","",Prop2020DistTar!B20) -> Non-Residential Single Rate | E58: =IF(Prop2020DistTar!C20="","",Prop2020DistTar!C20) -> Non-Residential Single Rate | F58: =Prop2020DistTar!BG20 -> 17993391.27 | I58: =Prop2020DistTar!BV20 -> 16862943.95
A59: =OR(EXACT(D59,Prop2020DistTar!C$6:C$65)) -> TRUE | B59: Small business | C59: Small business | D59: =IF(Prop2020DistTar!B21="","",Prop2020DistTar!B21) -> Non-Residential Single Rate - Bulk | E59: =IF(Prop2020DistTar!C21="","",Prop2020DistTar!C21) -> Non-Residential Single Rate - Bulk | F59: =Prop2020DistTar!BG21 -> 5643579.523 | I59: =Prop2020DistTar!BV21 -> 4760502.99
A60: =OR(EXACT(D60,Prop2020DistTar!C$6:C$65)) -> TRUE | B60: Small business | C60: Small business | D60: =IF(Prop2020DistTar!B22="","",Prop2020DistTar!B22) -> Non-Residential Two Rate 5d | E60: =IF(Prop2020DistTar!C22="","",Prop2020DistTar!C22) -> Non-Residential Two Rate 5d | F60: =Prop2020DistTar!BG22 -> 9332708.019 | I60: =Prop2020DistTar!BV22 -> 8394279.635
A61: =OR(EXACT(D61,Prop2020DistTar!C$6:C$65)) -> TRUE | B61: Small business | C61: Small business | D61: =IF(Prop2020DistTar!B23="","",Prop2020DistTar!B23) -> Non-Residential Two Rate 5d - Bulk | E61: =IF(Prop2020DistTar!C23="","",Prop2020DistTar!C23) -> Non-Residential Two Rate 5d - Bulk | F61: =Prop2020DistTar!BG23 -> 1778479.3 | I61: =Prop2020DistTar!BV23 -> 1506075.881
A62: =OR(EXACT(D62,Prop2020DistTar!C$6:C$65)) -> TRUE | B62: Small business | C62: Small business | D62: =IF(Prop2020DistTar!B24="","",Prop2020DistTar!B24) -> Non-Residential Interval | E62: =IF(Prop2020DistTar!C24="","",Prop2020DistTar!C24) -> Non-Residential Interval | F62: =Prop2020DistTar!BG24 -> 5772002.349 | I62: =Prop2020DistTar!BV24 -> 5195273.819
A63: =OR(EXACT(D63,Prop2020DistTar!C$6:C$65)) -> TRUE | B63: Small business | C63: Small business | D63: =IF(Prop2020DistTar!B25="","",Prop2020DistTar!B25) -> Non-Residential Interval - Bulk | E63: =IF(Prop2020DistTar!C25="","",Prop2020DistTar!C25) -> Non-Residential Interval - Bulk | F63: =Prop2020DistTar!BG25 -> 2947530.939 | I63: =Prop2020DistTar!BV25 -> 2499668.615
A64: =OR(EXACT(D64,Prop2020DistTar!C$6:C$65)) -> TRUE | B64: Small business | C64: Small business | D64: =IF(Prop2020DistTar!B26="","",Prop2020DistTar!B26) -> Non-Residential Flexible Pricing | E64: =IF(Prop2020DistTar!C26="","",Prop2020DistTar!C26) -> Non-Residential Flexible Pricing | F64: =Prop2020DistTar!BG26 -> 41908.54061 | I64: =Prop2020DistTar!BV26 -> 38109.0642
A65: =OR(EXACT(D65,Prop2020DistTar!C$6:C$65)) -> TRUE | B65: Small business | C65: Small business | D65: =IF(Prop2020DistTar!B27="","",Prop2020DistTar!B27) -> Non-Residential - Flexible Pricing Bulk | E65: =IF(Prop2020DistTar!C27="","",Prop2020DistTar!C27) -> Non-Residential - Flexible Pricing Bulk | F65: =Prop2020DistTar!BG27 -> 10077.5774 | I65: =Prop2020DistTar!BV27 -> 8935.496522
A66: =OR(EXACT(D66,Prop2020DistTar!C$6:C$65)) -> TRUE | B66: Small business | C66: Small business | D66: =IF(Prop2020DistTar!B28="","",Prop2020DistTar!B28) -> Non-Residential Two Rate 7d | E66: =IF(Prop2020DistTar!C28="","",Prop2020DistTar!C28) -> Non-Residential Two Rate 7d | F66: =Prop2020DistTar!BG28 -> 3616113.775 | I66: =Prop2020DistTar!BV28 -> 3271262.183
A67: =OR(EXACT(D67,Prop2020DistTar!C$6:C$65)) -> TRUE | B67: Small business | C67: Small business | D67: =IF(Prop2020DistTar!B29="","",Prop2020DistTar!B29) -> Non-Residential Two Rate 7d - Bulk | E67: =IF(Prop2020DistTar!C29="","",Prop2020DistTar!C29) -> Non-Residential Two Rate 7d - Bulk | F67: =Prop2020DistTar!BG29 -> 416316.8677 | I67: =Prop2020DistTar!BV29 -> 362842.3078
A68: =OR(EXACT(D68,Prop2020DistTar!C$6:C$65)) -> TRUE | B68: Small business | C68: Small business | D68: =IF(Prop2020DistTar!B30="","",Prop2020DistTar!B30) -> Large Two Rate 7d | E68: =IF(Prop2020DistTar!C30="","",Prop2020DistTar!C30) -> Large Two Rate 7d | F68: =Prop2020DistTar!BG30 -> 5017.363206 | I68: =Prop2020DistTar!BV30 -> 4515.474829
A69: =OR(EXACT(D69,Prop2020DistTar!C$6:C$65)) -> TRUE | B69: Small business | C69: Small business | D69: =IF(Prop2020DistTar!B31="","",Prop2020DistTar!B31) -> Non-Residential Demand Tariff | E69: =IF(Prop2020DistTar!C31="","",Prop2020DistTar!C31) -> Non-Residential Demand Tariff | F69: =Prop2020DistTar!BG31 -> 235982.8953 | I69: =Prop2020DistTar!BV31 -> 214105.7999
A70: =OR(EXACT(D70,Prop2020DistTar!C$6:C$65)) -> TRUE | B70: Small business | C70: Small business | D70: =IF(Prop2020DistTar!B32="","",Prop2020DistTar!B32) -> Non-Residential Bulk Demand Tariff | E70: =IF(Prop2020DistTar!C32="","",Prop2020DistTar!C32) -> Non-Residential Bulk Demand Tariff | F70: =Prop2020DistTar!BG32 -> 499459.4723 | I70: =Prop2020DistTar!BV32 -> 444863.3011
A71: =OR(EXACT(D71,Prop2020DistTar!C$6:C$65)) -> TRUE | B71: Small business | C71: Small business | D71: =IF(Prop2020DistTar!B33="","",Prop2020DistTar!B33) -> Medium Business Demand | E71: =IF(Prop2020DistTar!C33="","",Prop2020DistTar!C33) -> Medium Business Demand | F71: =Prop2020DistTar!BG33 -> 34353999.29 | I71: =Prop2020DistTar!BV33 -> 34471325.83
A72: =OR(EXACT(D72,Prop2020DistTar!C$6:C$65)) -> TRUE | B72: Small business | C72: Small business | D72: =IF(Prop2020DistTar!B34="","",Prop2020DistTar!B34) -> Medium Business Bulk Demand | E72: =IF(Prop2020DistTar!C34="","",Prop2020DistTar!C34) -> Medium Business Bulk Demand | F72: =Prop2020DistTar!BG34 -> 18930507.18 | I72: =Prop2020DistTar!BV34 -> 18162947.3
A73: =OR(EXACT(D73,Prop2020DistTar!C$6:C$65)) -> TRUE | B73: Small business | C73: Small business | D73: =IF(Prop2020DistTar!B35="","",Prop2020DistTar!B35) -> Medium Business Opt-out | E73: =IF(Prop2020DistTar!C35="","",Prop2020DistTar!C35) -> Medium Business Opt-out | F73: =Prop2020DistTar!BG35 -> 307877.1951 | I73: =Prop2020DistTar!BV35 -> 311460.3416
A74: =OR(EXACT(D74,Prop2020DistTar!C$6:C$65)) -> TRUE | B74: Small business | C74: Small business | D74: =IF(Prop2020DistTar!B36="","",Prop2020DistTar!B36) -> Medium Business Bulk Opt-out | E74: =IF(Prop2020DistTar!C36="","",Prop2020DistTar!C36) -> Medium Business Bulk Opt-out | F74: =Prop2020DistTar!BG36 -> 533390.1556 | I74: =Prop2020DistTar!BV36 -> 533986.4023
A75: =OR(EXACT(D75,Prop2020DistTar!C$6:C$65)) -> TRUE | B75: Small business | C75: Small business | D75: =IF(Prop2020DistTar!B37="","",Prop2020DistTar!B37) -> Unmetered Supplies / Public Lighting | E75: =IF(Prop2020DistTar!C37="","",Prop2020DistTar!C37) -> Unmetered Supplies / Public Lighting | F75: =Prop2020DistTar!BG37 -> 1206308.025 | I75: =Prop2020DistTar!BV37 -> 1156360.66
A76: =OR(EXACT(D76,Prop2020DistTar!C$6:C$65)) -> TRUE | B76: LLV | C76: LLV | D76: =IF(Prop2020DistTar!B38="","",Prop2020DistTar!B38) -> Large low Voltage | E76: =IF(Prop2020DistTar!C38="","",Prop2020DistTar!C38) -> Large low Voltage | F76: =Prop2020DistTar!BG38 -> 12540019.11 | I76: =Prop2020DistTar!BV38 -> 12414577
A77: =OR(EXACT(D77,Prop2020DistTar!C$6:C$65)) -> TRUE | B77: LLV | C77: LLV | D77: =IF(Prop2020DistTar!B39="","",Prop2020DistTar!B39) -> Large low Voltage Bulk | E77: =IF(Prop2020DistTar!C39="","",Prop2020DistTar!C39) -> Large low Voltage Bulk | F77: =Prop2020DistTar!BG39 -> 94696038.36 | I77: =Prop2020DistTar!BV39 -> 91890366.73
A78: =OR(EXACT(D78,Prop2020DistTar!C$6:C$65)) -> TRUE | B78: HV | C78: HV | D78: =IF(Prop2020DistTar!B40="","",Prop2020DistTar!B40) -> High Voltage | E78: =IF(Prop2020DistTar!C40="","",Prop2020DistTar!C40) -> High Voltage | F78: =Prop2020DistTar!BG40 -> 15945848.02 | I78: =Prop2020DistTar!BV40 -> 15747127.91
A79: =OR(EXACT(D79,Prop2020DistTar!C$6:C$65)) -> TRUE | B79: SubTrans | C79: SubTrans | D79: =IF(Prop2020DistTar!B41="","",Prop2020DistTar!B41) -> Subtransmission | E79: =IF(Prop2020DistTar!C41="","",Prop2020DistTar!C41) -> Subtransmission | F79: =Prop2020DistTar!BG41 -> 1019981.098 | I79: =Prop2020DistTar!BV41 -> 995398.9215
A80: =OR(EXACT(D80,Prop2020DistTar!C$6:C$65)) -> TRUE | D80: =IF(Prop2020DistTar!B42="","",Prop2020DistTar!B42) ->  | E80: =IF(Prop2020DistTar!C42="","",Prop2020DistTar!C42) ->  | F80: =Prop2020DistTar!BG42 -> 0 | I80: =Prop2020DistTar!BV42 -> 0
A81: =OR(EXACT(D81,Prop2020DistTar!C$6:C$65)) -> TRUE | D81: =IF(Prop2020DistTar!B43="","",Prop2020DistTar!B43) ->  | E81: =IF(Prop2020DistTar!C43="","",Prop2020DistTar!C43) ->  | F81: =Prop2020DistTar!BG43 -> 0 | I81: =Prop2020DistTar!BV43 -> 0
A82: =OR(EXACT(D82,Prop2020DistTar!C$6:C$65)) -> TRUE | D82: =IF(Prop2020DistTar!B44="","",Prop2020DistTar!B44) ->  | E82: =IF(Prop2020DistTar!C44="","",Prop2020DistTar!C44) ->  | F82: =Prop2020DistTar!BG44 -> 0 | I82: =Prop2020DistTar!BV44 -> 0
A83: =OR(EXACT(D83,Prop2020DistTar!C$6:C$65)) -> TRUE | D83: =IF(Prop2020DistTar!B45="","",Prop2020DistTar!B45) ->  | E83: =IF(Prop2020DistTar!C45="","",Prop2020DistTar!C45) ->  | F83: =Prop2020DistTar!BG45 -> 0 | I83: =Prop2020DistTar!BV45 -> 0
A84: =OR(EXACT(D84,Prop2020DistTar!C$6:C$65)) -> TRUE | D84: =IF(Prop2020DistTar!B46="","",Prop2020DistTar!B46) ->  | E84: =IF(Prop2020DistTar!C46="","",Prop2020DistTar!C46) ->  | F84: =Prop2020DistTar!BG46 -> 0 | I84: =Prop2020DistTar!BV46 -> 0
A85: =OR(EXACT(D85,Prop2020DistTar!C$6:C$65)) -> TRUE | D85: =IF(Prop2020DistTar!B47="","",Prop2020DistTar!B47) ->  | E85: =IF(Prop2020DistTar!C47="","",Prop2020DistTar!C47) ->  | F85: =Prop2020DistTar!BG47 -> 0 | I85: =Prop2020DistTar!BV47 -> 0
A86: =OR(EXACT(D86,Prop2020DistTar!C$6:C$65)) -> TRUE | D86: =IF(Prop2020DistTar!B48="","",Prop2020DistTar!B48) ->  | E86: =IF(Prop2020DistTar!C48="","",Prop2020DistTar!C48) ->  | F86: =Prop2020DistTar!BG48 -> 0 | I86: =Prop2020DistTar!BV48 -> 0
A87: =OR(EXACT(D87,Prop2020DistTar!C$6:C$65)) -> TRUE | D87: =IF(Prop2020DistTar!B49="","",Prop2020DistTar!B49) ->  | E87: =IF(Prop2020DistTar!C49="","",Prop2020DistTar!C49) ->  | F87: =Prop2020DistTar!BG49 -> 0 | I87: =Prop2020DistTar!BV49 -> 0
A88: =OR(EXACT(D88,Prop2020DistTar!C$6:C$65)) -> TRUE | D88: =IF(Prop2020DistTar!B50="","",Prop2020DistTar!B50) ->  | E88: =IF(Prop2020DistTar!C50="","",Prop2020DistTar!C50) ->  | F88: =Prop2020DistTar!BG50 -> 0 | I88: =Prop2020DistTar!BV50 -> 0
A89: =OR(EXACT(D89,Prop2020DistTar!C$6:C$65)) -> TRUE | D89: =IF(Prop2020DistTar!B51="","",Prop2020DistTar!B51) ->  | E89: =IF(Prop2020DistTar!C51="","",Prop2020DistTar!C51) ->  | F89: =Prop2020DistTar!BG51 -> 0 | I89: =Prop2020DistTar!BV51 -> 0
A90: =OR(EXACT(D90,Prop2020DistTar!C$6:C$65)) -> TRUE | D90: =IF(Prop2020DistTar!B52="","",Prop2020DistTar!B52) ->  | E90: =IF(Prop2020DistTar!C52="","",Prop2020DistTar!C52) ->  | F90: =Prop2020DistTar!BG52 -> 0 | I90: =Prop2020DistTar!BV52 -> 0
A91: =OR(EXACT(D91,Prop2020DistTar!C$6:C$65)) -> TRUE | D91: =IF(Prop2020DistTar!B53="","",Prop2020DistTar!B53) ->  | E91: =IF(Prop2020DistTar!C53="","",Prop2020DistTar!C53) ->  | F91: =Prop2020DistTar!BG53 -> 0 | I91: =Prop2020DistTar!BV53 -> 0
A92: =OR(EXACT(D92,Prop2020DistTar!C$6:C$65)) -> TRUE | D92: =IF(Prop2020DistTar!B54="","",Prop2020DistTar!B54) ->  | E92: =IF(Prop2020DistTar!C54="","",Prop2020DistTar!C54) ->  | F92: =Prop2020DistTar!BG54 -> 0 | I92: =Prop2020DistTar!BV54 -> 0
A93: =OR(EXACT(D93,Prop2020DistTar!C$6:C$65)) -> TRUE | D93: =IF(Prop2020DistTar!B55="","",Prop2020DistTar!B55) ->  | E93: =IF(Prop2020DistTar!C55="","",Prop2020DistTar!C55) ->  | F93: =Prop2020DistTar!BG55 -> 0 | I93: =Prop2020DistTar!BV55 -> 0
A94: =OR(EXACT(D94,Prop2020DistTar!C$6:C$65)) -> TRUE | D94: =IF(Prop2020DistTar!B56="","",Prop2020DistTar!B56) ->  | E94: =IF(Prop2020DistTar!C56="","",Prop2020DistTar!C56) ->  | F94: =Prop2020DistTar!BG56 -> 0 | I94: =Prop2020DistTar!BV56 -> 0
A95: =OR(EXACT(D95,Prop2020DistTar!C$6:C$65)) -> TRUE | D95: =IF(Prop2020DistTar!B57="","",Prop2020DistTar!B57) ->  | E95: =IF(Prop2020DistTar!C57="","",Prop2020DistTar!C57) ->  | F95: =Prop2020DistTar!BG57 -> 0 | I95: =Prop2020DistTar!BV57 -> 0
A96: =OR(EXACT(D96,Prop2020DistTar!C$6:C$65)) -> TRUE | D96: =IF(Prop2020DistTar!B58="","",Prop2020DistTar!B58) ->  | E96: =IF(Prop2020DistTar!C58="","",Prop2020DistTar!C58) ->  | F96: =Prop2020DistTar!BG58 -> 0 | I96: =Prop2020DistTar!BV58 -> 0
A97: =OR(EXACT(D97,Prop2020DistTar!C$6:C$65)) -> TRUE | D97: =IF(Prop2020DistTar!B59="","",Prop2020DistTar!B59) ->  | E97: =IF(Prop2020DistTar!C59="","",Prop2020DistTar!C59) ->  | F97: =Prop2020DistTar!BG59 -> 0 | I97: =Prop2020DistTar!BV59 -> 0
A98: =OR(EXACT(D98,Prop2020DistTar!C$6:C$65)) -> TRUE | D98: =IF(Prop2020DistTar!B60="","",Prop2020DistTar!B60) ->  | E98: =IF(Prop2020DistTar!C60="","",Prop2020DistTar!C60) ->  | F98: =Prop2020DistTar!BG60 -> 0 | I98: =Prop2020DistTar!BV60 -> 0
A99: =OR(EXACT(D99,Prop2020DistTar!C$6:C$65)) -> TRUE | D99: =IF(Prop2020DistTar!B61="","",Prop2020DistTar!B61) ->  | E99: =IF(Prop2020DistTar!C61="","",Prop2020DistTar!C61) ->  | F99: =Prop2020DistTar!BG61 -> 0 | I99: =Prop2020DistTar!BV61 -> 0
A100: =OR(EXACT(D100,Prop2020DistTar!C$6:C$65)) -> TRUE | D100: =IF(Prop2020DistTar!B62="","",Prop2020DistTar!B62) ->  | E100: =IF(Prop2020DistTar!C62="","",Prop2020DistTar!C62) ->  | F100: =Prop2020DistTar!BG62 -> 0 | I100: =Prop2020DistTar!BV62 -> 0
A101: =OR(EXACT(D101,Prop2020DistTar!C$6:C$65)) -> TRUE | D101: =IF(Prop2020DistTar!B63="","",Prop2020DistTar!B63) ->  | E101: =IF(Prop2020DistTar!C63="","",Prop2020DistTar!C63) ->  | F101: =Prop2020DistTar!BG63 -> 0 | I101: =Prop2020DistTar!BV63 -> 0
A102: =OR(EXACT(D102,Prop2020DistTar!C$6:C$65)) -> TRUE | D102: =IF(Prop2020DistTar!B64="","",Prop2020DistTar!B64) ->  | E102: =IF(Prop2020DistTar!C64="","",Prop2020DistTar!C64) ->  | F102: =Prop2020DistTar!BG64 -> 0 | I102: =Prop2020DistTar!BV64 -> 0
A103: =OR(EXACT(D103,Prop2020DistTar!C$6:C$65)) -> TRUE | D103: =IF(Prop2020DistTar!B65="","",Prop2020DistTar!B65) ->  | E103: =IF(Prop2020DistTar!C65="","",Prop2020DistTar!C65) ->  | F103: =Prop2020DistTar!BG65 -> 0 | I103: =Prop2020DistTar!BV65 -> 0
F104: =SUM(F44:F103) -> 314384343.6 | I104: =SUM(I44:I103) -> 302798801.9 | BJ104: =SUM(BJ44:BJ103) -> 0

Sheet Est2019DistRev
B1: ="Tariff Approval - "&'Model update'!C3 -> Tariff Approval - CitiPower | D1: ="Est"&'Model update'!$C$5-1&"DistRev" -> Est2019DistRev
B3: ="ESTIMATED "&'Model update'!$C$8&" Distribution Revenue" -> ESTIMATED 2019 Distribution Revenue
D4: ="Current Distribution Tariffs (Pt-1) for "&'Model update'!$C$8 -> Current Distribution Tariffs (Pt-1) for 2019 | R4: =" Estimated Distribution Quantities for "&'Model update'!$C$8&" (Qt-1)" -> Estimated Distribution Quantities for 2019 (Qt-1) | AF4: ="Estimated Revenue (Pt-1 "&'Model update'!$C$8&")*(Qt-1 " &'Model update'!$C$8&")" -> Estimated Revenue (Pt-1 2019)*(Qt-1 2019)
B5: ="Tariffs "&'Model update'!C8 -> Tariffs 2019 | D5: CurrentTar Fixed | E5: CurrentTar Anytime | F5: CurrentTar PkBlk | G5: CurrentTar OPkBlk1 | H5: CurrentTar Dem kVA | I5: CurrentTar Dem kW Sum | J5: CurrentTar Dem kW Win | K5: CurrentTar SumBlk1 | L5: CurrentTar SumBlk2 | M5: CurrentTar SumBlk3 | N5: CurrentTar WtrBlk1 | O5: CurrentTar WtrBlk2 | P5: CurrentTar WtrBlk3 | R5: EstVol Fixed | S5: EstVol Anytime | T5: EstVol Pk | U5: EstVol Opk | V5: EstVol Dem kVA | W5: EstVol Dem kW Sum | X5: EstVol Dem kW Win | Y5: EstVol SumBlk1 | Z5: EstVol SumBlk2 | AA5: EstVol SumBlk3 | AB5: EstVol WtrBlk1 | AC5: EstVol WtrBlk2 | AD5: EstVol WtrBlk3 | AF5: EstRev Fixed | AG5: EstRev Anytime | AH5: EstRev Pk | AI5: EstRev Opk | AJ5: EstRev Dem kVA | AK5: EstRev Dem kW Sum | AL5: EstRev Dem kW Win | AM5: EstRev SumBlk1 | AN5: EstRev SumBlk2 | AO5: EstRev SumBlk3 | AP5: EstRev WtrBlk1 | AQ5: EstRev WtrBlk2 | AR5: EstRev WtrBlk3 | AS5: EstRev Total
A6: C1R | B6: Residential Single Rate | D6: 90 | E6: 4.72 | F6: 0 | G6: 0 | H6: 0 | I6: 0 | J6: 0 | K6: 0 | L6: 0 | M6: 0 | N6: 0 | O6: 0 | P6: 0 | R6: 205044.5 | S6: 853857291.2 | T6: 0 | U6: 0 | V6: 0 | W6: 0 | X6: 0 | Y6: 0 | Z6: 0 | AA6: 0 | AB6: 0 | AC6: 0 | AD6: 0 | AF6: =D6*R6 -> 18454005 | AG6: =E6/100*S6 -> 40302064.14 | AH6: 0 | AI6: 0 | AJ6: =H6*V6 -> 0 | AK6: =I6*W6 -> 0 | AL6: 0 | AM6: 0 | AN6: 0 | AO6: =M6/100*AA6 -> 0 | AP6: =N6/100*AB6 -> 0 | AQ6: =O6/100*AC6 -> 0 | AR6: =P6/100*AD6 -> 0 | AS6: =SUM(AF6:AR6) -> 58756069.14
A7: C1RB | B7: Residential Single Rate - Bulk | D7: 85 | E7: 4.15 | F7: 0 | G7: 0 | H7: 0 | I7: 0 | J7: 0 | K7: 0 | L7: 0 | M7: 0 | N7: 0 | O7: 0 | P7: 0 | R7: 31480.91667 | S7: 106631799.4 | T7: 0 | U7: 0 | V7: 0 | W7: 0 | X7: 0 | Y7: 0 | Z7: 0 | AA7: 0 | AB7: 0 | AC7: 0 | AD7: 0 | AF7: =D7*R7 -> 2675877.917 | AG7: =E7/100*S7 -> 4425219.675 | AH7: 0 | AI7: 0 | AJ7: =H7*V7 -> 0 | AK7: =I7*W7 -> 0 | AL7: =J7*X7 -> 0 | AM7: 0 | AN7: 0 | AO7: 0 | AP7: 0 | AQ7: 0 | AR7: 0 | AS7: =SUM(AF7:AR7) -> 7101097.592
A8: C13R | B8: Residential - flexible pricing | D8: 90 | E8: 0 | F8: 0 | G8: 0 | H8: 0 | I8: 0 | J8: 0 | K8: 10.79 | L8: 7.27 | M8: 2.86 | N8: 10.79 | O8: 7.27 | P8: 2.86 | R8: 693.4166667 | S8: 0 | T8: 0 | U8: 0 | V8: 0 | W8: 0 | X8: 0 | Y8: 205405.5214 | Z8: 427210.1542 | AA8: 316794.3387 | AB8: 740099.6911 | AC8: 1539287.265 | AD8: 1141446.396 | AF8: 62407.5 | AG8: 0 | AH8: 0 | AI8: 0 | AJ8: 0 | AK8: 0 | AL8: 0 | AM8: 22163.25576 | AN8: 31058.17821 | AO8: 9060.318087 | AP8: 79856.75667 | AQ8: 111906.1841 | AR8: 32645.36694 | AS8: 349097.5598
A9: C13RB | B9: Residential - flexible pricing bulk | D9: 85 | E9: 0 | F9: 0 | G9: 0 | H9: 0 | I9: 0 | J9: 0 | K9: 9.05 | L9: 6.1 | M9: 2.39 | N9: 9.05 | O9: 6.1 | P9: 2.39 | R9: 90 | S9: 0 | T9: 0 | U9: 0 | V9: 0 | W9: 0 | X9: 0 | Y9: 15231.12129 | Z9: 32311.93005 | AA9: 23662.58093 | AB9: 55378.7842 | AC9: 117482.841 | AD9: 86034.70078 | AF9: 7650 | AG9: 0 | AH9: 0 | AI9: 0 | AJ9: 0 | AK9: 0 | AL9: 0 | AM9: 1378.416477 | AN9: 1971.027733 | AO9: 565.5356843 | AP9: 5011.77997 | AQ9: 7166.4533 | AR9: 2056.229349 | AS9: 25799.44251
A10: C2R | B10: Residential Two Rate 5d | D10: 90 | E10: 0 | F10: 9.72 | G10: 2.31 | H10: 0 | I10: 0 | J10: 0 | K10: 0 | L10: 0 | M10: 0 | N10: 0 | O10: 0 | P10: 0 | R10: 10820.08333 | S10: 0 | T10: 35024034.5 | U10: 30157186.27 | V10: 0 | W10: 0 | X10: 0 | Y10: 0 | Z10: 0 | AA10: 0 | AB10: 0 | AC10: 0 | AD10: 0 | AF10: 973807.5 | AG10: 0 | AH10: 3404336.154 | AI10: 696631.0029 | AJ10: 0 | AK10: 0 | AL10: 0 | AM10: 0 | AN10: 0 | AO10: 0 | AP10: 0 | AQ10: 0 | AR10: 0 | AS10: 5074774.657
A11: C2RB | B11: Residential Two Rate 5d - Bulk | D11: 85 | E11: 0 | F11: 8.56 | G11: 2.16 | H11: 0 | I11: 0 | J11: 0 | K11: 0 | L11: 0 | M11: 0 | N11: 0 | O11: 0 | P11: 0 | R11: 4352.5 | S11: 0 | T11: 12294584.52 | U11: 10585730.05 | V11: 0 | W11: 0 | X11: 0 | Y11: 0 | Z11: 0 | AA11: 0 | AB11: 0 | AC11: 0 | AD11: 0 | AF11: 369962.5 | AG11: 0 | AH11: 1052416.435 | AI11: 228651.769 | AJ11: 0 | AK11: 0 | AL11: 0 | AM11: 0 | AN11: 0 | AO11: 0 | AP11: 0 | AQ11: 0 | AR11: 0 | AS11: 1651030.704
A12: C3R | B12: Residential Interval | D12: 90 | E12: 0 | F12: 9.72 | G12: 2.31 | H12: 0 | I12: 0 | J12: 0 | K12: 0 | L12: 0 | M12: 0 | N12: 0 | O12: 0 | P12: 0 | R12: 17057.16667 | S12: 0 | T12: 60669728.28 | U12: 52545941.86 | V12: 0 | W12: 0 | X12: 0 | Y12: 0 | Z12: 0 | AA12: 0 | AB12: 0 | AC12: 0 | AD12: 0 | AF12: 1535145 | AG12: 0 | AH12: 5897097.588 | AI12: 1213811.257 | AJ12: 0 | AK12: 0 | AL12: 0 | AM12: 0 | AN12: 0 | AO12: 0 | AP12: 0 | AQ12: 0 | AR12: 0 | AS12: 8646053.845
A13: C3RB | B13: Residential Interval - Bulk | D13: 85 | E13: 0 | F13: 8.56 | G13: 2.16 | H13: 0 | I13: 0 | J13: 0 | K13: 0 | L13: 0 | M13: 0 | N13: 0 | O13: 0 | P13: 0 | R13: 8658 | S13: 0 | T13: 15600572.12 | U13: 14572772.14 | V13: 0 | W13: 0 | X13: 0 | Y13: 0 | Z13: 0 | AA13: 0 | AB13: 0 | AC13: 0 | AD13: 0 | AF13: 735930 | AG13: 0 | AH13: 1335408.973 | AI13: 314771.8783 | AJ13: 0 | AK13: 0 | AL13: 0 | AM13: 0 | AN13: 0 | AO13: 0 | AP13: 0 | AQ13: 0 | AR13: 0 | AS13: 2386110.852
A14: C2ROP | B14: Residential Two Rate 5d - Controlled Load | D14: 0 | E14: 0 | F14: 0 | G14: 1.76 | H14: 0 | I14: 0 | J14: 0 | K14: 0 | L14: 0 | M14: 0 | N14: 0 | O14: 0 | P14: 0 | R14: 9732.666667 | S14: 0 | T14: 0 | U14: 19246331.24 | V14: 0 | W14: 0 | X14: 0 | Y14: 0 | Z14: 0 | AA14: 0 | AB14: 0 | AC14: 0 | AD14: 0 | AF14: 0 | AG14: 0 | AH14: 0 | AI14: 338735.4298 | AJ14: 0 | AK14: 0 | AL14: 0 | AM14: 0 | AN14: 0 | AO14: 0 | AP14: 0 | AQ14: 0 | AR14: 0 | AS14: 338735.4298
A15: C2RBOP | B15: Residential Two Rate 5d - Bulk - Controlled Load | D15: 0 | E15: 0 | F15: 0 | G15: 1.44 | H15: 0 | I15: 0 | J15: 0 | K15: 0 | L15: 0 | M15: 0 | N15: 0 | O15: 0 | P15: 0 | R15: 3683.833333 | S15: 0 | T15: 0 | U15: 7176762.317 | V15: 0 | W15: 0 | X15: 0 | Y15: 0 | Z15: 0 | AA15: 0 | AB15: 0 | AC15: 0 | AD15: 0 | AF15: 0 | AG15: 0 | AH15: 0 | AI15: 103345.3774 | AJ15: 0 | AK15: 0 | AL15: 0 | AM15: 0 | AN15: 0 | AO15: 0 | AP15: 0 | AQ15: 0 | AR15: 0 | AS15: 103345.3774
A16: CDS | B16: Dedicated Circuit | D16: 0 | E16: 0 | F16: 0 | G16: 1.76 | H16: 0 | I16: 0 | J16: 0 | K16: 0 | L16: 0 | M16: 0 | N16: 0 | O16: 0 | P16: 0 | R16: 22825.5 | S16: 0 | T16: 0 | U16: 31802481.57 | V16: 0 | W16: 0 | X16: 0 | Y16: 0 | Z16: 0 | AA16: 0 | AB16: 0 | AC16: 0 | AD16: 0 | AF16: 0 | AG16: 0 | AH16: 0 | AI16: 559723.6757 | AJ16: 0 | AK16: 0 | AL16: 0 | AM16: 0 | AN16: 0 | AO16: 0 | AP16: 0 | AQ16: 0 | AR16: 0 | AS16: 559723.6757
A17: CDSB | B17: Dedicated Circuit - Bulk | D17: 0 | E17: 0 | F17: 0 | G17: 1.44 | H17: 0 | I17: 0 | J17: 0 | K17: 0 | L17: 0 | M17: 0 | N17: 0 | O17: 0 | P17: 0 | R17: 1105.583333 | S17: 0 | T17: 0 | U17: 2202095.01 | V17: 0 | W17: 0 | X17: 0 | Y17: 0 | Z17: 0 | AA17: 0 | AB17: 0 | AC17: 0 | AD17: 0 | AF17: 0 | AG17: 0 | AH17: 0 | AI17: 31710.16815 | AJ17: 0 | AK17: 0 | AL17: 0 | AM17: 0 | AN17: 0 | AO17: 0 | AP17: 0 | AQ17: 0 | AR17: 0 | AS17: 31710.16815
A18: CR | B18: Residential Demand | D18: 90 | E18: 2.89 | F18: 0 | G18: 0 | H18: 0 | I18: 7.04 | J18: 2.41 | K18: 0 | L18: 0 | M18: 0 | N18: 0 | O18: 0 | P18: 0 | R18: 4 | S18: 14863.13851 | T18: 0 | U18: 0 | V18: 0 | W18: 50.49333333 | X18: 120.751 | Y18: 0 | Z18: 0 | AA18: 0 | AB18: 0 | AC18: 0 | AD18: 0 | AF18: 360 | AG18: 429.5447029 | AH18: 0 | AI18: 0 | AJ18: 0 | AK18: 355.4730667 | AL18: 291.00991 | AM18: 0 | AN18: 0 | AO18: 0 | AP18: 0 | AQ18: 0 | AR18: 0 | AS18: 1436.02768
A19: CRB | B19: Residential Bulk Demand | D19: 85 | E19: 2.03 | F19: 0 | G19: 0 | H19: 0 | I19: 5.54 | J19: 1.86 | K19: 0 | L19: 0 | M19: 0 | N19: 0 | O19: 0 | P19: 0 | R19: 0 | S19: 0 | T19: 0 | U19: 0 | V19: 0 | W19: 0 | X19: 0 | Y19: 0 | Z19: 0 | AA19: 0 | AB19: 0 | AC19: 0 | AD19: 0 | AF19: 0 | AG19: 0 | AH19: 0 | AI19: 0 | AJ19: 0 | AK19: 0 | AL19: 0 | AM19: 0 | AN19: 0 | AO19: 0 | AP19: 0 | AQ19: 0 | AR19: 0 | AS19: 0
A20: C1G | B20: Non-Residential Single Rate | D20: 150 | E20: 5.96 | F20: 0 | G20: 0 | H20: 0 | I20: 0 | J20: 0 | K20: 0 | L20: 0 | M20: 0 | N20: 0 | O20: 0 | P20: 0 | R20: 20319.91667 | S20: 233254649.1 | T20: 0 | U20: 0 | V20: 0 | W20: 0 | X20: 0 | Y20: 0 | Z20: 0 | AA20: 0 | AB20: 0 | AC20: 0 | AD20: 0 | AF20: 3047987.5 | AG20: 13901977.09 | AH20: 0 | AI20: 0 | AJ20: 0 | AK20: 0 | AL20: 0 | AM20: 0 | AN20: 0 | AO20: 0 | AP20: 0 | AQ20: 0 | AR20: 0 | AS20: 16949964.59
A21: C1GB | B21: Non-Residential Single Rate - Bulk | D21: 140 | E21: 4.84 | F21: 0 | G21: 0 | H21: 0 | I21: 0 | J21: 0 | K21: 0 | L21: 0 | M21: 0 | N21: 0 | O21: 0 | P21: 0 | R21: 5859.166667 | S21: 77076676.16 | T21: 0 | U21: 0 | V21: 0 | W21: 0 | X21: 0 | Y21: 0 | Z21: 0 | AA21: 0 | AB21: 0 | AC21: 0 | AD21: 0 | AF21: 820283.3333 | AG21: 3730511.126 | AH21: 0 | AI21: 0 | AJ21: 0 | AK21: 0 | AL21: 0 | AM21: 0 | AN21: 0 | AO21: 0 | AP21: 0 | AQ21: 0 | AR21: 0 | AS21: 4550794.46
A22: C2G5 | B22: Non-Residential Two Rate 5d | D22: 150 | E22: 0 | F22: 8.96 | G22: 2.58 | H22: 0 | I22: 0 | J22: 0 | K22: 0 | L22: 0 | M22: 0 | N22: 0 | O22: 0 | P22: 0 | R22: 8457.416667 | S22: 0 | T22: 92130994.29 | U22: 57478450.85 | V22: 0 | W22: 0 | X22: 0 | Y22: 0 | Z22: 0 | AA22: 0 | AB22: 0 | AC22: 0 | AD22: 0 | AF22: 1268612.5 | AG22: 0 | AH22: 8254937.088 | AI22: 1482944.032 | AJ22: 0 | AK22: 0 | AL22: 0 | AM22: 0 | AN22: 0 | AO22: =M22/100*AA22 -> 0 | AP22: 0 | AQ22: 0 | AR22: 0 | AS22: 11006493.62
A23: C2G5B | B23: Non-Residential Two Rate 5d - Bulk | D23: 140 | E23: 0 | F23: 6.99 | G23: 2.11 | H23: 0 | I23: 0 | J23: 0 | K23: 0 | L23: 0 | M23: 0 | N23: 0 | O23: 0 | P23: 0 | R23: 1060 | S23: 0 | T23: 17530830.1 | U23: 10374374.19 | V23: 0 | W23: 0 | X23: 0 | Y23: 0 | Z23: 0 | AA23: 0 | AB23: 0 | AC23: 0 | AD23: 0 | AF23: 148400 | AG23: 0 | AH23: 1225405.024 | AI23: 218899.2955 | AJ23: 0 | AK23: 0 | AL23: 0 | AM23: 0 | AN23: 0 | AO23: 0 | AP23: 0 | AQ23: 0 | AR23: 0 | AS23: 1592704.319
A24: C3G | B24: Non-Residential Interval | D24: 150 | E24: 0 | F24: 8.96 | G24: 2.37 | H24: 0 | I24: 0 | J24: 0 | K24: 0 | L24: 0 | M24: 0 | N24: 0 | O24: 0 | P24: 0 | R24: 3960.083333 | S24: 0 | T24: 45937500.62 | U24: 25953497.25 | V24: 0 | W24: 0 | X24: 0 | Y24: 0 | Z24: 0 | AA24: 0 | AB24: 0 | AC24: 0 | AD24: 0 | AF24: 594012.5 | AG24: 0 | AH24: 4116000.055 | AI24: 615097.8848 | AJ24: 0 | AK24: 0 | AL24: 0 | AM24: 0 | AN24: 0 | AO24: 0 | AP24: 0 | AQ24: 0 | AR24: 0 | AS24: 5325110.44
A25: C3GB | B25: Non-Residential Interval - Bulk | D25: 140 | E25: 0 | F25: 6.99 | G25: 2.11 | H25: 0 | I25: 0 | J25: 0 | K25: 0 | L25: 0 | M25: 0 | N25: 0 | O25: 0 | P25: 0 | R25: 1945.083333 | S25: 0 | T25: 29899979.14 | U25: 15763990.48 | V25: 0 | W25: 0 | X25: 0 | Y25: 0 | Z25: 0 | AA25: 0 | AB25: 0 | AC25: 0 | AD25: 0 | AF25: 272311.6667 | AG25: 0 | AH25: 2090008.542 | AI25: 332620.1992 | AJ25: 0 | AK25: 0 | AL25: 0 | AM25: 0 | AN25: 0 | AO25: 0 | AP25: 0 | AQ25: 0 | AR25: 0 | AS25: 2694940.408
A26: C14G | B26: Non-Residential Flexible Pricing | D26: 150 | E26: 0 | F26: 0 | G26: 0 | H26: 0 | I26: 0 | J26: 0 | K26: 10.92 | L26: 7.63 | M26: 3 | N26: 10.92 | O26: 7.63 | P26: 3 | R26: 22 | S26: 0 | T26: 0 | U26: 0 | V26: 0 | W26: 0 | X26: 0 | Y26: 90532.51609 | Z26: 28600.36374 | AA26: 77063.91457 | AB26: 309844.84 | AC26: 97883.8931 | AD26: 263748.9525 | AF26: 3300 | AG26: 0 | AH26: 0 | AI26: 0 | AJ26: 0 | AK26: 0 | AL26: 0 | AM26: 9886.150757 | AN26: 2182.207753 | AO26: 2311.917437 | AP26: 33835.05653 | AQ26: 7468.541043 | AR26: 7912.468574 | AS26: 66896.3421
A27: C14GB | B27: Non-Residential - Flexible Pricing Bulk | D27: 140 | E27: 0 | F27: 0 | G27: 0 | H27: 0 | I27: 0 | J27: 0 | K27: 9.6 | L27: 6.71 | M27: 2.64 | N27: 9.6 | O27: 6.71 | P27: 2.64 | R27: 7 | S27: 0 | T27: 0 | U27: 0 | V27: 0 | W27: 0 | X27: 0 | Y27: 103639.4071 | Z27: 27419.30238 | AA27: 92664.29665 | AB27: 277642.3295 | AC27: 73454.2892 | AD27: 248240.8178 | AF27: 980 | AG27: 0 | AH27: 0 | AI27: 0 | AJ27: 0 | AK27: 0 | AL27: 0 | AM27: 9949.383086 | AN27: 1839.835189 | AO27: 2446.337432 | AP27: 26653.66363 | AQ27: 4928.782805 | AR27: 6553.557589 | AS27: 53351.55973
A28: C2G7 | B28: Non-Residential Two Rate 7d | D28: 150 | E28: 0 | F28: 7.05 | G28: 2.37 | H28: 0 | I28: 0 | J28: 0 | K28: 0 | L28: 0 | M28: 0 | N28: 0 | O28: 0 | P28: 0 | R28: 2325 | S28: 0 | T28: 39141830.2 | U28: 9312690.059 | V28: 0 | W28: 0 | X28: 0 | Y28: 0 | Z28: 0 | AA28: 0 | AB28: 0 | AC28: 0 | AD28: 0 | AF28: 348750 | AG28: 0 | AH28: 2759499.029 | AI28: 220710.7544 | AJ28: 0 | AK28: 0 | AL28: 0 | AM28: 0 | AN28: 0 | AO28: 0 | AP28: 0 | AQ28: 0 | AR28: 0 | AS28: 3328959.783
A29: C2G7B | B29: Non-Residential Two Rate 7d - Bulk | D29: 140 | E29: 0 | F29: 6.27 | G29: 2.11 | H29: 0 | I29: 0 | J29: 0 | K29: 0 | L29: 0 | M29: 0 | N29: 0 | O29: 0 | P29: 0 | R29: 253.0833333 | S29: 0 | T29: 5750711.727 | U29: 1391434.263 | V29: 0 | W29: 0 | X29: 0 | Y29: 0 | Z29: 0 | AA29: 0 | AB29: 0 | AC29: 0 | AD29: 0 | AF29: 35431.66667 | AG29: 0 | AH29: 360569.6253 | AI29: 29359.26294 | AJ29: 0 | AK29: 0 | AL29: 0 | AM29: 0 | AN29: 0 | AO29: 0 | AP29: 0 | AQ29: 0 | AR29: 0 | AS29: 425360.5549
A30: C2L7 | B30: Large Two Rate 7d | D30: 150 | E30: 0 | F30: 8.96 | G30: 2.58 | H30: 0 | I30: 0 | J30: 0 | K30: 0 | L30: 0 | M30: 0 | N30: 0 | O30: 0 | P30: 0 | R30: 4 | S30: 0 | T30: 168556.1792 | U30: 75139.00678 | V30: 0 | W30: 0 | X30: 0 | Y30: 0 | Z30: 0 | AA30: 0 | AB30: 0 | AC30: 0 | AD30: 0 | AF30: 600 | AG30: 0 | AH30: 15102.63366 | AI30: 1938.586375 | AJ30: 0 | AK30: 0 | AL30: 0 | AM30: 0 | AN30: 0 | AO30: 0 | AP30: 0 | AQ30: 0 | AR30: 0 | AS30: 17641.22003
A31: CG | B31: Non-Residential Demand Tariff | D31: 150 | E31: 3.27 | F31: 0 | G31: 0 | H31: 0 | I31: 10.43 | J31: 3.48 | K31: 0 | L31: 0 | M31: 0 | N31: 0 | O31: 0 | P31: 0 | R31: 8 | S31: 717136.6155 | T31: 0 | U31: 0 | V31: 0 | W31: 822.7376 | X31: 1909.040695 | Y31: 0 | Z31: 0 | AA31: 0 | AB31: 0 | AC31: 0 | AD31: 0 | AF31: 1200 | AG31: 23450.36733 | AH31: 0 | AI31: 0 | AJ31: 0 | AK31: 8581.153168 | AL31: 6643.461619 | AM31: 0 | AN31: 0 | AO31: 0 | AP31: 0 | AQ31: 0 | AR31: 0 | AS31: 39874.98212
A32: CGB | B32: Non-Residential Bulk Demand Tariff | D32: 140 | E32: 3 | F32: 0 | G32: 0 | H32: 0 | I32: 8.35 | J32: 2.78 | K32: 0 | L32: 0 | M32: 0 | N32: 0 | O32: 0 | P32: 0 | R32: 4 | S32: 534045.0131 | T32: 0 | U32: 0 | V32: 0 | W32: 411.3688 | X32: 954.5203476 | Y32: 0 | Z32: 0 | AA32: 0 | AB32: 0 | AC32: 0 | AD32: 0 | AF32: 560 | AG32: 16021.35039 | AH32: 0 | AI32: 0 | AJ32: 0 | AK32: 3434.92948 | AL32: 2653.566566 | AM32: 0 | AN32: 0 | AO32: 0 | AP32: 0 | AQ32: 0 | AR32: 0 | AS32: 22669.84644
A33: CMG | B33: Medium Business Demand | D33: 1000 | E33: 0 | F33: 4.2 | G33: 3.21 | H33: 0 | I33: 5.69 | J33: 2.84 | K33: 0 | L33: 0 | M33: 0 | N33: 0 | O33: 0 | P33: 0 | R33: 4548 | S33: 0 | T33: 365166105 | U33: 263865736.5 | V33: 0 | W33: 730223.7714 | X33: 1303005.77 | Y33: 0 | Z33: 0 | AA33: 0 | AB33: 0 | AC33: 0 | AD33: 0 | AF33: 4548000 | AG33: 0 | AH33: 15336976.41 | AI33: 8470090.142 | AJ33: 0 | AK33: 4154973.259 | AL33: 3700536.388 | AM33: 0 | AN33: 0 | AO33: 0 | AP33: 0 | AQ33: 0 | AR33: 0 | AS33: 36210576.2
A34: CMGB | B34: Medium Business Bulk Demand | D34: 975 | E34: 0 | F34: 3.33 | G34: 2.66 | H34: 0 | I34: 4.55 | J34: 2.28 | K34: 0 | L34: 0 | M34: 0 | N34: 0 | O34: 0 | P34: 0 | R34: 2221.916667 | S34: 0 | T34: 255479964.7 | U34: 173141256.8 | V34: 0 | W34: 520621.0765 | X34: 868527.9127 | Y34: 0 | Z34: 0 | AA34: 0 | AB34: 0 | AC34: 0 | AD34: 0 | AF34: 2166368.75 | AG34: 0 | AH34: 8507482.823 | AI34: 4605557.43 | AJ34: 0 | AK34: 2368825.898 | AL34: 1980243.641 | AM34: 0 | AN34: 0 | AO34: 0 | AP34: 0 | AQ34: 0 | AR34: 0 | AS34: 19628478.54
A35: CMGO | B35: Medium Business Opt-out | D35: 1000 | E35: 0 | F35: 8.32 | G35: 3.32 | H35: 0 | I35: 0 | J35: 0 | K35: 0 | L35: 0 | M35: 0 | N35: 0 | O35: 0 | P35: 0 | R35: 7 | S35: 0 | T35: 296417.2537 | U35: 286499.7885 | V35: 0 | W35: 0 | X35: 0 | Y35: 0 | Z35: 0 | AA35: 0 | AB35: 0 | AC35: 0 | AD35: 0 | AF35: 7000 | AG35: 0 | AH35: 24661.91551 | AI35: 9511.792978 | AJ35: 0 | AK35: 0 | AL35: 0 | AM35: 0 | AN35: 0 | AO35: 0 | AP35: 0 | AQ35: 0 | AR35: 0 | AS35: 41173.70849
A36: CMGBO | B36: Medium Business Bulk Opt-out | D36: 975 | E36: 0 | F36: 6.54 | G36: 2.75 | H36: 0 | I36: 0 | J36: 0 | K36: 0 | L36: 0 | M36: 0 | N36: 0 | O36: 0 | P36: 0 | R36: 9 | S36: 0 | T36: 630002.2237 | U36: 505149.3518 | V36: 0 | W36: 0 | X36: 0 | Y36: 0 | Z36: 0 | AA36: 0 | AB36: 0 | AC36: 0 | AD36: 0 | AF36: 8775 | AG36: 0 | AH36: 41202.14543 | AI36: 13891.60718 | AJ36: 0 | AK36: 0 | AL36: 0 | AM36: 0 | AN36: 0 | AO36: 0 | AP36: 0 | AQ36: 0 | AR36: 0 | AS36: 63868.75261
A37: C2U | B37: Unmetered Supplies / Public Lighting | D37: 0 | E37: 0 | F37: 11.24 | G37: 3.15 | H37: 0 | I37: 0 | J37: 0 | K37: 0 | L37: 0 | M37: 0 | N37: 0 | O37: 0 | P37: 0 | R37: 4425.5 | S37: 0 | T37: 7430325.445 | U37: 18727648.89 | V37: 0 | W37: 0 | X37: 0 | Y37: 0 | Z37: 0 | AA37: 0 | AB37: 0 | AC37: 0 | AD37: 0 | AF37: 0 | AG37: 0 | AH37: 835168.58 | AI37: 589920.9402 | AJ37: 0 | AK37: 0 | AL37: 0 | AM37: 0 | AN37: 0 | AO37: 0 | AP37: 0 | AQ37: 0 | AR37: 0 | AS37: 1425089.52
A38: CLLV | B38: Large low Voltage | D38: 6200 | E38: 0 | F38: 2.33 | G38: 1.41 | H38: 71.9 | I38: 0 | J38: 0 | K38: 0 | L38: 0 | M38: 0 | N38: 0 | O38: 0 | P38: 0 | R38: 334.3333333 | S38: 0 | T38: 103909055.5 | U38: 80266733.27 | V38: 59781.40408 | W38: 0 | X38: 0 | Y38: 0 | Z38: 0 | AA38: 0 | AB38: 0 | AC38: 0 | AD38: 0 | AF38: 2072866.667 | AG38: 0 | AH38: 2421080.993 | AI38: 1131760.939 | AJ38: 4298282.954 | AK38: 0 | AL38: 0 | AM38: 0 | AN38: =L38/100*Z38 -> 0 | AO38: 0 | AP38: 0 | AQ38: 0 | AR38: 0 | AS38: 9923991.553
A39: CLLVB | B39: Large low Voltage Bulk | D39: 6000 | E39: 0 | F39: 2.11 | G39: 1.31 | H39: 66.14 | I39: 0 | J39: 0 | K39: 0 | L39: 0 | M39: 0 | N39: 0 | O39: 0 | P39: 0 | R39: 1731.166667 | S39: 0 | T39: 1101354717 | U39: 829525555.8 | V39: 627630.9803 | W39: 0 | X39: 0 | Y39: 0 | Z39: 0 | AA39: 0 | AB39: 0 | AC39: 0 | AD39: 0 | AF39: 10387000 | AG39: 0 | AH39: 23238584.53 | AI39: 10866784.78 | AJ39: 41511513.04 | AK39: 0 | AL39: 0 | AM39: 0 | AN39: 0 | AO39: 0 | AP39: 0 | AQ39: 0 | AR39: 0 | AS39: 86003882.36
A40: CHV | B40: High Voltage | D40: 31800 | E40: 0 | F40: 1.24 | G40: 0.64 | H40: 35.02 | I40: 0 | J40: 0 | K40: 0 | L40: 0 | M40: 0 | N40: 0 | O40: 0 | P40: 0 | R40: 88 | S40: 0 | T40: 345704462.1 | U40: 319905209.4 | V40: 191921.5767 | W40: 0 | X40: 0 | Y40: 0 | Z40: 0 | AA40: 0 | AB40: 0 | AC40: 0 | AD40: 0 | AF40: 2798400 | AG40: 0 | AH40: 4286735.33 | AI40: 2047393.34 | AJ40: 6721093.618 | AK40: 0 | AL40: 0 | AM40: 0 | AN40: 0 | AO40: 0 | AP40: 0 | AQ40: 0 | AR40: 0 | AS40: 15853622.29
A41: CST | B41: Subtransmission | D41: 146800 | E41: 0 | F41: 0.11 | G41: 0.04 | H41: 0.86 | I41: 0 | J41: 0 | K41: 0 | L41: 0 | M41: 0 | N41: 0 | O41: 0 | P41: 0 | R41: 6 | S41: 0 | T41: 63161450.7 | U41: 37546309.72 | V41: 35559.26992 | W41: 0 | X41: 0 | Y41: 0 | Z41: 0 | AA41: 0 | AB41: 0 | AC41: 0 | AD41: 0 | AF41: 880800 | AG41: 0 | AH41: 69477.59577 | AI41: 15018.52389 | AJ41: 30580.97213 | AK41: 0 | AL41: 0 | AM41: 0 | AN41: 0 | AO41: 0 | AP41: 0 | AQ41: 0 | AR41: 0 | AS41: 995877.0918
AF42: 0 | AG42: 0 | AH42: 0 | AI42: 0 | AJ42: 0 | AK42: 0 | AL42: 0 | AM42: 0 | AN42: 0 | AO42: 0 | AP42: 0 | AQ42: 0 | AR42: 0 | AS42: 0
AF43: 0 | AG43: 0 | AH43: 0 | AI43: 0 | AJ43: 0 | AK43: 0 | AL43: 0 | AM43: 0 | AN43: 0 | AO43: 0 | AP43: 0 | AQ43: 0 | AR43: 0 | AS43: 0
AF44: 0 | AG44: 0 | AH44: 0 | AI44: 0 | AJ44: 0 | AK44: 0 | AL44: 0 | AM44: 0 | AN44: 0 | AO44: 0 | AP44: 0 | AQ44: 0 | AR44: 0 | AS44: 0
AF45: 0 | AG45: 0 | AH45: 0 | AI45: 0 | AJ45: 0 | AK45: 0 | AL45: 0 | AM45: 0 | AN45: 0 | AO45: 0 | AP45: 0 | AQ45: 0 | AR45: 0 | AS45: 0
AF46: 0 | AG46: 0 | AH46: 0 | AI46: 0 | AJ46: 0 | AK46: 0 | AL46: 0 | AM46: 0 | AN46: 0 | AO46: 0 | AP46: 0 | AQ46: 0 | AR46: 0 | AS46: 0
AF47: 0 | AG47: 0 | AH47: 0 | AI47: 0 | AJ47: 0 | AK47: 0 | AL47: 0 | AM47: 0 | AN47: 0 | AO47: 0 | AP47: 0 | AQ47: 0 | AR47: 0 | AS47: 0
AF48: 0 | AG48: 0 | AH48: 0 | AI48: 0 | AJ48: 0 | AK48: 0 | AL48: 0 | AM48: 0 | AN48: 0 | AO48: 0 | AP48: 0 | AQ48: 0 | AR48: 0 | AS48: 0
AF49: 0 | AG49: 0 | AH49: 0 | AI49: 0 | AJ49: 0 | AK49: 0 | AL49: 0 | AM49: 0 | AN49: 0 | AO49: 0 | AP49: 0 | AQ49: 0 | AR49: 0 | AS49: 0
AF50: 0 | AG50: 0 | AH50: 0 | AI50: 0 | AJ50: 0 | AK50: 0 | AL50: 0 | AM50: 0 | AN50: 0 | AO50: 0 | AP50: 0 | AQ50: 0 | AR50: 0 | AS50: 0
AF51: 0 | AG51: 0 | AH51: 0 | AI51: 0 | AJ51: 0 | AK51: 0 | AL51: 0 | AM51: 0 | AN51: 0 | AO51: 0 | AP51: 0 | AQ51: 0 | AR51: 0 | AS51: 0
AF52: 0 | AG52: 0 | AH52: 0 | AI52: 0 | AJ52: 0 | AK52: 0 | AL52: 0 | AM52: 0 | AN52: 0 | AO52: 0 | AP52: 0 | AQ52: 0 | AR52: 0 | AS52: 0
AF53: 0 | AG53: 0 | AH53: 0 | AI53: 0 | AJ53: 0 | AK53: 0 | AL53: 0 | AM53: 0 | AN53: 0 | AO53: 0 | AP53: 0 | AQ53: 0 | AR53: 0 | AS53: 0
AF54: 0 | AG54: 0 | AH54: 0 | AI54: 0 | AJ54: 0 | AK54: 0 | AL54: 0 | AM54: 0 | AN54: 0 | AO54: =M54/100*AA54 -> 0 | AP54: =N54/100*AB54 -> 0 | AQ54: =O54/100*AC54 -> 0 | AR54: =P54/100*AD54 -> 0 | AS54: 0
AF55: 0 | AG55: 0 | AH55: 0 | AI55: 0 | AJ55: 0 | AK55: 0 | AL55: 0 | AM55: 0 | AN55: 0 | AO55: 0 | AP55: 0 | AQ55: 0 | AR55: 0 | AS55: 0
AF56: 0 | AG56: 0 | AH56: 0 | AI56: 0 | AJ56: 0 | AK56: 0 | AL56: 0 | AM56: 0 | AN56: 0 | AO56: 0 | AP56: 0 | AQ56: 0 | AR56: 0 | AS56: 0
AF57: 0 | AG57: 0 | AH57: 0 | AI57: 0 | AJ57: 0 | AK57: 0 | AL57: 0 | AM57: 0 | AN57: 0 | AO57: 0 | AP57: 0 | AQ57: 0 | AR57: 0 | AS57: 0
AF58: 0 | AG58: 0 | AH58: 0 | AI58: 0 | AJ58: 0 | AK58: 0 | AL58: 0 | AM58: 0 | AN58: 0 | AO58: 0 | AP58: 0 | AQ58: 0 | AR58: 0 | AS58: 0
AF59: 0 | AG59: 0 | AH59: 0 | AI59: 0 | AJ59: 0 | AK59: 0 | AL59: 0 | AM59: 0 | AN59: 0 | AO59: 0 | AP59: 0 | AQ59: 0 | AR59: 0 | AS59: 0
AF60: 0 | AG60: 0 | AH60: 0 | AI60: 0 | AJ60: 0 | AK60: 0 | AL60: 0 | AM60: 0 | AN60: 0 | AO60: 0 | AP60: 0 | AQ60: 0 | AR60: 0 | AS60: 0
AF61: 0 | AG61: 0 | AH61: 0 | AI61: 0 | AJ61: 0 | AK61: 0 | AL61: 0 | AM61: 0 | AN61: 0 | AO61: 0 | AP61: 0 | AQ61: 0 | AR61: 0 | AS61: 0
AF62: 0 | AG62: 0 | AH62: 0 | AI62: 0 | AJ62: 0 | AK62: 0 | AL62: 0 | AM62: 0 | AN62: 0 | AO62: 0 | AP62: 0 | AQ62: 0 | AR62: 0 | AS62: 0
AF63: 0 | AG63: 0 | AH63: 0 | AI63: 0 | AJ63: 0 | AK63: 0 | AL63: 0 | AM63: 0 | AN63: 0 | AO63: 0 | AP63: 0 | AQ63: 0 | AR63: 0 | AS63: 0
AF64: 0 | AG64: 0 | AH64: 0 | AI64: 0 | AJ64: 0 | AK64: 0 | AL64: 0 | AM64: 0 | AN64: 0 | AO64: 0 | AP64: 0 | AQ64: 0 | AR64: 0 | AS64: 0
AF65: 0 | AG65: 0 | AH65: 0 | AI65: 0 | AJ65: 0 | AK65: 0 | AL65: 0 | AM65: 0 | AN65: 0 | AO65: 0 | AP65: 0 | AQ65: 0 | AR65: 0 | AS65: 0
R66: =SUM(R6:R65) -> 373143.8333 | S66: 1272086461 | T66: 2597281822 | U66: 2012408976 | V66: 914893.2311 | W66: 1252129.448 | X66: 2174517.995 | Y66: 414808.5659 | Z66: 515541.7504 | AA66: =SUM(AA6:AA65) -> 510185.1308 | AB66: 1382965.645 | AC66: 1828108.288 | AD66: 1739470.868 | AF66: 54226785 | AG66: 62399673.3 | AH66: 85272151.48 | AI66: 34138880.07 | AJ66: 52561470.58 | AK66: 6536170.713 | AL66: 5690368.067 | AM66: =SUM(AM6:AM65) -> 43377.20608 | AN66: 37051.24889 | AO66: 14384.10864 | AP66: 145357.2568 | AQ66: 131469.9613 | AR66: 49167.62245 | AS66: 301246306.6

Sheet Prop2020TransTar
B1: ="Tariff Approval - "&'Model update'!C3 -> Tariff Approval - CitiPower | D1: ="Prop"&'Model update'!$C$5&"TransTar" -> Prop2020TransTar
B3: ="PROPOSED "&'Model update'!$C$5&" TRANSMISSION TARIFFS" -> PROPOSED 2020 TRANSMISSION TARIFFS
D4: ="Proposed Transmission Tariffs (Pt) for "&'Model update'!$C$5 -> Proposed Transmission Tariffs (Pt) for 2020 | R4: ="Forecast Quantities (Qt) for "&'Model update'!$C$5 -> Forecast Quantities (Qt) for 2020 | AF4: ="Forecast Revenue (Pt "&'Model update'!$C$5&")*(Qt " &'Model update'!$C$5&")" -> Forecast Revenue (Pt 2020)*(Qt 2020)
B5: Proposed tariff | D5: =Prop2020DistTar!D5 -> PropTar Fixed | E5: =Prop2020DistTar!E5 -> PropTar Anytime | F5: =Prop2020DistTar!F5 -> PropTar PkBlk | G5: =Prop2020DistTar!G5 -> PropTar OPkBlk1 | H5: =Prop2020DistTar!H5 -> PropTar Dem kVA | I5: =Prop2020DistTar!I5 -> PropTar Dem kW Sum | J5: =Prop2020DistTar!J5 -> PropTar Dem kW Win | K5: =Prop2020DistTar!K5 -> PropTar SumBlk1 | L5: =Prop2020DistTar!L5 -> PropTar SumBlk2 | M5: =Prop2020DistTar!M5 -> PropTar SumBlk3 | N5: =Prop2020DistTar!N5 -> PropTar WtrBlk1 | O5: =Prop2020DistTar!O5 -> PropTar WtrBlk2 | P5: =Prop2020DistTar!P5 -> PropTar WtrBlk3 | R5: =Prop2020DistTar!AF5 -> FcastVol Fixed | S5: =Prop2020DistTar!AG5 -> FcastVol Anytime | T5: =Prop2020DistTar!AH5 -> FcastVol Pk | U5: =Prop2020DistTar!AI5 -> FcastVol Opk | V5: =Prop2020DistTar!AJ5 -> FcastVol Dem kVA | W5: =Prop2020DistTar!AK5 -> FcastVol Dem kW Sum | X5: =Prop2020DistTar!AL5 -> FcastVol Dem kW Win | Y5: =Prop2020DistTar!AM5 -> FcastVol SumBlk1 | Z5: =Prop2020DistTar!AN5 -> FcastVol SumBlk2 | AA5: =Prop2020DistTar!AO5 -> FcastVol SumBlk3 | AB5: =Prop2020DistTar!AP5 -> FcastVol WtrBlk1 | AC5: =Prop2020DistTar!AQ5 -> FcastVol WtrBlk2 | AD5: =Prop2020DistTar!AR5 -> FcastVol WtrBlk3 | AF5: =Prop2020DistTar!AT5 -> PropRev Fixed | AG5: =Prop2020DistTar!AU5 -> PropRev Anytime | AH5: =Prop2020DistTar!AV5 -> PropRev Pk | AI5: =Prop2020DistTar!AW5 -> PropRev Opk | AJ5: =Prop2020DistTar!AX5 -> PropRev Dem kVA | AK5: =Prop2020DistTar!AY5 -> PropRev Dem kW Sum | AL5: =Prop2020DistTar!AZ5 -> PropRev Dem kW Win | AM5: =Prop2020DistTar!BA5 -> PropRev SumBlk1 | AN5: =Prop2020DistTar!BB5 -> PropRev SumBlk2 | AO5: =Prop2020DistTar!BC5 -> PropRev SumBlk3 | AP5: =Prop2020DistTar!BD5 -> PropRev WtrBlk1 | AQ5: =Prop2020DistTar!BE5 -> PropRev WtrBlk2 | AR5: =Prop2020DistTar!BF5 -> PropRev WtrBlk3 | AS5: PropRev Total
B6: =Prop2020DistTar!B6 -> Residential Single Rate | C6: C1R | D6: 0 | E6: 2.1 | F6: 0 | G6: 0 | H6: 0 | I6: 0 | J6: 0 | K6: 0 | L6: 0 | M6: 0 | N6: 0 | O6: 0 | P6: 0 | R6: =Prop2020DistTar!AF6 -> 206178.4408 | S6: =Prop2020DistTar!AG6 -> 848271452.5 | T6: =Prop2020DistTar!AH6 -> 0 | U6: =Prop2020DistTar!AI6 -> 0 | V6: =Prop2020DistTar!AJ6 -> 0 | W6: =Prop2020DistTar!AK6 -> 0 | X6: =Prop2020DistTar!AL6 -> 0 | Y6: =Prop2020DistTar!AM6 -> 0 | Z6: =Prop2020DistTar!AN6 -> 0 | AA6: =Prop2020DistTar!AO6 -> 0 | AB6: =Prop2020DistTar!AP6 -> 0 | AC6: =Prop2020DistTar!AQ6 -> 0 | AD6: =Prop2020DistTar!AR6 -> 0 | AF6: =D6*R6 -> 0 | AG6: =E6/100*S6 -> 17813700.5 | AH6: 0 | AI6: 0 | AJ6: =H6*V6 -> 0 | AK6: =I6*W6 -> 0 | AL6: 0 | AM6: 0 | AN6: 0 | AO6: =M6/100*AA6 -> 0 | AP6: =N6/100*AB6 -> 0 | AQ6: =O6/100*AC6 -> 0 | AR6: =P6/100*AD6 -> 0 | AS6: =SUM(AF6:AR6) -> 17813700.5
B7: =Prop2020DistTar!B7 -> Residential Single Rate - Bulk | C7: C1RB | D7: 0 | E7: 1.17 | F7: 0 | G7: 0 | H7: 0 | I7: 0 | J7: 0 | K7: 0 | L7: 0 | M7: 0 | N7: 0 | O7: 0 | P7: 0 | R7: =Prop2020DistTar!AF7 -> 31089.94761 | S7: =Prop2020DistTar!AG7 -> 107478291.6 | T7: =Prop2020DistTar!AH7 -> 0 | U7: =Prop2020DistTar!AI7 -> 0 | V7: =Prop2020DistTar!AJ7 -> 0 | W7: =Prop2020DistTar!AK7 -> 0 | X7: =Prop2020DistTar!AL7 -> 0 | Y7: =Prop2020DistTar!AM7 -> 0 | Z7: =Prop2020DistTar!AN7 -> 0 | AA7: =Prop2020DistTar!AO7 -> 0 | AB7: =Prop2020DistTar!AP7 -> 0 | AC7: =Prop2020DistTar!AQ7 -> 0 | AD7: =Prop2020DistTar!AR7 -> 0 | AF7: =D7*R7 -> 0 | AG7: =E7/100*S7 -> 1257496.012 | AH7: 0 | AI7: 0 | AJ7: =H7*V7 -> 0 | AK7: =I7*W7 -> 0 | AL7: =J7*X7 -> 0 | AM7: 0 | AN7: 0 | AO7: 0 | AP7: 0 | AQ7: 0 | AR7: 0 | AS7: =SUM(AF7:AR7) -> 1257496.012
B8: =Prop2020DistTar!B8 -> Residential - flexible pricing | C8: C13R | D8: 0 | E8: 0 | F8: 0 | G8: 0 | H8: 0 | I8: 0 | J8: 0 | K8: 2.92 | L8: 1.97 | M8: 0.77 | N8: 2.92 | O8: 1.97 | P8: 0.77 | R8: =Prop2020DistTar!AF8 -> 697.7837744 | S8: =Prop2020DistTar!AG8 -> 0 | T8: =Prop2020DistTar!AH8 -> 0 | U8: =Prop2020DistTar!AI8 -> 0 | V8: =Prop2020DistTar!AJ8 -> 0 | W8: =Prop2020DistTar!AK8 -> 0 | X8: =Prop2020DistTar!AL8 -> 0 | Y8: =Prop2020DistTar!AM8 -> 182885.2841 | Z8: =Prop2020DistTar!AN8 -> 388824.7097 | AA8: =Prop2020DistTar!AO8 -> 289537.6096 | AB8: =Prop2020DistTar!AP8 -> 700283.2533 | AC8: =Prop2020DistTar!AQ8 -> 1488842.769 | AD8: =Prop2020DistTar!AR8 -> 1108664.047 | AF8: 0 | AG8: 0 | AH8: 0 | AI8: 0 | AJ8: 0 | AK8: 0 | AL8: 0 | AM8: 5340.250296 | AN8: 7659.846782 | AO8: 2229.439594 | AP8: 20448.271 | AQ8: 29330.20254 | AR8: 8536.713161 | AS8: 73544.72337
B9: =Prop2020DistTar!B9 -> Residential - flexible pricing bulk | C9: C13RB | D9: 0 | E9: 0 | F9: 0 | G9: 0 | H9: 0 | I9: 0 | J9: 0 | K9: 2.71 | L9: 1.83 | M9: 0.71 | N9: 2.71 | O9: 1.83 | P9: 0.71 | R9: =Prop2020DistTar!AF9 -> 92.82952683 | S9: =Prop2020DistTar!AG9 -> 0 | T9: =Prop2020DistTar!AH9 -> 0 | U9: =Prop2020DistTar!AI9 -> 0 | V9: =Prop2020DistTar!AJ9 -> 0 | W9: =Prop2020DistTar!AK9 -> 0 | X9: =Prop2020DistTar!AL9 -> 0 | Y9: =Prop2020DistTar!AM9 -> 15622.00683 | Z9: =Prop2020DistTar!AN9 -> 33980.3137 | AA9: =Prop2020DistTar!AO9 -> 24260.31259 | AB9: =Prop2020DistTar!AP9 -> 58675.49698 | AC9: =Prop2020DistTar!AQ9 -> 127628.4037 | AD9: =Prop2020DistTar!AR9 -> 91120.55282 | AF9: 0 | AG9: 0 | AH9: 0 | AI9: 0 | AJ9: 0 | AK9: 0 | AL9: 0 | AM9: 423.356385 | AN9: 621.8397407 | AO9: 172.2482194 | AP9: 1590.105968 | AQ9: 2335.599787 | AR9: 646.955925 | AS9: 5790.106026
B10: =Prop2020DistTar!B10 -> Residential Two Rate 5d | C10: C2R | D10: 0 | E10: 0 | F10: 2.63 | G10: 0.69 | H10: 0 | I10: 0 | J10: 0 | K10: 0 | L10: 0 | M10: 0 | N10: 0 | O10: 0 | P10: 0 | R10: =Prop2020DistTar!AF10 -> 10806.12165 | S10: =Prop2020DistTar!AG10 -> 0 | T10: =Prop2020DistTar!AH10 -> 33449615.67 | U10: =Prop2020DistTar!AI10 -> 29269859.99 | V10: =Prop2020DistTar!AJ10 -> 0 | W10: =Prop2020DistTar!AK10 -> 0 | X10: =Prop2020DistTar!AL10 -> 0 | Y10: =Prop2020DistTar!AM10 -> 0 | Z10: =Prop2020DistTar!AN10 -> 0 | AA10: =Prop2020DistTar!AO10 -> 0 | AB10: =Prop2020DistTar!AP10 -> 0 | AC10: =Prop2020DistTar!AQ10 -> 0 | AD10: =Prop2020DistTar!AR10 -> 0 | AF10: 0 | AG10: 0 | AH10: 879724.892 | AI10: 201962.0339 | AJ10: 0 | AK10: 0 | AL10: 0 | AM10: 0 | AN10: 0 | AO10: 0 | AP10: 0 | AQ10: 0 | AR10: 0 | AS10: 1081686.926
B11: =Prop2020DistTar!B11 -> Residential Two Rate 5d - Bulk | C11: C2RB | D11: 0 | E11: 0 | F11: 2.36 | G11: 0.65 | H11: 0 | I11: 0 | J11: 0 | K11: 0 | L11: 0 | M11: 0 | N11: 0 | O11: 0 | P11: 0 | R11: =Prop2020DistTar!AF11 -> 4316.824207 | S11: =Prop2020DistTar!AG11 -> 0 | T11: =Prop2020DistTar!AH11 -> 12001250.2 | U11: =Prop2020DistTar!AI11 -> 10487452.7 | V11: =Prop2020DistTar!AJ11 -> 0 | W11: =Prop2020DistTar!AK11 -> 0 | X11: =Prop2020DistTar!AL11 -> 0 | Y11: =Prop2020DistTar!AM11 -> 0 | Z11: =Prop2020DistTar!AN11 -> 0 | AA11: =Prop2020DistTar!AO11 -> 0 | AB11: =Prop2020DistTar!AP11 -> 0 | AC11: =Prop2020DistTar!AQ11 -> 0 | AD11: =Prop2020DistTar!AR11 -> 0 | AF11: 0 | AG11: 0 | AH11: 283229.5048 | AI11: 68168.44257 | AJ11: 0 | AK11: 0 | AL11: 0 | AM11: 0 | AN11: 0 | AO11: 0 | AP11: 0 | AQ11: 0 | AR11: 0 | AS11: 351397.9474
B12: =Prop2020DistTar!B12 -> Residential Interval | C12: C3R | D12: 0 | E12: 0 | F12: 2.63 | G12: 0.69 | H12: 0 | I12: 0 | J12: 0 | K12: 0 | L12: 0 | M12: 0 | N12: 0 | O12: 0 | P12: 0 | R12: =Prop2020DistTar!AF12 -> 17021.34205 | S12: =Prop2020DistTar!AG12 -> 0 | T12: =Prop2020DistTar!AH12 -> 51729844.46 | U12: =Prop2020DistTar!AI12 -> 45571765.37 | V12: =Prop2020DistTar!AJ12 -> 0 | W12: =Prop2020DistTar!AK12 -> 0 | X12: =Prop2020DistTar!AL12 -> 0 | Y12: =Prop2020DistTar!AM12 -> 0 | Z12: =Prop2020DistTar!AN12 -> 0 | AA12: =Prop2020DistTar!AO12 -> 0 | AB12: =Prop2020DistTar!AP12 -> 0 | AC12: =Prop2020DistTar!AQ12 -> 0 | AD12: =Prop2020DistTar!AR12 -> 0 | AF12: 0 | AG12: 0 | AH12: 1360494.909 | AI12: 314445.1811 | AJ12: 0 | AK12: 0 | AL12: 0 | AM12: 0 | AN12: 0 | AO12: 0 | AP12: 0 | AQ12: 0 | AR12: 0 | AS12: 1674940.09
B13: =Prop2020DistTar!B13 -> Residential Interval - Bulk | C13: C3RB | D13: 0 | E13: 0 | F13: 2.36 | G13: 0.65 | H13: 0 | I13: 0 | J13: 0 | K13: 0 | L13: 0 | M13: 0 | N13: 0 | O13: 0 | P13: 0 | R13: =Prop2020DistTar!AF13 -> 8705.349809 | S13: =Prop2020DistTar!AG13 -> 0 | T13: =Prop2020DistTar!AH13 -> 15093462.87 | U13: =Prop2020DistTar!AI13 -> 14304461.08 | V13: =Prop2020DistTar!AJ13 -> 0 | W13: =Prop2020DistTar!AK13 -> 0 | X13: =Prop2020DistTar!AL13 -> 0 | Y13: =Prop2020DistTar!AM13 -> 0 | Z13: =Prop2020DistTar!AN13 -> 0 | AA13: =Prop2020DistTar!AO13 -> 0 | AB13: =Prop2020DistTar!AP13 -> 0 | AC13: =Prop2020DistTar!AQ13 -> 0 | AD13: =Prop2020DistTar!AR13 -> 0 | AF13: 0 | AG13: 0 | AH13: 356205.7236 | AI13: 92978.99702 | AJ13: 0 | AK13: 0 | AL13: 0 | AM13: 0 | AN13: 0 | AO13: 0 | AP13: 0 | AQ13: 0 | AR13: 0 | AS13: 449184.7207
B14: =Prop2020DistTar!B14 -> Residential Two Rate 5d - Controlled Load | C14: C2ROP | D14: 0 | E14: 0 | F14: 0 | G14: 0 | H14: 0 | I14: 0 | J14: 0 | K14: 0 | L14: 0 | M14: 0 | N14: 0 | O14: 0 | P14: 0 | R14: =Prop2020DistTar!AF14 -> 0 | S14: =Prop2020DistTar!AG14 -> 0 | T14: =Prop2020DistTar!AH14 -> 0 | U14: =Prop2020DistTar!AI14 -> 0 | V14: =Prop2020DistTar!AJ14 -> 0 | W14: =Prop2020DistTar!AK14 -> 0 | X14: =Prop2020DistTar!AL14 -> 0 | Y14: =Prop2020DistTar!AM14 -> 0 | Z14: =Prop2020DistTar!AN14 -> 0 | AA14: =Prop2020DistTar!AO14 -> 0 | AB14: =Prop2020DistTar!AP14 -> 0 | AC14: =Prop2020DistTar!AQ14 -> 0 | AD14: =Prop2020DistTar!AR14 -> 0 | AF14: 0 | AG14: 0 | AH14: 0 | AI14: 0 | AJ14: 0 | AK14: 0 | AL14: 0 | AM14: 0 | AN14: 0 | AO14: 0 | AP14: 0 | AQ14: 0 | AR14: 0 | AS14: 0
B15: =Prop2020DistTar!B15 -> Residential Two Rate 5d - Bulk - Controlled Load | C15: C2RBOP | D15: 0 | E15: 0 | F15: 0 | G15: 0 | H15: 0 | I15: 0 | J15: 0 | K15: 0 | L15: 0 | M15: 0 | N15: 0 | O15: 0 | P15: 0 | R15: =Prop2020DistTar!AF15 -> 0 | S15: =Prop2020DistTar!AG15 -> 0 | T15: =Prop2020DistTar!AH15 -> 0 | U15: =Prop2020DistTar!AI15 -> 0 | V15: =Prop2020DistTar!AJ15 -> 0 | W15: =Prop2020DistTar!AK15 -> 0 | X15: =Prop2020DistTar!AL15 -> 0 | Y15: =Prop2020DistTar!AM15 -> 0 | Z15: =Prop2020DistTar!AN15 -> 0 | AA15: =Prop2020DistTar!AO15 -> 0 | AB15: =Prop2020DistTar!AP15 -> 0 | AC15: =Prop2020DistTar!AQ15 -> 0 | AD15: =Prop2020DistTar!AR15 -> 0 | AF15: 0 | AG15: 0 | AH15: 0 | AI15: 0 | AJ15: 0 | AK15: 0 | AL15: 0 | AM15: 0 | AN15: 0 | AO15: 0 | AP15: 0 | AQ15: 0 | AR15: 0 | AS15: 0
B16: =Prop2020DistTar!B16 -> Dedicated Circuit | C16: CDS | D16: 0 | E16: 0 | F16: 0 | G16: 0.47 | H16: 0 | I16: 0 | J16: 0 | K16: 0 | L16: 0 | M16: 0 | N16: 0 | O16: 0 | P16: 0 | R16: =Prop2020DistTar!AF16 -> 32498.74505 | S16: =Prop2020DistTar!AG16 -> 0 | T16: =Prop2020DistTar!AH16 -> 0 | U16: =Prop2020DistTar!AI16 -> 50045800.12 | V16: =Prop2020DistTar!AJ16 -> 0 | W16: =Prop2020DistTar!AK16 -> 0 | X16: =Prop2020DistTar!AL16 -> 0 | Y16: =Prop2020DistTar!AM16 -> 0 | Z16: =Prop2020DistTar!AN16 -> 0 | AA16: =Prop2020DistTar!AO16 -> 0 | AB16: =Prop2020DistTar!AP16 -> 0 | AC16: =Prop2020DistTar!AQ16 -> 0 | AD16: =Prop2020DistTar!AR16 -> 0 | AF16: 0 | AG16: 0 | AH16: 0 | AI16: 235215.2606 | AJ16: 0 | AK16: 0 | AL16: 0 | AM16: 0 | AN16: 0 | AO16: 0 | AP16: 0 | AQ16: 0 | AR16: 0 | AS16: 235215.2606
B17: =Prop2020DistTar!B17 -> Dedicated Circuit - Bulk | C17: CDSB | D17: 0 | E17: 0 | F17: 0 | G17: 0.39 | H17: 0 | I17: 0 | J17: 0 | K17: 0 | L17: 0 | M17: 0 | N17: 0 | O17: 0 | P17: 0 | R17: =Prop2020DistTar!AF17 -> 5581.41933 | S17: =Prop2020DistTar!AG17 -> 0 | T17: =Prop2020DistTar!AH17 -> 0 | U17: =Prop2020DistTar!AI17 -> 9263135.829 | V17: =Prop2020DistTar!AJ17 -> 0 | W17: =Prop2020DistTar!AK17 -> 0 | X17: =Prop2020DistTar!AL17 -> 0 | Y17: =Prop2020DistTar!AM17 -> 0 | Z17: =Prop2020DistTar!AN17 -> 0 | AA17: =Prop2020DistTar!AO17 -> 0 | AB17: =Prop2020DistTar!AP17 -> 0 | AC17: =Prop2020DistTar!AQ17 -> 0 | AD17: =Prop2020DistTar!AR17 -> 0 | AF17: 0 | AG17: 0 | AH17: 0 | AI17: 36126.22973 | AJ17: 0 | AK17: 0 | AL17: 0 | AM17: 0 | AN17: 0 | AO17: 0 | AP17: 0 | AQ17: 0 | AR17: 0 | AS17: 36126.22973
B18: =Prop2020DistTar!B18 -> Residential Demand | C18: CR | D18: 0 | E18: 0.78 | F18: 0 | G18: 0 | H18: 0 | I18: 1.9 | J18: 0.65 | K18: 0 | L18: 0 | M18: 0 | N18: 0 | O18: 0 | P18: 0 | R18: =Prop2020DistTar!AF18 -> 8.422561488 | S18: =Prop2020DistTar!AG18 -> 49160.92188 | T18: =Prop2020DistTar!AH18 -> 0 | U18: =Prop2020DistTar!AI18 -> 0 | V18: =Prop2020DistTar!AJ18 -> 0 | W18: =Prop2020DistTar!AK18 -> 91.99320375 | X18: =Prop2020DistTar!AL18 -> 214.7200986 | Y18: =Prop2020DistTar!AM18 -> 0 | Z18: =Prop2020DistTar!AN18 -> 0 | AA18: =Prop2020DistTar!AO18 -> 0 | AB18: =Prop2020DistTar!AP18 -> 0 | AC18: =Prop2020DistTar!AQ18 -> 0 | AD18: =Prop2020DistTar!AR18 -> 0 | AF18: 0 | AG18: 383.4551907 | AH18: 0 | AI18: 0 | AJ18: 0 | AK18: 174.7870871 | AL18: 139.5680641 | AM18: 0 | AN18: 0 | AO18: 0 | AP18: 0 | AQ18: 0 | AR18: 0 | AS18: 697.8103419
B19: =Prop2020DistTar!B19 -> Residential Bulk Demand | C19: CRB | D19: 0 | E19: 0.62 | F19: 0 | G19: 0 | H19: 0 | I19: 1.55 | J19: 0.52 | K19: 0 | L19: 0 | M19: 0 | N19: 0 | O19: 0 | P19: 0 | R19: =Prop2020DistTar!AF19 -> 1.956906318 | S19: =Prop2020DistTar!AG19 -> 11446.58721 | T19: =Prop2020DistTar!AH19 -> 0 | U19: =Prop2020DistTar!AI19 -> 0 | V19: =Prop2020DistTar!AJ19 -> 0 | W19: =Prop2020DistTar!AK19 -> 18.99501176 | X19: =Prop2020DistTar!AL19 -> 47.50351373 | Y19: =Prop2020DistTar!AM19 -> 0 | Z19: =Prop2020DistTar!AN19 -> 0 | AA19: =Prop2020DistTar!AO19 -> 0 | AB19: =Prop2020DistTar!AP19 -> 0 | AC19: =Prop2020DistTar!AQ19 -> 0 | AD19: =Prop2020DistTar!AR19 -> 0 | AF19: 0 | AG19: 70.96884069 | AH19: 0 | AI19: 0 | AJ19: 0 | AK19: 29.44226824 | AL19: 24.70182714 | AM19: 0 | AN19: 0 | AO19: 0 | AP19: 0 | AQ19: 0 | AR19: 0 | AS19: 125.1129361
B20: =Prop2020DistTar!B20 -> Non-Residential Single Rate | C20: C1G | D20: 0 | E20: 2.23 | F20: 0 | G20: 0 | H20: 0 | I20: 0 | J20: 0 | K20: 0 | L20: 0 | M20: 0 | N20: 0 | O20: 0 | P20: 0 | R20: =Prop2020DistTar!AF20 -> 19278.92846 | S20: =Prop2020DistTar!AG20 -> 234414508.1 | T20: =Prop2020DistTar!AH20 -> 0 | U20: =Prop2020DistTar!AI20 -> 0 | V20: =Prop2020DistTar!AJ20 -> 0 | W20: =Prop2020DistTar!AK20 -> 0 | X20: =Prop2020DistTar!AL20 -> 0 | Y20: =Prop2020DistTar!AM20 -> 0 | Z20: =Prop2020DistTar!AN20 -> 0 | AA20: =Prop2020DistTar!AO20 -> 0 | AB20: =Prop2020DistTar!AP20 -> 0 | AC20: =Prop2020DistTar!AQ20 -> 0 | AD20: =Prop2020DistTar!AR20 -> 0 | AF20: 0 | AG20: 5227443.531 | AH20: 0 | AI20: 0 | AJ20: 0 | AK20: 0 | AL20: 0 | AM20: 0 | AN20: 0 | AO20: 0 | AP20: 0 | AQ20: 0 | AR20: 0 | AS20: 5227443.531
B21: =Prop2020DistTar!B21 -> Non-Residential Single Rate - Bulk | C21: C1GB | D21: 0 | E21: 1.51 | F21: 0 | G21: 0 | H21: 0 | I21: 0 | J21: 0 | K21: 0 | L21: 0 | M21: 0 | N21: 0 | O21: 0 | P21: 0 | R21: =Prop2020DistTar!AF21 -> 5769.609032 | S21: =Prop2020DistTar!AG21 -> 81668548.05 | T21: =Prop2020DistTar!AH21 -> 0 | U21: =Prop2020DistTar!AI21 -> 0 | V21: =Prop2020DistTar!AJ21 -> 0 | W21: =Prop2020DistTar!AK21 -> 0 | X21: =Prop2020DistTar!AL21 -> 0 | Y21: =Prop2020DistTar!AM21 -> 0 | Z21: =Prop2020DistTar!AN21 -> 0 | AA21: =Prop2020DistTar!AO21 -> 0 | AB21: =Prop2020DistTar!AP21 -> 0 | AC21: =Prop2020DistTar!AQ21 -> 0 | AD21: =Prop2020DistTar!AR21 -> 0 | AF21: 0 | AG21: 1233195.076 | AH21: 0 | AI21: 0 | AJ21: 0 | AK21: 0 | AL21: 0 | AM21: 0 | AN21: 0 | AO21: 0 | AP21: 0 | AQ21: 0 | AR21: 0 | AS21: 1233195.076
B22: =Prop2020DistTar!B22 -> Non-Residential Two Rate 5d | C22: C2G5 | D22: 0 | E22: 0 | F22: 2.58 | G22: 0.81 | H22: 0 | I22: 0 | J22: 0 | K22: 0 | L22: 0 | M22: 0 | N22: 0 | O22: 0 | P22: 0 | R22: =Prop2020DistTar!AF22 -> 6175.655125 | S22: =Prop2020DistTar!AG22 -> 0 | T22: =Prop2020DistTar!AH22 -> 70438600.52 | U22: =Prop2020DistTar!AI22 -> 44830727.12 | V22: =Prop2020DistTar!AJ22 -> 0 | W22: =Prop2020DistTar!AK22 -> 0 | X22: =Prop2020DistTar!AL22 -> 0 | Y22: =Prop2020DistTar!AM22 -> 0 | Z22: =Prop2020DistTar!AN22 -> 0 | AA22: =Prop2020DistTar!AO22 -> 0 | AB22: =Prop2020DistTar!AP22 -> 0 | AC22: =Prop2020DistTar!AQ22 -> 0 | AD22: =Prop2020DistTar!AR22 -> 0 | AF22: 0 | AG22: 0 | AH22: 1817315.893 | AI22: 363128.8897 | AJ22: 0 | AK22: 0 | AL22: 0 | AM22: 0 | AN22: 0 | AO22: 0 | AP22: 0 | AQ22: 0 | AR22: 0 | AS22: 2180444.783
B23: =Prop2020DistTar!B23 -> Non-Residential Two Rate 5d - Bulk | C23: C2G5B | D23: 0 | E23: 0 | F23: 2.14 | G23: 0.69 | H23: 0 | I23: 0 | J23: 0 | K23: 0 | L23: 0 | M23: 0 | N23: 0 | O23: 0 | P23: 0 | R23: =Prop2020DistTar!AF23 -> 999.4319126 | S23: =Prop2020DistTar!AG23 -> 0 | T23: =Prop2020DistTar!AH23 -> 16508026.38 | U23: =Prop2020DistTar!AI23 -> 10058974.84 | V23: =Prop2020DistTar!AJ23 -> 0 | W23: =Prop2020DistTar!AK23 -> 0 | X23: =Prop2020DistTar!AL23 -> 0 | Y23: =Prop2020DistTar!AM23 -> 0 | Z23: =Prop2020DistTar!AN23 -> 0 | AA23: =Prop2020DistTar!AO23 -> 0 | AB23: =Prop2020DistTar!AP23 -> 0 | AC23: =Prop2020DistTar!AQ23 -> 0 | AD23: =Prop2020DistTar!AR23 -> 0 | AF23: 0 | AG23: 0 | AH23: 353271.7645 | AI23: 69406.92637 | AJ23: 0 | AK23: 0 | AL23: 0 | AM23: 0 | AN23: 0 | AO23: 0 | AP23: 0 | AQ23: 0 | AR23: 0 | AS23: 422678.6909
B24: =Prop2020DistTar!B24 -> Non-Residential Interval | C24: C3G | D24: 0 | E24: 0 | F24: 2.58 | G24: 0.75 | H24: 0 | I24: 0 | J24: 0 | K24: 0 | L24: 0 | M24: 0 | N24: 0 | O24: 0 | P24: 0 | R24: =Prop2020DistTar!AF24 -> 3789.629203 | S24: =Prop2020DistTar!AG24 -> 0 | T24: =Prop2020DistTar!AH24 -> 44801539.36 | U24: =Prop2020DistTar!AI24 -> 25848587 | V24: =Prop2020DistTar!AJ24 -> 0 | W24: =Prop2020DistTar!AK24 -> 0 | X24: =Prop2020DistTar!AL24 -> 0 | Y24: =Prop2020DistTar!AM24 -> 0 | Z24: =Prop2020DistTar!AN24 -> 0 | AA24: =Prop2020DistTar!AO24 -> 0 | AB24: =Prop2020DistTar!AP24 -> 0 | AC24: =Prop2020DistTar!AQ24 -> 0 | AD24: =Prop2020DistTar!AR24 -> 0 | AF24: 0 | AG24: 0 | AH24: 1155879.715 | AI24: 193864.4025 | AJ24: 0 | AK24: 0 | AL24: 0 | AM24: 0 | AN24: 0 | AO24: 0 | AP24: 0 | AQ24: 0 | AR24: 0 | AS24: 1349744.118
B25: =Prop2020DistTar!B25 -> Non-Residential Interval - Bulk | C25: C3GB | D25: 0 | E25: 0 | F25: 2.14 | G25: 0.69 | H25: 0 | I25: 0 | J25: 0 | K25: 0 | L25: 0 | M25: 0 | N25: 0 | O25: 0 | P25: 0 | R25: =Prop2020DistTar!AF25 -> 1768.977272 | S25: =Prop2020DistTar!AG25 -> 0 | T25: =Prop2020DistTar!AH25 -> 27824537.94 | U25: =Prop2020DistTar!AI25 -> 14553393.12 | V25: =Prop2020DistTar!AJ25 -> 0 | W25: =Prop2020DistTar!AK25 -> 0 | X25: =Prop2020DistTar!AL25 -> 0 | Y25: =Prop2020DistTar!AM25 -> 0 | Z25: =Prop2020DistTar!AN25 -> 0 | AA25: =Prop2020DistTar!AO25 -> 0 | AB25: =Prop2020DistTar!AP25 -> 0 | AC25: =Prop2020DistTar!AQ25 -> 0 | AD25: =Prop2020DistTar!AR25 -> 0 | AF25: 0 | AG25: 0 | AH25: 595445.112 | AI25: 100418.4125 | AJ25: 0 | AK25: 0 | AL25: 0 | AM25: 0 | AN25: 0 | AO25: 0 | AP25: 0 | AQ25: 0 | AR25: 0 | AS25: 695863.5245
B26: =Prop2020DistTar!B26 -> Non-Residential Flexible Pricing | C26: C14G | D26: 0 | E26: 0 | F26: 0 | G26: 0 | H26: 0 | I26: 0 | J26: 0 | K26: 3.14 | L26: 2.19 | M26: 0.86 | N26: 3.14 | O26: 2.19 | P26: 0.86 | R26: =Prop2020DistTar!AF26 -> 20.7350502 | S26: =Prop2020DistTar!AG26 -> 0 | T26: =Prop2020DistTar!AH26 -> 0 | U26: =Prop2020DistTar!AI26 -> 0 | V26: =Prop2020DistTar!AJ26 -> 0 | W26: =Prop2020DistTar!AK26 -> 0 | X26: =Prop2020DistTar!AL26 -> 0 | Y26: =Prop2020DistTar!AM26 -> 54335.80956 | Z26: =Prop2020DistTar!AN26 -> 14519.63982 | AA26: =Prop2020DistTar!AO26 -> 41864.17979 | AB26: =Prop2020DistTar!AP26 -> 174859.3812 | AC26: =Prop2020DistTar!AQ26 -> 46726.00362 | AD26: =Prop2020DistTar!AR26 -> 134724.1282 | AF26: 0 | AG26: 0 | AH26: 0 | AI26: 0 | AJ26: 0 | AK26: 0 | AL26: 0 | AM26: 1706.14442 | AN26: 317.980112 | AO26: 360.0319462 | AP26: 5490.584571 | AQ26: 1023.299479 | AR26: 1158.627503 | AS26: 10056.66803
B27: =Prop2020DistTar!B27 -> Non-Residential - Flexible Pricing Bulk | C27: C14GB | D27: 0 | E27: 0 | F27: 0 | G27: 0 | H27: 0 | I27: 0 | J27: 0 | K27: 2.83 | L27: 1.97 | M27: 0.78 | N27: 2.83 | O27: 1.97 | P27: 0.78 | R27: =Prop2020DistTar!AF27 -> 0.9183310064 | S27: =Prop2020DistTar!AG27 -> 0 | T27: =Prop2020DistTar!AH27 -> 0 | U27: =Prop2020DistTar!AI27 -> 0 | V27: =Prop2020DistTar!AJ27 -> 0 | W27: =Prop2020DistTar!AK27 -> 0 | X27: =Prop2020DistTar!AL27 -> 0 | Y27: =Prop2020DistTar!AM27 -> 22949.4972 | Z27: =Prop2020DistTar!AN27 -> 5681.954902 | AA27: =Prop2020DistTar!AO27 -> 20258.1029 | AB27: =Prop2020DistTar!AP27 -> 41846.92854 | AC27: =Prop2020DistTar!AQ27 -> 10360.67844 | AD27: =Prop2020DistTar!AR27 -> 36939.34456 | AF27: 0 | AG27: 0 | AH27: 0 | AI27: 0 | AJ27: 0 | AK27: 0 | AL27: 0 | AM27: 649.4707707 | AN27: 111.9345116 | AO27: 158.0132026 | AP27: 1184.268078 | AQ27: 204.1053652 | AR27: 288.1268876 | AS27: 2595.918815
B28: =Prop2020DistTar!B28 -> Non-Residential Two Rate 7d | C28: C2G7 | D28: 0 | E28: 0 | F28: 2.03 | G28: 0.75 | H28: 0 | I28: 0 | J28: 0 | K28: 0 | L28: 0 | M28: 0 | N28: 0 | O28: 0 | P28: 0 | R28: =Prop2020DistTar!AF28 -> 2306.948385 | S28: =Prop2020DistTar!AG28 -> 0 | T28: =Prop2020DistTar!AH28 -> 38369324.72 | U28: =Prop2020DistTar!AI28 -> 9290402.212 | V28: =Prop2020DistTar!AJ28 -> 0 | W28: =Prop2020DistTar!AK28 -> 0 | X28: =Prop2020DistTar!AL28 -> 0 | Y28: =Prop2020DistTar!AM28 -> 0 | Z28: =Prop2020DistTar!AN28 -> 0 | AA28: =Prop2020DistTar!AO28 -> 0 | AB28: =Prop2020DistTar!AP28 -> 0 | AC28: =Prop2020DistTar!AQ28 -> 0 | AD28: =Prop2020DistTar!AR28 -> 0 | AF28: 0 | AG28: 0 | AH28: 778897.2918 | AI28: 69678.01659 | AJ28: 0 | AK28: 0 | AL28: 0 | AM28: 0 | AN28: 0 | AO28: 0 | AP28: 0 | AQ28: 0 | AR28: 0 | AS28: 848575.3084
B29: =Prop2020DistTar!B29 -> Non-Residential Two Rate 7d - Bulk | C29: C2G7B | D29: 0 | E29: 0 | F29: 1.87 | G29: 0.69 | H29: 0 | I29: 0 | J29: 0 | K29: 0 | L29: 0 | M29: 0 | N29: 0 | O29: 0 | P29: 0 | R29: =Prop2020DistTar!AF29 -> 223.5415979 | S29: =Prop2020DistTar!AG29 -> 0 | T29: =Prop2020DistTar!AH29 -> 4879506.835 | U29: =Prop2020DistTar!AI29 -> 1213336.753 | V29: =Prop2020DistTar!AJ29 -> 0 | W29: =Prop2020DistTar!AK29 -> 0 | X29: =Prop2020DistTar!AL29 -> 0 | Y29: =Prop2020DistTar!AM29 -> 0 | Z29: =Prop2020DistTar!AN29 -> 0 | AA29: =Prop2020DistTar!AO29 -> 0 | AB29: =Prop2020DistTar!AP29 -> 0 | AC29: =Prop2020DistTar!AQ29 -> 0 | AD29: =Prop2020DistTar!AR29 -> 0 | AF29: 0 | AG29: 0 | AH29: 91246.77782 | AI29: 8372.023594 | AJ29: 0 | AK29: 0 | AL29: 0 | AM29: 0 | AN29: 0 | AO29: 0 | AP29: 0 | AQ29: 0 | AR29: 0 | AS29: 99618.80142
B30: =Prop2020DistTar!B30 -> Large Two Rate 7d | C30: C2L7 | D30: 0 | E30: 0 | F30: 2.58 | G30: 0.81 | H30: 0 | I30: 0 | J30: 0 | K30: 0 | L30: 0 | M30: 0 | N30: 0 | O30: 0 | P30: 0 | R30: =Prop2020DistTar!AF30 -> 1 | S30: =Prop2020DistTar!AG30 -> 0 | T30: =Prop2020DistTar!AH30 -> 43593.81375 | U30: =Prop2020DistTar!AI30 -> 17808.8805 | V30: =Prop2020DistTar!AJ30 -> 0 | W30: =Prop2020DistTar!AK30 -> 0 | X30: =Prop2020DistTar!AL30 -> 0 | Y30: =Prop2020DistTar!AM30 -> 0 | Z30: =Prop2020DistTar!AN30 -> 0 | AA30: =Prop2020DistTar!AO30 -> 0 | AB30: =Prop2020DistTar!AP30 -> 0 | AC30: =Prop2020DistTar!AQ30 -> 0 | AD30: =Prop2020DistTar!AR30 -> 0 | AF30: 0 | AG30: 0 | AH30: 1124.720395 | AI30: 144.251932 | AJ30: 0 | AK30: 0 | AL30: 0 | AM30: 0 | AN30: 0 | AO30: 0 | AP30: 0 | AQ30: 0 | AR30: 0 | AS30: 1268.972327
B31: =Prop2020DistTar!B31 -> Non-Residential Demand Tariff | C31: CG | D31: 0 | E31: 0.94 | F31: 0 | G31: 0 | H31: 0 | I31: 3 | J31: 1 | K31: 0 | L31: 0 | M31: 0 | N31: 0 | O31: 0 | P31: 0 | R31: =Prop2020DistTar!AF31 -> 66.714762 | S31: =Prop2020DistTar!AG31 -> 5507232.359 | T31: =Prop2020DistTar!AH31 -> 0 | U31: =Prop2020DistTar!AI31 -> 0 | V31: =Prop2020DistTar!AJ31 -> 0 | W31: =Prop2020DistTar!AK31 -> 1303.837556 | X31: =Prop2020DistTar!AL31 -> 2992.259117 | Y31: =Prop2020DistTar!AM31 -> 0 | Z31: =Prop2020DistTar!AN31 -> 0 | AA31: =Prop2020DistTar!AO31 -> 0 | AB31: =Prop2020DistTar!AP31 -> 0 | AC31: =Prop2020DistTar!AQ31 -> 0 | AD31: =Prop2020DistTar!AR31 -> 0 | AF31: 0 | AG31: 51767.98417 | AH31: 0 | AI31: 0 | AJ31: 0 | AK31: 3911.512667 | AL31: 2992.259117 | AM31: 0 | AN31: 0 | AO31: 0 | AP31: 0 | AQ31: 0 | AR31: 0 | AS31: 58671.75595
B32: =Prop2020DistTar!B32 -> Non-Residential Bulk Demand Tariff | C32: CGB | D32: 0 | E32: 0.87 | F32: 0 | G32: 0 | H32: 0 | I32: 2.55 | J32: 0.85 | K32: 0 | L32: 0 | M32: 0 | N32: 0 | O32: 0 | P32: 0 | R32: =Prop2020DistTar!AF32 -> 148.1115419 | S32: =Prop2020DistTar!AG32 -> 12837801.45 | T32: =Prop2020DistTar!AH32 -> 0 | U32: =Prop2020DistTar!AI32 -> 0 | V32: =Prop2020DistTar!AJ32 -> 0 | W32: =Prop2020DistTar!AK32 -> 2650.362511 | X32: =Prop2020DistTar!AL32 -> 6065.868594 | Y32: =Prop2020DistTar!AM32 -> 0 | Z32: =Prop2020DistTar!AN32 -> 0 | AA32: =Prop2020DistTar!AO32 -> 0 | AB32: =Prop2020DistTar!AP32 -> 0 | AC32: =Prop2020DistTar!AQ32 -> 0 | AD32: =Prop2020DistTar!AR32 -> 0 | AF32: 0 | AG32: 111688.8726 | AH32: 0 | AI32: 0 | AJ32: 0 | AK32: 6758.424403 | AL32: 5155.988305 | AM32: 0 | AN32: 0 | AO32: 0 | AP32: 0 | AQ32: 0 | AR32: 0 | AS32: 123603.2853
B33: =Prop2020DistTar!B33 -> Medium Business Demand | C33: CMG | D33: 0 | E33: 0 | F33: 1.38 | G33: 1.38 | H33: 0 | I33: 4.42 | J33: 1.47 | K33: 0 | L33: 0 | M33: 0 | N33: 0 | O33: 0 | P33: 0 | R33: =Prop2020DistTar!AF33 -> 4403.401855 | S33: =Prop2020DistTar!AG33 -> 0 | T33: =Prop2020DistTar!AH33 -> 339952679.9 | U33: =Prop2020DistTar!AI33 -> 250709652.8 | V33: =Prop2020DistTar!AJ33 -> 0 | W33: =Prop2020DistTar!AK33 -> 724859.6545 | X33: =Prop2020DistTar!AL33 -> 1273831.032 | Y33: =Prop2020DistTar!AM33 -> 0 | Z33: =Prop2020DistTar!AN33 -> 0 | AA33: =Prop2020DistTar!AO33 -> 0 | AB33: =Prop2020DistTar!AP33 -> 0 | AC33: =Prop2020DistTar!AQ33 -> 0 | AD33: =Prop2020DistTar!AR33 -> 0 | AF33: 0 | AG33: 0 | AH33: 4691346.982 | AI33: 3459793.209 | AJ33: 0 | AK33: 3203879.673 | AL33: 1872531.617 | AM33: 0 | AN33: 0 | AO33: 0 | AP33: 0 | AQ33: 0 | AR33: 0 | AS33: 13227551.48
B34: =Prop2020DistTar!B34 -> Medium Business Bulk Demand | C34: CMGB | D34: 0 | E34: 0 | F34: 1.17 | G34: 1.17 | H34: 0 | I34: 3.65 | J34: 1.33 | K34: 0 | L34: 0 | M34: 0 | N34: 0 | O34: 0 | P34: 0 | R34: =Prop2020DistTar!AF34 -> 2080.740884 | S34: =Prop2020DistTar!AG34 -> 0 | T34: =Prop2020DistTar!AH34 -> 235523158.7 | U34: =Prop2020DistTar!AI34 -> 157971528.6 | V34: =Prop2020DistTar!AJ34 -> 0 | W34: =Prop2020DistTar!AK34 -> 491954.4922 | X34: =Prop2020DistTar!AL34 -> 811784.275 | Y34: =Prop2020DistTar!AM34 -> 0 | Z34: =Prop2020DistTar!AN34 -> 0 | AA34: =Prop2020DistTar!AO34 -> 0 | AB34: =Prop2020DistTar!AP34 -> 0 | AC34: =Prop2020DistTar!AQ34 -> 0 | AD34: =Prop2020DistTar!AR34 -> 0 | AF34: 0 | AG34: 0 | AH34: 2755620.957 | AI34: 1848266.885 | AJ34: 0 | AK34: 1795633.897 | AL34: 1079673.086 | AM34: 0 | AN34: 0 | AO34: 0 | AP34: 0 | AQ34: 0 | AR34: 0 | AS34: 7479194.825
B35: =Prop2020DistTar!B35 -> Medium Business Opt-out | C35: CMGO | D35: 0 | E35: 0 | F35: 3.61 | G35: 1.45 | H35: 0 | I35: 0 | J35: 0 | K35: 0 | L35: 0 | M35: 0 | N35: 0 | O35: 0 | P35: 0 | R35: =Prop2020DistTar!AF35 -> 41.34154016 | S35: =Prop2020DistTar!AG35 -> 0 | T35: =Prop2020DistTar!AH35 -> 2405969.966 | U35: =Prop2020DistTar!AI35 -> 2106689.766 | V35: =Prop2020DistTar!AJ35 -> 0 | W35: =Prop2020DistTar!AK35 -> 0 | X35: =Prop2020DistTar!AL35 -> 0 | Y35: =Prop2020DistTar!AM35 -> 0 | Z35: =Prop2020DistTar!AN35 -> 0 | AA35: =Prop2020DistTar!AO35 -> 0 | AB35: =Prop2020DistTar!AP35 -> 0 | AC35: =Prop2020DistTar!AQ35 -> 0 | AD35: =Prop2020DistTar!AR35 -> 0 | AF35: =D35*R35 -> 0 | AG35: =E35/100*S35 -> 0 | AH35: 86855.51579 | AI35: 30547.00161 | AJ35: 0 | AK35: 0 | AL35: 0 | AM35: 0 | AN35: 0 | AO35: 0 | AP35: 0 | AQ35: 0 | AR35: 0 | AS35: =SUM(AF35:AR35) -> 117402.5174
B36: =Prop2020DistTar!B36 -> Medium Business Bulk Opt-out | C36: CMGBO | D36: 0 | E36: 0 | F36: 2.89 | G36: 1.15 | H36: 0 | I36: 0 | J36: 0 | K36: 0 | L36: 0 | M36: 0 | N36: 0 | O36: 0 | P36: 0 | R36: =Prop2020DistTar!AF36 -> 81.75004725 | S36: =Prop2020DistTar!AG36 -> 0 | T36: =Prop2020DistTar!AH36 -> 5074192.302 | U36: =Prop2020DistTar!AI36 -> 4451924.715 | V36: =Prop2020DistTar!AJ36 -> 0 | W36: =Prop2020DistTar!AK36 -> 0 | X36: =Prop2020DistTar!AL36 -> 0 | Y36: =Prop2020DistTar!AM36 -> 0 | Z36: =Prop2020DistTar!AN36 -> 0 | AA36: =Prop2020DistTar!AO36 -> 0 | AB36: =Prop2020DistTar!AP36 -> 0 | AC36: =Prop2020DistTar!AQ36 -> 0 | AD36: =Prop2020DistTar!AR36 -> 0 | AF36: 0 | AG36: 0 | AH36: 146644.1575 | AI36: 51197.13422 | AJ36: 0 | AK36: 0 | AL36: 0 | AM36: 0 | AN36: 0 | AO36: 0 | AP36: 0 | AQ36: 0 | AR36: 0 | AS36: 197841.2917
B37: =Prop2020DistTar!B37 -> Unmetered Supplies / Public Lighting | C37: C2U | D37: 0 | E37: 0 | F37: 0 | G37: 0 | H37: 0 | I37: 0 | J37: 0 | K37: 0 | L37: 0 | M37: 0 | N37: 0 | O37: 0 | P37: 0 | R37: =Prop2020DistTar!AF37 -> 4483.011669 | S37: =Prop2020DistTar!AG37 -> 0 | T37: =Prop2020DistTar!AH37 -> 7396578.491 | U37: =Prop2020DistTar!AI37 -> 10316991.68 | V37: =Prop2020DistTar!AJ37 -> 0 | W37: =Prop2020DistTar!AK37 -> 0 | X37: =Prop2020DistTar!AL37 -> 0 | Y37: =Prop2020DistTar!AM37 -> 0 | Z37: =Prop2020DistTar!AN37 -> 0 | AA37: =Prop2020DistTar!AO37 -> 0 | AB37: =Prop2020DistTar!AP37 -> 0 | AC37: =Prop2020DistTar!AQ37 -> 0 | AD37: =Prop2020DistTar!AR37 -> 0 | AF37: 0 | AG37: 0 | AH37: 0 | AI37: 0 | AJ37: 0 | AK37: 0 | AL37: 0 | AM37: 0 | AN37: 0 | AO37: 0 | AP37: 0 | AQ37: 0 | AR37: 0 | AS37: 0
B38: =Prop2020DistTar!B38 -> Large low Voltage | C38: CLLV | D38: 0 | E38: 0 | F38: 1.28 | G38: 0.78 | H38: 39.74 | I38: 0 | J38: 0 | K38: 0 | L38: 0 | M38: 0 | N38: 0 | O38: 0 | P38: 0 | R38: =Prop2020DistTar!AF38 -> 400.1764683 | S38: =Prop2020DistTar!AG38 -> 0 | T38: =Prop2020DistTar!AH38 -> 126570892.6 | U38: =Prop2020DistTar!AI38 -> 97426022.68 | V38: =Prop2020DistTar!AJ38 -> 78034.41132 | W38: =Prop2020DistTar!AK38 -> 0 | X38: =Prop2020DistTar!AL38 -> 0 | Y38: =Prop2020DistTar!AM38 -> 0 | Z38: =Prop2020DistTar!AN38 -> 0 | AA38: =Prop2020DistTar!AO38 -> 0 | AB38: =Prop2020DistTar!AP38 -> 0 | AC38: =Prop2020DistTar!AQ38 -> 0 | AD38: =Prop2020DistTar!AR38 -> 0 | AF38: 0 | AG38: 0 | AH38: 1620107.426 | AI38: 759922.9769 | AJ38: 3101087.506 | AK38: 0 | AL38: 0 | AM38: 0 | AN38: 0 | AO38: 0 | AP38: 0 | AQ38: 0 | AR38: 0 | AS38: 5481117.909
B39: =Prop2020DistTar!B39 -> Large low Voltage Bulk | C39: CLLVB | D39: 0 | E39: 0 | F39: 1.22 | G39: 0.74 | H39: 36.97 | I39: 0 | J39: 0 | K39: 0 | L39: 0 | M39: 0 | N39: 0 | O39: 0 | P39: 0 | R39: =Prop2020DistTar!AF39 -> 1842.936711 | S39: =Prop2020DistTar!AG39 -> 0 | T39: =Prop2020DistTar!AH39 -> 1137722435 | U39: =Prop2020DistTar!AI39 -> 873988483.9 | V39: =Prop2020DistTar!AJ39 -> 686083.3679 | W39: =Prop2020DistTar!AK39 -> 0 | X39: =Prop2020DistTar!AL39 -> 0 | Y39: =Prop2020DistTar!AM39 -> 0 | Z39: =Prop2020DistTar!AN39 -> 0 | AA39: =Prop2020DistTar!AO39 -> 0 | AB39: =Prop2020DistTar!AP39 -> 0 | AC39: =Prop2020DistTar!AQ39 -> 0 | AD39: =Prop2020DistTar!AR39 -> 0 | AF39: 0 | AG39: 0 | AH39: 13880213.7 | AI39: 6467514.781 | AJ39: 25364502.11 | AK39: 0 | AL39: 0 | AM39: 0 | AN39: 0 | AO39: 0 | AP39: 0 | AQ39: 0 | AR39: 0 | AS39: 45712230.6
B40: =Prop2020DistTar!B40 -> High Voltage | C40: CHV | D40: 0 | E40: 0 | F40: 1.36 | G40: 0.7 | H40: 38.68 | I40: 0 | J40: 0 | K40: 0 | L40: 0 | M40: 0 | N40: 0 | O40: 0 | P40: 0 | R40: =Prop2020DistTar!AF40 -> 93.92746114 | S40: =Prop2020DistTar!AG40 -> 0 | T40: =Prop2020DistTar!AH40 -> 365684368.5 | U40: =Prop2020DistTar!AI40 -> 176784509.1 | V40: =Prop2020DistTar!AJ40 -> 202579.3153 | W40: =Prop2020DistTar!AK40 -> 0 | X40: =Prop2020DistTar!AL40 -> 0 | Y40: =Prop2020DistTar!AM40 -> 0 | Z40: =Prop2020DistTar!AN40 -> 0 | AA40: =Prop2020DistTar!AO40 -> 0 | AB40: =Prop2020DistTar!AP40 -> 0 | AC40: =Prop2020DistTar!AQ40 -> 0 | AD40: =Prop2020DistTar!AR40 -> 0 | AF40: 0 | AG40: 0 | AH40: 4973307.411 | AI40: 1237491.564 | AJ40: 7835767.915 | AK40: 0 | AL40: 0 | AM40: 0 | AN40: 0 | AO40: 0 | AP40: 0 | AQ40: 0 | AR40: 0 | AS40: 14046566.89
B41: =Prop2020DistTar!B41 -> Subtransmission | C41: CST | D41: 0 | E41: 0 | F41: 2.02 | G41: 0.83 | H41: 16.37 | I41: 0 | J41: 0 | K41: 0 | L41: 0 | M41: 0 | N41: 0 | O41: 0 | P41: 0 | R41: =Prop2020DistTar!AF41 -> 5.999956857 | S41: =Prop2020DistTar!AG41 -> 0 | T41: =Prop2020DistTar!AH41 -> 65603250.46 | U41: =Prop2020DistTar!AI41 -> 24435184.1 | V41: =Prop2020DistTar!AJ41 -> 37985.58798 | W41: =Prop2020DistTar!AK41 -> 0 | X41: =Prop2020DistTar!AL41 -> 0 | Y41: =Prop2020DistTar!AM41 -> 0 | Z41: =Prop2020DistTar!AN41 -> 0 | AA41: =Prop2020DistTar!AO41 -> 0 | AB41: =Prop2020DistTar!AP41 -> 0 | AC41: =Prop2020DistTar!AQ41 -> 0 | AD41: =Prop2020DistTar!AR41 -> 0 | AF41: 0 | AG41: 0 | AH41: 1325185.659 | AI41: 202812.028 | AJ41: 621824.0752 | AK41: 0 | AL41: 0 | AM41: 0 | AN41: 0 | AO41: 0 | AP41: 0 | AQ41: 0 | AR41: 0 | AS41: 2149821.763
AF42: 0 | AG42: 0 | AH42: 0 | AI42: 0 | AJ42: 0 | AK42: 0 | AL42: 0 | AM42: 0 | AN42: 0 | AO42: 0 | AP42: 0 | AQ42: 0 | AR42: 0 | AS42: 0
AF43: 0 | AG43: 0 | AH43: 0 | AI43: 0 | AJ43: 0 | AK43: 0 | AL43: 0 | AM43: 0 | AN43: 0 | AO43: 0 | AP43: 0 | AQ43: 0 | AR43: 0 | AS43: 0
AF44: 0 | AG44: 0 | AH44: 0 | AI44: 0 | AJ44: 0 | AK44: 0 | AL44: 0 | AM44: 0 | AN44: 0 | AO44: 0 | AP44: 0 | AQ44: 0 | AR44: 0 | AS44: 0
AF45: 0 | AG45: 0 | AH45: 0 | AI45: 0 | AJ45: 0 | AK45: 0 | AL45: 0 | AM45: 0 | AN45: 0 | AO45: 0 | AP45: 0 | AQ45: 0 | AR45: 0 | AS45: 0
AF46: 0 | AG46: 0 | AH46: 0 | AI46: 0 | AJ46: 0 | AK46: 0 | AL46: 0 | AM46: 0 | AN46: 0 | AO46: 0 | AP46: 0 | AQ46: 0 | AR46: 0 | AS46: 0
AF47: 0 | AG47: 0 | AH47: 0 | AI47: 0 | AJ47: 0 | AK47: 0 | AL47: 0 | AM47: 0 | AN47: 0 | AO47: 0 | AP47: 0 | AQ47: 0 | AR47: 0 | AS47: 0
AF48: 0 | AG48: 0 | AH48: 0 | AI48: 0 | AJ48: 0 | AK48: 0 | AL48: 0 | AM48: 0 | AN48: 0 | AO48: 0 | AP48: 0 | AQ48: 0 | AR48: 0 | AS48: 0
AF49: 0 | AG49: 0 | AH49: 0 | AI49: 0 | AJ49: 0 | AK49: 0 | AL49: 0 | AM49: 0 | AN49: 0 | AO49: 0 | AP49: 0 | AQ49: 0 | AR49: 0 | AS49: 0
AF50: 0 | AG50: 0 | AH50: 0 | AI50: 0 | AJ50: 0 | AK50: 0 | AL50: 0 | AM50: 0 | AN50: 0 | AO50: 0 | AP50: 0 | AQ50: 0 | AR50: 0 | AS50: 0
AF51: 0 | AG51: 0 | AH51: 0 | AI51: 0 | AJ51: 0 | AK51: 0 | AL51: 0 | AM51: 0 | AN51: 0 | AO51: 0 | AP51: 0 | AQ51: 0 | AR51: 0 | AS51: 0
AF52: 0 | AG52: 0 | AH52: 0 | AI52: 0 | AJ52: 0 | AK52: 0 | AL52: 0 | AM52: 0 | AN52: 0 | AO52: 0 | AP52: 0 | AQ52: 0 | AR52: 0 | AS52: 0
AF53: 0 | AG53: 0 | AH53: 0 | AI53: 0 | AJ53: 0 | AK53: 0 | AL53: 0 | AM53: 0 | AN53: 0 | AO53: 0 | AP53: 0 | AQ53: 0 | AR53: 0 | AS53: 0
AF54: 0 | AG54: 0 | AH54: 0 | AI54: 0 | AJ54: 0 | AK54: 0 | AL54: 0 | AM54: 0 | AN54: 0 | AO54: 0 | AP54: 0 | AQ54: 0 | AR54: 0 | AS54: 0
AF55: 0 | AG55: =E55/100*S55 -> 0 | AH55: 0 | AI55: 0 | AJ55: 0 | AK55: 0 | AL55: 0 | AM55: 0 | AN55: 0 | AO55: 0 | AP55: 0 | AQ55: 0 | AR55: 0 | AS55: 0
AF56: 0 | AG56: 0 | AH56: 0 | AI56: 0 | AJ56: 0 | AK56: 0 | AL56: 0 | AM56: 0 | AN56: 0 | AO56: 0 | AP56: 0 | AQ56: 0 | AR56: 0 | AS56: 0
AF57: 0 | AG57: 0 | AH57: 0 | AI57: 0 | AJ57: 0 | AK57: 0 | AL57: 0 | AM57: 0 | AN57: 0 | AO57: 0 | AP57: 0 | AQ57: 0 | AR57: 0 | AS57: 0
AF58: 0 | AG58: 0 | AH58: 0 | AI58: 0 | AJ58: 0 | AK58: 0 | AL58: 0 | AM58: 0 | AN58: 0 | AO58: 0 | AP58: 0 | AQ58: 0 | AR58: 0 | AS58: 0
AF59: 0 | AG59: 0 | AH59: 0 | AI59: 0 | AJ59: 0 | AK59: 0 | AL59: 0 | AM59: 0 | AN59: 0 | AO59: 0 | AP59: 0 | AQ59: 0 | AR59: 0 | AS59: 0
AF60: 0 | AG60: 0 | AH60: 0 | AI60: 0 | AJ60: 0 | AK60: 0 | AL60: 0 | AM60: 0 | AN60: 0 | AO60: 0 | AP60: 0 | AQ60: 0 | AR60: 0 | AS60: 0
AF61: 0 | AG61: 0 | AH61: 0 | AI61: 0 | AJ61: 0 | AK61: 0 | AL61: 0 | AM61: 0 | AN61: 0 | AO61: 0 | AP61: 0 | AQ61: 0 | AR61: 0 | AS61: 0
AF62: 0 | AG62: 0 | AH62: 0 | AI62: 0 | AJ62: 0 | AK62: 0 | AL62: 0 | AM62: 0 | AN62: 0 | AO62: 0 | AP62: 0 | AQ62: 0 | AR62: 0 | AS62: 0
AF63: 0 | AG63: 0 | AH63: 0 | AI63: 0 | AJ63: 0 | AK63: 0 | AL63: 0 | AM63: 0 | AN63: 0 | AO63: 0 | AP63: 0 | AQ63: 0 | AR63: 0 | AS63: 0
AF64: 0 | AG64: 0 | AH64: 0 | AI64: 0 | AJ64: 0 | AK64: 0 | AL64: 0 | AM64: 0 | AN64: 0 | AO64: 0 | AP64: 0 | AQ64: 0 | AR64: 0 | AS64: 0
AF65: 0 | AG65: 0 | AH65: 0 | AI65: 0 | AJ65: 0 | AK65: 0 | AL65: 0 | AM65: 0 | AN65: 0 | AO65: 0 | AP65: 0 | AQ65: 0 | AR65: 0 | AS65: 0
R66: =SUM(R6:R65) -> 370982.6705 | S66: 1290238442 | T66: 2601072828 | U66: 1862946692 | V66: 1004682.682 | W66: 1220879.335 | X66: 2094935.658 | Y66: =SUM(Y6:Y65) -> 275792.5977 | Z66: 443006.6181 | AA66: 375920.2048 | AB66: 975665.0601 | AC66: 1673557.854 | AD66: 1371448.072 | AF66: =SUM(AF6:AF65) -> 0 | AG66: 25695746.4 | AH66: 37152118.12 | AI66: 15811454.65 | AJ66: 36923181.61 | AK66: 5010387.736 | AL66: 2960517.22 | AM66: =SUM(AM6:AM65) -> 8119.221872 | AN66: 8711.601146 | AO66: 2919.732962 | AP66: 28713.22961 | AQ66: 32893.20717 | AR66: 10630.42348 | AS66: 123645393.1

Sheet Est2019TransRev
B1: ="Tariff Approval - "&'Model update'!C3 -> Tariff Approval - CitiPower | D1: ="Est"&'Model update'!$C$5-1&"TransRev" -> Est2019TransRev
B3: ="ESTIMATED "&'Model update'!C8&" TRANSMISSION TARIFF REVENUE" -> ESTIMATED 2019 TRANSMISSION TARIFF REVENUE
D4: ="Current Transmission Tariffs (Pt-1) for "&'Model update'!$C$8 -> Current Transmission Tariffs (Pt-1) for 2019 | R4: ="Estimated Quantities (Qt-1) for "&'Model update'!$C$8 -> Estimated Quantities (Qt-1) for 2019 | AF4: ="Estimated Revenue (Pt-1 "&'Model update'!$C$8&")*(Qt-1 " &'Model update'!$C$8&")" -> Estimated Revenue (Pt-1 2019)*(Qt-1 2019)
B5: ="Tariffs "&'Model update'!C8 -> Tariffs 2019 | D5: =Est2019DistRev!D5 -> CurrentTar Fixed | E5: =Est2019DistRev!E5 -> CurrentTar Anytime | F5: =Est2019DistRev!F5 -> CurrentTar PkBlk | G5: =Est2019DistRev!G5 -> CurrentTar OPkBlk1 | H5: =Est2019DistRev!H5 -> CurrentTar Dem kVA | I5: =Est2019DistRev!I5 -> CurrentTar Dem kW Sum | J5: =Est2019DistRev!J5 -> CurrentTar Dem kW Win | K5: =Est2019DistRev!K5 -> CurrentTar SumBlk1 | L5: =Est2019DistRev!L5 -> CurrentTar SumBlk2 | M5: =Est2019DistRev!M5 -> CurrentTar SumBlk3 | N5: =Est2019DistRev!N5 -> CurrentTar WtrBlk1 | O5: =Est2019DistRev!O5 -> CurrentTar WtrBlk2 | P5: =Est2019DistRev!P5 -> CurrentTar WtrBlk3 | R5: =Est2019DistRev!R5 -> EstVol Fixed | S5: =Est2019DistRev!S5 -> EstVol Anytime | T5: =Est2019DistRev!T5 -> EstVol Pk | U5: =Est2019DistRev!U5 -> EstVol Opk | V5: =Est2019DistRev!V5 -> EstVol Dem kVA | W5: =Est2019DistRev!W5 -> EstVol Dem kW Sum | X5: =Est2019DistRev!X5 -> EstVol Dem kW Win | Y5: =Est2019DistRev!Y5 -> EstVol SumBlk1 | Z5: =Est2019DistRev!Z5 -> EstVol SumBlk2 | AA5: =Est2019DistRev!AA5 -> EstVol SumBlk3 | AB5: =Est2019DistRev!AB5 -> EstVol WtrBlk1 | AC5: =Est2019DistRev!AC5 -> EstVol WtrBlk2 | AD5: =Est2019DistRev!AD5 -> EstVol WtrBlk3 | AF5: =Est2019DistRev!AF5 -> EstRev Fixed | AG5: =Est2019DistRev!AG5 -> EstRev Anytime | AH5: =Est2019DistRev!AH5 -> EstRev Pk | AI5: =Est2019DistRev!AI5 -> EstRev Opk | AJ5: =Est2019DistRev!AJ5 -> EstRev Dem kVA | AK5: =Est2019DistRev!AK5 -> EstRev Dem kW Sum | AL5: =Est2019DistRev!AL5 -> EstRev Dem kW Win | AM5: =Est2019DistRev!AM5 -> EstRev SumBlk1 | AN5: =Est2019DistRev!AN5 -> EstRev SumBlk2 | AO5: =Est2019DistRev!AO5 -> EstRev SumBlk3 | AP5: =Est2019DistRev!AP5 -> EstRev WtrBlk1 | AQ5: =Est2019DistRev!AQ5 -> EstRev WtrBlk2 | AR5: =Est2019DistRev!AR5 -> EstRev WtrBlk3 | AS5: EstRev Total
B6: =Est2019DistRev!B6 -> Residential Single Rate | D6: 0 | E6: 1.82 | F6: 0 | G6: 0 | H6: 0 | I6: 0 | J6: 0 | K6: 0 | L6: 0 | M6: 0 | N6: 0 | O6: 0 | P6: 0 | R6: =Est2019DistRev!R6 -> 205044.5 | S6: =Est2019DistRev!S6 -> 853857291.2 | T6: =Est2019DistRev!T6 -> 0 | U6: =Est2019DistRev!U6 -> 0 | V6: =Est2019DistRev!V6 -> 0 | W6: =Est2019DistRev!W6 -> 0 | X6: =Est2019DistRev!X6 -> 0 | Y6: =Est2019DistRev!Y6 -> 0 | Z6: =Est2019DistRev!Z6 -> 0 | AA6: =Est2019DistRev!AA6 -> 0 | AB6: =Est2019DistRev!AB6 -> 0 | AC6: =Est2019DistRev!AC6 -> 0 | AD6: =Est2019DistRev!AD6 -> 0 | AF6: =D6*R6 -> 0 | AG6: =E6/100*S6 -> 15540202.7 | AH6: 0 | AI6: 0 | AJ6: =H6*V6 -> 0 | AK6: =I6*W6 -> 0 | AL6: 0 | AM6: 0 | AN6: 0 | AO6: =M6/100*AA6 -> 0 | AP6: =N6/100*AB6 -> 0 | AQ6: =O6/100*AC6 -> 0 | AR6: =P6/100*AD6 -> 0 | AS6: =SUM(AF6:AR6) -> 15540202.7
B7: =Est2019DistRev!B7 -> Residential Single Rate - Bulk | D7: 0 | E7: 0.84 | F7: 0 | G7: 0 | H7: 0 | I7: 0 | J7: 0 | K7: 0 | L7: 0 | M7: 0 | N7: 0 | O7: 0 | P7: 0 | R7: =Est2019DistRev!R7 -> 31480.91667 | S7: =Est2019DistRev!S7 -> 106631799.4 | T7: =Est2019DistRev!T7 -> 0 | U7: =Est2019DistRev!U7 -> 0 | V7: =Est2019DistRev!V7 -> 0 | W7: =Est2019DistRev!W7 -> 0 | X7: =Est2019DistRev!X7 -> 0 | Y7: =Est2019DistRev!Y7 -> 0 | Z7: =Est2019DistRev!Z7 -> 0 | AA7: =Est2019DistRev!AA7 -> 0 | AB7: =Est2019DistRev!AB7 -> 0 | AC7: =Est2019DistRev!AC7 -> 0 | AD7: =Est2019DistRev!AD7 -> 0 | AF7: =D7*R7 -> 0 | AG7: =E7/100*S7 -> 895707.115 | AH7: 0 | AI7: 0 | AJ7: =H7*V7 -> 0 | AK7: =I7*W7 -> 0 | AL7: =J7*X7 -> 0 | AM7: 0 | AN7: 0 | AO7: 0 | AP7: 0 | AQ7: 0 | AR7: 0 | AS7: =SUM(AF7:AR7) -> 895707.115
B8: =Est2019DistRev!B8 -> Residential - flexible pricing | D8: 0 | E8: 0 | F8: 0 | G8: 0 | H8: 0 | I8: 0 | J8: 0 | K8: 2.17 | L8: 1.46 | M8: 0.57 | N8: 2.17 | O8: 1.46 | P8: 0.57 | R8: =Est2019DistRev!R8 -> 693.4166667 | S8: =Est2019DistRev!S8 -> 0 | T8: =Est2019DistRev!T8 -> 0 | U8: =Est2019DistRev!U8 -> 0 | V8: =Est2019DistRev!V8 -> 0 | W8: =Est2019DistRev!W8 -> 0 | X8: =Est2019DistRev!X8 -> 0 | Y8: =Est2019DistRev!Y8 -> 205405.5214 | Z8: =Est2019DistRev!Z8 -> 427210.1542 | AA8: =Est2019DistRev!AA8 -> 316794.3387 | AB8: =Est2019DistRev!AB8 -> 740099.6911 | AC8: =Est2019DistRev!AC8 -> 1539287.265 | AD8: =Est2019DistRev!AD8 -> 1141446.396 | AF8: 0 | AG8: 0 | AH8: 0 | AI8: 0 | AJ8: 0 | AK8: 0 | AL8: 0 | AM8: 4457.299814 | AN8: 6237.268252 | AO8: 1805.727731 | AP8: 16060.1633 | AQ8: 22473.59406 | AR8: 6506.24446 | AS8: 57540.29762
B9: =Est2019DistRev!B9 -> Residential - flexible pricing bulk | D9: 0 | E9: 0 | F9: 0 | G9: 0 | H9: 0 | I9: 0 | J9: 0 | K9: 1.82 | L9: 1.22 | M9: 0.48 | N9: 1.82 | O9: 1.22 | P9: 0.48 | R9: =Est2019DistRev!R9 -> 90 | S9: =Est2019DistRev!S9 -> 0 | T9: =Est2019DistRev!T9 -> 0 | U9: =Est2019DistRev!U9 -> 0 | V9: =Est2019DistRev!V9 -> 0 | W9: =Est2019DistRev!W9 -> 0 | X9: =Est2019DistRev!X9 -> 0 | Y9: =Est2019DistRev!Y9 -> 15231.12129 | Z9: =Est2019DistRev!Z9 -> 32311.93005 | AA9: =Est2019DistRev!AA9 -> 23662.58093 | AB9: =Est2019DistRev!AB9 -> 55378.7842 | AC9: =Est2019DistRev!AC9 -> 117482.841 | AD9: =Est2019DistRev!AD9 -> 86034.70078 | AF9: 0 | AG9: 0 | AH9: 0 | AI9: 0 | AJ9: 0 | AK9: 0 | AL9: 0 | AM9: 277.2064075 | AN9: 394.2055466 | AO9: 113.5803885 | AP9: 1007.893872 | AQ9: 1433.29066 | AR9: 412.9665638 | AS9: 3639.143439
B10: =Est2019DistRev!B10 -> Residential Two Rate 5d | D10: 0 | E10: 0 | F10: 1.95 | G10: 0.46 | H10: 0 | I10: 0 | J10: 0 | K10: 0 | L10: 0 | M10: 0 | N10: 0 | O10: 0 | P10: 0 | R10: =Est2019DistRev!R10 -> 10820.08333 | S10: =Est2019DistRev!S10 -> 0 | T10: =Est2019DistRev!T10 -> 35024034.5 | U10: =Est2019DistRev!U10 -> 30157186.27 | V10: =Est2019DistRev!V10 -> 0 | W10: =Est2019DistRev!W10 -> 0 | X10: =Est2019DistRev!X10 -> 0 | Y10: =Est2019DistRev!Y10 -> 0 | Z10: =Est2019DistRev!Z10 -> 0 | AA10: =Est2019DistRev!AA10 -> 0 | AB10: =Est2019DistRev!AB10 -> 0 | AC10: =Est2019DistRev!AC10 -> 0 | AD10: =Est2019DistRev!AD10 -> 0 | AF10: 0 | AG10: 0 | AH10: 682968.6728 | AI10: 138723.0569 | AJ10: 0 | AK10: 0 | AL10: 0 | AM10: 0 | AN10: 0 | AO10: 0 | AP10: 0 | AQ10: 0 | AR10: 0 | AS10: 821691.7297
B11: =Est2019DistRev!B11 -> Residential Two Rate 5d - Bulk | D11: 0 | E11: 0 | F11: 1.72 | G11: 0.43 | H11: 0 | I11: 0 | J11: 0 | K11: 0 | L11: 0 | M11: 0 | N11: 0 | O11: 0 | P11: 0 | R11: =Est2019DistRev!R11 -> 4352.5 | S11: =Est2019DistRev!S11 -> 0 | T11: =Est2019DistRev!T11 -> 12294584.52 | U11: =Est2019DistRev!U11 -> 10585730.05 | V11: =Est2019DistRev!V11 -> 0 | W11: =Est2019DistRev!W11 -> 0 | X11: =Est2019DistRev!X11 -> 0 | Y11: =Est2019DistRev!Y11 -> 0 | Z11: =Est2019DistRev!Z11 -> 0 | AA11: =Est2019DistRev!AA11 -> 0 | AB11: =Est2019DistRev!AB11 -> 0 | AC11: =Est2019DistRev!AC11 -> 0 | AD11: =Est2019DistRev!AD11 -> 0 | AF11: 0 | AG11: 0 | AH11: 211466.8538 | AI11: 45518.6392 | AJ11: 0 | AK11: 0 | AL11: 0 | AM11: 0 | AN11: 0 | AO11: 0 | AP11: 0 | AQ11: 0 | AR11: 0 | AS11: 256985.493
B12: =Est2019DistRev!B12 -> Residential Interval | D12: 0 | E12: 0 | F12: 1.95 | G12: 0.46 | H12: 0 | I12: 0 | J12: 0 | K12: 0 | L12: 0 | M12: 0 | N12: 0 | O12: 0 | P12: 0 | R12: =Est2019DistRev!R12 -> 17057.16667 | S12: =Est2019DistRev!S12 -> 0 | T12: =Est2019DistRev!T12 -> 60669728.28 | U12: =Est2019DistRev!U12 -> 52545941.86 | V12: =Est2019DistRev!V12 -> 0 | W12: =Est2019DistRev!W12 -> 0 | X12: =Est2019DistRev!X12 -> 0 | Y12: =Est2019DistRev!Y12 -> 0 | Z12: =Est2019DistRev!Z12 -> 0 | AA12: =Est2019DistRev!AA12 -> 0 | AB12: =Est2019DistRev!AB12 -> 0 | AC12: =Est2019DistRev!AC12 -> 0 | AD12: =Est2019DistRev!AD12 -> 0 | AF12: 0 | AG12: 0 | AH12: 1183059.701 | AI12: 241711.3325 | AJ12: 0 | AK12: 0 | AL12: 0 | AM12: 0 | AN12: 0 | AO12: 0 | AP12: 0 | AQ12: 0 | AR12: 0 | AS12: 1424771.034
B13: =Est2019DistRev!B13 -> Residential Interval - Bulk | D13: 0 | E13: 0 | F13: 1.72 | G13: 0.43 | H13: 0 | I13: 0 | J13: 0 | K13: 0 | L13: 0 | M13: 0 | N13: 0 | O13: 0 | P13: 0 | R13: =Est2019DistRev!R13 -> 8658 | S13: =Est2019DistRev!S13 -> 0 | T13: =Est2019DistRev!T13 -> 15600572.12 | U13: =Est2019DistRev!U13 -> 14572772.14 | V13: =Est2019DistRev!V13 -> 0 | W13: =Est2019DistRev!W13 -> 0 | X13: =Est2019DistRev!X13 -> 0 | Y13: =Est2019DistRev!Y13 -> 0 | Z13: =Est2019DistRev!Z13 -> 0 | AA13: =Est2019DistRev!AA13 -> 0 | AB13: =Est2019DistRev!AB13 -> 0 | AC13: =Est2019DistRev!AC13 -> 0 | AD13: =Est2019DistRev!AD13 -> 0 | AF13: 0 | AG13: 0 | AH13: 268329.8404 | AI13: 62662.92021 | AJ13: 0 | AK13: 0 | AL13: 0 | AM13: 0 | AN13: 0 | AO13: 0 | AP13: 0 | AQ13: 0 | AR13: 0 | AS13: 330992.7607
B14: =Est2019DistRev!B14 -> Residential Two Rate 5d - Controlled Load | D14: 0 | E14: 0 | F14: 0 | G14: 0.35 | H14: 0 | I14: 0 | J14: 0 | K14: 0 | L14: 0 | M14: 0 | N14: 0 | O14: 0 | P14: 0 | R14: =Est2019DistRev!R14 -> 9732.666667 | S14: =Est2019DistRev!S14 -> 0 | T14: =Est2019DistRev!T14 -> 0 | U14: =Est2019DistRev!U14 -> 19246331.24 | V14: =Est2019DistRev!V14 -> 0 | W14: =Est2019DistRev!W14 -> 0 | X14: =Est2019DistRev!X14 -> 0 | Y14: =Est2019DistRev!Y14 -> 0 | Z14: =Est2019DistRev!Z14 -> 0 | AA14: =Est2019DistRev!AA14 -> 0 | AB14: =Est2019DistRev!AB14 -> 0 | AC14: =Est2019DistRev!AC14 -> 0 | AD14: =Est2019DistRev!AD14 -> 0 | AF14: 0 | AG14: 0 | AH14: 0 | AI14: 67362.15933 | AJ14: 0 | AK14: 0 | AL14: 0 | AM14: 0 | AN14: 0 | AO14: 0 | AP14: 0 | AQ14: 0 | AR14: 0 | AS14: 67362.15933
B15: =Est2019DistRev!B15 -> Residential Two Rate 5d - Bulk - Controlled Load | D15: 0 | E15: 0 | F15: 0 | G15: 0.29 | H15: 0 | I15: 0 | J15: 0 | K15: 0 | L15: 0 | M15: 0 | N15: 0 | O15: 0 | P15: 0 | R15: =Est2019DistRev!R15 -> 3683.833333 | S15: =Est2019DistRev!S15 -> 0 | T15: =Est2019DistRev!T15 -> 0 | U15: =Est2019DistRev!U15 -> 7176762.317 | V15: =Est2019DistRev!V15 -> 0 | W15: =Est2019DistRev!W15 -> 0 | X15: =Est2019DistRev!X15 -> 0 | Y15: =Est2019DistRev!Y15 -> 0 | Z15: =Est2019DistRev!Z15 -> 0 | AA15: =Est2019DistRev!AA15 -> 0 | AB15: =Est2019DistRev!AB15 -> 0 | AC15: =Est2019DistRev!AC15 -> 0 | AD15: =Est2019DistRev!AD15 -> 0 | AF15: 0 | AG15: 0 | AH15: 0 | AI15: 20812.61072 | AJ15: 0 | AK15: 0 | AL15: 0 | AM15: 0 | AN15: 0 | AO15: 0 | AP15: 0 | AQ15: 0 | AR15: 0 | AS15: 20812.61072
B16: =Est2019DistRev!B16 -> Dedicated Circuit | D16: 0 | E16: 0 | F16: 0 | G16: 0.35 | H16: 0 | I16: 0 | J16: 0 | K16: 0 | L16: 0 | M16: 0 | N16: 0 | O16: 0 | P16: 0 | R16: =Est2019DistRev!R16 -> 22825.5 | S16: =Est2019DistRev!S16 -> 0 | T16: =Est2019DistRev!T16 -> 0 | U16: =Est2019DistRev!U16 -> 31802481.57 | V16: =Est2019DistRev!V16 -> 0 | W16: =Est2019DistRev!W16 -> 0 | X16: =Est2019DistRev!X16 -> 0 | Y16: =Est2019DistRev!Y16 -> 0 | Z16: =Est2019DistRev!Z16 -> 0 | AA16: =Est2019DistRev!AA16 -> 0 | AB16: =Est2019DistRev!AB16 -> 0 | AC16: =Est2019DistRev!AC16 -> 0 | AD16: =Est2019DistRev!AD16 -> 0 | AF16: 0 | AG16: 0 | AH16: 0 | AI16: 111308.6855 | AJ16: 0 | AK16: 0 | AL16: 0 | AM16: 0 | AN16: 0 | AO16: 0 | AP16: 0 | AQ16: 0 | AR16: 0 | AS16: 111308.6855
B17: =Est2019DistRev!B17 -> Dedicated Circuit - Bulk | D17: 0 | E17: 0 | F17: 0 | G17: 0.29 | H17: 0 | I17: 0 | J17: 0 | K17: 0 | L17: 0 | M17: 0 | N17: 0 | O17: 0 | P17: 0 | R17: =Est2019DistRev!R17 -> 1105.583333 | S17: =Est2019DistRev!S17 -> 0 | T17: =Est2019DistRev!T17 -> 0 | U17: =Est2019DistRev!U17 -> 2202095.01 | V17: =Est2019DistRev!V17 -> 0 | W17: =Est2019DistRev!W17 -> 0 | X17: =Est2019DistRev!X17 -> 0 | Y17: =Est2019DistRev!Y17 -> 0 | Z17: =Est2019DistRev!Z17 -> 0 | AA17: =Est2019DistRev!AA17 -> 0 | AB17: =Est2019DistRev!AB17 -> 0 | AC17: =Est2019DistRev!AC17 -> 0 | AD17: =Est2019DistRev!AD17 -> 0 | AF17: 0 | AG17: 0 | AH17: 0 | AI17: 6386.07553 | AJ17: 0 | AK17: 0 | AL17: 0 | AM17: 0 | AN17: 0 | AO17: 0 | AP17: 0 | AQ17: 0 | AR17: 0 | AS17: 6386.07553
B18: =Est2019DistRev!B18 -> Residential Demand | D18: 0 | E18: 0.58 | F18: 0 | G18: 0 | H18: 0 | I18: 1.42 | J18: 0.49 | K18: 0 | L18: 0 | M18: 0 | N18: 0 | O18: 0 | P18: 0 | R18: =Est2019DistRev!R18 -> 4 | S18: =Est2019DistRev!S18 -> 14863.13851 | T18: =Est2019DistRev!T18 -> 0 | U18: =Est2019DistRev!U18 -> 0 | V18: =Est2019DistRev!V18 -> 0 | W18: =Est2019DistRev!W18 -> 50.49333333 | X18: =Est2019DistRev!X18 -> 120.751 | Y18: =Est2019DistRev!Y18 -> 0 | Z18: =Est2019DistRev!Z18 -> 0 | AA18: =Est2019DistRev!AA18 -> 0 | AB18: =Est2019DistRev!AB18 -> 0 | AC18: =Est2019DistRev!AC18 -> 0 | AD18: =Est2019DistRev!AD18 -> 0 | AF18: 0 | AG18: 86.20620335 | AH18: 0 | AI18: 0 | AJ18: 0 | AK18: 71.70053333 | AL18: 59.16799 | AM18: 0 | AN18: 0 | AO18: 0 | AP18: 0 | AQ18: 0 | AR18: 0 | AS18: 217.0747267
B19: =Est2019DistRev!B19 -> Residential Bulk Demand | D19: 0 | E19: 0.41 | F19: 0 | G19: 0 | H19: 0 | I19: 1.11 | J19: 0.37 | K19: 0 | L19: 0 | M19: 0 | N19: 0 | O19: 0 | P19: 0 | R19: =Est2019DistRev!R19 -> 0 | S19: =Est2019DistRev!S19 -> 0 | T19: =Est2019DistRev!T19 -> 0 | U19: =Est2019DistRev!U19 -> 0 | V19: =Est2019DistRev!V19 -> 0 | W19: =Est2019DistRev!W19 -> 0 | X19: =Est2019DistRev!X19 -> 0 | Y19: =Est2019DistRev!Y19 -> 0 | Z19: =Est2019DistRev!Z19 -> 0 | AA19: =Est2019DistRev!AA19 -> 0 | AB19: =Est2019DistRev!AB19 -> 0 | AC19: =Est2019DistRev!AC19 -> 0 | AD19: =Est2019DistRev!AD19 -> 0 | AF19: 0 | AG19: 0 | AH19: 0 | AI19: 0 | AJ19: 0 | AK19: 0 | AL19: 0 | AM19: 0 | AN19: 0 | AO19: 0 | AP19: 0 | AQ19: 0 | AR19: 0 | AS19: 0
B20: =Est2019DistRev!B20 -> Non-Residential Single Rate | D20: 0 | E20: 1.99 | F20: 0 | G20: 0 | H20: 0 | I20: 0 | J20: 0 | K20: 0 | L20: 0 | M20: 0 | N20: 0 | O20: 0 | P20: 0 | R20: =Est2019DistRev!R20 -> 20319.91667 | S20: =Est2019DistRev!S20 -> 233254649.1 | T20: =Est2019DistRev!T20 -> 0 | U20: =Est2019DistRev!U20 -> 0 | V20: =Est2019DistRev!V20 -> 0 | W20: =Est2019DistRev!W20 -> 0 | X20: =Est2019DistRev!X20 -> 0 | Y20: =Est2019DistRev!Y20 -> 0 | Z20: =Est2019DistRev!Z20 -> 0 | AA20: =Est2019DistRev!AA20 -> 0 | AB20: =Est2019DistRev!AB20 -> 0 | AC20: =Est2019DistRev!AC20 -> 0 | AD20: =Est2019DistRev!AD20 -> 0 | AF20: 0 | AG20: 4641767.518 | AH20: 0 | AI20: 0 | AJ20: 0 | AK20: 0 | AL20: 0 | AM20: 0 | AN20: 0 | AO20: 0 | AP20: 0 | AQ20: 0 | AR20: 0 | AS20: 4641767.518
B21: =Est2019DistRev!B21 -> Non-Residential Single Rate - Bulk | D21: 0 | E21: 1.61 | F21: 0 | G21: 0 | H21: 0 | I21: 0 | J21: 0 | K21: 0 | L21: 0 | M21: 0 | N21: 0 | O21: 0 | P21: 0 | R21: =Est2019DistRev!R21 -> 5859.166667 | S21: =Est2019DistRev!S21 -> 77076676.16 | T21: =Est2019DistRev!T21 -> 0 | U21: =Est2019DistRev!U21 -> 0 | V21: =Est2019DistRev!V21 -> 0 | W21: =Est2019DistRev!W21 -> 0 | X21: =Est2019DistRev!X21 -> 0 | Y21: =Est2019DistRev!Y21 -> 0 | Z21: =Est2019DistRev!Z21 -> 0 | AA21: =Est2019DistRev!AA21 -> 0 | AB21: =Est2019DistRev!AB21 -> 0 | AC21: =Est2019DistRev!AC21 -> 0 | AD21: =Est2019DistRev!AD21 -> 0 | AF21: 0 | AG21: 1240934.486 | AH21: 0 | AI21: 0 | AJ21: 0 | AK21: 0 | AL21: 0 | AM21: 0 | AN21: 0 | AO21: 0 | AP21: 0 | AQ21: 0 | AR21: 0 | AS21: 1240934.486
B22: =Est2019DistRev!B22 -> Non-Residential Two Rate 5d | D22: 0 | E22: 0 | F22: 2.99 | G22: 0.86 | H22: 0 | I22: 0 | J22: 0 | K22: 0 | L22: 0 | M22: 0 | N22: 0 | O22: 0 | P22: 0 | R22: =Est2019DistRev!R22 -> 8457.416667 | S22: =Est2019DistRev!S22 -> 0 | T22: =Est2019DistRev!T22 -> 92130994.29 | U22: =Est2019DistRev!U22 -> 57478450.85 | V22: =Est2019DistRev!V22 -> 0 | W22: =Est2019DistRev!W22 -> 0 | X22: =Est2019DistRev!X22 -> 0 | Y22: =Est2019DistRev!Y22 -> 0 | Z22: =Est2019DistRev!Z22 -> 0 | AA22: =Est2019DistRev!AA22 -> 0 | AB22: =Est2019DistRev!AB22 -> 0 | AC22: =Est2019DistRev!AC22 -> 0 | AD22: =Est2019DistRev!AD22 -> 0 | AF22: 0 | AG22: 0 | AH22: 2754716.729 | AI22: 494314.6773 | AJ22: 0 | AK22: 0 | AL22: 0 | AM22: 0 | AN22: 0 | AO22: 0 | AP22: 0 | AQ22: 0 | AR22: 0 | AS22: 3249031.407
B23: =Est2019DistRev!B23 -> Non-Residential Two Rate 5d - Bulk | D23: 0 | E23: 0 | F23: 2.33 | G23: 0.7 | H23: 0 | I23: 0 | J23: 0 | K23: 0 | L23: 0 | M23: 0 | N23: 0 | O23: 0 | P23: 0 | R23: =Est2019DistRev!R23 -> 1060 | S23: =Est2019DistRev!S23 -> 0 | T23: =Est2019DistRev!T23 -> 17530830.1 | U23: =Est2019DistRev!U23 -> 10374374.19 | V23: =Est2019DistRev!V23 -> 0 | W23: =Est2019DistRev!W23 -> 0 | X23: =Est2019DistRev!X23 -> 0 | Y23: =Est2019DistRev!Y23 -> 0 | Z23: =Est2019DistRev!Z23 -> 0 | AA23: =Est2019DistRev!AA23 -> 0 | AB23: =Est2019DistRev!AB23 -> 0 | AC23: =Est2019DistRev!AC23 -> 0 | AD23: =Est2019DistRev!AD23 -> 0 | AF23: 0 | AG23: 0 | AH23: 408468.3413 | AI23: 72620.61935 | AJ23: 0 | AK23: 0 | AL23: 0 | AM23: 0 | AN23: 0 | AO23: 0 | AP23: 0 | AQ23: 0 | AR23: 0 | AS23: 481088.9607
B24: =Est2019DistRev!B24 -> Non-Residential Interval | D24: 0 | E24: 0 | F24: 2.99 | G24: 0.79 | H24: 0 | I24: 0 | J24: 0 | K24: 0 | L24: 0 | M24: 0 | N24: 0 | O24: 0 | P24: 0 | R24: =Est2019DistRev!R24 -> 3960.083333 | S24: =Est2019DistRev!S24 -> 0 | T24: =Est2019DistRev!T24 -> 45937500.62 | U24: =Est2019DistRev!U24 -> 25953497.25 | V24: =Est2019DistRev!V24 -> 0 | W24: =Est2019DistRev!W24 -> 0 | X24: =Est2019DistRev!X24 -> 0 | Y24: =Est2019DistRev!Y24 -> 0 | Z24: =Est2019DistRev!Z24 -> 0 | AA24: =Est2019DistRev!AA24 -> 0 | AB24: =Est2019DistRev!AB24 -> 0 | AC24: =Est2019DistRev!AC24 -> 0 | AD24: =Est2019DistRev!AD24 -> 0 | AF24: 0 | AG24: 0 | AH24: 1373531.268 | AI24: 205032.6283 | AJ24: 0 | AK24: 0 | AL24: 0 | AM24: 0 | AN24: 0 | AO24: 0 | AP24: 0 | AQ24: 0 | AR24: 0 | AS24: 1578563.897
B25: =Est2019DistRev!B25 -> Non-Residential Interval - Bulk | D25: 0 | E25: 0 | F25: 2.33 | G25: 0.7 | H25: 0 | I25: 0 | J25: 0 | K25: 0 | L25: 0 | M25: 0 | N25: 0 | O25: 0 | P25: 0 | R25: =Est2019DistRev!R25 -> 1945.083333 | S25: =Est2019DistRev!S25 -> 0 | T25: =Est2019DistRev!T25 -> 29899979.14 | U25: =Est2019DistRev!U25 -> 15763990.48 | V25: =Est2019DistRev!V25 -> 0 | W25: =Est2019DistRev!W25 -> 0 | X25: =Est2019DistRev!X25 -> 0 | Y25: =Est2019DistRev!Y25 -> 0 | Z25: =Est2019DistRev!Z25 -> 0 | AA25: =Est2019DistRev!AA25 -> 0 | AB25: =Est2019DistRev!AB25 -> 0 | AC25: =Est2019DistRev!AC25 -> 0 | AD25: =Est2019DistRev!AD25 -> 0 | AF25: 0 | AG25: 0 | AH25: 696669.514 | AI25: 110347.9334 | AJ25: 0 | AK25: 0 | AL25: 0 | AM25: 0 | AN25: 0 | AO25: 0 | AP25: 0 | AQ25: 0 | AR25: 0 | AS25: 807017.4474
B26: =Est2019DistRev!B26 -> Non-Residential Flexible Pricing | D26: 0 | E26: 0 | F26: 0 | G26: 0 | H26: 0 | I26: 0 | J26: 0 | K26: 3.64 | L26: 2.54 | M26: 1 | N26: 3.64 | O26: 2.54 | P26: 1 | R26: =Est2019DistRev!R26 -> 22 | S26: =Est2019DistRev!S26 -> 0 | T26: =Est2019DistRev!T26 -> 0 | U26: =Est2019DistRev!U26 -> 0 | V26: =Est2019DistRev!V26 -> 0 | W26: =Est2019DistRev!W26 -> 0 | X26: =Est2019DistRev!X26 -> 0 | Y26: =Est2019DistRev!Y26 -> 90532.51609 | Z26: =Est2019DistRev!Z26 -> 28600.36374 | AA26: =Est2019DistRev!AA26 -> 77063.91457 | AB26: =Est2019DistRev!AB26 -> 309844.84 | AC26: =Est2019DistRev!AC26 -> 97883.8931 | AD26: =Est2019DistRev!AD26 -> 263748.9525 | AF26: 0 | AG26: 0 | AH26: 0 | AI26: 0 | AJ26: 0 | AK26: 0 | AL26: 0 | AM26: 3295.383586 | AN26: 726.4492389 | AO26: 770.6391457 | AP26: 11278.35218 | AQ26: 2486.250885 | AR26: 2637.489525 | AS26: 21194.56456
B27: =Est2019DistRev!B27 -> Non-Residential - Flexible Pricing Bulk | D27: 0 | E27: 0 | F27: 0 | G27: 0 | H27: 0 | I27: 0 | J27: 0 | K27: 3.2 | L27: 2.24 | M27: 0.88 | N27: 3.2 | O27: 2.24 | P27: 0.88 | R27: =Est2019DistRev!R27 -> 7 | S27: =Est2019DistRev!S27 -> 0 | T27: =Est2019DistRev!T27 -> 0 | U27: =Est2019DistRev!U27 -> 0 | V27: =Est2019DistRev!V27 -> 0 | W27: =Est2019DistRev!W27 -> 0 | X27: =Est2019DistRev!X27 -> 0 | Y27: =Est2019DistRev!Y27 -> 103639.4071 | Z27: =Est2019DistRev!Z27 -> 27419.30238 | AA27: =Est2019DistRev!AA27 -> 92664.29665 | AB27: =Est2019DistRev!AB27 -> 277642.3295 | AC27: =Est2019DistRev!AC27 -> 73454.2892 | AD27: =Est2019DistRev!AD27 -> 248240.8178 | AF27: 0 | AG27: 0 | AH27: 0 | AI27: 0 | AJ27: 0 | AK27: 0 | AL27: 0 | AM27: 3316.461029 | AN27: 614.1923732 | AO27: 815.4458105 | AP27: 8884.554544 | AQ27: 1645.376078 | AR27: 2184.519196 | AS27: 17460.54903
B28: =Est2019DistRev!B28 -> Non-Residential Two Rate 7d | D28: 0 | E28: 0 | F28: 2.35 | G28: 0.79 | H28: 0 | I28: 0 | J28: 0 | K28: 0 | L28: 0 | M28: 0 | N28: 0 | O28: 0 | P28: 0 | R28: =Est2019DistRev!R28 -> 2325 | S28: =Est2019DistRev!S28 -> 0 | T28: =Est2019DistRev!T28 -> 39141830.2 | U28: =Est2019DistRev!U28 -> 9312690.059 | V28: =Est2019DistRev!V28 -> 0 | W28: =Est2019DistRev!W28 -> 0 | X28: =Est2019DistRev!X28 -> 0 | Y28: =Est2019DistRev!Y28 -> 0 | Z28: =Est2019DistRev!Z28 -> 0 | AA28: =Est2019DistRev!AA28 -> 0 | AB28: =Est2019DistRev!AB28 -> 0 | AC28: =Est2019DistRev!AC28 -> 0 | AD28: =Est2019DistRev!AD28 -> 0 | AF28: 0 | AG28: 0 | AH28: 919833.0096 | AI28: 73570.25146 | AJ28: 0 | AK28: 0 | AL28: 0 | AM28: 0 | AN28: 0 | AO28: 0 | AP28: 0 | AQ28: 0 | AR28: 0 | AS28: 993403.2611
B29: =Est2019DistRev!B29 -> Non-Residential Two Rate 7d - Bulk | D29: 0 | E29: 0 | F29: 2.09 | G29: 0.7 | H29: 0 | I29: 0 | J29: 0 | K29: 0 | L29: 0 | M29: 0 | N29: 0 | O29: 0 | P29: 0 | R29: =Est2019DistRev!R29 -> 253.0833333 | S29: =Est2019DistRev!S29 -> 0 | T29: =Est2019DistRev!T29 -> 5750711.727 | U29: =Est2019DistRev!U29 -> 1391434.263 | V29: =Est2019DistRev!V29 -> 0 | W29: =Est2019DistRev!W29 -> 0 | X29: =Est2019DistRev!X29 -> 0 | Y29: =Est2019DistRev!Y29 -> 0 | Z29: =Est2019DistRev!Z29 -> 0 | AA29: =Est2019DistRev!AA29 -> 0 | AB29: =Est2019DistRev!AB29 -> 0 | AC29: =Est2019DistRev!AC29 -> 0 | AD29: =Est2019DistRev!AD29 -> 0 | AF29: 0 | AG29: 0 | AH29: 120189.8751 | AI29: 9740.039838 | AJ29: 0 | AK29: 0 | AL29: 0 | AM29: 0 | AN29: 0 | AO29: 0 | AP29: 0 | AQ29: 0 | AR29: 0 | AS29: 129929.9149
B30: =Est2019DistRev!B30 -> Large Two Rate 7d | D30: 0 | E30: 0 | F30: 2.99 | G30: 0.86 | H30: 0 | I30: 0 | J30: 0 | K30: 0 | L30: 0 | M30: 0 | N30: 0 | O30: 0 | P30: 0 | R30: =Est2019DistRev!R30 -> 4 | S30: =Est2019DistRev!S30 -> 0 | T30: =Est2019DistRev!T30 -> 168556.1792 | U30: =Est2019DistRev!U30 -> 75139.00678 | V30: =Est2019DistRev!V30 -> 0 | W30: =Est2019DistRev!W30 -> 0 | X30: =Est2019DistRev!X30 -> 0 | Y30: =Est2019DistRev!Y30 -> 0 | Z30: =Est2019DistRev!Z30 -> 0 | AA30: =Est2019DistRev!AA30 -> 0 | AB30: =Est2019DistRev!AB30 -> 0 | AC30: =Est2019DistRev!AC30 -> 0 | AD30: =Est2019DistRev!AD30 -> 0 | AF30: 0 | AG30: 0 | AH30: 5039.829758 | AI30: 646.1954583 | AJ30: 0 | AK30: 0 | AL30: 0 | AM30: 0 | AN30: 0 | AO30: 0 | AP30: 0 | AQ30: 0 | AR30: 0 | AS30: 5686.025216
B31: =Est2019DistRev!B31 -> Non-Residential Demand Tariff | D31: 0 | E31: 1.09 | F31: 0 | G31: 0 | H31: 0 | I31: 3.48 | J31: 1.16 | K31: 0 | L31: 0 | M31: 0 | N31: 0 | O31: 0 | P31: 0 | R31: =Est2019DistRev!R31 -> 8 | S31: =Est2019DistRev!S31 -> 717136.6155 | T31: =Est2019DistRev!T31 -> 0 | U31: =Est2019DistRev!U31 -> 0 | V31: =Est2019DistRev!V31 -> 0 | W31: =Est2019DistRev!W31 -> 822.7376 | X31: =Est2019DistRev!X31 -> 1909.040695 | Y31: =Est2019DistRev!Y31 -> 0 | Z31: =Est2019DistRev!Z31 -> 0 | AA31: =Est2019DistRev!AA31 -> 0 | AB31: =Est2019DistRev!AB31 -> 0 | AC31: =Est2019DistRev!AC31 -> 0 | AD31: =Est2019DistRev!AD31 -> 0 | AF31: 0 | AG31: 7816.789109 | AH31: 0 | AI31: 0 | AJ31: 0 | AK31: 2863.126848 | AL31: 2214.487206 | AM31: 0 | AN31: 0 | AO31: 0 | AP31: 0 | AQ31: 0 | AR31: 0 | AS31: 12894.40316
B32: =Est2019DistRev!B32 -> Non-Residential Bulk Demand Tariff | D32: 0 | E32: 1 | F32: 0 | G32: 0 | H32: 0 | I32: 2.78 | J32: 0.93 | K32: 0 | L32: 0 | M32: 0 | N32: 0 | O32: 0 | P32: 0 | R32: =Est2019DistRev!R32 -> 4 | S32: =Est2019DistRev!S32 -> 534045.0131 | T32: =Est2019DistRev!T32 -> 0 | U32: =Est2019DistRev!U32 -> 0 | V32: =Est2019DistRev!V32 -> 0 | W32: =Est2019DistRev!W32 -> 411.3688 | X32: =Est2019DistRev!X32 -> 954.5203476 | Y32: =Est2019DistRev!Y32 -> 0 | Z32: =Est2019DistRev!Z32 -> 0 | AA32: =Est2019DistRev!AA32 -> 0 | AB32: =Est2019DistRev!AB32 -> 0 | AC32: =Est2019DistRev!AC32 -> 0 | AD32: =Est2019DistRev!AD32 -> 0 | AF32: 0 | AG32: 5340.450131 | AH32: 0 | AI32: 0 | AJ32: 0 | AK32: 1143.605264 | AL32: 887.7039233 | AM32: 0 | AN32: 0 | AO32: 0 | AP32: 0 | AQ32: 0 | AR32: 0 | AS32: 7371.759318
B33: =Est2019DistRev!B33 -> Medium Business Demand | D33: 0 | E33: 0 | F33: 1.54 | G33: 1.17 | H33: 0 | I33: 2.08 | J33: 1.04 | K33: 0 | L33: 0 | M33: 0 | N33: 0 | O33: 0 | P33: 0 | R33: =Est2019DistRev!R33 -> 4548 | S33: =Est2019DistRev!S33 -> 0 | T33: =Est2019DistRev!T33 -> 365166105 | U33: =Est2019DistRev!U33 -> 263865736.5 | V33: =Est2019DistRev!V33 -> 0 | W33: =Est2019DistRev!W33 -> 730223.7714 | X33: =Est2019DistRev!X33 -> 1303005.77 | Y33: =Est2019DistRev!Y33 -> 0 | Z33: =Est2019DistRev!Z33 -> 0 | AA33: =Est2019DistRev!AA33 -> 0 | AB33: =Est2019DistRev!AB33 -> 0 | AC33: =Est2019DistRev!AC33 -> 0 | AD33: =Est2019DistRev!AD33 -> 0 | AF33: =D33*R33 -> 0 | AG33: =E33/100*S33 -> 0 | AH33: 5623558.018 | AI33: 3087229.117 | AJ33: 0 | AK33: 1518865.445 | AL33: 1355126.001 | AM33: 0 | AN33: 0 | AO33: 0 | AP33: 0 | AQ33: 0 | AR33: 0 | AS33: =SUM(AF33:AR33) -> 11584778.58
B34: =Est2019DistRev!B34 -> Medium Business Bulk Demand | D34: 0 | E34: 0 | F34: 1.22 | G34: 0.97 | H34: 0 | I34: 1.67 | J34: 0.83 | K34: 0 | L34: 0 | M34: 0 | N34: 0 | O34: 0 | P34: 0 | R34: =Est2019DistRev!R34 -> 2221.916667 | S34: =Est2019DistRev!S34 -> 0 | T34: =Est2019DistRev!T34 -> 255479964.7 | U34: =Est2019DistRev!U34 -> 173141256.8 | V34: =Est2019DistRev!V34 -> 0 | W34: =Est2019DistRev!W34 -> 520621.0765 | X34: =Est2019DistRev!X34 -> 868527.9127 | Y34: =Est2019DistRev!Y34 -> 0 | Z34: =Est2019DistRev!Z34 -> 0 | AA34: =Est2019DistRev!AA34 -> 0 | AB34: =Est2019DistRev!AB34 -> 0 | AC34: =Est2019DistRev!AC34 -> 0 | AD34: =Est2019DistRev!AD34 -> 0 | AF34: 0 | AG34: 0 | AH34: 3116855.569 | AI34: 1679470.191 | AJ34: 0 | AK34: 869437.1978 | AL34: 720878.1675 | AM34: 0 | AN34: 0 | AO34: 0 | AP34: 0 | AQ34: 0 | AR34: 0 | AS34: 6386641.125
B35: =Est2019DistRev!B35 -> Medium Business Opt-out | D35: 0 | E35: 0 | F35: 3.04 | G35: 1.22 | H35: 0 | I35: 0 | J35: 0 | K35: 0 | L35: 0 | M35: 0 | N35: 0 | O35: 0 | P35: 0 | R35: =Est2019DistRev!R35 -> 7 | S35: =Est2019DistRev!S35 -> 0 | T35: =Est2019DistRev!T35 -> 296417.2537 | U35: =Est2019DistRev!U35 -> 286499.7885 | V35: =Est2019DistRev!V35 -> 0 | W35: =Est2019DistRev!W35 -> 0 | X35: =Est2019DistRev!X35 -> 0 | Y35: =Est2019DistRev!Y35 -> 0 | Z35: =Est2019DistRev!Z35 -> 0 | AA35: =Est2019DistRev!AA35 -> 0 | AB35: =Est2019DistRev!AB35 -> 0 | AC35: =Est2019DistRev!AC35 -> 0 | AD35: =Est2019DistRev!AD35 -> 0 | AF35: =D35*R35 -> 0 | AG35: =E35/100*S35 -> 0 | AH35: =F35/100*T35 -> 9011.084513 | AI35: =G35/100*U35 -> 3495.29742 | AJ35: 0 | AK35: 0 | AL35: 0 | AM35: =K35/100*Y35 -> 0 | AN35: =L35/100*Z35 -> 0 | AO35: 0 | AP35: 0 | AQ35: 0 | AR35: 0 | AS35: =SUM(AF35:AR35) -> 12506.38193
B36: =Est2019DistRev!B36 -> Medium Business Bulk Opt-out | D36: 0 | E36: 0 | F36: 2.39 | G36: 1.01 | H36: 0 | I36: 0 | J36: 0 | K36: 0 | L36: 0 | M36: 0 | N36: 0 | O36: 0 | P36: 0 | R36: =Est2019DistRev!R36 -> 9 | S36: =Est2019DistRev!S36 -> 0 | T36: =Est2019DistRev!T36 -> 630002.2237 | U36: =Est2019DistRev!U36 -> 505149.3518 | V36: =Est2019DistRev!V36 -> 0 | W36: =Est2019DistRev!W36 -> 0 | X36: =Est2019DistRev!X36 -> 0 | Y36: =Est2019DistRev!Y36 -> 0 | Z36: =Est2019DistRev!Z36 -> 0 | AA36: =Est2019DistRev!AA36 -> 0 | AB36: =Est2019DistRev!AB36 -> 0 | AC36: =Est2019DistRev!AC36 -> 0 | AD36: =Est2019DistRev!AD36 -> 0 | AF36: =D36*R36 -> 0 | AG36: =E36/100*S36 -> 0 | AH36: =F36/100*T36 -> 15057.05315 | AI36: =G36/100*U36 -> 5102.008454 | AJ36: 0 | AK36: 0 | AL36: 0 | AM36: =K36/100*Y36 -> 0 | AN36: =L36/100*Z36 -> 0 | AO36: 0 | AP36: 0 | AQ36: 0 | AR36: 0 | AS36: =SUM(AF36:AR36) -> 20159.0616
B37: =Est2019DistRev!B37 -> Unmetered Supplies / Public Lighting | D37: 0 | E37: 0 | F37: 0 | G37: 0 | H37: 0 | I37: 0 | J37: 0 | K37: 0 | L37: 0 | M37: 0 | N37: 0 | O37: 0 | P37: 0 | R37: =Est2019DistRev!R37 -> 4425.5 | S37: =Est2019DistRev!S37 -> 0 | T37: =Est2019DistRev!T37 -> 7430325.445 | U37: =Est2019DistRev!U37 -> 18727648.89 | V37: =Est2019DistRev!V37 -> 0 | W37: =Est2019DistRev!W37 -> 0 | X37: =Est2019DistRev!X37 -> 0 | Y37: =Est2019DistRev!Y37 -> 0 | Z37: =Est2019DistRev!Z37 -> 0 | AA37: =Est2019DistRev!AA37 -> 0 | AB37: =Est2019DistRev!AB37 -> 0 | AC37: =Est2019DistRev!AC37 -> 0 | AD37: =Est2019DistRev!AD37 -> 0 | AF37: 0 | AG37: 0 | AH37: 0 | AI37: 0 | AJ37: 0 | AK37: 0 | AL37: 0 | AM37: 0 | AN37: 0 | AO37: 0 | AP37: 0 | AQ37: 0 | AR37: 0 | AS37: 0
B38: =Est2019DistRev!B38 -> Large low Voltage | D38: 0 | E38: 0 | F38: 1.09 | G38: 0.67 | H38: 33.84 | I38: 0 | J38: 0 | K38: 0 | L38: 0 | M38: 0 | N38: 0 | O38: 0 | P38: 0 | R38: =Est2019DistRev!R38 -> 334.3333333 | S38: =Est2019DistRev!S38 -> 0 | T38: =Est2019DistRev!T38 -> 103909055.5 | U38: =Est2019DistRev!U38 -> 80266733.27 | V38: =Est2019DistRev!V38 -> 59781.40408 | W38: =Est2019DistRev!W38 -> 0 | X38: =Est2019DistRev!X38 -> 0 | Y38: =Est2019DistRev!Y38 -> 0 | Z38: =Est2019DistRev!Z38 -> 0 | AA38: =Est2019DistRev!AA38 -> 0 | AB38: =Est2019DistRev!AB38 -> 0 | AC38: =Est2019DistRev!AC38 -> 0 | AD38: =Est2019DistRev!AD38 -> 0 | AF38: 0 | AG38: 0 | AH38: 1132608.705 | AI38: 537787.1129 | AJ38: 2023002.714 | AK38: 0 | AL38: 0 | AM38: 0 | AN38: 0 | AO38: 0 | AP38: 0 | AQ38: 0 | AR38: 0 | AS38: 3693398.532
B39: =Est2019DistRev!B39 -> Large low Voltage Bulk | D39: 0 | E39: 0 | F39: 1 | G39: 0.62 | H39: 31.13 | I39: 0 | J39: 0 | K39: 0 | L39: 0 | M39: 0 | N39: 0 | O39: 0 | P39: 0 | R39: =Est2019DistRev!R39 -> 1731.166667 | S39: =Est2019DistRev!S39 -> 0 | T39: =Est2019DistRev!T39 -> 1101354717 | U39: =Est2019DistRev!U39 -> 829525555.8 | V39: =Est2019DistRev!V39 -> 627630.9803 | W39: =Est2019DistRev!W39 -> 0 | X39: =Est2019DistRev!X39 -> 0 | Y39: =Est2019DistRev!Y39 -> 0 | Z39: =Est2019DistRev!Z39 -> 0 | AA39: =Est2019DistRev!AA39 -> 0 | AB39: =Est2019DistRev!AB39 -> 0 | AC39: =Est2019DistRev!AC39 -> 0 | AD39: =Est2019DistRev!AD39 -> 0 | AF39: 0 | AG39: 0 | AH39: 11013547.17 | AI39: 5143058.446 | AJ39: 19538152.42 | AK39: 0 | AL39: 0 | AM39: 0 | AN39: 0 | AO39: 0 | AP39: 0 | AQ39: 0 | AR39: 0 | AS39: 35694758.04
B40: =Est2019DistRev!B40 -> High Voltage | D40: 0 | E40: 0 | F40: 1.22 | G40: 0.63 | H40: 34.6 | I40: 0 | J40: 0 | K40: 0 | L40: 0 | M40: 0 | N40: 0 | O40: 0 | P40: 0 | R40: =Est2019DistRev!R40 -> 88 | S40: =Est2019DistRev!S40 -> 0 | T40: =Est2019DistRev!T40 -> 345704462.1 | U40: =Est2019DistRev!U40 -> 319905209.4 | V40: =Est2019DistRev!V40 -> 191921.5767 | W40: =Est2019DistRev!W40 -> 0 | X40: =Est2019DistRev!X40 -> 0 | Y40: =Est2019DistRev!Y40 -> 0 | Z40: =Est2019DistRev!Z40 -> 0 | AA40: =Est2019DistRev!AA40 -> 0 | AB40: =Est2019DistRev!AB40 -> 0 | AC40: =Est2019DistRev!AC40 -> 0 | AD40: =Est2019DistRev!AD40 -> 0 | AF40: 0 | AG40: 0 | AH40: 4217594.438 | AI40: 2015402.819 | AJ40: 6640486.556 | AK40: 0 | AL40: 0 | AM40: 0 | AN40: 0 | AO40: 0 | AP40: 0 | AQ40: 0 | AR40: 0 | AS40: 12873483.81
B41: =Est2019DistRev!B41 -> Subtransmission | D41: 0 | E41: 0 | F41: 2 | G41: 0.83 | H41: 16.25 | I41: 0 | J41: 0 | K41: 0 | L41: 0 | M41: 0 | N41: 0 | O41: 0 | P41: 0 | R41: =Est2019DistRev!R41 -> 6 | S41: =Est2019DistRev!S41 -> 0 | T41: =Est2019DistRev!T41 -> 63161450.7 | U41: =Est2019DistRev!U41 -> 37546309.72 | V41: =Est2019DistRev!V41 -> 35559.26992 | W41: =Est2019DistRev!W41 -> 0 | X41: =Est2019DistRev!X41 -> 0 | Y41: =Est2019DistRev!Y41 -> 0 | Z41: =Est2019DistRev!Z41 -> 0 | AA41: =Est2019DistRev!AA41 -> 0 | AB41: =Est2019DistRev!AB41 -> 0 | AC41: =Est2019DistRev!AC41 -> 0 | AD41: =Est2019DistRev!AD41 -> 0 | AF41: 0 | AG41: 0 | AH41: 1263229.014 | AI41: 311634.3707 | AJ41: 577838.1361 | AK41: 0 | AL41: 0 | AM41: 0 | AN41: 0 | AO41: 0 | AP41: 0 | AQ41: 0 | AR41: 0 | AS41: 2152701.521
AF42: 0 | AG42: 0 | AH42: 0 | AI42: 0 | AJ42: 0 | AK42: 0 | AL42: 0 | AM42: 0 | AN42: 0 | AO42: 0 | AP42: 0 | AQ42: 0 | AR42: 0 | AS42: 0
AF43: 0 | AG43: 0 | AH43: 0 | AI43: 0 | AJ43: 0 | AK43: 0 | AL43: 0 | AM43: 0 | AN43: 0 | AO43: 0 | AP43: 0 | AQ43: 0 | AR43: 0 | AS43: 0
AF44: 0 | AG44: 0 | AH44: 0 | AI44: 0 | AJ44: 0 | AK44: 0 | AL44: 0 | AM44: 0 | AN44: 0 | AO44: 0 | AP44: 0 | AQ44: 0 | AR44: 0 | AS44: 0
AF45: 0 | AG45: 0 | AH45: 0 | AI45: 0 | AJ45: 0 | AK45: 0 | AL45: 0 | AM45: 0 | AN45: 0 | AO45: 0 | AP45: 0 | AQ45: 0 | AR45: 0 | AS45: 0
AF46: 0 | AG46: 0 | AH46: 0 | AI46: 0 | AJ46: 0 | AK46: 0 | AL46: 0 | AM46: 0 | AN46: 0 | AO46: 0 | AP46: 0 | AQ46: 0 | AR46: 0 | AS46: 0
AF47: 0 | AG47: 0 | AH47: 0 | AI47: 0 | AJ47: 0 | AK47: 0 | AL47: 0 | AM47: 0 | AN47: 0 | AO47: 0 | AP47: 0 | AQ47: 0 | AR47: 0 | AS47: 0
AF48: 0 | AG48: 0 | AH48: 0 | AI48: 0 | AJ48: 0 | AK48: 0 | AL48: 0 | AM48: 0 | AN48: 0 | AO48: 0 | AP48: 0 | AQ48: 0 | AR48: 0 | AS48: 0
AF49: 0 | AG49: 0 | AH49: 0 | AI49: 0 | AJ49: 0 | AK49: 0 | AL49: 0 | AM49: 0 | AN49: 0 | AO49: 0 | AP49: 0 | AQ49: 0 | AR49: 0 | AS49: 0
AF50: 0 | AG50: 0 | AH50: 0 | AI50: 0 | AJ50: 0 | AK50: 0 | AL50: 0 | AM50: 0 | AN50: 0 | AO50: 0 | AP50: 0 | AQ50: 0 | AR50: 0 | AS50: 0
AF51: 0 | AG51: 0 | AH51: 0 | AI51: 0 | AJ51: 0 | AK51: 0 | AL51: 0 | AM51: 0 | AN51: 0 | AO51: 0 | AP51: 0 | AQ51: 0 | AR51: 0 | AS51: 0
AF52: 0 | AG52: 0 | AH52: 0 | AI52: 0 | AJ52: 0 | AK52: 0 | AL52: 0 | AM52: 0 | AN52: 0 | AO52: 0 | AP52: 0 | AQ52: 0 | AR52: 0 | AS52: 0
AF53: 0 | AG53: 0 | AH53: 0 | AI53: 0 | AJ53: 0 | AK53: 0 | AL53: 0 | AM53: 0 | AN53: 0 | AO53: 0 | AP53: 0 | AQ53: 0 | AR53: 0 | AS53: 0
AF54: 0 | AG54: 0 | AH54: 0 | AI54: 0 | AJ54: 0 | AK54: 0 | AL54: 0 | AM54: 0 | AN54: 0 | AO54: 0 | AP54: 0 | AQ54: 0 | AR54: 0 | AS54: 0
AF55: 0 | AG55: 0 | AH55: 0 | AI55: 0 | AJ55: 0 | AK55: 0 | AL55: 0 | AM55: 0 | AN55: 0 | AO55: 0 | AP55: 0 | AQ55: 0 | AR55: 0 | AS55: 0
AF56: 0 | AG56: 0 | AH56: 0 | AI56: 0 | AJ56: 0 | AK56: 0 | AL56: 0 | AM56: 0 | AN56: 0 | AO56: 0 | AP56: 0 | AQ56: 0 | AR56: 0 | AS56: 0
AF57: 0 | AG57: 0 | AH57: 0 | AI57: 0 | AJ57: 0 | AK57: 0 | AL57: 0 | AM57: 0 | AN57: 0 | AO57: 0 | AP57: 0 | AQ57: 0 | AR57: 0 | AS57: 0
AF58: 0 | AG58: =E58/100*S58 -> 0 | AH58: 0 | AI58: 0 | AJ58: 0 | AK58: 0 | AL58: 0 | AM58: 0 | AN58: 0 | AO58: 0 | AP58: 0 | AQ58: 0 | AR58: 0 | AS58: 0
AF59: 0 | AG59: 0 | AH59: 0 | AI59: 0 | AJ59: 0 | AK59: 0 | AL59: 0 | AM59: 0 | AN59: 0 | AO59: 0 | AP59: 0 | AQ59: 0 | AR59: 0 | AS59: 0
AF60: 0 | AG60: 0 | AH60: 0 | AI60: 0 | AJ60: 0 | AK60: 0 | AL60: 0 | AM60: 0 | AN60: 0 | AO60: 0 | AP60: 0 | AQ60: 0 | AR60: 0 | AS60: 0
AF61: 0 | AG61: 0 | AH61: 0 | AI61: 0 | AJ61: 0 | AK61: 0 | AL61: 0 | AM61: 0 | AN61: 0 | AO61: 0 | AP61: 0 | AQ61: 0 | AR61: 0 | AS61: 0
AF62: 0 | AG62: 0 | AH62: 0 | AI62: 0 | AJ62: 0 | AK62: 0 | AL62: 0 | AM62: 0 | AN62: 0 | AO62: 0 | AP62: 0 | AQ62: 0 | AR62: 0 | AS62: 0
AF63: 0 | AG63: 0 | AH63: 0 | AI63: 0 | AJ63: 0 | AK63: 0 | AL63: 0 | AM63: 0 | AN63: 0 | AO63: 0 | AP63: 0 | AQ63: 0 | AR63: 0 | AS63: 0
AF64: 0 | AG64: 0 | AH64: 0 | AI64: 0 | AJ64: 0 | AK64: 0 | AL64: 0 | AM64: 0 | AN64: 0 | AO64: 0 | AP64: 0 | AQ64: 0 | AR64: 0 | AS64: 0
AF65: 0 | AG65: 0 | AH65: 0 | AI65: 0 | AJ65: =H65*V65 -> 0 | AK65: 0 | AL65: 0 | AM65: 0 | AN65: 0 | AO65: 0 | AP65: 0 | AQ65: 0 | AR65: 0 | AS65: 0
R66: =SUM(R6:R65) -> 373143.8333 | S66: 1272086461 | T66: 2597281822 | U66: 2012408976 | V66: 914893.2311 | W66: 1252129.448 | X66: 2174517.995 | Y66: 414808.5659 | Z66: 515541.7504 | AA66: 510185.1308 | AB66: 1382965.645 | AC66: 1828108.288 | AD66: 1739470.868 | AF66: =SUM(AF6:AF65) -> 0 | AG66: 22331855.26 | AH66: 35015734.69 | AI66: 14443937.19 | AJ66: 28779479.82 | AK66: 2392381.075 | AL66: 2079165.528 | AM66: =SUM(AM6:AM65) -> 11346.35084 | AN66: 7972.11541 | AO66: 3505.393075 | AP66: 37230.96389 | AQ66: 28038.51169 | AR66: 11741.21974 | AS66: 105142388.1

Sheet 2020TransRevCont
B2: ="Tariff Approval - "&'Model update'!$C$3 -> Tariff Approval - CitiPower | C2: ='Model update'!$C$5&"TransRevCont" -> 2020TransRevCont
B4: Designated pricing proposal charges (DPPC)
B6: Year (t) | C6: ='Model update'!C5 -> 2020
B8: Table 1- Compliance with DPPC Revenue Formula
B9: Revenue from designated pricing proposal charges for year t | C9: =Prop2020TransTar!AS66 -> 123645393.1
B10: Total DPPC related payments for year t | C10: =C17 -> 123657337.9
C11: =IF(C9="","",IF(C10>=C9,"DPPC REVENUE FORMULA COMPLIANT","DPPC REVENUE FORMULA BREACHED")) -> DPPC REVENUE FORMULA COMPLIANT
B13: Table 2 - Total DPPC related payments for year t
B14: Transmission charges for year t | C14: =C24 -> 115418459.3
B15: DPPC revenue under/over recovery approved | C15: =-E60*(1+E58)^0.5 -> 8238878.572
B16: Transmission revenue under/over recovery for years 2014 and 2015
B17: Total DPPC related payments for year t | C17: =SUM(C14:C16) -> 123657337.9
B19: Table 3 - Transmission charges for year t
B20: AEMO (TCt) | C20: 84003877.6
B21: Transmission connection (TCt) | C21: 27441984.17
B22: Embedded generators (Gt) | C22: 0
B23: Inter-network (Dt) | C23: -3972597.552
B24: TC + G - D | C24: =C20+C21+C22-C23 -> 115418459.3
B29: Table 4 - DPPC Recovery Arrangements
C30: Year t-2 | D30: Year t-1 | E30: Year t
C31: (actual) | D31: (estimate) | E31: (forecast)
C32: =D32-1 -> 2018 | D32: =E32-1 -> 2019 | E32: =C$6 -> 2020
B34: (A) Revenue from designated pricing proposal charges | C34: 103354553.4 | D34: =Est2019TransRev!AS66 -> 105142388.1 | E34: =C9 -> 123645393.1
B37: (B) Less Total DPPC related payments = | C37: =SUM(C39:C41) -> 99517110.65 | D37: =SUM(D39:D41) -> 108210877.8 | E37: =SUM(E39:E41) -> 115418459.3
B39: + Transmission revenue under/over recovery for years 2014 and 2015
B41: +Transmission charges = | C41: =C42+C43+C44-C45 -> 99517110.65 | D41: =D42+D43+D44-D45 -> 108210877.8 | E41: =E42+E43+E44-E45 -> 115418459.3
B42: +AEMO | C42: ='TUoS cost audit template'!F7 -> 67054039.63 | D42: 75180831.55 | E42: =C20 -> 84003877.6
B43: +PowerNet | C43: ='TUoS cost audit template'!F18 -> 29086396.79 | D43: 26999399.93 | E43: =C21 -> 27441984.17
B44: +Embedded generators | C44: ='TUoS cost audit template'!F64 -> 0 | D44: 0 | E44: =C22 -> 0
B45: -Inter-network | C45: ='TUoS cost audit template'!F28 -> -3376674.236 | D45: -6030646.349 | E45: =C23 -> -3972597.552
B49: (A minus B) Under/over recovery of revenue for regulatory year | C49: =C34-C37 -> 3837442.702 | D49: =D34-D37 -> -3068489.707 | E49: =E34-E37 -> 8226933.824
B53: Table 5 - DPPC Unders and Overs Account
C54: Year t-2 | D54: Year t-1 | E54: Year t
C55: (actual) | D55: (estimate) | E55: (forecast)
B56: Calendar year | C56: =D56-1 -> 2018 | D56: =E56-1 -> 2019 | E56: =C$6 -> 2020
B58: Nominal WACC | C58: =(1+'Model update'!$B$47)*(1+'Model update'!$C$28)-1 -> 0.05565648259 | D58: =(1+'Model update'!$B$45)*(1+'Model update'!$C$29)-1 -> 0.0565862118 | E58: =(1+'Model update'!$B$43)*(1+'Model update'!$C$30)-1 -> 0.05008580414
B60: Opening balance | C60: -8115330.037 | D60: =C64 -> -4624214.693 | E60: =D64 -> -8039993.699
B61: Interest on Opening balance | C61: =C60*C58 -> -451670.7249 | D61: =D60*D58 -> -261666.792 | E61: =E60*E58 -> -402689.5497
B62: Under/over recovery of revenue for regulatory year | C62: =C49 -> 3837442.702 | D62: =D49 -> -3068489.707 | E62: =E49 -> 8226933.824
B63: Interest on under/over recovery for regulatory year | C63: =C62*((1+C58)^0.5-1) -> 105343.3673 | D63: =D62*((1+D58)^0.5-1) -> -85622.50777 | E63: =E62*((1+E58)^0.5-1) -> 203509.2003
B64: Closing balance of DPPC overs/ (unders) account | C64: =SUM(C60:C63) -> -4624214.693 | D64: =SUM(D60:D63) -> -8039993.699 | E64: -12240.22456
B66: The DNSP is expected to achieve a closing balance as close to zero as practicable in its DPPC unders and overs account in each forecast year in its annual pricing proposals in the 2016–20 regulatory control period.

Sheet TUoS cost audit template
B1: ="Tariff Approval - "&'Model update'!C3 -> Tariff Approval - CitiPower
B2: TUOS charges (AEMO) | F2: t-2 actual
B3: AEMO (Locational & Non-Locational) | F3: 27083563.6
B4: AEMO (TUoS Common Service Charge) | F4: 38981041.86
B5: Grid equalisation | F5: 1184000.033
B6: Adjustment | F6: -194565.87
E7: Total | F7: =SUM(F3:F6) -> 67054039.63
B9: Transmission connection fees (SPI Powernet) | F9: t-2 actual
B11: Ausnet Services (Connection) | F11: 7971906
B12: Ausnet Services (Augmentation) | F12: 21114490.79
E18: Total | F18: =SUM(F10:F17) -> 29086396.79
B20: Cross boundary network charges (internetwork charges) | F20: t-2 actual
B21: Distribution Business | C21: Amount (payable)/receivable
C22: HV crossings | D22: Subtransmission crossings | E22: TUoS Adjustment | F22: Total
B24: Jemena | D24: -3376674.236 | F24: -3376674.236
B25: United Energy | D25: 0 | F25: 0
B28: Total | F28: =SUM(F23:F27) -> -3376674.236
B30: Payments to embedded generators | F30: t-2 actual
B31: Avoided transmission costs
B37: Total | F37: =SUM(F32:F36) -> 0
B39: Avoided TUoS usage charges
B63: Total | F63: =SUM(F40:F62) -> 0
B64: Total payments to embedded generators | F64: =F63+F37 -> 0
B66: Where the following definitions apply
B67: HV Crossings | C67: Payments/Receipts for energy transferred utilising the distributor’s HV and LV line assets.
B68: Sub-transmission Crossings | C68: Payments/Receipts for the Sub-transmission assets in shared loops that support each distributor’s Zone Substation capacity to ensure N-1 reliability is maintained.
B69: TuoS Adjustment | C69: Payments/Receipts for the adjustment of TuoS paid by a distributor for energy delivered to another distribution business through a shared loop.

Sheet Prop2020JSTar
B1: ="Tariff Approval - "&'Model update'!C3 -> Tariff Approval - CitiPower | D1: ="Prop"&'Model update'!$C$5&"JSTar" -> Prop2020JSTar
B3: ="PROPOSED "&'Model update'!$C$5&" JURISDICTIONAL SCHEME TARIFFS" -> PROPOSED 2020 JURISDICTIONAL SCHEME TARIFFS
D4: ="Proposed Jurisdictional scheme Tariffs (Pt) for "&'Model update'!$C$5 -> Proposed Jurisdictional scheme Tariffs (Pt) for 2020 | R4: ="Forecast Quantities (Qt) for "&'Model update'!$C$5 -> Forecast Quantities (Qt) for 2020 | AF4: ="Forecast Revenue (Pt "&'Model update'!$C$5&")*(Qt " &'Model update'!$C$5&")" -> Forecast Revenue (Pt 2020)*(Qt 2020)
B5: Proposed tariff | D5: =Prop2020DistTar!D5 -> PropTar Fixed | E5: =Prop2020DistTar!E5 -> PropTar Anytime | F5: =Prop2020DistTar!F5 -> PropTar PkBlk | G5: =Prop2020DistTar!G5 -> PropTar OPkBlk1 | H5: =Prop2020DistTar!H5 -> PropTar Dem kVA | I5: =Prop2020DistTar!I5 -> PropTar Dem kW Sum | J5: =Prop2020DistTar!J5 -> PropTar Dem kW Win | K5: =Prop2020DistTar!K5 -> PropTar SumBlk1 | L5: =Prop2020DistTar!L5 -> PropTar SumBlk2 | M5: =Prop2020DistTar!M5 -> PropTar SumBlk3 | N5: =Prop2020DistTar!N5 -> PropTar WtrBlk1 | O5: =Prop2020DistTar!O5 -> PropTar WtrBlk2 | P5: =Prop2020DistTar!P5 -> PropTar WtrBlk3 | R5: =Prop2020DistTar!AF5 -> FcastVol Fixed | S5: =Prop2020DistTar!AG5 -> FcastVol Anytime | T5: =Prop2020DistTar!AH5 -> FcastVol Pk | U5: =Prop2020DistTar!AI5 -> FcastVol Opk | V5: =Prop2020DistTar!AJ5 -> FcastVol Dem kVA | W5: =Prop2020DistTar!AK5 -> FcastVol Dem kW Sum | X5: =Prop2020DistTar!AL5 -> FcastVol Dem kW Win | Y5: =Prop2020DistTar!AM5 -> FcastVol SumBlk1 | Z5: =Prop2020DistTar!AN5 -> FcastVol SumBlk2 | AA5: =Prop2020DistTar!AO5 -> FcastVol SumBlk3 | AB5: =Prop2020DistTar!AP5 -> FcastVol WtrBlk1 | AC5: =Prop2020DistTar!AQ5 -> FcastVol WtrBlk2 | AD5: =Prop2020DistTar!AR5 -> FcastVol WtrBlk3 | AF5: =Prop2020DistTar!AT5 -> PropRev Fixed | AG5: =Prop2020DistTar!AU5 -> PropRev Anytime | AH5: =Prop2020DistTar!AV5 -> PropRev Pk | AI5: =Prop2020DistTar!AW5 -> PropRev Opk | AJ5: =Prop2020DistTar!AX5 -> PropRev Dem kVA | AK5: =Prop2020DistTar!AY5 -> PropRev Dem kW Sum | AL5: =Prop2020DistTar!AZ5 -> PropRev Dem kW Win | AM5: =Prop2020DistTar!BA5 -> PropRev SumBlk1 | AN5: =Prop2020DistTar!BB5 -> PropRev SumBlk2 | AO5: =Prop2020DistTar!BC5 -> PropRev SumBlk3 | AP5: =Prop2020DistTar!BD5 -> PropRev WtrBlk1 | AQ5: =Prop2020DistTar!BE5 -> PropRev WtrBlk2 | AR5: =Prop2020DistTar!BF5 -> PropRev WtrBlk3 | AS5: PropRev Total
B6: =Prop2020DistTar!B6 -> Residential Single Rate | C6: C1R | D6: 0 | E6: 0.06 | F6: 0 | G6: 0 | H6: 0 | I6: 0 | J6: 0 | K6: 0 | L6: 0 | M6: 0 | N6: 0 | O6: 0 | P6: 0 | R6: =Prop2020DistTar!AF6 -> 206178.4408 | S6: =Prop2020DistTar!AG6 -> 848271452.5 | T6: =Prop2020DistTar!AH6 -> 0 | U6: =Prop2020DistTar!AI6 -> 0 | V6: =Prop2020DistTar!AJ6 -> 0 | W6: =Prop2020DistTar!AK6 -> 0 | X6: =Prop2020DistTar!AL6 -> 0 | Y6: =Prop2020DistTar!AM6 -> 0 | Z6: =Prop2020DistTar!AN6 -> 0 | AA6: =Prop2020DistTar!AO6 -> 0 | AB6: =Prop2020DistTar!AP6 -> 0 | AC6: =Prop2020DistTar!AQ6 -> 0 | AD6: =Prop2020DistTar!AR6 -> 0 | AF6: =D6*R6 -> 0 | AG6: =E6/100*S6 -> 508962.8715 | AH6: 0 | AI6: 0 | AJ6: =H6*V6 -> 0 | AK6: =I6*W6 -> 0 | AL6: 0 | AM6: 0 | AN6: 0 | AO6: =M6/100*AA6 -> 0 | AP6: =N6/100*AB6 -> 0 | AQ6: =O6/100*AC6 -> 0 | AR6: =P6/100*AD6 -> 0 | AS6: =SUM(AF6:AR6) -> 508962.8715
B7: =Prop2020DistTar!B7 -> Residential Single Rate - Bulk | C7: C1RB | D7: 0 | E7: 0.06 | F7: 0 | G7: 0 | H7: 0 | I7: 0 | J7: 0 | K7: 0 | L7: 0 | M7: 0 | N7: 0 | O7: 0 | P7: 0 | R7: =Prop2020DistTar!AF7 -> 31089.94761 | S7: =Prop2020DistTar!AG7 -> 107478291.6 | T7: =Prop2020DistTar!AH7 -> 0 | U7: =Prop2020DistTar!AI7 -> 0 | V7: =Prop2020DistTar!AJ7 -> 0 | W7: =Prop2020DistTar!AK7 -> 0 | X7: =Prop2020DistTar!AL7 -> 0 | Y7: =Prop2020DistTar!AM7 -> 0 | Z7: =Prop2020DistTar!AN7 -> 0 | AA7: =Prop2020DistTar!AO7 -> 0 | AB7: =Prop2020DistTar!AP7 -> 0 | AC7: =Prop2020DistTar!AQ7 -> 0 | AD7: =Prop2020DistTar!AR7 -> 0 | AF7: =D7*R7 -> 0 | AG7: =E7/100*S7 -> 64486.97496 | AH7: 0 | AI7: 0 | AJ7: =H7*V7 -> 0 | AK7: =I7*W7 -> 0 | AL7: =J7*X7 -> 0 | AM7: 0 | AN7: 0 | AO7: 0 | AP7: 0 | AQ7: 0 | AR7: 0 | AS7: =SUM(AF7:AR7) -> 64486.97496
B8: =Prop2020DistTar!B8 -> Residential - flexible pricing | C8: C13R | D8: 0 | E8: 0 | F8: 0 | G8: 0 | H8: 0 | I8: 0 | J8: 0 | K8: 0.06 | L8: 0.06 | M8: 0.06 | N8: 0.06 | O8: 0.06 | P8: 0.06 | R8: =Prop2020DistTar!AF8 -> 697.7837744 | S8: =Prop2020DistTar!AG8 -> 0 | T8: =Prop2020DistTar!AH8 -> 0 | U8: =Prop2020DistTar!AI8 -> 0 | V8: =Prop2020DistTar!AJ8 -> 0 | W8: =Prop2020DistTar!AK8 -> 0 | X8: =Prop2020DistTar!AL8 -> 0 | Y8: =Prop2020DistTar!AM8 -> 182885.2841 | Z8: =Prop2020DistTar!AN8 -> 388824.7097 | AA8: =Prop2020DistTar!AO8 -> 289537.6096 | AB8: =Prop2020DistTar!AP8 -> 700283.2533 | AC8: =Prop2020DistTar!AQ8 -> 1488842.769 | AD8: =Prop2020DistTar!AR8 -> 1108664.047 | AF8: 0 | AG8: 0 | AH8: 0 | AI8: 0 | AJ8: 0 | AK8: 0 | AL8: 0 | AM8: 109.7311705 | AN8: 233.2948258 | AO8: 173.7225657 | AP8: 420.169952 | AQ8: 893.3056611 | AR8: 665.1984281 | AS8: 2495.422603
B9: =Prop2020DistTar!B9 -> Residential - flexible pricing bulk | C9: C13RB | D9: 0 | E9: 0 | F9: 0 | G9: 0 | H9: 0 | I9: 0 | J9: 0 | K9: 0.06 | L9: 0.06 | M9: 0.06 | N9: 0.06 | O9: 0.06 | P9: 0.06 | R9: =Prop2020DistTar!AF9 -> 92.82952683 | S9: =Prop2020DistTar!AG9 -> 0 | T9: =Prop2020DistTar!AH9 -> 0 | U9: =Prop2020DistTar!AI9 -> 0 | V9: =Prop2020DistTar!AJ9 -> 0 | W9: =Prop2020DistTar!AK9 -> 0 | X9: =Prop2020DistTar!AL9 -> 0 | Y9: =Prop2020DistTar!AM9 -> 15622.00683 | Z9: =Prop2020DistTar!AN9 -> 33980.3137 | AA9: =Prop2020DistTar!AO9 -> 24260.31259 | AB9: =Prop2020DistTar!AP9 -> 58675.49698 | AC9: =Prop2020DistTar!AQ9 -> 127628.4037 | AD9: =Prop2020DistTar!AR9 -> 91120.55282 | AF9: 0 | AG9: 0 | AH9: 0 | AI9: 0 | AJ9: 0 | AK9: 0 | AL9: 0 | AM9: 9.373204096 | AN9: 20.38818822 | AO9: 14.55618756 | AP9: 35.20529819 | AQ9: 76.57704221 | AR9: 54.67233169 | AS9: 210.772252
B10: =Prop2020DistTar!B10 -> Residential Two Rate 5d | C10: C2R | D10: 0 | E10: 0 | F10: 0.06 | G10: 0.06 | H10: 0 | I10: 0 | J10: 0 | K10: 0 | L10: 0 | M10: 0 | N10: 0 | O10: 0 | P10: 0 | R10: =Prop2020DistTar!AF10 -> 10806.12165 | S10: =Prop2020DistTar!AG10 -> 0 | T10: =Prop2020DistTar!AH10 -> 33449615.67 | U10: =Prop2020DistTar!AI10 -> 29269859.99 | V10: =Prop2020DistTar!AJ10 -> 0 | W10: =Prop2020DistTar!AK10 -> 0 | X10: =Prop2020DistTar!AL10 -> 0 | Y10: =Prop2020DistTar!AM10 -> 0 | Z10: =Prop2020DistTar!AN10 -> 0 | AA10: =Prop2020DistTar!AO10 -> 0 | AB10: =Prop2020DistTar!AP10 -> 0 | AC10: =Prop2020DistTar!AQ10 -> 0 | AD10: =Prop2020DistTar!AR10 -> 0 | AF10: 0 | AG10: 0 | AH10: 20069.7694 | AI10: 17561.91599 | AJ10: 0 | AK10: 0 | AL10: 0 | AM10: 0 | AN10: 0 | AO10: 0 | AP10: 0 | AQ10: 0 | AR10: 0 | AS10: 37631.68539
B11: =Prop2020DistTar!B11 -> Residential Two Rate 5d - Bulk | C11: C2RB | D11: 0 | E11: 0 | F11: 0.06 | G11: 0.06 | H11: 0 | I11: 0 | J11: 0 | K11: 0 | L11: 0 | M11: 0 | N11: 0 | O11: 0 | P11: 0 | R11: =Prop2020DistTar!AF11 -> 4316.824207 | S11: =Prop2020DistTar!AG11 -> 0 | T11: =Prop2020DistTar!AH11 -> 12001250.2 | U11: =Prop2020DistTar!AI11 -> 10487452.7 | V11: =Prop2020DistTar!AJ11 -> 0 | W11: =Prop2020DistTar!AK11 -> 0 | X11: =Prop2020DistTar!AL11 -> 0 | Y11: =Prop2020DistTar!AM11 -> 0 | Z11: =Prop2020DistTar!AN11 -> 0 | AA11: =Prop2020DistTar!AO11 -> 0 | AB11: =Prop2020DistTar!AP11 -> 0 | AC11: =Prop2020DistTar!AQ11 -> 0 | AD11: =Prop2020DistTar!AR11 -> 0 | AF11: 0 | AG11: 0 | AH11: 7200.750122 | AI11: 6292.471621 | AJ11: 0 | AK11: 0 | AL11: 0 | AM11: 0 | AN11: 0 | AO11: 0 | AP11: 0 | AQ11: 0 | AR11: 0 | AS11: 13493.22174
B12: =Prop2020DistTar!B12 -> Residential Interval | C12: C3R | D12: 0 | E12: 0 | F12: 0.06 | G12: 0.06 | H12: 0 | I12: 0 | J12: 0 | K12: 0 | L12: 0 | M12: 0 | N12: 0 | O12: 0 | P12: 0 | R12: =Prop2020DistTar!AF12 -> 17021.34205 | S12: =Prop2020DistTar!AG12 -> 0 | T12: =Prop2020DistTar!AH12 -> 51729844.46 | U12: =Prop2020DistTar!AI12 -> 45571765.37 | V12: =Prop2020DistTar!AJ12 -> 0 | W12: =Prop2020DistTar!AK12 -> 0 | X12: =Prop2020DistTar!AL12 -> 0 | Y12: =Prop2020DistTar!AM12 -> 0 | Z12: =Prop2020DistTar!AN12 -> 0 | AA12: =Prop2020DistTar!AO12 -> 0 | AB12: =Prop2020DistTar!AP12 -> 0 | AC12: =Prop2020DistTar!AQ12 -> 0 | AD12: =Prop2020DistTar!AR12 -> 0 | AF12: 0 | AG12: 0 | AH12: 31037.90668 | AI12: 27343.05922 | AJ12: 0 | AK12: 0 | AL12: 0 | AM12: 0 | AN12: 0 | AO12: 0 | AP12: 0 | AQ12: 0 | AR12: 0 | AS12: 58380.9659
B13: =Prop2020DistTar!B13 -> Residential Interval - Bulk | C13: C3RB | D13: 0 | E13: 0 | F13: 0.06 | G13: 0.06 | H13: 0 | I13: 0 | J13: 0 | K13: 0 | L13: 0 | M13: 0 | N13: 0 | O13: 0 | P13: 0 | R13: =Prop2020DistTar!AF13 -> 8705.349809 | S13: =Prop2020DistTar!AG13 -> 0 | T13: =Prop2020DistTar!AH13 -> 15093462.87 | U13: =Prop2020DistTar!AI13 -> 14304461.08 | V13: =Prop2020DistTar!AJ13 -> 0 | W13: =Prop2020DistTar!AK13 -> 0 | X13: =Prop2020DistTar!AL13 -> 0 | Y13: =Prop2020DistTar!AM13 -> 0 | Z13: =Prop2020DistTar!AN13 -> 0 | AA13: =Prop2020DistTar!AO13 -> 0 | AB13: =Prop2020DistTar!AP13 -> 0 | AC13: =Prop2020DistTar!AQ13 -> 0 | AD13: =Prop2020DistTar!AR13 -> 0 | AF13: 0 | AG13: 0 | AH13: 9056.07772 | AI13: 8582.676648 | AJ13: 0 | AK13: 0 | AL13: 0 | AM13: 0 | AN13: 0 | AO13: 0 | AP13: 0 | AQ13: 0 | AR13: 0 | AS13: 17638.75437
B14: =Prop2020DistTar!B14 -> Residential Two Rate 5d - Controlled Load | C14: C2ROP | D14: 0 | E14: 0 | F14: 0 | G14: 0 | H14: 0 | I14: 0 | J14: 0 | K14: 0 | L14: 0 | M14: 0 | N14: 0 | O14: 0 | P14: 0 | R14: =Prop2020DistTar!AF14 -> 0 | S14: =Prop2020DistTar!AG14 -> 0 | T14: =Prop2020DistTar!AH14 -> 0 | U14: =Prop2020DistTar!AI14 -> 0 | V14: =Prop2020DistTar!AJ14 -> 0 | W14: =Prop2020DistTar!AK14 -> 0 | X14: =Prop2020DistTar!AL14 -> 0 | Y14: =Prop2020DistTar!AM14 -> 0 | Z14: =Prop2020DistTar!AN14 -> 0 | AA14: =Prop2020DistTar!AO14 -> 0 | AB14: =Prop2020DistTar!AP14 -> 0 | AC14: =Prop2020DistTar!AQ14 -> 0 | AD14: =Prop2020DistTar!AR14 -> 0 | AF14: 0 | AG14: 0 | AH14: 0 | AI14: 0 | AJ14: 0 | AK14: 0 | AL14: 0 | AM14: 0 | AN14: 0 | AO14: 0 | AP14: 0 | AQ14: 0 | AR14: 0 | AS14: 0
B15: =Prop2020DistTar!B15 -> Residential Two Rate 5d - Bulk - Controlled Load | C15: C2RBOP | D15: 0 | E15: 0 | F15: 0 | G15: 0 | H15: 0 | I15: 0 | J15: 0 | K15: 0 | L15: 0 | M15: 0 | N15: 0 | O15: 0 | P15: 0 | R15: =Prop2020DistTar!AF15 -> 0 | S15: =Prop2020DistTar!AG15 -> 0 | T15: =Prop2020DistTar!AH15 -> 0 | U15: =Prop2020DistTar!AI15 -> 0 | V15: =Prop2020DistTar!AJ15 -> 0 | W15: =Prop2020DistTar!AK15 -> 0 | X15: =Prop2020DistTar!AL15 -> 0 | Y15: =Prop2020DistTar!AM15 -> 0 | Z15: =Prop2020DistTar!AN15 -> 0 | AA15: =Prop2020DistTar!AO15 -> 0 | AB15: =Prop2020DistTar!AP15 -> 0 | AC15: =Prop2020DistTar!AQ15 -> 0 | AD15: =Prop2020DistTar!AR15 -> 0 | AF15: 0 | AG15: 0 | AH15: 0 | AI15: 0 | AJ15: 0 | AK15: 0 | AL15: 0 | AM15: 0 | AN15: 0 | AO15: 0 | AP15: 0 | AQ15: 0 | AR15: 0 | AS15: 0
B16: =Prop2020DistTar!B16 -> Dedicated Circuit | C16: CDS | D16: 0 | E16: 0 | F16: 0 | G16: 0.06 | H16: 0 | I16: 0 | J16: 0 | K16: 0 | L16: 0 | M16: 0 | N16: 0 | O16: 0 | P16: 0 | R16: =Prop2020DistTar!AF16 -> 32498.74505 | S16: =Prop2020DistTar!AG16 -> 0 | T16: =Prop2020DistTar!AH16 -> 0 | U16: =Prop2020DistTar!AI16 -> 50045800.12 | V16: =Prop2020DistTar!AJ16 -> 0 | W16: =Prop2020DistTar!AK16 -> 0 | X16: =Prop2020DistTar!AL16 -> 0 | Y16: =Prop2020DistTar!AM16 -> 0 | Z16: =Prop2020DistTar!AN16 -> 0 | AA16: =Prop2020DistTar!AO16 -> 0 | AB16: =Prop2020DistTar!AP16 -> 0 | AC16: =Prop2020DistTar!AQ16 -> 0 | AD16: =Prop2020DistTar!AR16 -> 0 | AF16: 0 | AG16: 0 | AH16: 0 | AI16: 30027.48007 | AJ16: 0 | AK16: 0 | AL16: 0 | AM16: 0 | AN16: 0 | AO16: 0 | AP16: 0 | AQ16: 0 | AR16: 0 | AS16: 30027.48007
B17: =Prop2020DistTar!B17 -> Dedicated Circuit - Bulk | C17: CDSB | D17: 0 | E17: 0 | F17: 0 | G17: 0.06 | H17: 0 | I17: 0 | J17: 0 | K17: 0 | L17: 0 | M17: 0 | N17: 0 | O17: 0 | P17: 0 | R17: =Prop2020DistTar!AF17 -> 5581.41933 | S17: =Prop2020DistTar!AG17 -> 0 | T17: =Prop2020DistTar!AH17 -> 0 | U17: =Prop2020DistTar!AI17 -> 9263135.829 | V17: =Prop2020DistTar!AJ17 -> 0 | W17: =Prop2020DistTar!AK17 -> 0 | X17: =Prop2020DistTar!AL17 -> 0 | Y17: =Prop2020DistTar!AM17 -> 0 | Z17: =Prop2020DistTar!AN17 -> 0 | AA17: =Prop2020DistTar!AO17 -> 0 | AB17: =Prop2020DistTar!AP17 -> 0 | AC17: =Prop2020DistTar!AQ17 -> 0 | AD17: =Prop2020DistTar!AR17 -> 0 | AF17: 0 | AG17: 0 | AH17: 0 | AI17: 5557.881497 | AJ17: 0 | AK17: 0 | AL17: 0 | AM17: 0 | AN17: 0 | AO17: 0 | AP17: 0 | AQ17: 0 | AR17: 0 | AS17: 5557.881497
B18: =Prop2020DistTar!B18 -> Residential Demand | C18: CR | D18: 0 | E18: 0.06 | F18: 0 | G18: 0 | H18: 0 | I18: 0 | J18: 0 | K18: 0 | L18: 0 | M18: 0 | N18: 0 | O18: 0 | P18: 0 | R18: =Prop2020DistTar!AF18 -> 8.422561488 | S18: =Prop2020DistTar!AG18 -> 49160.92188 | T18: =Prop2020DistTar!AH18 -> 0 | U18: =Prop2020DistTar!AI18 -> 0 | V18: =Prop2020DistTar!AJ18 -> 0 | W18: =Prop2020DistTar!AK18 -> 91.99320375 | X18: =Prop2020DistTar!AL18 -> 214.7200986 | Y18: =Prop2020DistTar!AM18 -> 0 | Z18: =Prop2020DistTar!AN18 -> 0 | AA18: =Prop2020DistTar!AO18 -> 0 | AB18: =Prop2020DistTar!AP18 -> 0 | AC18: =Prop2020DistTar!AQ18 -> 0 | AD18: =Prop2020DistTar!AR18 -> 0 | AF18: 0 | AG18: 29.49655313 | AH18: 0 | AI18: 0 | AJ18: 0 | AK18: 0 | AL18: 0 | AM18: 0 | AN18: 0 | AO18: 0 | AP18: 0 | AQ18: 0 | AR18: 0 | AS18: 29.49655313
B19: =Prop2020DistTar!B19 -> Residential Bulk Demand | C19: CRB | D19: 0 | E19: 0.06 | F19: 0 | G19: 0 | H19: 0 | I19: 0 | J19: 0 | K19: 0 | L19: 0 | M19: 0 | N19: 0 | O19: 0 | P19: 0 | R19: =Prop2020DistTar!AF19 -> 1.956906318 | S19: =Prop2020DistTar!AG19 -> 11446.58721 | T19: =Prop2020DistTar!AH19 -> 0 | U19: =Prop2020DistTar!AI19 -> 0 | V19: =Prop2020DistTar!AJ19 -> 0 | W19: =Prop2020DistTar!AK19 -> 18.99501176 | X19: =Prop2020DistTar!AL19 -> 47.50351373 | Y19: =Prop2020DistTar!AM19 -> 0 | Z19: =Prop2020DistTar!AN19 -> 0 | AA19: =Prop2020DistTar!AO19 -> 0 | AB19: =Prop2020DistTar!AP19 -> 0 | AC19: =Prop2020DistTar!AQ19 -> 0 | AD19: =Prop2020DistTar!AR19 -> 0 | AF19: 0 | AG19: 6.867952325 | AH19: 0 | AI19: 0 | AJ19: 0 | AK19: 0 | AL19: 0 | AM19: 0 | AN19: 0 | AO19: 0 | AP19: 0 | AQ19: 0 | AR19: 0 | AS19: 6.867952325
B20: =Prop2020DistTar!B20 -> Non-Residential Single Rate | C20: C1G | D20: 0 | E20: 0.05 | F20: 0 | G20: 0 | H20: 0 | I20: 0 | J20: 0 | K20: 0 | L20: 0 | M20: 0 | N20: 0 | O20: 0 | P20: 0 | R20: =Prop2020DistTar!AF20 -> 19278.92846 | S20: =Prop2020DistTar!AG20 -> 234414508.1 | T20: =Prop2020DistTar!AH20 -> 0 | U20: =Prop2020DistTar!AI20 -> 0 | V20: =Prop2020DistTar!AJ20 -> 0 | W20: =Prop2020DistTar!AK20 -> 0 | X20: =Prop2020DistTar!AL20 -> 0 | Y20: =Prop2020DistTar!AM20 -> 0 | Z20: =Prop2020DistTar!AN20 -> 0 | AA20: =Prop2020DistTar!AO20 -> 0 | AB20: =Prop2020DistTar!AP20 -> 0 | AC20: =Prop2020DistTar!AQ20 -> 0 | AD20: =Prop2020DistTar!AR20 -> 0 | AF20: 0 | AG20: 117207.2541 | AH20: 0 | AI20: 0 | AJ20: 0 | AK20: 0 | AL20: 0 | AM20: 0 | AN20: 0 | AO20: 0 | AP20: 0 | AQ20: 0 | AR20: 0 | AS20: 117207.2541
B21: =Prop2020DistTar!B21 -> Non-Residential Single Rate - Bulk | C21: C1GB | D21: 0 | E21: 0.05 | F21: 0 | G21: 0 | H21: 0 | I21: 0 | J21: 0 | K21: 0 | L21: 0 | M21: 0 | N21: 0 | O21: 0 | P21: 0 | R21: =Prop2020DistTar!AF21 -> 5769.609032 | S21: =Prop2020DistTar!AG21 -> 81668548.05 | T21: =Prop2020DistTar!AH21 -> 0 | U21: =Prop2020DistTar!AI21 -> 0 | V21: =Prop2020DistTar!AJ21 -> 0 | W21: =Prop2020DistTar!AK21 -> 0 | X21: =Prop2020DistTar!AL21 -> 0 | Y21: =Prop2020DistTar!AM21 -> 0 | Z21: =Prop2020DistTar!AN21 -> 0 | AA21: =Prop2020DistTar!AO21 -> 0 | AB21: =Prop2020DistTar!AP21 -> 0 | AC21: =Prop2020DistTar!AQ21 -> 0 | AD21: =Prop2020DistTar!AR21 -> 0 | AF21: 0 | AG21: 40834.27403 | AH21: 0 | AI21: 0 | AJ21: 0 | AK21: 0 | AL21: 0 | AM21: 0 | AN21: 0 | AO21: 0 | AP21: 0 | AQ21: 0 | AR21: 0 | AS21: 40834.27403
B22: =Prop2020DistTar!B22 -> Non-Residential Two Rate 5d | C22: C2G5 | D22: 0 | E22: 0 | F22: 0.05 | G22: 0.05 | H22: 0 | I22: 0 | J22: 0 | K22: 0 | L22: 0 | M22: 0 | N22: 0 | O22: 0 | P22: 0 | R22: =Prop2020DistTar!AF22 -> 6175.655125 | S22: =Prop2020DistTar!AG22 -> 0 | T22: =Prop2020DistTar!AH22 -> 70438600.52 | U22: =Prop2020DistTar!AI22 -> 44830727.12 | V22: =Prop2020DistTar!AJ22 -> 0 | W22: =Prop2020DistTar!AK22 -> 0 | X22: =Prop2020DistTar!AL22 -> 0 | Y22: =Prop2020DistTar!AM22 -> 0 | Z22: =Prop2020DistTar!AN22 -> 0 | AA22: =Prop2020DistTar!AO22 -> 0 | AB22: =Prop2020DistTar!AP22 -> 0 | AC22: =Prop2020DistTar!AQ22 -> 0 | AD22: =Prop2020DistTar!AR22 -> 0 | AF22: 0 | AG22: 0 | AH22: 35219.30026 | AI22: 22415.36356 | AJ22: 0 | AK22: 0 | AL22: 0 | AM22: 0 | AN22: 0 | AO22: 0 | AP22: 0 | AQ22: 0 | AR22: 0 | AS22: 57634.66382
B23: =Prop2020DistTar!B23 -> Non-Residential Two Rate 5d - Bulk | C23: C2G5B | D23: 0 | E23: 0 | F23: 0.05 | G23: 0.05 | H23: 0 | I23: 0 | J23: 0 | K23: 0 | L23: 0 | M23: 0 | N23: 0 | O23: 0 | P23: 0 | R23: =Prop2020DistTar!AF23 -> 999.4319126 | S23: =Prop2020DistTar!AG23 -> 0 | T23: =Prop2020DistTar!AH23 -> 16508026.38 | U23: =Prop2020DistTar!AI23 -> 10058974.84 | V23: =Prop2020DistTar!AJ23 -> 0 | W23: =Prop2020DistTar!AK23 -> 0 | X23: =Prop2020DistTar!AL23 -> 0 | Y23: =Prop2020DistTar!AM23 -> 0 | Z23: =Prop2020DistTar!AN23 -> 0 | AA23: =Prop2020DistTar!AO23 -> 0 | AB23: =Prop2020DistTar!AP23 -> 0 | AC23: =Prop2020DistTar!AQ23 -> 0 | AD23: =Prop2020DistTar!AR23 -> 0 | AF23: 0 | AG23: 0 | AH23: 8254.013189 | AI23: 5029.487418 | AJ23: 0 | AK23: 0 | AL23: 0 | AM23: 0 | AN23: 0 | AO23: 0 | AP23: 0 | AQ23: 0 | AR23: 0 | AS23: 13283.50061
B24: =Prop2020DistTar!B24 -> Non-Residential Interval | C24: C3G | D24: 0 | E24: 0 | F24: 0.05 | G24: 0.05 | H24: 0 | I24: 0 | J24: 0 | K24: 0 | L24: 0 | M24: 0 | N24: 0 | O24: 0 | P24: 0 | R24: =Prop2020DistTar!AF24 -> 3789.629203 | S24: =Prop2020DistTar!AG24 -> 0 | T24: =Prop2020DistTar!AH24 -> 44801539.36 | U24: =Prop2020DistTar!AI24 -> 25848587 | V24: =Prop2020DistTar!AJ24 -> 0 | W24: =Prop2020DistTar!AK24 -> 0 | X24: =Prop2020DistTar!AL24 -> 0 | Y24: =Prop2020DistTar!AM24 -> 0 | Z24: =Prop2020DistTar!AN24 -> 0 | AA24: =Prop2020DistTar!AO24 -> 0 | AB24: =Prop2020DistTar!AP24 -> 0 | AC24: =Prop2020DistTar!AQ24 -> 0 | AD24: =Prop2020DistTar!AR24 -> 0 | AF24: 0 | AG24: 0 | AH24: 22400.76968 | AI24: 12924.2935 | AJ24: 0 | AK24: 0 | AL24: 0 | AM24: 0 | AN24: 0 | AO24: 0 | AP24: 0 | AQ24: 0 | AR24: 0 | AS24: 35325.06318
B25: =Prop2020DistTar!B25 -> Non-Residential Interval - Bulk | C25: C3GB | D25: 0 | E25: 0 | F25: 0.05 | G25: 0.05 | H25: 0 | I25: 0 | J25: 0 | K25: 0 | L25: 0 | M25: 0 | N25: 0 | O25: 0 | P25: 0 | R25: =Prop2020DistTar!AF25 -> 1768.977272 | S25: =Prop2020DistTar!AG25 -> 0 | T25: =Prop2020DistTar!AH25 -> 27824537.94 | U25: =Prop2020DistTar!AI25 -> 14553393.12 | V25: =Prop2020DistTar!AJ25 -> 0 | W25: =Prop2020DistTar!AK25 -> 0 | X25: =Prop2020DistTar!AL25 -> 0 | Y25: =Prop2020DistTar!AM25 -> 0 | Z25: =Prop2020DistTar!AN25 -> 0 | AA25: =Prop2020DistTar!AO25 -> 0 | AB25: =Prop2020DistTar!AP25 -> 0 | AC25: =Prop2020DistTar!AQ25 -> 0 | AD25: =Prop2020DistTar!AR25 -> 0 | AF25: 0 | AG25: 0 | AH25: 13912.26897 | AI25: 7276.696559 | AJ25: 0 | AK25: 0 | AL25: 0 | AM25: 0 | AN25: 0 | AO25: 0 | AP25: 0 | AQ25: 0 | AR25: 0 | AS25: 21188.96553
B26: =Prop2020DistTar!B26 -> Non-Residential Flexible Pricing | C26: C14G | D26: 0 | E26: 0 | F26: 0 | G26: 0 | H26: 0 | I26: 0 | J26: 0 | K26: 0.05 | L26: 0.05 | M26: 0.05 | N26: 0.05 | O26: 0.05 | P26: 0.05 | R26: =Prop2020DistTar!AF26 -> 20.7350502 | S26: =Prop2020DistTar!AG26 -> 0 | T26: =Prop2020DistTar!AH26 -> 0 | U26: =Prop2020DistTar!AI26 -> 0 | V26: =Prop2020DistTar!AJ26 -> 0 | W26: =Prop2020DistTar!AK26 -> 0 | X26: =Prop2020DistTar!AL26 -> 0 | Y26: =Prop2020DistTar!AM26 -> 54335.80956 | Z26: =Prop2020DistTar!AN26 -> 14519.63982 | AA26: =Prop2020DistTar!AO26 -> 41864.17979 | AB26: =Prop2020DistTar!AP26 -> 174859.3812 | AC26: =Prop2020DistTar!AQ26 -> 46726.00362 | AD26: =Prop2020DistTar!AR26 -> 134724.1282 | AF26: 0 | AG26: 0 | AH26: 0 | AI26: 0 | AJ26: 0 | AK26: 0 | AL26: 0 | AM26: 27.16790478 | AN26: 7.259819909 | AO26: 20.9320899 | AP26: 87.42969062 | AQ26: 23.36300181 | AR26: 67.36206412 | AS26: 233.5145711
B27: =Prop2020DistTar!B27 -> Non-Residential - Flexible Pricing Bulk | C27: C14GB | D27: 0 | E27: 0 | F27: 0 | G27: 0 | H27: 0 | I27: 0 | J27: 0 | K27: 0.05 | L27: 0.05 | M27: 0.05 | N27: 0.05 | O27: 0.05 | P27: 0.05 | R27: =Prop2020DistTar!AF27 -> 0.9183310064 | S27: =Prop2020DistTar!AG27 -> 0 | T27: =Prop2020DistTar!AH27 -> 0 | U27: =Prop2020DistTar!AI27 -> 0 | V27: =Prop2020DistTar!AJ27 -> 0 | W27: =Prop2020DistTar!AK27 -> 0 | X27: =Prop2020DistTar!AL27 -> 0 | Y27: =Prop2020DistTar!AM27 -> 22949.4972 | Z27: =Prop2020DistTar!AN27 -> 5681.954902 | AA27: =Prop2020DistTar!AO27 -> 20258.1029 | AB27: =Prop2020DistTar!AP27 -> 41846.92854 | AC27: =Prop2020DistTar!AQ27 -> 10360.67844 | AD27: =Prop2020DistTar!AR27 -> 36939.34456 | AF27: 0 | AG27: 0 | AH27: 0 | AI27: 0 | AJ27: 0 | AK27: 0 | AL27: 0 | AM27: 11.4747486 | AN27: 2.840977451 | AO27: 10.12905145 | AP27: 20.92346427 | AQ27: 5.180339219 | AR27: 18.46967228 | AS27: 69.01825327
B28: =Prop2020DistTar!B28 -> Non-Residential Two Rate 7d | C28: C2G7 | D28: 0 | E28: 0 | F28: 0.05 | G28: 0.05 | H28: 0 | I28: 0 | J28: 0 | K28: 0 | L28: 0 | M28: 0 | N28: 0 | O28: 0 | P28: 0 | R28: =Prop2020DistTar!AF28 -> 2306.948385 | S28: =Prop2020DistTar!AG28 -> 0 | T28: =Prop2020DistTar!AH28 -> 38369324.72 | U28: =Prop2020DistTar!AI28 -> 9290402.212 | V28: =Prop2020DistTar!AJ28 -> 0 | W28: =Prop2020DistTar!AK28 -> 0 | X28: =Prop2020DistTar!AL28 -> 0 | Y28: =Prop2020DistTar!AM28 -> 0 | Z28: =Prop2020DistTar!AN28 -> 0 | AA28: =Prop2020DistTar!AO28 -> 0 | AB28: =Prop2020DistTar!AP28 -> 0 | AC28: =Prop2020DistTar!AQ28 -> 0 | AD28: =Prop2020DistTar!AR28 -> 0 | AF28: 0 | AG28: 0 | AH28: 19184.66236 | AI28: 4645.201106 | AJ28: 0 | AK28: 0 | AL28: 0 | AM28: 0 | AN28: 0 | AO28: 0 | AP28: 0 | AQ28: 0 | AR28: 0 | AS28: 23829.86346
B29: =Prop2020DistTar!B29 -> Non-Residential Two Rate 7d - Bulk | C29: C2G7B | D29: 0 | E29: 0 | F29: 0.05 | G29: 0.05 | H29: 0 | I29: 0 | J29: 0 | K29: 0 | L29: 0 | M29: 0 | N29: 0 | O29: 0 | P29: 0 | R29: =Prop2020DistTar!AF29 -> 223.5415979 | S29: =Prop2020DistTar!AG29 -> 0 | T29: =Prop2020DistTar!AH29 -> 4879506.835 | U29: =Prop2020DistTar!AI29 -> 1213336.753 | V29: =Prop2020DistTar!AJ29 -> 0 | W29: =Prop2020DistTar!AK29 -> 0 | X29: =Prop2020DistTar!AL29 -> 0 | Y29: =Prop2020DistTar!AM29 -> 0 | Z29: =Prop2020DistTar!AN29 -> 0 | AA29: =Prop2020DistTar!AO29 -> 0 | AB29: =Prop2020DistTar!AP29 -> 0 | AC29: =Prop2020DistTar!AQ29 -> 0 | AD29: =Prop2020DistTar!AR29 -> 0 | AF29: 0 | AG29: 0 | AH29: 2439.753418 | AI29: 606.6683764 | AJ29: 0 | AK29: 0 | AL29: 0 | AM29: 0 | AN29: 0 | AO29: 0 | AP29: 0 | AQ29: 0 | AR29: 0 | AS29: 3046.421794
B30: =Prop2020DistTar!B30 -> Large Two Rate 7d | C30: C2L7 | D30: 0 | E30: 0 | F30: 0.05 | G30: 0.05 | H30: 0 | I30: 0 | J30: 0 | K30: 0 | L30: 0 | M30: 0 | N30: 0 | O30: 0 | P30: 0 | R30: =Prop2020DistTar!AF30 -> 1 | S30: =Prop2020DistTar!AG30 -> 0 | T30: =Prop2020DistTar!AH30 -> 43593.81375 | U30: =Prop2020DistTar!AI30 -> 17808.8805 | V30: =Prop2020DistTar!AJ30 -> 0 | W30: =Prop2020DistTar!AK30 -> 0 | X30: =Prop2020DistTar!AL30 -> 0 | Y30: =Prop2020DistTar!AM30 -> 0 | Z30: =Prop2020DistTar!AN30 -> 0 | AA30: =Prop2020DistTar!AO30 -> 0 | AB30: =Prop2020DistTar!AP30 -> 0 | AC30: =Prop2020DistTar!AQ30 -> 0 | AD30: =Prop2020DistTar!AR30 -> 0 | AF30: 0 | AG30: 0 | AH30: 21.79690688 | AI30: 8.904440248 | AJ30: 0 | AK30: 0 | AL30: 0 | AM30: 0 | AN30: 0 | AO30: 0 | AP30: 0 | AQ30: 0 | AR30: 0 | AS30: 30.70134712
B31: =Prop2020DistTar!B31 -> Non-Residential Demand Tariff | C31: CG | D31: 0 | E31: 0.05 | F31: 0 | G31: 0 | H31: 0 | I31: 0 | J31: 0 | K31: 0 | L31: 0 | M31: 0 | N31: 0 | O31: 0 | P31: 0 | R31: =Prop2020DistTar!AF31 -> 66.714762 | S31: =Prop2020DistTar!AG31 -> 5507232.359 | T31: =Prop2020DistTar!AH31 -> 0 | U31: =Prop2020DistTar!AI31 -> 0 | V31: =Prop2020DistTar!AJ31 -> 0 | W31: =Prop2020DistTar!AK31 -> 1303.837556 | X31: =Prop2020DistTar!AL31 -> 2992.259117 | Y31: =Prop2020DistTar!AM31 -> 0 | Z31: =Prop2020DistTar!AN31 -> 0 | AA31: =Prop2020DistTar!AO31 -> 0 | AB31: =Prop2020DistTar!AP31 -> 0 | AC31: =Prop2020DistTar!AQ31 -> 0 | AD31: =Prop2020DistTar!AR31 -> 0 | AF31: 0 | AG31: 2753.616179 | AH31: 0 | AI31: 0 | AJ31: 0 | AK31: 0 | AL31: 0 | AM31: 0 | AN31: 0 | AO31: 0 | AP31: 0 | AQ31: 0 | AR31: 0 | AS31: 2753.616179
B32: =Prop2020DistTar!B32 -> Non-Residential Bulk Demand Tariff | C32: CGB | D32: 0 | E32: 0.05 | F32: 0 | G32: 0 | H32: 0 | I32: 0 | J32: 0 | K32: 0 | L32: 0 | M32: 0 | N32: 0 | O32: 0 | P32: 0 | R32: =Prop2020DistTar!AF32 -> 148.1115419 | S32: =Prop2020DistTar!AG32 -> 12837801.45 | T32: =Prop2020DistTar!AH32 -> 0 | U32: =Prop2020DistTar!AI32 -> 0 | V32: =Prop2020DistTar!AJ32 -> 0 | W32: =Prop2020DistTar!AK32 -> 2650.362511 | X32: =Prop2020DistTar!AL32 -> 6065.868594 | Y32: =Prop2020DistTar!AM32 -> 0 | Z32: =Prop2020DistTar!AN32 -> 0 | AA32: =Prop2020DistTar!AO32 -> 0 | AB32: =Prop2020DistTar!AP32 -> 0 | AC32: =Prop2020DistTar!AQ32 -> 0 | AD32: =Prop2020DistTar!AR32 -> 0 | AF32: 0 | AG32: 6418.900726 | AH32: 0 | AI32: 0 | AJ32: 0 | AK32: 0 | AL32: 0 | AM32: 0 | AN32: 0 | AO32: 0 | AP32: 0 | AQ32: 0 | AR32: 0 | AS32: 6418.900726
B33: =Prop2020DistTar!B33 -> Medium Business Demand | C33: CMG | D33: 0 | E33: 0 | F33: 0.04 | G33: 0.04 | H33: 0 | I33: 0 | J33: 0 | K33: 0 | L33: 0 | M33: 0 | N33: 0 | O33: 0 | P33: 0 | R33: =Prop2020DistTar!AF33 -> 4403.401855 | S33: =Prop2020DistTar!AG33 -> 0 | T33: =Prop2020DistTar!AH33 -> 339952679.9 | U33: =Prop2020DistTar!AI33 -> 250709652.8 | V33: =Prop2020DistTar!AJ33 -> 0 | W33: =Prop2020DistTar!AK33 -> 724859.6545 | X33: =Prop2020DistTar!AL33 -> 1273831.032 | Y33: =Prop2020DistTar!AM33 -> 0 | Z33: =Prop2020DistTar!AN33 -> 0 | AA33: =Prop2020DistTar!AO33 -> 0 | AB33: =Prop2020DistTar!AP33 -> 0 | AC33: =Prop2020DistTar!AQ33 -> 0 | AD33: =Prop2020DistTar!AR33 -> 0 | AF33: =D33*R33 -> 0 | AG33: =E33/100*S33 -> 0 | AH33: 135981.0719 | AI33: 100283.8611 | AJ33: 0 | AK33: 0 | AL33: 0 | AM33: 0 | AN33: 0 | AO33: 0 | AP33: 0 | AQ33: 0 | AR33: 0 | AS33: =SUM(AF33:AR33) -> 236264.9331
B34: =Prop2020DistTar!B34 -> Medium Business Bulk Demand | C34: CMGB | D34: 0 | E34: 0 | F34: 0.04 | G34: 0.04 | H34: 0 | I34: 0 | J34: 0 | K34: 0 | L34: 0 | M34: 0 | N34: 0 | O34: 0 | P34: 0 | R34: =Prop2020DistTar!AF34 -> 2080.740884 | S34: =Prop2020DistTar!AG34 -> 0 | T34: =Prop2020DistTar!AH34 -> 235523158.7 | U34: =Prop2020DistTar!AI34 -> 157971528.6 | V34: =Prop2020DistTar!AJ34 -> 0 | W34: =Prop2020DistTar!AK34 -> 491954.4922 | X34: =Prop2020DistTar!AL34 -> 811784.275 | Y34: =Prop2020DistTar!AM34 -> 0 | Z34: =Prop2020DistTar!AN34 -> 0 | AA34: =Prop2020DistTar!AO34 -> 0 | AB34: =Prop2020DistTar!AP34 -> 0 | AC34: =Prop2020DistTar!AQ34 -> 0 | AD34: =Prop2020DistTar!AR34 -> 0 | AF34: 0 | AG34: 0 | AH34: 94209.2635 | AI34: 63188.61145 | AJ34: 0 | AK34: 0 | AL34: 0 | AM34: 0 | AN34: 0 | AO34: 0 | AP34: 0 | AQ34: 0 | AR34: 0 | AS34: 157397.8749
B35: =Prop2020DistTar!B35 -> Medium Business Opt-out | C35: CMGO | D35: 0 | E35: 0 | F35: 0.04 | G35: 0.04 | H35: 0 | I35: 0 | J35: 0 | K35: 0 | L35: 0 | M35: 0 | N35: 0 | O35: 0 | P35: 0 | R35: =Prop2020DistTar!AF35 -> 41.34154016 | S35: =Prop2020DistTar!AG35 -> 0 | T35: =Prop2020DistTar!AH35 -> 2405969.966 | U35: =Prop2020DistTar!AI35 -> 2106689.766 | V35: =Prop2020DistTar!AJ35 -> 0 | W35: =Prop2020DistTar!AK35 -> 0 | X35: =Prop2020DistTar!AL35 -> 0 | Y35: =Prop2020DistTar!AM35 -> 0 | Z35: =Prop2020DistTar!AN35 -> 0 | AA35: =Prop2020DistTar!AO35 -> 0 | AB35: =Prop2020DistTar!AP35 -> 0 | AC35: =Prop2020DistTar!AQ35 -> 0 | AD35: =Prop2020DistTar!AR35 -> 0 | AF35: =D35*R35 -> 0 | AG35: =E35/100*S35 -> 0 | AH35: =F35/100*T35 -> 962.3879866 | AI35: =G35/100*U35 -> 842.6759064 | AJ35: 0 | AK35: 0 | AL35: 0 | AM35: =K35/100*Y35 -> 0 | AN35: =L35/100*Z35 -> 0 | AO35: 0 | AP35: 0 | AQ35: 0 | AR35: 0 | AS35: =SUM(AF35:AR35) -> 1805.063893
B36: =Prop2020DistTar!B36 -> Medium Business Bulk Opt-out | C36: CMGBO | D36: 0 | E36: 0 | F36: 0.04 | G36: 0.04 | H36: 0 | I36: 0 | J36: 0 | K36: 0 | L36: 0 | M36: 0 | N36: 0 | O36: 0 | P36: 0 | R36: =Prop2020DistTar!AF36 -> 81.75004725 | S36: =Prop2020DistTar!AG36 -> 0 | T36: =Prop2020DistTar!AH36 -> 5074192.302 | U36: =Prop2020DistTar!AI36 -> 4451924.715 | V36: =Prop2020DistTar!AJ36 -> 0 | W36: =Prop2020DistTar!AK36 -> 0 | X36: =Prop2020DistTar!AL36 -> 0 | Y36: =Prop2020DistTar!AM36 -> 0 | Z36: =Prop2020DistTar!AN36 -> 0 | AA36: =Prop2020DistTar!AO36 -> 0 | AB36: =Prop2020DistTar!AP36 -> 0 | AC36: =Prop2020DistTar!AQ36 -> 0 | AD36: =Prop2020DistTar!AR36 -> 0 | AF36: 0 | AG36: 0 | AH36: 2029.676921 | AI36: 1780.769886 | AJ36: 0 | AK36: 0 | AL36: 0 | AM36: 0 | AN36: 0 | AO36: 0 | AP36: 0 | AQ36: 0 | AR36: 0 | AS36: 3810.446807
B37: =Prop2020DistTar!B37 -> Unmetered Supplies / Public Lighting | C37: C2U | D37: 0 | E37: 0 | F37: 0 | G37: 0 | H37: 0 | I37: 0 | J37: 0 | K37: 0 | L37: 0 | M37: 0 | N37: 0 | O37: 0 | P37: 0 | R37: =Prop2020DistTar!AF37 -> 4483.011669 | S37: =Prop2020DistTar!AG37 -> 0 | T37: =Prop2020DistTar!AH37 -> 7396578.491 | U37: =Prop2020DistTar!AI37 -> 10316991.68 | V37: =Prop2020DistTar!AJ37 -> 0 | W37: =Prop2020DistTar!AK37 -> 0 | X37: =Prop2020DistTar!AL37 -> 0 | Y37: =Prop2020DistTar!AM37 -> 0 | Z37: =Prop2020DistTar!AN37 -> 0 | AA37: =Prop2020DistTar!AO37 -> 0 | AB37: =Prop2020DistTar!AP37 -> 0 | AC37: =Prop2020DistTar!AQ37 -> 0 | AD37: =Prop2020DistTar!AR37 -> 0 | AF37: 0 | AG37: 0 | AH37: 0 | AI37: 0 | AJ37: 0 | AK37: 0 | AL37: 0 | AM37: 0 | AN37: 0 | AO37: 0 | AP37: 0 | AQ37: 0 | AR37: 0 | AS37: 0
B38: =Prop2020DistTar!B38 -> Large low Voltage | C38: CLLV | D38: 0 | E38: 0 | F38: 0.04 | G38: 0.04 | H38: 0 | I38: 0 | J38: 0 | K38: 0 | L38: 0 | M38: 0 | N38: 0 | O38: 0 | P38: 0 | R38: =Prop2020DistTar!AF38 -> 400.1764683 | S38: =Prop2020DistTar!AG38 -> 0 | T38: =Prop2020DistTar!AH38 -> 126570892.6 | U38: =Prop2020DistTar!AI38 -> 97426022.68 | V38: =Prop2020DistTar!AJ38 -> 78034.41132 | W38: =Prop2020DistTar!AK38 -> 0 | X38: =Prop2020DistTar!AL38 -> 0 | Y38: =Prop2020DistTar!AM38 -> 0 | Z38: =Prop2020DistTar!AN38 -> 0 | AA38: =Prop2020DistTar!AO38 -> 0 | AB38: =Prop2020DistTar!AP38 -> 0 | AC38: =Prop2020DistTar!AQ38 -> 0 | AD38: =Prop2020DistTar!AR38 -> 0 | AF38: 0 | AG38: 0 | AH38: 50628.35705 | AI38: 38970.40907 | AJ38: 0 | AK38: 0 | AL38: 0 | AM38: 0 | AN38: =L38/100*Z38 -> 0 | AO38: 0 | AP38: 0 | AQ38: 0 | AR38: 0 | AS38: 89598.76612
B39: =Prop2020DistTar!B39 -> Large low Voltage Bulk | C39: CLLVB | D39: 0 | E39: 0 | F39: 0.04 | G39: 0.04 | H39: 0 | I39: 0 | J39: 0 | K39: 0 | L39: 0 | M39: 0 | N39: 0 | O39: 0 | P39: 0 | R39: =Prop2020DistTar!AF39 -> 1842.936711 | S39: =Prop2020DistTar!AG39 -> 0 | T39: =Prop2020DistTar!AH39 -> 1137722435 | U39: =Prop2020DistTar!AI39 -> 873988483.9 | V39: =Prop2020DistTar!AJ39 -> 686083.3679 | W39: =Prop2020DistTar!AK39 -> 0 | X39: =Prop2020DistTar!AL39 -> 0 | Y39: =Prop2020DistTar!AM39 -> 0 | Z39: =Prop2020DistTar!AN39 -> 0 | AA39: =Prop2020DistTar!AO39 -> 0 | AB39: =Prop2020DistTar!AP39 -> 0 | AC39: =Prop2020DistTar!AQ39 -> 0 | AD39: =Prop2020DistTar!AR39 -> 0 | AF39: 0 | AG39: 0 | AH39: 455088.9739 | AI39: 349595.3936 | AJ39: 0 | AK39: 0 | AL39: 0 | AM39: 0 | AN39: 0 | AO39: 0 | AP39: 0 | AQ39: 0 | AR39: 0 | AS39: 804684.3675
B40: =Prop2020DistTar!B40 -> High Voltage | C40: CHV | D40: 0 | E40: 0 | F40: 0 | G40: 0 | H40: 0 | I40: 0 | J40: 0 | K40: 0 | L40: 0 | M40: 0 | N40: 0 | O40: 0 | P40: 0 | R40: =Prop2020DistTar!AF40 -> 93.92746114 | S40: =Prop2020DistTar!AG40 -> 0 | T40: =Prop2020DistTar!AH40 -> 365684368.5 | U40: =Prop2020DistTar!AI40 -> 176784509.1 | V40: =Prop2020DistTar!AJ40 -> 202579.3153 | W40: =Prop2020DistTar!AK40 -> 0 | X40: =Prop2020DistTar!AL40 -> 0 | Y40: =Prop2020DistTar!AM40 -> 0 | Z40: =Prop2020DistTar!AN40 -> 0 | AA40: =Prop2020DistTar!AO40 -> 0 | AB40: =Prop2020DistTar!AP40 -> 0 | AC40: =Prop2020DistTar!AQ40 -> 0 | AD40: =Prop2020DistTar!AR40 -> 0 | AF40: 0 | AG40: 0 | AH40: 0 | AI40: 0 | AJ40: 0 | AK40: 0 | AL40: 0 | AM40: 0 | AN40: 0 | AO40: 0 | AP40: 0 | AQ40: 0 | AR40: 0 | AS40: 0
B41: =Prop2020DistTar!B41 -> Subtransmission | C41: CST | D41: 0 | E41: 0 | F41: 0 | G41: 0 | H41: 0 | I41: 0 | J41: 0 | K41: 0 | L41: 0 | M41: 0 | N41: 0 | O41: 0 | P41: 0 | R41: =Prop2020DistTar!AF41 -> 5.999956857 | S41: =Prop2020DistTar!AG41 -> 0 | T41: =Prop2020DistTar!AH41 -> 65603250.46 | U41: =Prop2020DistTar!AI41 -> 24435184.1 | V41: =Prop2020DistTar!AJ41 -> 37985.58798 | W41: =Prop2020DistTar!AK41 -> 0 | X41: =Prop2020DistTar!AL41 -> 0 | Y41: =Prop2020DistTar!AM41 -> 0 | Z41: =Prop2020DistTar!AN41 -> 0 | AA41: =Prop2020DistTar!AO41 -> 0 | AB41: =Prop2020DistTar!AP41 -> 0 | AC41: =Prop2020DistTar!AQ41 -> 0 | AD41: =Prop2020DistTar!AR41 -> 0 | AF41: 0 | AG41: 0 | AH41: 0 | AI41: 0 | AJ41: 0 | AK41: 0 | AL41: 0 | AM41: 0 | AN41: 0 | AO41: 0 | AP41: 0 | AQ41: 0 | AR41: 0 | AS41: 0
AF42: 0 | AG42: 0 | AH42: 0 | AI42: 0 | AJ42: 0 | AK42: 0 | AL42: 0 | AM42: 0 | AN42: 0 | AO42: 0 | AP42: 0 | AQ42: 0 | AR42: 0 | AS42: 0
AF43: 0 | AG43: 0 | AH43: 0 | AI43: 0 | AJ43: 0 | AK43: 0 | AL43: 0 | AM43: 0 | AN43: 0 | AO43: 0 | AP43: 0 | AQ43: 0 | AR43: 0 | AS43: 0
AF44: 0 | AG44: 0 | AH44: 0 | AI44: 0 | AJ44: 0 | AK44: 0 | AL44: 0 | AM44: 0 | AN44: 0 | AO44: 0 | AP44: 0 | AQ44: 0 | AR44: 0 | AS44: 0
AF45: 0 | AG45: 0 | AH45: 0 | AI45: 0 | AJ45: 0 | AK45: 0 | AL45: 0 | AM45: 0 | AN45: 0 | AO45: 0 | AP45: 0 | AQ45: 0 | AR45: 0 | AS45: 0
AF46: 0 | AG46: 0 | AH46: 0 | AI46: 0 | AJ46: 0 | AK46: 0 | AL46: 0 | AM46: 0 | AN46: 0 | AO46: 0 | AP46: 0 | AQ46: 0 | AR46: 0 | AS46: 0
AF47: 0 | AG47: 0 | AH47: 0 | AI47: 0 | AJ47: 0 | AK47: 0 | AL47: 0 | AM47: 0 | AN47: 0 | AO47: 0 | AP47: 0 | AQ47: 0 | AR47: 0 | AS47: 0
AF48: 0 | AG48: 0 | AH48: 0 | AI48: 0 | AJ48: 0 | AK48: 0 | AL48: 0 | AM48: 0 | AN48: 0 | AO48: 0 | AP48: 0 | AQ48: 0 | AR48: 0 | AS48: 0
AF49: 0 | AG49: 0 | AH49: 0 | AI49: 0 | AJ49: 0 | AK49: 0 | AL49: 0 | AM49: 0 | AN49: 0 | AO49: 0 | AP49: 0 | AQ49: 0 | AR49: 0 | AS49: 0
AF50: 0 | AG50: 0 | AH50: 0 | AI50: 0 | AJ50: 0 | AK50: 0 | AL50: 0 | AM50: 0 | AN50: 0 | AO50: 0 | AP50: 0 | AQ50: 0 | AR50: 0 | AS50: 0
AF51: 0 | AG51: 0 | AH51: 0 | AI51: 0 | AJ51: 0 | AK51: 0 | AL51: 0 | AM51: 0 | AN51: 0 | AO51: 0 | AP51: 0 | AQ51: 0 | AR51: 0 | AS51: 0
AF52: 0 | AG52: 0 | AH52: 0 | AI52: 0 | AJ52: 0 | AK52: 0 | AL52: 0 | AM52: 0 | AN52: 0 | AO52: 0 | AP52: 0 | AQ52: 0 | AR52: 0 | AS52: 0
AF53: 0 | AG53: 0 | AH53: 0 | AI53: 0 | AJ53: 0 | AK53: 0 | AL53: 0 | AM53: 0 | AN53: 0 | AO53: 0 | AP53: 0 | AQ53: 0 | AR53: 0 | AS53: 0
AF54: 0 | AG54: 0 | AH54: 0 | AI54: 0 | AJ54: 0 | AK54: 0 | AL54: 0 | AM54: 0 | AN54: 0 | AO54: 0 | AP54: 0 | AQ54: 0 | AR54: 0 | AS54: 0
AF55: 0 | AG55: 0 | AH55: 0 | AI55: 0 | AJ55: 0 | AK55: 0 | AL55: 0 | AM55: 0 | AN55: 0 | AO55: 0 | AP55: 0 | AQ55: 0 | AR55: 0 | AS55: 0
AF56: 0 | AG56: 0 | AH56: 0 | AI56: 0 | AJ56: 0 | AK56: 0 | AL56: 0 | AM56: 0 | AN56: 0 | AO56: 0 | AP56: 0 | AQ56: 0 | AR56: 0 | AS56: 0
AF57: 0 | AG57: 0 | AH57: 0 | AI57: 0 | AJ57: 0 | AK57: 0 | AL57: 0 | AM57: 0 | AN57: 0 | AO57: 0 | AP57: 0 | AQ57: 0 | AR57: 0 | AS57: 0
AF58: 0 | AG58: 0 | AH58: 0 | AI58: 0 | AJ58: 0 | AK58: 0 | AL58: 0 | AM58: 0 | AN58: 0 | AO58: 0 | AP58: 0 | AQ58: 0 | AR58: 0 | AS58: 0
AF59: 0 | AG59: 0 | AH59: 0 | AI59: 0 | AJ59: 0 | AK59: 0 | AL59: 0 | AM59: 0 | AN59: 0 | AO59: 0 | AP59: 0 | AQ59: 0 | AR59: 0 | AS59: 0
AF60: 0 | AG60: 0 | AH60: 0 | AI60: 0 | AJ60: 0 | AK60: 0 | AL60: 0 | AM60: 0 | AN60: 0 | AO60: 0 | AP60: 0 | AQ60: 0 | AR60: 0 | AS60: 0
AF61: 0 | AG61: 0 | AH61: 0 | AI61: 0 | AJ61: 0 | AK61: 0 | AL61: 0 | AM61: 0 | AN61: 0 | AO61: 0 | AP61: 0 | AQ61: 0 | AR61: 0 | AS61: 0
AF62: 0 | AG62: 0 | AH62: 0 | AI62: 0 | AJ62: 0 | AK62: 0 | AL62: 0 | AM62: 0 | AN62: 0 | AO62: 0 | AP62: 0 | AQ62: 0 | AR62: 0 | AS62: 0
AF63: 0 | AG63: 0 | AH63: 0 | AI63: 0 | AJ63: 0 | AK63: 0 | AL63: 0 | AM63: 0 | AN63: 0 | AO63: 0 | AP63: 0 | AQ63: 0 | AR63: 0 | AS63: 0
AF64: 0 | AG64: 0 | AH64: 0 | AI64: 0 | AJ64: 0 | AK64: 0 | AL64: 0 | AM64: 0 | AN64: 0 | AO64: 0 | AP64: 0 | AQ64: 0 | AR64: 0 | AS64: 0
AF65: 0 | AG65: 0 | AH65: 0 | AI65: 0 | AJ65: 0 | AK65: 0 | AL65: 0 | AM65: 0 | AN65: 0 | AO65: 0 | AP65: 0 | AQ65: 0 | AR65: 0 | AS65: 0
R66: =SUM(R6:R65) -> 370982.6705 | S66: 1290238442 | T66: 2601072828 | U66: 1862946692 | V66: 1004682.682 | W66: 1220879.335 | X66: 2094935.658 | Y66: =SUM(Y6:Y65) -> 275792.5977 | Z66: 443006.6181 | AA66: 375920.2048 | AB66: 975665.0601 | AC66: 1673557.854 | AD66: 1371448.072 | AF66: =SUM(AF6:AF65) -> 0 | AG66: 740700.256 | AH66: 907696.8 | AI66: 702933.821 | AJ66: 0 | AK66: 0 | AL66: 0 | AM66: =SUM(AM6:AM65) -> 157.7470279 | AN66: 263.7838114 | AO66: 219.3398946 | AP66: 563.7284051 | AQ66: 998.4260444 | AR66: 805.7024962 | AS66: 2354339.605

Sheet Est2019JSRev
B1: ="Tariff Approval - "&'Model update'!C3 -> Tariff Approval - CitiPower | D1: ="Est"&'Model update'!$C$5-1&"JSRev" -> Est2019JSRev
B3: ="ESTIMATED "&'Model update'!C8&" JURISDICTIONAL SCHEME REVENUE" -> ESTIMATED 2019 JURISDICTIONAL SCHEME REVENUE
D4: ="Current Jurisdictional scheme Tariffs (Pt-1) for "&'Model update'!$C$8 -> Current Jurisdictional scheme Tariffs (Pt-1) for 2019 | R4: ="Estimated Quantities (Qt-1) for "&'Model update'!$C$8 -> Estimated Quantities (Qt-1) for 2019 | AF4: ="Estimated Revenue (Pt-1 "&'Model update'!$C$8&")*(Qt-1 " &'Model update'!$C$8&")" -> Estimated Revenue (Pt-1 2019)*(Qt-1 2019)
B5: ="Tariffs "&'Model update'!C8 -> Tariffs 2019 | D5: =Est2019DistRev!D5 -> CurrentTar Fixed | E5: =Est2019DistRev!E5 -> CurrentTar Anytime | F5: =Est2019DistRev!F5 -> CurrentTar PkBlk | G5: =Est2019DistRev!G5 -> CurrentTar OPkBlk1 | H5: =Est2019DistRev!H5 -> CurrentTar Dem kVA | I5: =Est2019DistRev!I5 -> CurrentTar Dem kW Sum | J5: =Est2019DistRev!J5 -> CurrentTar Dem kW Win | K5: =Est2019DistRev!K5 -> CurrentTar SumBlk1 | L5: =Est2019DistRev!L5 -> CurrentTar SumBlk2 | M5: =Est2019DistRev!M5 -> CurrentTar SumBlk3 | N5: =Est2019DistRev!N5 -> CurrentTar WtrBlk1 | O5: =Est2019DistRev!O5 -> CurrentTar WtrBlk2 | P5: =Est2019DistRev!P5 -> CurrentTar WtrBlk3 | R5: =Est2019DistRev!R5 -> EstVol Fixed | S5: =Est2019DistRev!S5 -> EstVol Anytime | T5: =Est2019DistRev!T5 -> EstVol Pk | U5: =Est2019DistRev!U5 -> EstVol Opk | V5: =Est2019DistRev!V5 -> EstVol Dem kVA | W5: =Est2019DistRev!W5 -> EstVol Dem kW Sum | X5: =Est2019DistRev!X5 -> EstVol Dem kW Win | Y5: =Est2019DistRev!Y5 -> EstVol SumBlk1 | Z5: =Est2019DistRev!Z5 -> EstVol SumBlk2 | AA5: =Est2019DistRev!AA5 -> EstVol SumBlk3 | AB5: =Est2019DistRev!AB5 -> EstVol WtrBlk1 | AC5: =Est2019DistRev!AC5 -> EstVol WtrBlk2 | AD5: =Est2019DistRev!AD5 -> EstVol WtrBlk3 | AF5: =Est2019DistRev!AF5 -> EstRev Fixed | AG5: =Est2019DistRev!AG5 -> EstRev Anytime | AH5: =Est2019DistRev!AH5 -> EstRev Pk | AI5: =Est2019DistRev!AI5 -> EstRev Opk | AJ5: =Est2019DistRev!AJ5 -> EstRev Dem kVA | AK5: =Est2019DistRev!AK5 -> EstRev Dem kW Sum | AL5: =Est2019DistRev!AL5 -> EstRev Dem kW Win | AM5: =Est2019DistRev!AM5 -> EstRev SumBlk1 | AN5: =Est2019DistRev!AN5 -> EstRev SumBlk2 | AO5: =Est2019DistRev!AO5 -> EstRev SumBlk3 | AP5: =Est2019DistRev!AP5 -> EstRev WtrBlk1 | AQ5: =Est2019DistRev!AQ5 -> EstRev WtrBlk2 | AR5: =Est2019DistRev!AR5 -> EstRev WtrBlk3 | AS5: EstRev Total
B6: =Est2019TransRev!B6 -> Residential Single Rate | D6: 0 | E6: 0.05 | F6: 0 | G6: 0 | H6: 0 | I6: 0 | J6: 0 | K6: 0 | L6: 0 | M6: 0 | N6: 0 | O6: 0 | P6: 0 | R6: =Est2019DistRev!R6 -> 205044.5 | S6: =Est2019DistRev!S6 -> 853857291.2 | T6: =Est2019DistRev!T6 -> 0 | U6: =Est2019DistRev!U6 -> 0 | V6: =Est2019DistRev!V6 -> 0 | W6: =Est2019DistRev!W6 -> 0 | X6: =Est2019DistRev!X6 -> 0 | Y6: =Est2019DistRev!Y6 -> 0 | Z6: =Est2019DistRev!Z6 -> 0 | AA6: =Est2019DistRev!AA6 -> 0 | AB6: =Est2019DistRev!AB6 -> 0 | AC6: =Est2019DistRev!AC6 -> 0 | AD6: =Est2019DistRev!AD6 -> 0 | AF6: =D6*R6 -> 0 | AG6: =E6/100*S6 -> 426928.6456 | AH6: 0 | AI6: 0 | AJ6: =H6*V6 -> 0 | AK6: =I6*W6 -> 0 | AL6: 0 | AM6: 0 | AN6: 0 | AO6: =M6/100*AA6 -> 0 | AP6: =N6/100*AB6 -> 0 | AQ6: =O6/100*AC6 -> 0 | AR6: =P6/100*AD6 -> 0 | AS6: =SUM(AF6:AR6) -> 426928.6456
B7: =Est2019TransRev!B7 -> Residential Single Rate - Bulk | D7: 0 | E7: 0.05 | F7: 0 | G7: 0 | H7: 0 | I7: 0 | J7: 0 | K7: 0 | L7: 0 | M7: 0 | N7: 0 | O7: 0 | P7: 0 | R7: =Est2019DistRev!R7 -> 31480.91667 | S7: =Est2019DistRev!S7 -> 106631799.4 | T7: =Est2019DistRev!T7 -> 0 | U7: =Est2019DistRev!U7 -> 0 | V7: =Est2019DistRev!V7 -> 0 | W7: =Est2019DistRev!W7 -> 0 | X7: =Est2019DistRev!X7 -> 0 | Y7: =Est2019DistRev!Y7 -> 0 | Z7: =Est2019DistRev!Z7 -> 0 | AA7: =Est2019DistRev!AA7 -> 0 | AB7: =Est2019DistRev!AB7 -> 0 | AC7: =Est2019DistRev!AC7 -> 0 | AD7: =Est2019DistRev!AD7 -> 0 | AF7: =D7*R7 -> 0 | AG7: =E7/100*S7 -> 53315.8997 | AH7: 0 | AI7: 0 | AJ7: =H7*V7 -> 0 | AK7: =I7*W7 -> 0 | AL7: =J7*X7 -> 0 | AM7: 0 | AN7: 0 | AO7: 0 | AP7: 0 | AQ7: 0 | AR7: 0 | AS7: =SUM(AF7:AR7) -> 53315.8997
B8: =Est2019TransRev!B8 -> Residential - flexible pricing | D8: 0 | E8: 0 | F8: 0 | G8: 0 | H8: 0 | I8: 0 | J8: 0 | K8: 0.05 | L8: 0.05 | M8: 0.05 | N8: 0.05 | O8: 0.05 | P8: 0.05 | R8: =Est2019DistRev!R8 -> 693.4166667 | S8: =Est2019DistRev!S8 -> 0 | T8: =Est2019DistRev!T8 -> 0 | U8: =Est2019DistRev!U8 -> 0 | V8: =Est2019DistRev!V8 -> 0 | W8: =Est2019DistRev!W8 -> 0 | X8: =Est2019DistRev!X8 -> 0 | Y8: =Est2019DistRev!Y8 -> 205405.5214 | Z8: =Est2019DistRev!Z8 -> 427210.1542 | AA8: =Est2019DistRev!AA8 -> 316794.3387 | AB8: =Est2019DistRev!AB8 -> 740099.6911 | AC8: =Est2019DistRev!AC8 -> 1539287.265 | AD8: =Est2019DistRev!AD8 -> 1141446.396 | AF8: 0 | AG8: 0 | AH8: 0 | AI8: 0 | AJ8: 0 | AK8: 0 | AL8: 0 | AM8: 102.7027607 | AN8: 213.6050771 | AO8: 158.3971693 | AP8: 370.0498455 | AQ8: 769.6436324 | AR8: 570.7231982 | AS8: 2185.121683
B9: =Est2019TransRev!B9 -> Residential - flexible pricing bulk | D9: 0 | E9: 0 | F9: 0 | G9: 0 | H9: 0 | I9: 0 | J9: 0 | K9: 0.05 | L9: 0.05 | M9: 0.05 | N9: 0.05 | O9: 0.05 | P9: 0.05 | R9: =Est2019DistRev!R9 -> 90 | S9: =Est2019DistRev!S9 -> 0 | T9: =Est2019DistRev!T9 -> 0 | U9: =Est2019DistRev!U9 -> 0 | V9: =Est2019DistRev!V9 -> 0 | W9: =Est2019DistRev!W9 -> 0 | X9: =Est2019DistRev!X9 -> 0 | Y9: =Est2019DistRev!Y9 -> 15231.12129 | Z9: =Est2019DistRev!Z9 -> 32311.93005 | AA9: =Est2019DistRev!AA9 -> 23662.58093 | AB9: =Est2019DistRev!AB9 -> 55378.7842 | AC9: =Est2019DistRev!AC9 -> 117482.841 | AD9: =Est2019DistRev!AD9 -> 86034.70078 | AF9: 0 | AG9: 0 | AH9: 0 | AI9: 0 | AJ9: 0 | AK9: 0 | AL9: 0 | AM9: 7.615560647 | AN9: 16.15596502 | AO9: 11.83129047 | AP9: 27.6893921 | AQ9: 58.74142049 | AR9: 43.01735039 | AS9: 165.0509791
B10: =Est2019TransRev!B10 -> Residential Two Rate 5d | D10: 0 | E10: 0 | F10: 0.05 | G10: 0.05 | H10: 0 | I10: 0 | J10: 0 | K10: 0 | L10: 0 | M10: 0 | N10: 0 | O10: 0 | P10: 0 | R10: =Est2019DistRev!R10 -> 10820.08333 | S10: =Est2019DistRev!S10 -> 0 | T10: =Est2019DistRev!T10 -> 35024034.5 | U10: =Est2019DistRev!U10 -> 30157186.27 | V10: =Est2019DistRev!V10 -> 0 | W10: =Est2019DistRev!W10 -> 0 | X10: =Est2019DistRev!X10 -> 0 | Y10: =Est2019DistRev!Y10 -> 0 | Z10: =Est2019DistRev!Z10 -> 0 | AA10: =Est2019DistRev!AA10 -> 0 | AB10: =Est2019DistRev!AB10 -> 0 | AC10: =Est2019DistRev!AC10 -> 0 | AD10: =Est2019DistRev!AD10 -> 0 | AF10: 0 | AG10: 0 | AH10: 17512.01725 | AI10: 15078.59314 | AJ10: 0 | AK10: 0 | AL10: 0 | AM10: 0 | AN10: 0 | AO10: 0 | AP10: 0 | AQ10: 0 | AR10: 0 | AS10: 32590.61039
B11: =Est2019TransRev!B11 -> Residential Two Rate 5d - Bulk | D11: 0 | E11: 0 | F11: 0.05 | G11: 0.05 | H11: 0 | I11: 0 | J11: 0 | K11: 0 | L11: 0 | M11: 0 | N11: 0 | O11: 0 | P11: 0 | R11: =Est2019DistRev!R11 -> 4352.5 | S11: =Est2019DistRev!S11 -> 0 | T11: =Est2019DistRev!T11 -> 12294584.52 | U11: =Est2019DistRev!U11 -> 10585730.05 | V11: =Est2019DistRev!V11 -> 0 | W11: =Est2019DistRev!W11 -> 0 | X11: =Est2019DistRev!X11 -> 0 | Y11: =Est2019DistRev!Y11 -> 0 | Z11: =Est2019DistRev!Z11 -> 0 | AA11: =Est2019DistRev!AA11 -> 0 | AB11: =Est2019DistRev!AB11 -> 0 | AC11: =Est2019DistRev!AC11 -> 0 | AD11: =Est2019DistRev!AD11 -> 0 | AF11: 0 | AG11: 0 | AH11: 6147.292262 | AI11: 5292.865023 | AJ11: 0 | AK11: 0 | AL11: 0 | AM11: 0 | AN11: 0 | AO11: 0 | AP11: 0 | AQ11: 0 | AR11: 0 | AS11: 11440.15729
B12: =Est2019TransRev!B12 -> Residential Interval | D12: 0 | E12: 0 | F12: 0.05 | G12: 0.05 | H12: 0 | I12: 0 | J12: 0 | K12: 0 | L12: 0 | M12: 0 | N12: 0 | O12: 0 | P12: 0 | R12: =Est2019DistRev!R12 -> 17057.16667 | S12: =Est2019DistRev!S12 -> 0 | T12: =Est2019DistRev!T12 -> 60669728.28 | U12: =Est2019DistRev!U12 -> 52545941.86 | V12: =Est2019DistRev!V12 -> 0 | W12: =Est2019DistRev!W12 -> 0 | X12: =Est2019DistRev!X12 -> 0 | Y12: =Est2019DistRev!Y12 -> 0 | Z12: =Est2019DistRev!Z12 -> 0 | AA12: =Est2019DistRev!AA12 -> 0 | AB12: =Est2019DistRev!AB12 -> 0 | AC12: =Est2019DistRev!AC12 -> 0 | AD12: =Est2019DistRev!AD12 -> 0 | AF12: 0 | AG12: 0 | AH12: 30334.86414 | AI12: 26272.97093 | AJ12: 0 | AK12: 0 | AL12: 0 | AM12: 0 | AN12: 0 | AO12: 0 | AP12: 0 | AQ12: 0 | AR12: 0 | AS12: 56607.83507
B13: =Est2019TransRev!B13 -> Residential Interval - Bulk | D13: 0 | E13: 0 | F13: 0.05 | G13: 0.05 | H13: 0 | I13: 0 | J13: 0 | K13: 0 | L13: 0 | M13: 0 | N13: 0 | O13: 0 | P13: 0 | R13: =Est2019DistRev!R13 -> 8658 | S13: =Est2019DistRev!S13 -> 0 | T13: =Est2019DistRev!T13 -> 15600572.12 | U13: =Est2019DistRev!U13 -> 14572772.14 | V13: =Est2019DistRev!V13 -> 0 | W13: =Est2019DistRev!W13 -> 0 | X13: =Est2019DistRev!X13 -> 0 | Y13: =Est2019DistRev!Y13 -> 0 | Z13: =Est2019DistRev!Z13 -> 0 | AA13: =Est2019DistRev!AA13 -> 0 | AB13: =Est2019DistRev!AB13 -> 0 | AC13: =Est2019DistRev!AC13 -> 0 | AD13: =Est2019DistRev!AD13 -> 0 | AF13: 0 | AG13: 0 | AH13: 7800.28606 | AI13: 7286.386071 | AJ13: 0 | AK13: 0 | AL13: 0 | AM13: 0 | AN13: 0 | AO13: 0 | AP13: 0 | AQ13: 0 | AR13: 0 | AS13: 15086.67213
B14: =Est2019TransRev!B14 -> Residential Two Rate 5d - Controlled Load | D14: 0 | E14: 0 | F14: 0 | G14: 0.05 | H14: 0 | I14: 0 | J14: 0 | K14: 0 | L14: 0 | M14: 0 | N14: 0 | O14: 0 | P14: 0 | R14: =Est2019DistRev!R14 -> 9732.666667 | S14: =Est2019DistRev!S14 -> 0 | T14: =Est2019DistRev!T14 -> 0 | U14: =Est2019DistRev!U14 -> 19246331.24 | V14: =Est2019DistRev!V14 -> 0 | W14: =Est2019DistRev!W14 -> 0 | X14: =Est2019DistRev!X14 -> 0 | Y14: =Est2019DistRev!Y14 -> 0 | Z14: =Est2019DistRev!Z14 -> 0 | AA14: =Est2019DistRev!AA14 -> 0 | AB14: =Est2019DistRev!AB14 -> 0 | AC14: =Est2019DistRev!AC14 -> 0 | AD14: =Est2019DistRev!AD14 -> 0 | AF14: 0 | AG14: 0 | AH14: 0 | AI14: 9623.165618 | AJ14: 0 | AK14: 0 | AL14: 0 | AM14: 0 | AN14: 0 | AO14: 0 | AP14: 0 | AQ14: 0 | AR14: 0 | AS14: 9623.165618
B15: =Est2019TransRev!B15 -> Residential Two Rate 5d - Bulk - Controlled Load | D15: 0 | E15: 0 | F15: 0 | G15: 0.05 | H15: 0 | I15: 0 | J15: 0 | K15: 0 | L15: 0 | M15: 0 | N15: 0 | O15: 0 | P15: 0 | R15: =Est2019DistRev!R15 -> 3683.833333 | S15: =Est2019DistRev!S15 -> 0 | T15: =Est2019DistRev!T15 -> 0 | U15: =Est2019DistRev!U15 -> 7176762.317 | V15: =Est2019DistRev!V15 -> 0 | W15: =Est2019DistRev!W15 -> 0 | X15: =Est2019DistRev!X15 -> 0 | Y15: =Est2019DistRev!Y15 -> 0 | Z15: =Est2019DistRev!Z15 -> 0 | AA15: =Est2019DistRev!AA15 -> 0 | AB15: =Est2019DistRev!AB15 -> 0 | AC15: =Est2019DistRev!AC15 -> 0 | AD15: =Est2019DistRev!AD15 -> 0 | AF15: 0 | AG15: 0 | AH15: 0 | AI15: 3588.381159 | AJ15: 0 | AK15: 0 | AL15: 0 | AM15: 0 | AN15: 0 | AO15: 0 | AP15: 0 | AQ15: 0 | AR15: 0 | AS15: 3588.381159
B16: =Est2019TransRev!B16 -> Dedicated Circuit | D16: 0 | E16: 0 | F16: 0 | G16: 0.05 | H16: 0 | I16: 0 | J16: 0 | K16: 0 | L16: 0 | M16: 0 | N16: 0 | O16: 0 | P16: 0 | R16: =Est2019DistRev!R16 -> 22825.5 | S16: =Est2019DistRev!S16 -> 0 | T16: =Est2019DistRev!T16 -> 0 | U16: =Est2019DistRev!U16 -> 31802481.57 | V16: =Est2019DistRev!V16 -> 0 | W16: =Est2019DistRev!W16 -> 0 | X16: =Est2019DistRev!X16 -> 0 | Y16: =Est2019DistRev!Y16 -> 0 | Z16: =Est2019DistRev!Z16 -> 0 | AA16: =Est2019DistRev!AA16 -> 0 | AB16: =Est2019DistRev!AB16 -> 0 | AC16: =Est2019DistRev!AC16 -> 0 | AD16: =Est2019DistRev!AD16 -> 0 | AF16: 0 | AG16: 0 | AH16: 0 | AI16: 15901.24079 | AJ16: 0 | AK16: 0 | AL16: 0 | AM16: 0 | AN16: 0 | AO16: 0 | AP16: 0 | AQ16: 0 | AR16: 0 | AS16: 15901.24079
B17: =Est2019TransRev!B17 -> Dedicated Circuit - Bulk | D17: 0 | E17: 0 | F17: 0 | G17: 0.05 | H17: 0 | I17: 0 | J17: 0 | K17: 0 | L17: 0 | M17: 0 | N17: 0 | O17: 0 | P17: 0 | R17: =Est2019DistRev!R17 -> 1105.583333 | S17: =Est2019DistRev!S17 -> 0 | T17: =Est2019DistRev!T17 -> 0 | U17: =Est2019DistRev!U17 -> 2202095.01 | V17: =Est2019DistRev!V17 -> 0 | W17: =Est2019DistRev!W17 -> 0 | X17: =Est2019DistRev!X17 -> 0 | Y17: =Est2019DistRev!Y17 -> 0 | Z17: =Est2019DistRev!Z17 -> 0 | AA17: =Est2019DistRev!AA17 -> 0 | AB17: =Est2019DistRev!AB17 -> 0 | AC17: =Est2019DistRev!AC17 -> 0 | AD17: =Est2019DistRev!AD17 -> 0 | AF17: 0 | AG17: 0 | AH17: 0 | AI17: 1101.047505 | AJ17: 0 | AK17: 0 | AL17: 0 | AM17: 0 | AN17: 0 | AO17: 0 | AP17: 0 | AQ17: 0 | AR17: 0 | AS17: 1101.047505
B18: =Est2019TransRev!B18 -> Residential Demand | D18: 0 | E18: 0.05 | F18: 0 | G18: 0 | H18: 0 | I18: 0 | J18: 0 | K18: 0 | L18: 0 | M18: 0 | N18: 0 | O18: 0 | P18: 0 | R18: =Est2019DistRev!R18 -> 4 | S18: =Est2019DistRev!S18 -> 14863.13851 | T18: =Est2019DistRev!T18 -> 0 | U18: =Est2019DistRev!U18 -> 0 | V18: =Est2019DistRev!V18 -> 0 | W18: =Est2019DistRev!W18 -> 50.49333333 | X18: =Est2019DistRev!X18 -> 120.751 | Y18: =Est2019DistRev!Y18 -> 0 | Z18: =Est2019DistRev!Z18 -> 0 | AA18: =Est2019DistRev!AA18 -> 0 | AB18: =Est2019DistRev!AB18 -> 0 | AC18: =Est2019DistRev!AC18 -> 0 | AD18: =Est2019DistRev!AD18 -> 0 | AF18: 0 | AG18: 7.431569254 | AH18: 0 | AI18: 0 | AJ18: 0 | AK18: 0 | AL18: 0 | AM18: 0 | AN18: 0 | AO18: 0 | AP18: 0 | AQ18: 0 | AR18: 0 | AS18: 7.431569254
B19: =Est2019TransRev!B19 -> Residential Bulk Demand | D19: 0 | E19: 0.05 | F19: 0 | G19: 0 | H19: 0 | I19: 0 | J19: 0 | K19: 0 | L19: 0 | M19: 0 | N19: 0 | O19: 0 | P19: 0 | R19: =Est2019DistRev!R19 -> 0 | S19: =Est2019DistRev!S19 -> 0 | T19: =Est2019DistRev!T19 -> 0 | U19: =Est2019DistRev!U19 -> 0 | V19: =Est2019DistRev!V19 -> 0 | W19: =Est2019DistRev!W19 -> 0 | X19: =Est2019DistRev!X19 -> 0 | Y19: =Est2019DistRev!Y19 -> 0 | Z19: =Est2019DistRev!Z19 -> 0 | AA19: =Est2019DistRev!AA19 -> 0 | AB19: =Est2019DistRev!AB19 -> 0 | AC19: =Est2019DistRev!AC19 -> 0 | AD19: =Est2019DistRev!AD19 -> 0 | AF19: 0 | AG19: 0 | AH19: 0 | AI19: 0 | AJ19: 0 | AK19: 0 | AL19: 0 | AM19: 0 | AN19: 0 | AO19: 0 | AP19: 0 | AQ19: 0 | AR19: 0 | AS19: 0
B20: =Est2019TransRev!B20 -> Non-Residential Single Rate | D20: 0 | E20: 0.05 | F20: 0 | G20: 0 | H20: 0 | I20: 0 | J20: 0 | K20: 0 | L20: 0 | M20: 0 | N20: 0 | O20: 0 | P20: 0 | R20: =Est2019DistRev!R20 -> 20319.91667 | S20: =Est2019DistRev!S20 -> 233254649.1 | T20: =Est2019DistRev!T20 -> 0 | U20: =Est2019DistRev!U20 -> 0 | V20: =Est2019DistRev!V20 -> 0 | W20: =Est2019DistRev!W20 -> 0 | X20: =Est2019DistRev!X20 -> 0 | Y20: =Est2019DistRev!Y20 -> 0 | Z20: =Est2019DistRev!Z20 -> 0 | AA20: =Est2019DistRev!AA20 -> 0 | AB20: =Est2019DistRev!AB20 -> 0 | AC20: =Est2019DistRev!AC20 -> 0 | AD20: =Est2019DistRev!AD20 -> 0 | AF20: 0 | AG20: 116627.3246 | AH20: 0 | AI20: 0 | AJ20: 0 | AK20: 0 | AL20: 0 | AM20: 0 | AN20: 0 | AO20: 0 | AP20: 0 | AQ20: 0 | AR20: 0 | AS20: 116627.3246
B21: =Est2019TransRev!B21 -> Non-Residential Single Rate - Bulk | D21: 0 | E21: 0.05 | F21: 0 | G21: 0 | H21: 0 | I21: 0 | J21: 0 | K21: 0 | L21: 0 | M21: 0 | N21: 0 | O21: 0 | P21: 0 | R21: =Est2019DistRev!R21 -> 5859.166667 | S21: =Est2019DistRev!S21 -> 77076676.16 | T21: =Est2019DistRev!T21 -> 0 | U21: =Est2019DistRev!U21 -> 0 | V21: =Est2019DistRev!V21 -> 0 | W21: =Est2019DistRev!W21 -> 0 | X21: =Est2019DistRev!X21 -> 0 | Y21: =Est2019DistRev!Y21 -> 0 | Z21: =Est2019DistRev!Z21 -> 0 | AA21: =Est2019DistRev!AA21 -> 0 | AB21: =Est2019DistRev!AB21 -> 0 | AC21: =Est2019DistRev!AC21 -> 0 | AD21: =Est2019DistRev!AD21 -> 0 | AF21: 0 | AG21: 38538.33808 | AH21: 0 | AI21: 0 | AJ21: 0 | AK21: 0 | AL21: 0 | AM21: 0 | AN21: 0 | AO21: 0 | AP21: 0 | AQ21: 0 | AR21: 0 | AS21: 38538.33808
B22: =Est2019TransRev!B22 -> Non-Residential Two Rate 5d | D22: 0 | E22: 0 | F22: 0.05 | G22: 0.05 | H22: 0 | I22: 0 | J22: 0 | K22: 0 | L22: 0 | M22: 0 | N22: 0 | O22: 0 | P22: 0 | R22: =Est2019DistRev!R22 -> 8457.416667 | S22: =Est2019DistRev!S22 -> 0 | T22: =Est2019DistRev!T22 -> 92130994.29 | U22: =Est2019DistRev!U22 -> 57478450.85 | V22: =Est2019DistRev!V22 -> 0 | W22: =Est2019DistRev!W22 -> 0 | X22: =Est2019DistRev!X22 -> 0 | Y22: =Est2019DistRev!Y22 -> 0 | Z22: =Est2019DistRev!Z22 -> 0 | AA22: =Est2019DistRev!AA22 -> 0 | AB22: =Est2019DistRev!AB22 -> 0 | AC22: =Est2019DistRev!AC22 -> 0 | AD22: =Est2019DistRev!AD22 -> 0 | AF22: 0 | AG22: 0 | AH22: 46065.49715 | AI22: 28739.22543 | AJ22: 0 | AK22: 0 | AL22: 0 | AM22: 0 | AN22: 0 | AO22: 0 | AP22: 0 | AQ22: 0 | AR22: 0 | AS22: 74804.72257
B23: =Est2019TransRev!B23 -> Non-Residential Two Rate 5d - Bulk | D23: 0 | E23: 0 | F23: 0.05 | G23: 0.05 | H23: 0 | I23: 0 | J23: 0 | K23: 0 | L23: 0 | M23: 0 | N23: 0 | O23: 0 | P23: 0 | R23: =Est2019DistRev!R23 -> 1060 | S23: =Est2019DistRev!S23 -> 0 | T23: =Est2019DistRev!T23 -> 17530830.1 | U23: =Est2019DistRev!U23 -> 10374374.19 | V23: =Est2019DistRev!V23 -> 0 | W23: =Est2019DistRev!W23 -> 0 | X23: =Est2019DistRev!X23 -> 0 | Y23: =Est2019DistRev!Y23 -> 0 | Z23: =Est2019DistRev!Z23 -> 0 | AA23: =Est2019DistRev!AA23 -> 0 | AB23: =Est2019DistRev!AB23 -> 0 | AC23: =Est2019DistRev!AC23 -> 0 | AD23: =Est2019DistRev!AD23 -> 0 | AF23: 0 | AG23: 0 | AH23: 8765.41505 | AI23: 5187.187096 | AJ23: 0 | AK23: 0 | AL23: 0 | AM23: 0 | AN23: 0 | AO23: 0 | AP23: 0 | AQ23: 0 | AR23: 0 | AS23: 13952.60215
B24: =Est2019TransRev!B24 -> Non-Residential Interval | D24: 0 | E24: 0 | F24: 0.05 | G24: 0.05 | H24: 0 | I24: 0 | J24: 0 | K24: 0 | L24: 0 | M24: 0 | N24: 0 | O24: 0 | P24: 0 | R24: =Est2019DistRev!R24 -> 3960.083333 | S24: =Est2019DistRev!S24 -> 0 | T24: =Est2019DistRev!T24 -> 45937500.62 | U24: =Est2019DistRev!U24 -> 25953497.25 | V24: =Est2019DistRev!V24 -> 0 | W24: =Est2019DistRev!W24 -> 0 | X24: =Est2019DistRev!X24 -> 0 | Y24: =Est2019DistRev!Y24 -> 0 | Z24: =Est2019DistRev!Z24 -> 0 | AA24: =Est2019DistRev!AA24 -> 0 | AB24: =Est2019DistRev!AB24 -> 0 | AC24: =Est2019DistRev!AC24 -> 0 | AD24: =Est2019DistRev!AD24 -> 0 | AF24: 0 | AG24: 0 | AH24: 22968.75031 | AI24: 12976.74862 | AJ24: 0 | AK24: 0 | AL24: 0 | AM24: 0 | AN24: 0 | AO24: 0 | AP24: 0 | AQ24: 0 | AR24: 0 | AS24: 35945.49893
B25: =Est2019TransRev!B25 -> Non-Residential Interval - Bulk | D25: 0 | E25: 0 | F25: 0.05 | G25: 0.05 | H25: 0 | I25: 0 | J25: 0 | K25: 0 | L25: 0 | M25: 0 | N25: 0 | O25: 0 | P25: 0 | R25: =Est2019DistRev!R25 -> 1945.083333 | S25: =Est2019DistRev!S25 -> 0 | T25: =Est2019DistRev!T25 -> 29899979.14 | U25: =Est2019DistRev!U25 -> 15763990.48 | V25: =Est2019DistRev!V25 -> 0 | W25: =Est2019DistRev!W25 -> 0 | X25: =Est2019DistRev!X25 -> 0 | Y25: =Est2019DistRev!Y25 -> 0 | Z25: =Est2019DistRev!Z25 -> 0 | AA25: =Est2019DistRev!AA25 -> 0 | AB25: =Est2019DistRev!AB25 -> 0 | AC25: =Est2019DistRev!AC25 -> 0 | AD25: =Est2019DistRev!AD25 -> 0 | AF25: 0 | AG25: 0 | AH25: 14949.98957 | AI25: 7881.995242 | AJ25: 0 | AK25: 0 | AL25: 0 | AM25: 0 | AN25: 0 | AO25: 0 | AP25: 0 | AQ25: 0 | AR25: 0 | AS25: 22831.98481
B26: =Est2019TransRev!B26 -> Non-Residential Flexible Pricing | D26: 0 | E26: 0 | F26: 0 | G26: 0 | H26: 0 | I26: 0 | J26: 0 | K26: 0.05 | L26: 0.05 | M26: 0.05 | N26: 0.05 | O26: 0.05 | P26: 0.05 | R26: =Est2019DistRev!R26 -> 22 | S26: =Est2019DistRev!S26 -> 0 | T26: =Est2019DistRev!T26 -> 0 | U26: =Est2019DistRev!U26 -> 0 | V26: =Est2019DistRev!V26 -> 0 | W26: =Est2019DistRev!W26 -> 0 | X26: =Est2019DistRev!X26 -> 0 | Y26: =Est2019DistRev!Y26 -> 90532.51609 | Z26: =Est2019DistRev!Z26 -> 28600.36374 | AA26: =Est2019DistRev!AA26 -> 77063.91457 | AB26: =Est2019DistRev!AB26 -> 309844.84 | AC26: =Est2019DistRev!AC26 -> 97883.8931 | AD26: =Est2019DistRev!AD26 -> 263748.9525 | AF26: 0 | AG26: 0 | AH26: 0 | AI26: 0 | AJ26: 0 | AK26: 0 | AL26: 0 | AM26: 45.26625804 | AN26: 14.30018187 | AO26: 38.53195728 | AP26: 154.92242 | AQ26: 48.94194655 | AR26: 131.8744762 | AS26: 433.83724
B27: =Est2019TransRev!B27 -> Non-Residential - Flexible Pricing Bulk | D27: 0 | E27: 0 | F27: 0 | G27: 0 | H27: 0 | I27: 0 | J27: 0 | K27: 0.05 | L27: 0.05 | M27: 0.05 | N27: 0.05 | O27: 0.05 | P27: 0.05 | R27: =Est2019DistRev!R27 -> 7 | S27: =Est2019DistRev!S27 -> 0 | T27: =Est2019DistRev!T27 -> 0 | U27: =Est2019DistRev!U27 -> 0 | V27: =Est2019DistRev!V27 -> 0 | W27: =Est2019DistRev!W27 -> 0 | X27: =Est2019DistRev!X27 -> 0 | Y27: =Est2019DistRev!Y27 -> 103639.4071 | Z27: =Est2019DistRev!Z27 -> 27419.30238 | AA27: =Est2019DistRev!AA27 -> 92664.29665 | AB27: =Est2019DistRev!AB27 -> 277642.3295 | AC27: =Est2019DistRev!AC27 -> 73454.2892 | AD27: =Est2019DistRev!AD27 -> 248240.8178 | AF27: 0 | AG27: 0 | AH27: 0 | AI27: 0 | AJ27: 0 | AK27: 0 | AL27: 0 | AM27: 51.81970357 | AN27: 13.70965119 | AO27: 46.33214833 | AP27: 138.8211647 | AQ27: 36.7271446 | AR27: 124.1204089 | AS27: 411.5302213
B28: =Est2019TransRev!B28 -> Non-Residential Two Rate 7d | D28: 0 | E28: 0 | F28: 0.05 | G28: 0.05 | H28: 0 | I28: 0 | J28: 0 | K28: 0 | L28: 0 | M28: 0 | N28: 0 | O28: 0 | P28: 0 | R28: =Est2019DistRev!R28 -> 2325 | S28: =Est2019DistRev!S28 -> 0 | T28: =Est2019DistRev!T28 -> 39141830.2 | U28: =Est2019DistRev!U28 -> 9312690.059 | V28: =Est2019DistRev!V28 -> 0 | W28: =Est2019DistRev!W28 -> 0 | X28: =Est2019DistRev!X28 -> 0 | Y28: =Est2019DistRev!Y28 -> 0 | Z28: =Est2019DistRev!Z28 -> 0 | AA28: =Est2019DistRev!AA28 -> 0 | AB28: =Est2019DistRev!AB28 -> 0 | AC28: =Est2019DistRev!AC28 -> 0 | AD28: =Est2019DistRev!AD28 -> 0 | AF28: 0 | AG28: 0 | AH28: 19570.9151 | AI28: 4656.345029 | AJ28: 0 | AK28: 0 | AL28: 0 | AM28: 0 | AN28: 0 | AO28: 0 | AP28: 0 | AQ28: 0 | AR28: 0 | AS28: 24227.26013
B29: =Est2019TransRev!B29 -> Non-Residential Two Rate 7d - Bulk | D29: 0 | E29: 0 | F29: 0.05 | G29: 0.05 | H29: 0 | I29: 0 | J29: 0 | K29: 0 | L29: 0 | M29: 0 | N29: 0 | O29: 0 | P29: 0 | R29: =Est2019DistRev!R29 -> 253.0833333 | S29: =Est2019DistRev!S29 -> 0 | T29: =Est2019DistRev!T29 -> 5750711.727 | U29: =Est2019DistRev!U29 -> 1391434.263 | V29: =Est2019DistRev!V29 -> 0 | W29: =Est2019DistRev!W29 -> 0 | X29: =Est2019DistRev!X29 -> 0 | Y29: =Est2019DistRev!Y29 -> 0 | Z29: =Est2019DistRev!Z29 -> 0 | AA29: =Est2019DistRev!AA29 -> 0 | AB29: =Est2019DistRev!AB29 -> 0 | AC29: =Est2019DistRev!AC29 -> 0 | AD29: =Est2019DistRev!AD29 -> 0 | AF29: 0 | AG29: 0 | AH29: 2875.355864 | AI29: 695.7171313 | AJ29: 0 | AK29: 0 | AL29: 0 | AM29: 0 | AN29: 0 | AO29: 0 | AP29: 0 | AQ29: 0 | AR29: 0 | AS29: 3571.072995
B30: =Est2019TransRev!B30 -> Large Two Rate 7d | D30: 0 | E30: 0 | F30: 0.05 | G30: 0.05 | H30: 0 | I30: 0 | J30: 0 | K30: 0 | L30: 0 | M30: 0 | N30: 0 | O30: 0 | P30: 0 | R30: =Est2019DistRev!R30 -> 4 | S30: =Est2019DistRev!S30 -> 0 | T30: =Est2019DistRev!T30 -> 168556.1792 | U30: =Est2019DistRev!U30 -> 75139.00678 | V30: =Est2019DistRev!V30 -> 0 | W30: =Est2019DistRev!W30 -> 0 | X30: =Est2019DistRev!X30 -> 0 | Y30: =Est2019DistRev!Y30 -> 0 | Z30: =Est2019DistRev!Z30 -> 0 | AA30: =Est2019DistRev!AA30 -> 0 | AB30: =Est2019DistRev!AB30 -> 0 | AC30: =Est2019DistRev!AC30 -> 0 | AD30: =Est2019DistRev!AD30 -> 0 | AF30: 0 | AG30: 0 | AH30: 84.2780896 | AI30: 37.56950339 | AJ30: 0 | AK30: 0 | AL30: 0 | AM30: 0 | AN30: 0 | AO30: 0 | AP30: 0 | AQ30: 0 | AR30: 0 | AS30: 121.847593
